Workbook

Sheet PNB BDD
C2: A sélectionner dans menu déroulant | V2: Légende
B3: Direction commerciale | V3: Réalisations > objectif proraté
B4: Secteur | V4: Réalisations < 50% de objectif proraté
B5: Agence | V5: Taux / durée lié a une convention
B7: =IF(C3="","CEGEE",IF(AND(C5="",C4=""),C3,IF(AND(C5="",C4<>""),C4,IF(C5="","""Sélectionneragence",C5)))) -> CEGEE | E7: PNB sur Activité Nouvelle 2019
B9: Données arrêtées au : | C9: ='Indicateurs Cumulés'!$G$4 -> 2019-10-31
B10: Taux de réalisation attendu : | C10: =MONTH(C9)/12 -> 83% | E10: Réalisations Mensuelles | J10: Réalisations Annuelles | P10: OBJECTIFS | V10: TAUX Réal. Objectif
E11: Volume | F11: Taux | G11: Durée | H11: PNB | J11: Volume | K11: Taux | L11: Durée | M11: PNB | N11: PNB / ETP perf. | P11: Volume | Q11: Taux | R11: Durée | S11: PNB | T11: PNB / ETP Cible | V11: Volume | W11: PNB annuel | X11: Ecart /obj. PNB/ETP
B12: Montants en k€
B14: COLLECTE (yc DAV) - Excédents | E14: =E15+E16++E32 -> -12,819 | H14: =H15+H16+H32 -> 1,205 | J14: =J15+J16++J32 -> 81,702 | M14: =M15+M16+M32 -> 16,857 | N14: =IF(ISERROR(M14/SUMIF('Indicateurs Cumulés'!$F:$F,$B$7,'Indicateurs Cumulés'!HT:HT)),"nc",M14/SUMIF('Indicateurs Cumulés'!$F:$F,$B$7,'Indicateurs Cumulés'!HT:HT)) -> 12.6 | P14: =P15+P16+P32 -> 180,000 | S14: =S15+S16+S32 -> 24,756 | T14: =IF(ISERROR(S14/SUMIF(objectifs!$F:$F,$B$7,objectifs!IC:IC)),"nc",S14/SUMIF(objectifs!$F:$F,$B$7,objectifs!IC:IC)) -> 16.3 | V14: =IF(ISERROR(J14/P14),0,J14/P14) -> 45% | W14: =IF(ISERROR(M14/S14),0,M14/S14) -> 68% | X14: =IF(ISERROR(N14-(T14/12*MONTH($C$9))),"nc",N14-(T14/12*MONTH($C$9))) -> -1.0
B15: DAV Créditeurs - Variation d'EMJ mensuel | E15: =SUMIF('Indicateurs mensuels'!$F:$F,$B$7,'Indicateurs mensuels'!HH:HH)/12 -> 12,148 | F15: =K15 -> 1.00% | G15: =L15 -> 5.37 | H15: =E15*F15*G15 -> 652 | J15: =SUMIF('Indicateurs Cumulés'!$F:$F,$B$7,'Indicateurs Cumulés'!HQ:HQ) -> 72,548 | K15: ='Indicateurs Cumulés'!$GI$374 -> 1.00% | L15: ='Indicateurs Cumulés'!$GJ$374 -> 5.37 | M15: =J15*K15*L15 -> 3,896 | N15: =IF(ISERROR(M15/SUMIF('Indicateurs Cumulés'!$F:$F,$B$7,'Indicateurs Cumulés'!HT:HT)),"nc",M15/SUMIF('Indicateurs Cumulés'!$F:$F,$B$7,'Indicateurs Cumulés'!HT:HT)) -> 2.9 | P15: =SUMIF(objectifs!F:F,$B$7,objectifs!FF:FF) -> 130,000 | Q15: =objectifs!$FG$373 -> 1.00% | R15: =objectifs!$FH$373 -> 5.37 | S15: =P15*Q15*R15 -> 6,981 | T15: =IF(ISERROR(S15/SUMIF(objectifs!$F:$F,$B$7,objectifs!IC:IC)),"nc",S15/SUMIF(objectifs!$F:$F,$B$7,objectifs!IC:IC)) -> 4.6 | V15: =IF(ISERROR(J15/P15),0,J15/P15) -> 56% | W15: =IF(ISERROR(M15/S15),0,M15/S15) -> 56% | X15: =IF(ISERROR(N15-(T15/12*MONTH($C$9))),"nc",N15-(T15/12*MONTH($C$9))) -> -0.9
B16: Epargne Bilan | E16: =SUMIF('Indicateurs mensuels'!$F:$F,$B$7,'Indicateurs mensuels'!FV:FV) -> -22,990 | H16: =SUMIF('Indicateurs mensuels'!$F:$F,$B$7,'Indicateurs mensuels'!FW:FW) -> 183 | J16: =SUMIF('Indicateurs Cumulés'!$F:$F,$B$7,'Indicateurs Cumulés'!GD:GD) -> -126,135 | M16: =SUMIF('Indicateurs Cumulés'!$F:$F,$B$7,'Indicateurs Cumulés'!GE:GE) -> 2,332 | N16: =IF(ISERROR(M16/SUMIF('Indicateurs Cumulés'!$F:$F,$B$7,'Indicateurs Cumulés'!HT:HT)),"nc",M16/SUMIF('Indicateurs Cumulés'!$F:$F,$B$7,'Indicateurs Cumulés'!HT:HT)) -> 1.7 | P16: =SUMIF(objectifs!F:F,$B$7,objectifs!CH:CH)+SUMIF(objectifs!F:F,$B$7,objectifs!FB:FB) -> -120,000 | S16: =SUMIF(objectifs!F:F,$B$7,objectifs!CK:CK)+SUMIF(objectifs!F:F,$B$7,objectifs!FC:FC) -> 2,792 | T16: =IF(ISERROR(S16/SUMIF(objectifs!$F:$F,$B$7,objectifs!IC:IC)),"nc",S16/SUMIF(objectifs!$F:$F,$B$7,objectifs!IC:IC)) -> 1.8 | V16: =IF(ISERROR(J16/P16),0,J16/P16) -> 105% | W16: =IF(ISERROR(M16/S16),0,M16/S16) -> 84% | X16: =IF(ISERROR(N16-(T16/12*MONTH($C$9))),"nc",N16-(T16/12*MONTH($C$9))) -> 0.2
B17: Livret A | E17: =SUMIF('Indicateurs mensuels'!$F:$F,$B$7,'Indicateurs mensuels'!DB:DB) -> -22,461 | F17: =K17 -> 0.70% | G17: =L17 -> 5.33 | H17: =E17*F17*G17 -> -838 | J17: =SUMIF('Indicateurs Cumulés'!$F:$F,$B$7,'Indicateurs Cumulés'!DJ:DJ) -> 31,806 | K17: ='Indicateurs Cumulés'!$DK$374 -> 0.70% | L17: ='Indicateurs Cumulés'!$DL$374 -> 5.33 | M17: =SUMIF('Indicateurs Cumulés'!$F:$F,$B$7,'Indicateurs Cumulés'!DM:DM) -> 1,187 | N17: =IF(ISERROR(M17/SUMIF('Indicateurs Cumulés'!$F:$F,$B$7,'Indicateurs Cumulés'!HT:HT)),"nc",M17/SUMIF('Indicateurs Cumulés'!$F:$F,$B$7,'Indicateurs Cumulés'!HT:HT)) -> 0.9 | P17: =SUMIF(objectifs!F:F,$B$7,objectifs!CH:CH) -> 30,000 | Q17: =objectifs!$CI$373 -> 0.70% | R17: =objectifs!$CJ$373 -> 5.37 | S17: =P17*Q17*R17 -> 1,128 | T17: =IF(ISERROR(S17/SUMIF(objectifs!$F:$F,$B$7,objectifs!IC:IC)),"nc",S17/SUMIF(objectifs!$F:$F,$B$7,objectifs!IC:IC)) -> 0.7 | V17: =IF(ISERROR(J17/P17),0,J17/P17) -> 106% | W17: =IF(ISERROR(M17/S17),0,M17/S17) -> 105% | X17: 0.3
B18: LDDS | E18: =SUMIF('Indicateurs mensuels'!$F:$F,$B$7,'Indicateurs mensuels'!DV:DV) -> -2,146 | F18: =K18 -> 0.20% | G18: =L18 -> 5.37 | H18: -23 | J18: =SUMIF('Indicateurs Cumulés'!$F:$F,$B$7,'Indicateurs Cumulés'!ED:ED) -> 18,676 | K18: ='Indicateurs Cumulés'!$EE$374 -> 0.20% | L18: ='Indicateurs Cumulés'!$EF$374 -> 5.37 | M18: =SUMIF('Indicateurs Cumulés'!$F:$F,$B$7,'Indicateurs Cumulés'!EG:EG) -> 201 | N18: =IF(ISERROR(M18/SUMIF('Indicateurs Cumulés'!$F:$F,$B$7,'Indicateurs Cumulés'!HT:HT)),"nc",M18/SUMIF('Indicateurs Cumulés'!$F:$F,$B$7,'Indicateurs Cumulés'!HT:HT)) -> 0.1 | P18: =SUMIF(objectifs!F:F,$B$7,objectifs!DB:DB) -> 10,000 | Q18: =objectifs!$DC$373 -> 0.20% | R18: =objectifs!$DD$373 -> 5.37 | S18: =P18*Q18*R18 -> 107 | T18: =IF(ISERROR(S18/SUMIF(objectifs!$F:$F,$B$7,objectifs!IC:IC)),"nc",S18/SUMIF(objectifs!$F:$F,$B$7,objectifs!IC:IC)) -> 0.1 | V18: =IF(ISERROR(J18/P18),0,J18/P18) -> 187% | W18: =IF(ISERROR(M18/S18),0,M18/S18) -> 187% | X18: 0.1
B19: LEP | E19: =SUMIF('Indicateurs mensuels'!$F:$F,$B$7,'Indicateurs mensuels'!DR:DR) -> -3,782 | F19: 0.20% | G19: 5.37 | H19: -41 | J19: =SUMIF('Indicateurs Cumulés'!$F:$F,$B$7,'Indicateurs Cumulés'!DZ:DZ) -> -122,129 | K19: ='Indicateurs Cumulés'!$EA$374 -> 0.20% | L19: ='Indicateurs Cumulés'!$EB$374 -> 5.37 | M19: =SUMIF('Indicateurs Cumulés'!$F:$F,$B$7,'Indicateurs Cumulés'!EC:EC) -> -1312 | N19: =IF(ISERROR(M19/SUMIF('Indicateurs Cumulés'!$F:$F,$B$7,'Indicateurs Cumulés'!HT:HT)),"nc",M19/SUMIF('Indicateurs Cumulés'!$F:$F,$B$7,'Indicateurs Cumulés'!HT:HT)) -> -1.0 | P19: =SUMIF(objectifs!F:F,$B$7,objectifs!CX:CX) -> -40,000 | Q19: =objectifs!$CY$373 -> 0.20% | R19: =objectifs!$CZ$373 -> 5.37 | S19: -430 | T19: =IF(ISERROR(S19/SUMIF(objectifs!$F:$F,$B$7,objectifs!IC:IC)),"nc",S19/SUMIF(objectifs!$F:$F,$B$7,objectifs!IC:IC)) -> -0.3 | V19: 305% | W19: 305% | X19: -0.7
B20: Livret B | E20: =SUMIF('Indicateurs mensuels'!$F:$F,$B$7,'Indicateurs mensuels'!DF:DF) -> 10,458 | F20: 0.66% | G20: 5.33 | H20: 370 | J20: =SUMIF('Indicateurs Cumulés'!$F:$F,$B$7,'Indicateurs Cumulés'!DN:DN) -> 31,644 | K20: ='Indicateurs Cumulés'!$DO$374 -> 0.66% | L20: ='Indicateurs Cumulés'!$DP$374 -> 5.33 | M20: =SUMIF('Indicateurs Cumulés'!$F:$F,$B$7,'Indicateurs Cumulés'!DQ:DQ) -> 1119 | N20: =IF(ISERROR(M20/SUMIF('Indicateurs Cumulés'!$F:$F,$B$7,'Indicateurs Cumulés'!HT:HT)),"nc",M20/SUMIF('Indicateurs Cumulés'!$F:$F,$B$7,'Indicateurs Cumulés'!HT:HT)) -> 0.8 | P20: =SUMIF(objectifs!F:F,$B$7,objectifs!CL:CL) -> 40,000 | Q20: =objectifs!$CM$373 -> 0.70% | R20: =objectifs!$CN$373 -> 5.37 | S20: 1,504 | T20: =IF(ISERROR(S20/SUMIF(objectifs!$F:$F,$B$7,objectifs!IC:IC)),"nc",S20/SUMIF(objectifs!$F:$F,$B$7,objectifs!IC:IC)) -> 1.0 | V20: 79% | W20: 74% | X20: 0.0
B21: Livret Jeune / Livret 10-12 | E21: =SUMIF('Indicateurs mensuels'!$F:$F,$B$7,'Indicateurs mensuels'!DZ:DZ) -> -635 | F21: 0.20% | G21: 5.37 | H21: -7 | J21: =SUMIF('Indicateurs Cumulés'!$F:$F,$B$7,'Indicateurs Cumulés'!EH:EH) -> -7,297 | K21: ='Indicateurs Cumulés'!$EI$374 -> 0.20% | L21: ='Indicateurs Cumulés'!$EJ$374 -> 5.37 | M21: =SUMIF('Indicateurs Cumulés'!$F:$F,$B$7,'Indicateurs Cumulés'!EK:EK) -> -78 | N21: =IF(ISERROR(M21/SUMIF('Indicateurs Cumulés'!$F:$F,$B$7,'Indicateurs Cumulés'!HT:HT)),"nc",M21/SUMIF('Indicateurs Cumulés'!$F:$F,$B$7,'Indicateurs Cumulés'!HT:HT)) -> -0.1 | P21: =SUMIF(objectifs!F:F,$B$7,objectifs!DF:DF) -> 1,000 | Q21: =objectifs!$DG$373 -> 0.20% | R21: =objectifs!$DH$373 -> 5.37 | S21: 11 | T21: =IF(ISERROR(S21/SUMIF(objectifs!$F:$F,$B$7,objectifs!IC:IC)),"nc",S21/SUMIF(objectifs!$F:$F,$B$7,objectifs!IC:IC)) -> 0.0 | V21: -730% | W21: -730% | X21: -0.1
B22: Livret Grand prix | E22: =SUMIF('Indicateurs mensuels'!$F:$F,$B$7,'Indicateurs mensuels'!DN:DN) -> -4,764 | F22: 0.40% | G22: 1.14 | H22: -22 | J22: =SUMIF('Indicateurs Cumulés'!$F:$F,$B$7,'Indicateurs Cumulés'!DV:DV) -> 53,997 | K22: ='Indicateurs Cumulés'!$DW$374 -> 0.40% | L22: ='Indicateurs Cumulés'!$DX$374 -> 1.14 | M22: =SUMIF('Indicateurs Cumulés'!$F:$F,$B$7,'Indicateurs Cumulés'!DY:DY) -> 246 | N22: =IF(ISERROR(M22/SUMIF('Indicateurs Cumulés'!$F:$F,$B$7,'Indicateurs Cumulés'!HT:HT)),"nc",M22/SUMIF('Indicateurs Cumulés'!$F:$F,$B$7,'Indicateurs Cumulés'!HT:HT)) -> 0.2 | P22: =SUMIF(objectifs!F:F,$B$7,objectifs!CT:CT) -> 0 | Q22: =objectifs!$CU$373 -> 0.70% | R22: =objectifs!$CV$373 -> 5.37 | S22: 0 | T22: =IF(ISERROR(S22/SUMIF(objectifs!$F:$F,$B$7,objectifs!IC:IC)),"nc",S22/SUMIF(objectifs!$F:$F,$B$7,objectifs!IC:IC)) -> 0.0
B23: Livret Grand Format | E23: =SUMIF('Indicateurs mensuels'!$F:$F,$B$7,'Indicateurs mensuels'!DJ:DJ) -> -1,115 | F23: 0.75% | G23: 5.33 | H23: -44 | J23: =SUMIF('Indicateurs Cumulés'!$F:$F,$B$7,'Indicateurs Cumulés'!DR:DR) -> -11,813 | K23: ='Indicateurs Cumulés'!$DS$374 -> 0.75% | L23: ='Indicateurs Cumulés'!$DT$374 -> 5.33 | M23: =SUMIF('Indicateurs Cumulés'!$F:$F,$B$7,'Indicateurs Cumulés'!DU:DU) -> -471 | N23: =IF(ISERROR(M23/SUMIF('Indicateurs Cumulés'!$F:$F,$B$7,'Indicateurs Cumulés'!HT:HT)),"nc",M23/SUMIF('Indicateurs Cumulés'!$F:$F,$B$7,'Indicateurs Cumulés'!HT:HT)) -> -0.4 | P23: 0 | Q23: 0.00% | R23: 0.00 | S23: 0 | T23: =IF(ISERROR(S23/SUMIF(objectifs!$F:$F,$B$7,objectifs!IC:IC)),"nc",S23/SUMIF(objectifs!$F:$F,$B$7,objectifs!IC:IC)) -> 0.0
B24: Compte Excédent Pro | E24: =SUMIF('Indicateurs mensuels'!$F:$F,$B$7,'Indicateurs mensuels'!HS:HS) -> 2,428 | F24: 0.60% | G24: 5.37 | H24: =SUMIF('Indicateurs mensuels'!$F:$F,$B$7,'Indicateurs mensuels'!HT:HT) -> 78 | J24: =SUMIF('Indicateurs Cumulés'!$F:$F,$B$7,'Indicateurs Cumulés'!JR:JR) -> 33,179 | K24: ='Indicateurs Cumulés'!$JR$3 -> 0.60% | L24: ='Indicateurs Cumulés'!$JY$3 -> 5.37 | M24: =SUMIF('Indicateurs Cumulés'!$F:$F,$B$7,'Indicateurs Cumulés'!JY:JY) -> 1069 | N24: =IF(ISERROR(M24/SUMIF('Indicateurs Cumulés'!$F:$F,$B$7,'Indicateurs Cumulés'!HT:HT)),"nc",M24/SUMIF('Indicateurs Cumulés'!$F:$F,$B$7,'Indicateurs Cumulés'!HT:HT)) -> 0.8 | P24: =SUMIF(objectifs!F:F,$B$7,objectifs!CP:CP) -> 19,000 | Q24: =objectifs!$CQ$373 -> 0.60% | R24: =objectifs!$CR$373 -> 5.37 | S24: 612 | T24: =IF(ISERROR(S24/SUMIF(objectifs!$F:$F,$B$7,objectifs!IC:IC)),"nc",S24/SUMIF(objectifs!$F:$F,$B$7,objectifs!IC:IC)) -> 0.4 | V24: 175% | W24: 175% | X24: 0.5
B25: PEL | E25: =SUMIF('Indicateurs mensuels'!$F:$F,$B$7,'Indicateurs mensuels'!EP:EP) -> -4,135 | F25: 0.00% | G25: 8.47 | H25: 0 | J25: =SUMIF('Indicateurs Cumulés'!$F:$F,$B$7,'Indicateurs Cumulés'!EX:EX) -> -30,955 | K25: ='Indicateurs Cumulés'!$EY$374 -> 0.00% | L25: ='Indicateurs Cumulés'!$EZ$374 -> 8.47 | M25: =SUMIF('Indicateurs Cumulés'!$F:$F,$B$7,'Indicateurs Cumulés'!FA:FA) -> 0 | N25: =IF(ISERROR(M25/SUMIF('Indicateurs Cumulés'!$F:$F,$B$7,'Indicateurs Cumulés'!HT:HT)),"nc",M25/SUMIF('Indicateurs Cumulés'!$F:$F,$B$7,'Indicateurs Cumulés'!HT:HT)) -> 0.0 | P25: =SUMIF(objectifs!F:F,$B$7,objectifs!DV:DV) -> -20,000 | Q25: =objectifs!$DW$373 -> 0.00% | R25: =objectifs!$DX$373 -> 8.50 | S25: 0 | T25: =IF(ISERROR(S25/SUMIF(objectifs!$F:$F,$B$7,objectifs!IC:IC)),"nc",S25/SUMIF(objectifs!$F:$F,$B$7,objectifs!IC:IC)) -> 0.0 | V25: 155% | W25: 0% | X25: 0
B26: CEL | E26: =SUMIF('Indicateurs mensuels'!$F:$F,$B$7,'Indicateurs mensuels'!ED:ED) -> -1,726 | F26: 0.23% | G26: 5.33 | H26: -21 | J26: =SUMIF('Indicateurs Cumulés'!$F:$F,$B$7,'Indicateurs Cumulés'!EL:EL) -> -4,417 | K26: ='Indicateurs Cumulés'!$EM$374 -> 0.23% | L26: ='Indicateurs Cumulés'!$EN$374 -> 5.33 | M26: =SUMIF('Indicateurs Cumulés'!$F:$F,$B$7,'Indicateurs Cumulés'!EO:EO) -> -54 | N26: =IF(ISERROR(M26/SUMIF('Indicateurs Cumulés'!$F:$F,$B$7,'Indicateurs Cumulés'!HT:HT)),"nc",M26/SUMIF('Indicateurs Cumulés'!$F:$F,$B$7,'Indicateurs Cumulés'!HT:HT)) -> -0.0 | P26: =SUMIF(objectifs!F:F,$B$7,objectifs!DJ:DJ) -> 0 | Q26: =objectifs!$DK$373 -> 0.30% | R26: =objectifs!$DL$373 -> 5.37 | S26: 0 | T26: =IF(ISERROR(S26/SUMIF(objectifs!$F:$F,$B$7,objectifs!IC:IC)),"nc",S26/SUMIF(objectifs!$F:$F,$B$7,objectifs!IC:IC)) -> 0.0
B27: PEP | E27: =SUMIF('Indicateurs mensuels'!$F:$F,$B$7,'Indicateurs mensuels'!ET:ET) -> -150 | F27: -0.26% | G27: 0.74 | H27: 0 | J27: =SUMIF('Indicateurs Cumulés'!$F:$F,$B$7,'Indicateurs Cumulés'!FB:FB) -> -1,036 | K27: ='Indicateurs Cumulés'!$FC$374 -> -0.26% | L27: ='Indicateurs Cumulés'!$FD$374 -> 0.74 | M27: =SUMIF('Indicateurs Cumulés'!$F:$F,$B$7,'Indicateurs Cumulés'!FE:FE) -> 2 | N27: =IF(ISERROR(M27/SUMIF('Indicateurs Cumulés'!$F:$F,$B$7,'Indicateurs Cumulés'!HT:HT)),"nc",M27/SUMIF('Indicateurs Cumulés'!$F:$F,$B$7,'Indicateurs Cumulés'!HT:HT)) -> 0.0 | P27: 0 | Q27: 0.00% | R27: 0.00 | S27: 0 | T27: =IF(ISERROR(S27/SUMIF(objectifs!$F:$F,$B$7,objectifs!IC:IC)),"nc",S27/SUMIF(objectifs!$F:$F,$B$7,objectifs!IC:IC)) -> 0.0
B28: SLR | E28: =SUMIF('Indicateurs mensuels'!$F:$F,$B$7,'Indicateurs mensuels'!EH:EH) -> -510 | F28: 0.10% | G28: 7.18 | H28: -4 | J28: =SUMIF('Indicateurs Cumulés'!$F:$F,$B$7,'Indicateurs Cumulés'!EP:EP) -> -3,555 | K28: ='Indicateurs Cumulés'!$EQ$374 -> 0.10% | L28: ='Indicateurs Cumulés'!$ER$374 -> 7.18 | M28: =SUMIF('Indicateurs Cumulés'!$F:$F,$B$7,'Indicateurs Cumulés'!ES:ES) -> -26 | N28: =IF(ISERROR(M28/SUMIF('Indicateurs Cumulés'!$F:$F,$B$7,'Indicateurs Cumulés'!HT:HT)),"nc",M28/SUMIF('Indicateurs Cumulés'!$F:$F,$B$7,'Indicateurs Cumulés'!HT:HT)) -> -0.0 | P28: =SUMIF(objectifs!F:F,$B$7,objectifs!DR:DR) -> 0 | Q28: =objectifs!$DS$373 -> 0.10% | R28: =objectifs!$DT$373 -> 7.00 | S28: 0 | T28: =IF(ISERROR(S28/SUMIF(objectifs!$F:$F,$B$7,objectifs!IC:IC)),"nc",S28/SUMIF(objectifs!$F:$F,$B$7,objectifs!IC:IC)) -> 0.0
B29: DAT (Bons, CDN, CAT, TCN, …) | E29: =SUMIF('Indicateurs mensuels'!$F:$F,$B$7,'Indicateurs mensuels'!EL:EL) -> -1,113 | F29: 0.20% | G29: 9.00 | H29: -20 | J29: =SUMIF('Indicateurs Cumulés'!$F:$F,$B$7,'Indicateurs Cumulés'!ET:ET) -> -15,363 | K29: ='Indicateurs Cumulés'!$EU$374 -> 0.20% | L29: ='Indicateurs Cumulés'!$EV$374 -> 9.00 | M29: =SUMIF('Indicateurs Cumulés'!$F:$F,$B$7,'Indicateurs Cumulés'!EW:EW) -> -277 | N29: =IF(ISERROR(M29/SUMIF('Indicateurs Cumulés'!$F:$F,$B$7,'Indicateurs Cumulés'!HT:HT)),"nc",M29/SUMIF('Indicateurs Cumulés'!$F:$F,$B$7,'Indicateurs Cumulés'!HT:HT)) -> -0.2 | P29: =SUMIF(objectifs!F:F,$B$7,objectifs!DN:DN) -> 20,000 | Q29: =objectifs!$DO$373 -> 0.20% | R29: =objectifs!$DP$373 -> 9.00 | S29: 360 | T29: =IF(ISERROR(S29/SUMIF(objectifs!$F:$F,$B$7,objectifs!IC:IC)),"nc",S29/SUMIF(objectifs!$F:$F,$B$7,objectifs!IC:IC)) -> 0.2 | V29: -77% | W29: -77% | X29: -0.4
B30: Emprunt CTO | E30: =SUMIF('Indicateurs mensuels'!$F:$F,$B$7,'Indicateurs mensuels'!FN:FN) -> -722 | F30: 0.20% | G30: 8.00 | H30: -12 | J30: =SUMIF('Indicateurs Cumulés'!$F:$F,$B$7,'Indicateurs Cumulés'!FV:FV) -> -166,723 | K30: ='Indicateurs Cumulés'!$FW$374 -> 0.20% | L30: ='Indicateurs Cumulés'!$FX$374 -> 8.00 | M30: =SUMIF('Indicateurs Cumulés'!$F:$F,$B$7,'Indicateurs Cumulés'!FY:FY) -> -2668 | N30: =IF(ISERROR(M30/SUMIF('Indicateurs Cumulés'!$F:$F,$B$7,'Indicateurs Cumulés'!HT:HT)),"nc",M30/SUMIF('Indicateurs Cumulés'!$F:$F,$B$7,'Indicateurs Cumulés'!HT:HT)) -> -2.0 | P30: =SUMIF(objectifs!F:F,$B$7,objectifs!ET:ET) -> -250,000 | Q30: =objectifs!$EU$373 -> 0.20% | R30: =objectifs!$EV$373 -> 8.00 | S30: -4,000 | T30: =IF(ISERROR(S30/SUMIF(objectifs!$F:$F,$B$7,objectifs!IC:IC)),"nc",S30/SUMIF(objectifs!$F:$F,$B$7,objectifs!IC:IC)) -> -2.6 | V30: 67% | W30: 67% | X30: 0.2
B31: Parts sociales | E31: =SUMIF('Indicateurs mensuels'!$F:$F,$B$7,'Indicateurs mensuels'!FR:FR) -> 7,382 | F31: 1.00% | G31: 5.00 | H31: 369 | J31: =SUMIF('Indicateurs Cumulés'!$F:$F,$B$7,'Indicateurs Cumulés'!FZ:FZ) -> 67,852 | K31: ='Indicateurs Cumulés'!$GA$374 -> 1.00% | L31: ='Indicateurs Cumulés'!$GB$374 -> 5.00 | M31: =SUMIF('Indicateurs Cumulés'!$F:$F,$B$7,'Indicateurs Cumulés'!GC:GC) -> 3393 | N31: =IF(ISERROR(M31/SUMIF('Indicateurs Cumulés'!$F:$F,$B$7,'Indicateurs Cumulés'!HT:HT)),"nc",M31/SUMIF('Indicateurs Cumulés'!$F:$F,$B$7,'Indicateurs Cumulés'!HT:HT)) -> 2.5 | P31: =SUMIF(objectifs!F:F,$B$7,objectifs!EX:EX) -> 70,000 | Q31: =objectifs!$EY$373 -> 1.00% | R31: =objectifs!$EZ$373 -> 5.00 | S31: 3,500 | T31: =IF(ISERROR(S31/SUMIF(objectifs!$F:$F,$B$7,objectifs!IC:IC)),"nc",S31/SUMIF(objectifs!$F:$F,$B$7,objectifs!IC:IC)) -> 2.3 | V31: 97% | W31: 97% | X31: 0.6
B32: Epargne Financière (Ass. vie - OPCVM - Autres val. mob.) | E32: =SUMIF('Indicateurs mensuels'!$F:$F,$B$7,'Indicateurs mensuels'!FX:FX) -> -1,976 | H32: =SUMIF('Indicateurs mensuels'!$F:$F,$B$7,'Indicateurs mensuels'!FY:FY) -> 369 | J32: =SUMIF('Indicateurs Cumulés'!$F:$F,$B$7,'Indicateurs Cumulés'!GF:GF) -> 135,289 | M32: =SUMIF('Indicateurs Cumulés'!$F:$F,$B$7,'Indicateurs Cumulés'!GG:GG) -> 10,630 | N32: =IF(ISERROR(M32/SUMIF('Indicateurs Cumulés'!$F:$F,$B$7,'Indicateurs Cumulés'!HT:HT)),"nc",M32/SUMIF('Indicateurs Cumulés'!$F:$F,$B$7,'Indicateurs Cumulés'!HT:HT)) -> 7.9 | P32: =SUMIF(objectifs!$F:$F,$B$7,objectifs!FD:FD) -> 170,000 | S32: =SUMIF(objectifs!$F:$F,$B$7,objectifs!FE:FE) -> 14,983 | T32: =IF(ISERROR(S32/SUMIF(objectifs!$F:$F,$B$7,objectifs!IC:IC)),"nc",S32/SUMIF(objectifs!$F:$F,$B$7,objectifs!IC:IC)) -> 9.9 | V32: 80% | W32: 71% | X32: -0.3
B33: Ass. Vie sur flux (versements) | E33: =SUMIF('Indicateurs mensuels'!$F:$F,$B$7,'Indicateurs mensuels'!FB:FB)+SUMIF('Indicateurs mensuels'!$F:$F,$B$7,'Indicateurs mensuels'!GP:GP) -> 53,062 | F33: =H33/E33 -> 0.39% | G33: =L33 -> 1.00 | H33: =SUMIF('Indicateurs mensuels'!$F:$F,$B$7,'Indicateurs mensuels'!FE:FE)+SUMIF('Indicateurs mensuels'!$F:$F,$B$7,'Indicateurs mensuels'!GS:GS) -> 205 | J33: =SUMIF('Indicateurs Cumulés'!$F:$F,$B$7,'Indicateurs Cumulés'!FJ:FJ)+SUMIF('Indicateurs Cumulés'!$F:$F,$B$7,'Indicateurs Cumulés'!GX:GX) -> 699,958 | K33: =M33/J33 -> 0.37% | L33: ='Indicateurs Cumulés'!$FL$374 -> 1.00 | M33: =SUMIF('Indicateurs Cumulés'!$F:$F,$B$7,'Indicateurs Cumulés'!FM:FM)+SUMIF('Indicateurs Cumulés'!$F:$F,$B$7,'Indicateurs Cumulés'!HA:HA) -> 2,571 | N33: =IF(ISERROR(M33/SUMIF('Indicateurs Cumulés'!$F:$F,$B$7,'Indicateurs Cumulés'!HT:HT)),"nc",M33/SUMIF('Indicateurs Cumulés'!$F:$F,$B$7,'Indicateurs Cumulés'!HT:HT)) -> 1.9 | P33: =SUMIF(objectifs!$F:$F,$B$7,objectifs!EH:EH) -> 1,000,000 | Q33: =objectifs!$EI$373 -> 0.40% | R33: =objectifs!$EJ$373 -> 1.00 | S33: =P33*Q33*R33 -> 4,000 | T33: =IF(ISERROR(S33/SUMIF(objectifs!$F:$F,$B$7,objectifs!IC:IC)),"nc",S33/SUMIF(objectifs!$F:$F,$B$7,objectifs!IC:IC)) -> 2.6 | V33: 70% | W33: 64% | X33: -0.3
B34: Ass. Vie sur encours (excédents) | E34: =SUMIF('Indicateurs mensuels'!$F:$F,$B$7,'Indicateurs mensuels'!EX:EX)+SUMIF('Indicateurs mensuels'!$F:$F,$B$7,'Indicateurs mensuels'!GL:GL) -> 4,563 | F34: =K34 -> 0.45% | G34: 8.00 | H34: =E34*F34*G34 -> 164 | J34: =SUMIF('Indicateurs Cumulés'!$F:$F,$B$7,'Indicateurs Cumulés'!FF:FF)+SUMIF('Indicateurs Cumulés'!$F:$F,$B$7,'Indicateurs Cumulés'!GT:GT) -> 166,901 | K34: ='Indicateurs Cumulés'!$FG$374 -> 0.45% | L34: ='Indicateurs Cumulés'!$FH$374 -> 8.00 | M34: =SUMIF('Indicateurs Cumulés'!$F:$F,$B$7,'Indicateurs Cumulés'!FI:FI)+SUMIF('Indicateurs Cumulés'!$F:$F,$B$7,'Indicateurs Cumulés'!GW:GW) -> 6,008 | N34: =IF(ISERROR(M34/SUMIF('Indicateurs Cumulés'!$F:$F,$B$7,'Indicateurs Cumulés'!HT:HT)),"nc",M34/SUMIF('Indicateurs Cumulés'!$F:$F,$B$7,'Indicateurs Cumulés'!HT:HT)) -> 4.5 | P34: =SUMIF(objectifs!$F:$F,$B$7,objectifs!ED:ED) -> 165,000 | Q34: =objectifs!$EE$373 -> 0.45% | R34: =objectifs!$EF$373 -> 8.00 | S34: 5,940 | T34: =IF(ISERROR(S34/SUMIF(objectifs!$F:$F,$B$7,objectifs!IC:IC)),"nc",S34/SUMIF(objectifs!$F:$F,$B$7,objectifs!IC:IC)) -> 3.9 | V34: 101% | W34: 101% | X34: 1.2
B35: Arbitrage (fonds € vers UC) | E35: =SUMIF('Indicateurs mensuels'!$F:$F,$B$7,'Indicateurs mensuels'!BQ:BQ) -> 3,325 | F35: =K35 -> 0.25% | G35: 8.00 | H35: =E35*F35*G35 -> 67 | J35: =SUMIF('Indicateurs Cumulés'!$F:$F,$B$7,'Indicateurs Cumulés'!BQ:BQ) -> 31,396 | K35: =objectifs!$EA$373 -> 0.25% | L35: =VLOOKUP($B$7,objectifs!$F$3:$AAB$391,127,FALSE) -> 8.00 | M35: =SUMIF('Indicateurs Cumulés'!$F:$F,$B$7,'Indicateurs Cumulés'!BR:BR) -> 628 | N35: =IF(ISERROR(M35/SUMIF('Indicateurs Cumulés'!$F:$F,$B$7,'Indicateurs Cumulés'!HT:HT)),"nc",M35/SUMIF('Indicateurs Cumulés'!$F:$F,$B$7,'Indicateurs Cumulés'!HT:HT)) -> 0.5 | P35: =SUMIF(objectifs!$F:$F,$B$7,objectifs!DZ:DZ) -> 135,000 | Q35: =objectifs!$EA$373 -> 0.25% | R35: =objectifs!$EB$373 -> 8.00 | S35: 2,700 | T35: =IF(ISERROR(S35/SUMIF(objectifs!$F:$F,$B$7,objectifs!IC:IC)),"nc",S35/SUMIF(objectifs!$F:$F,$B$7,objectifs!IC:IC)) -> 1.8 | V35: 23% | W35: 23% | X35: -1.0
B36: OPCVM sur flux (versements) | E36: =SUMIF('Indicateurs mensuels'!$F:$F,$B$7,'Indicateurs mensuels'!FJ:FJ)+SUMIF('Indicateurs mensuels'!$F:$F,$B$7,'Indicateurs mensuels'!GX:GX) -> 736 | F36: =K36 -> 0.40% | G36: 1.00 | H36: =E36*F36*G36 -> 3 | J36: =SUMIF('Indicateurs Cumulés'!$F:$F,$B$7,'Indicateurs Cumulés'!FR:FR)+SUMIF('Indicateurs Cumulés'!$F:$F,$B$7,'Indicateurs Cumulés'!HF:HF) -> 12,956 | K36: ='Indicateurs Cumulés'!$FS$374 -> 0.40% | L36: ='Indicateurs Cumulés'!$FT$374 -> 1.00 | M36: =SUMIF('Indicateurs Cumulés'!$F:$F,$B$7,'Indicateurs Cumulés'!FU:FU)+SUMIF('Indicateurs Cumulés'!$F:$F,$B$7,'Indicateurs Cumulés'!HI:HI) -> 52 | N36: =IF(ISERROR(M36/SUMIF('Indicateurs Cumulés'!$F:$F,$B$7,'Indicateurs Cumulés'!HT:HT)),"nc",M36/SUMIF('Indicateurs Cumulés'!$F:$F,$B$7,'Indicateurs Cumulés'!HT:HT)) -> 0.0 | P36: =SUMIF(objectifs!$F:$F,$B$7,objectifs!EP:EP) -> 20,000 | Q36: =objectifs!$EQ$373 -> 0.40% | R36: =objectifs!$ER$373 -> 1.00 | S36: 80 | T36: =IF(ISERROR(S36/SUMIF(objectifs!$F:$F,$B$7,objectifs!IC:IC)),"nc",S36/SUMIF(objectifs!$F:$F,$B$7,objectifs!IC:IC)) -> 0.1 | V36: 65% | W36: 65% | X36: -0.0
B37: OPCVM sur encours (excédents) | E37: =SUMIF('Indicateurs mensuels'!$F:$F,$B$7,'Indicateurs mensuels'!FF:FF)+SUMIF('Indicateurs mensuels'!$F:$F,$B$7,'Indicateurs mensuels'!GT:GT) -> -4,490 | F37: =H37/E37/G37 -> 0.65% | G37: 5.00 | H37: =SUMIF('Indicateurs mensuels'!$F:$F,$B$7,'Indicateurs mensuels'!FI:FI)+SUMIF('Indicateurs mensuels'!$F:$F,$B$7,'Indicateurs mensuels'!GW:GW) -> -146 | J37: =SUMIF('Indicateurs Cumulés'!$F:$F,$B$7,'Indicateurs Cumulés'!FN:FN)+SUMIF('Indicateurs Cumulés'!$F:$F,$B$7,'Indicateurs Cumulés'!HB:HB) -> -42,798 | K37: =M37/J37/L37 -> 0.65% | L37: ='Indicateurs Cumulés'!$FP$374 -> 5.00 | M37: =SUMIF('Indicateurs Cumulés'!$F:$F,$B$7,'Indicateurs Cumulés'!FQ:FQ)+SUMIF('Indicateurs Cumulés'!$F:$F,$B$7,'Indicateurs Cumulés'!HE:HE) -> -1,391 | N37: =IF(ISERROR(M37/SUMIF('Indicateurs Cumulés'!$F:$F,$B$7,'Indicateurs Cumulés'!HT:HT)),"nc",M37/SUMIF('Indicateurs Cumulés'!$F:$F,$B$7,'Indicateurs Cumulés'!HT:HT)) -> -1.0 | P37: =SUMIF(objectifs!$F:$F,$B$7,objectifs!EL:EL) -> 5,000 | Q37: =objectifs!$EM$373 -> 0.65% | R37: =objectifs!$EN$373 -> 5.00 | S37: 163 | T37: =IF(ISERROR(S37/SUMIF(objectifs!$F:$F,$B$7,objectifs!IC:IC)),"nc",S37/SUMIF(objectifs!$F:$F,$B$7,objectifs!IC:IC)) -> 0.1 | V37: -856% | W37: -856% | X37: -1.1
B38: FCP structurés (versements) | E38: =J38-SUMIF('Indicateurs Cumulés M-1'!$F:$F,$B$7,'Indicateurs Cumulés M-1'!BS:BS) -> 6,496 | F38: =K38 -> 2.80% | G38: 1.00 | H38: =E38*F38*G38 -> 182 | J38: =SUMIF('Indicateurs Cumulés'!$F:$F,$B$7,'Indicateurs Cumulés'!BS:BS) -> 78,667 | K38: =VLOOKUP($B$7,objectifs!$F$3:$AAB$391,68,FALSE) -> 2.80% | L38: ='Indicateurs Cumulés'!$FL$374 -> 1.00 | M38: =J38*K38*L38 -> 2,203 | N38: =IF(ISERROR(M38/SUMIF('Indicateurs Cumulés'!$F:$F,$B$7,'Indicateurs Cumulés'!HT:HT)),"nc",M38/SUMIF('Indicateurs Cumulés'!$F:$F,$B$7,'Indicateurs Cumulés'!HT:HT)) -> 1.6 | P38: =SUMIF(objectifs!$F:$F,$B$7,objectifs!BT:BT) -> 75,000 | Q38: =objectifs!$BU$373 -> 2.80% | R38: =objectifs!$BV$373 -> 1.00 | S38: 2,100 | T38: =IF(ISERROR(S38/SUMIF(objectifs!$F:$F,$B$7,objectifs!IC:IC)),"nc",S38/SUMIF(objectifs!$F:$F,$B$7,objectifs!IC:IC)) -> 1.4 | V38: =IF(ISERROR(J38/P38),0,J38/P38) -> 105% | W38: =IF(ISERROR(M38/S38),0,M38/S38) -> 105% | X38: 0.5
B39: Autres Valeurs mobilières (excédents) | E39: =SUMIF('Indicateurs mensuels'!$F:$F,$B$7,'Indicateurs mensuels'!HB:HB) -> -2,050 | F39: =K39 -> 1.00% | G39: 5.00 | H39: =E39*F39*G39 -> -102 | J39: =SUMIF('Indicateurs Cumulés'!$F:$F,$B$7,'Indicateurs Cumulés'!HJ:HJ) -> 11,186 | K39: ='Indicateurs Cumulés'!$HK$374 -> 1.00% | L39: ='Indicateurs Cumulés'!$HL$374 -> 5.00 | M39: =SUMIF('Indicateurs Cumulés'!$F:$F,$B$7,'Indicateurs Cumulés'!HM:HM) -> 559 | N39: =IF(ISERROR(M39/SUMIF('Indicateurs Cumulés'!$F:$F,$B$7,'Indicateurs Cumulés'!HT:HT)),"nc",M39/SUMIF('Indicateurs Cumulés'!$F:$F,$B$7,'Indicateurs Cumulés'!HT:HT)) -> 0.4 | P39: =SUMIF(objectifs!$F:$F,$B$7,objectifs!FW:FW) -> 0 | Q39: =objectifs!$FO$373 -> 1.00% | R39: =objectifs!$FP$373 -> 5.00 | S39: 0 | T39: =IF(ISERROR(S39/SUMIF(objectifs!$F:$F,$B$7,objectifs!IC:IC)),"nc",S39/SUMIF(objectifs!$F:$F,$B$7,objectifs!IC:IC)) -> 0.0
B41: CREDIT à la CONSOMMATION - Eng. Nets (yc accessoires) | E41: =E42+E43 -> 66,521 | F41: =IF(ISERROR(H41/(E41*G41)),0,H41/(E41*G41)) -> 4.57% | G41: =SUMPRODUCT(G42:G43,E42:E43)/(E42+E43) -> 2.42 | H41: =H42+H43+H44+H45 -> 7,365 | J41: =J42+J43 -> 594,470 | K41: =IF(ISERROR(M41/(J41*L41)),0,M41/(J41*L41)) -> 4.32% | L41: =SUMPRODUCT(L42:L43,J42:J43)/(J42+J43) -> 2.42 | M41: =M42+M43+M44+M45 -> 62,138 | N41: =IF(ISERROR(M41/SUMIF('Indicateurs Cumulés'!$F:$F,$B$7,'Indicateurs Cumulés'!HT:HT)),"nc",M41/SUMIF('Indicateurs Cumulés'!$F:$F,$B$7,'Indicateurs Cumulés'!HT:HT)) -> 46.4 | P41: =P42+P43 -> 710,000 | Q41: =IF(ISERROR(S41/(P41*R41)),0,S41/(P41*R41)) -> 4.32% | R41: =IF(P41=0,0,SUMPRODUCT(R42:R43,P42:P43)/(P42+P43)) -> 2.42 | S41: =S42+S43+S44+S45 -> 74,348 | T41: =IF(ISERROR(S41/SUMIF(objectifs!$F:$F,$B$7,objectifs!IC:IC)),"nc",S41/SUMIF(objectifs!$F:$F,$B$7,objectifs!IC:IC)) -> 48.9 | V41: =IF(ISERROR(J41/P41),0,J41/P41) -> 84% | W41: =IF(ISERROR(M41/S41),0,M41/S41) -> 84% | X41: =IF(ISERROR(N41-(T41/12*MONTH($C$9))),"nc",N41-(T41/12*MONTH($C$9))) -> 5.6
B42: Crédit à la Consommation (marge hors accessoires) | E42: =SUMIF('Indicateurs mensuels'!$F:$F,$B$7,'Indicateurs mensuels'!L:L) -> 61,365 | F42: =SUMPRODUCT(('Indicateurs mensuels'!$F$4:$F$374=$B$7)*(('Indicateurs mensuels'!$L$4:$L$374)*('Indicateurs mensuels'!$M$4:$M$374)/E42)) -> 3.47% | G42: =SUMPRODUCT(('Indicateurs mensuels'!$F$4:$F$374=$B$7)*(('Indicateurs mensuels'!$L$4:$L$374)*('Indicateurs mensuels'!$N$4:$N$374)/E42)) -> 2.49 | H42: =E42*F42*G42 -> 5,316 | J42: =SUMIF('Indicateurs Cumulés'!$F:$F,$B$7,'Indicateurs Cumulés'!L:L) -> 548,973 | K42: =SUMPRODUCT(('Indicateurs Cumulés'!$F$4:$F$374=$B$7)*(('Indicateurs Cumulés'!$L$4:$L$374)*('Indicateurs Cumulés'!$M$4:$M$374)/J42)) -> 3.29% | L42: =SUMPRODUCT(('Indicateurs Cumulés'!$F$4:$F$374=$B$7)*(('Indicateurs Cumulés'!$L$4:$L$374)*('Indicateurs Cumulés'!$N$4:$N$374)/J42)) -> 2.49 | M42: =J42*K42*L42 -> 45,023 | N42: =IF(ISERROR(M42/SUMIF('Indicateurs Cumulés'!$F:$F,$B$7,'Indicateurs Cumulés'!HT:HT)),"nc",M42/SUMIF('Indicateurs Cumulés'!$F:$F,$B$7,'Indicateurs Cumulés'!HT:HT)) -> 34 | P42: =SUMIF(objectifs!$F:$F,$B$7,objectifs!L:L) -> 650,000 | Q42: =objectifs!$M$373 -> 3.05% | R42: =objectifs!$N$373 -> 2.50 | S42: =P42*Q42*R42 -> 49,563 | T42: =IF(ISERROR(S42/SUMIF(objectifs!$F:$F,$B$7,objectifs!IC:IC)),"nc",S42/SUMIF(objectifs!$F:$F,$B$7,objectifs!IC:IC)) -> 32.6 | V42: =IF(ISERROR(J42/P42),0,J42/P42) -> 84% | W42: =IF(ISERROR(M42/S42),0,M42/S42) -> 91% | X42: =IF(ISERROR(N42-(T42/12*MONTH($C$9))),"nc",N42-(T42/12*MONTH($C$9))) -> 6.4
B43: Crédit Revolving | E43: =SUMIF('Indicateurs mensuels'!$F:$F,$B$7,'Indicateurs mensuels'!H:H) -> 5,156 | F43: =SUMPRODUCT(('Indicateurs mensuels'!$F$4:$F$374=$B$7)*(('Indicateurs mensuels'!$H$4:$H$374)*('Indicateurs mensuels'!$I$4:$I$374)/E43)) -> 4.32% | G43: =SUMPRODUCT(('Indicateurs mensuels'!$F$4:$F$374=$B$7)*(('Indicateurs mensuels'!$H$4:$H$374)*('Indicateurs mensuels'!$J$4:$J$374)/E43)) -> 1.57 | H43: =E43*F43*G43 -> 350 | J43: =SUMIF('Indicateurs Cumulés'!$F:$F,$B$7,'Indicateurs Cumulés'!H:H) -> 45,496 | K43: =SUMPRODUCT(('Indicateurs Cumulés'!$F$4:$F$374=$B$7)*(('Indicateurs Cumulés'!$H$4:$H$374)*('Indicateurs Cumulés'!$I$4:$I$374)/J43)) -> 4.32% | L43: =SUMPRODUCT(('Indicateurs Cumulés'!$F$4:$F$374=$B$7)*(('Indicateurs Cumulés'!$H$4:$H$374)*('Indicateurs Cumulés'!$J$4:$J$374)/J43)) -> 1.57 | M43: =J43*K43*L43 -> 3,086 | N43: =IF(ISERROR(M43/SUMIF('Indicateurs Cumulés'!$F:$F,$B$7,'Indicateurs Cumulés'!HT:HT)),"nc",M43/SUMIF('Indicateurs Cumulés'!$F:$F,$B$7,'Indicateurs Cumulés'!HT:HT)) -> 2.3 | P43: =SUMIF(objectifs!$F:$F,$B$7,objectifs!H:H) -> 60,000 | Q43: =objectifs!$I$373 -> 4.32% | R43: =objectifs!$J$373 -> 1.60 | S43: =P43*Q43*R43 -> 4,147 | T43: =IF(ISERROR(S43/SUMIF(objectifs!$F:$F,$B$7,objectifs!IC:IC)),"nc",S43/SUMIF(objectifs!$F:$F,$B$7,objectifs!IC:IC)) -> 2.7 | V43: =IF(ISERROR(J43/P43),0,J43/P43) -> 76% | W43: =IF(ISERROR(M43/S43),0,M43/S43) -> 74% | X43: =IF(ISERROR(N43-(T43/12*MONTH($C$9))),"nc",N43-(T43/12*MONTH($C$9))) -> 0.0
B44: Frais de dossier | H44: =SUMIF('Indicateurs mensuels'!$F:$F,$B$7,'Indicateurs mensuels'!CV:CV) -> 349 | M44: =SUMIF('Indicateurs Cumulés'!$F:$F,$B$7,'Indicateurs Cumulés'!CW:CW) -> 2,365 | N44: =IF(ISERROR(M44/SUMIF('Indicateurs Cumulés'!$F:$F,$B$7,'Indicateurs Cumulés'!HT:HT)),"nc",M44/SUMIF('Indicateurs Cumulés'!$F:$F,$B$7,'Indicateurs Cumulés'!HT:HT)) -> 1.8 | S44: =SUMIF(objectifs!$F:$F,$B$7,objectifs!BO:BO) -> 3,900 | T44: =IF(ISERROR(S44/SUMIF(objectifs!$F:$F,$B$7,objectifs!IC:IC)),"nc",S44/SUMIF(objectifs!$F:$F,$B$7,objectifs!IC:IC)) -> 2.6 | W44: =IF(ISERROR(M44/S44),0,M44/S44) -> 61% | X44: =IF(ISERROR(N44-(T44/12*MONTH($C$9))),"nc",N44-(T44/12*MONTH($C$9))) -> -0.4
B45: Commissions ADE | E45: =SUMPRODUCT(('Indicateurs mensuels'!$F$4:$F$374=$B$7)*(('Indicateurs mensuels'!$L$4:$L$374)*('Indicateurs mensuels'!$HM$4:$HM$374)/E42)) -> 141.6% | F45: =SUMPRODUCT(('Indicateurs mensuels'!$F$4:$F$374=$B$7)*(('Indicateurs mensuels'!$L$4:$L$374)*('Indicateurs mensuels'!$HL$4:$HL$374)/E42)) -> 95.0% | H45: =SUMIF('Indicateurs mensuels'!$F:$F,$B$7,'Indicateurs mensuels'!HN:HN) -> 1,350 | J45: =SUMPRODUCT(('Indicateurs Cumulés'!$F$4:$F$374=$B$7)*(('Indicateurs Cumulés'!$L$4:$L$374)*('Indicateurs Cumulés'!$DD$4:$DD$374)/J42)) -> 140.0% | K45: =SUMPRODUCT(('Indicateurs Cumulés'!$F$4:$F$374=$B$7)*(('Indicateurs Cumulés'!$L$4:$L$374)*('Indicateurs Cumulés'!$DC$4:$DC$374)/J42)) -> 93.3% | M45: =SUMIF('Indicateurs Cumulés'!$F:$F,$B$7,'Indicateurs Cumulés'!DE:DE) -> 11,664 | N45: =IF(ISERROR(M45/SUMIF('Indicateurs Cumulés'!$F:$F,$B$7,'Indicateurs Cumulés'!HT:HT)),"nc",M45/SUMIF('Indicateurs Cumulés'!$F:$F,$B$7,'Indicateurs Cumulés'!HT:HT)) -> 8.7 | P45: =objectifs!$BK$373 -> 135% | Q45: =objectifs!$BJ$373 -> 95% | S45: =SUMIF(objectifs!$F:$F,$B$7,objectifs!BY:BY) -> 16,738 | T45: =IF(ISERROR(S45/SUMIF(objectifs!$F:$F,$B$7,objectifs!IC:IC)),"nc",S45/SUMIF(objectifs!$F:$F,$B$7,objectifs!IC:IC)) -> 11.0 | W45: =IF(ISERROR(M45/S45),0,M45/S45) -> 70% | X45: =IF(ISERROR(N45-(T45/12*MONTH($C$9))),"nc",N45-(T45/12*MONTH($C$9))) -> -0.5
B47: CREDIT IMMOBILIER - Eng. Nets (yc accessoires) | E47: =E48 -> 227,871 | F47: =IF(ISERROR(H47/(E47*G47)),0,H47/(E47*G47)) -> 0.97% | G47: =G48 -> 7.72 | H47: =SUM(H48:H53) -> 17,132 | J47: =J48 -> 1,696,985 | K47: =IF(ISERROR(M47/(J47*L47)),0,M47/(J47*L47)) -> 0.62% | L47: =L48 -> 7.58 | M47: =SUM(M48:M53) -> 80,324 | N47: =IF(ISERROR(M47/SUMIF('Indicateurs Cumulés'!$F:$F,$B$7,'Indicateurs Cumulés'!HT:HT)),"nc",M47/SUMIF('Indicateurs Cumulés'!$F:$F,$B$7,'Indicateurs Cumulés'!HT:HT)) -> 60.0 | P47: =P48 -> 1,664,000 | Q47: =IF(ISERROR(S47/(P47*R47)),0,S47/(P47*R47)) -> 0.49% | R47: =R48 -> 7.50 | S47: =SUM(S48:S53) -> 60,661 | T47: =IF(ISERROR(S47/SUMIF(objectifs!$F:$F,$B$7,objectifs!IC:IC)),"nc",S47/SUMIF(objectifs!$F:$F,$B$7,objectifs!IC:IC)) -> 39.9 | V47: =IF(ISERROR(J47/P47),0,J47/P47) -> 102% | W47: =IF(ISERROR(M47/S47),0,M47/S47) -> 132% | X47: =IF(ISERROR(N47-(T47/12*MONTH($C$9))),"nc",N47-(T47/12*MONTH($C$9))) -> 26.7
B48: Crédit Immobilier (marge hors accessoires) | E48: =SUMIF('Indicateurs mensuels'!$F:$F,$B$7,'Indicateurs mensuels'!P:P) -> 227,871 | F48: =IF(E48=0,0,SUMPRODUCT(('Indicateurs mensuels'!$F$4:$F$374=$B$7)*(('Indicateurs mensuels'!$P$4:$P$374)*('Indicateurs mensuels'!$R$4:$R$374)/E48))) -> 0.65% | G48: =IF(E48=0,0,SUMPRODUCT(('Indicateurs mensuels'!$F$4:$F$374=$B$7)*(('Indicateurs mensuels'!$P$4:$P$374)*('Indicateurs mensuels'!$S$4:$S$374)/E48))) -> 7.72 | H48: =E48*F48*G48 -> 11,368 | J48: =SUMIF('Indicateurs Cumulés'!$F:$F,$B$7,'Indicateurs Cumulés'!P:P) -> 1,696,985 | K48: =SUMPRODUCT(('Indicateurs Cumulés'!$F$4:$F$374=$B$7)*(('Indicateurs Cumulés'!$P$4:$P$374)*('Indicateurs Cumulés'!$R$4:$R$374)/J48)) -> 0.29% | L48: =SUMPRODUCT(('Indicateurs Cumulés'!$F$4:$F$374=$B$7)*(('Indicateurs Cumulés'!$P$4:$P$374)*('Indicateurs Cumulés'!$S$4:$S$374)/J48)) -> 7.58 | M48: =J48*K48*L48 -> 37,906 | N48: =IF(ISERROR(M48/SUMIF('Indicateurs Cumulés'!$F:$F,$B$7,'Indicateurs Cumulés'!HT:HT)),"nc",M48/SUMIF('Indicateurs Cumulés'!$F:$F,$B$7,'Indicateurs Cumulés'!HT:HT)) -> 28.3 | P48: =SUMIF(objectifs!$F:$F,$B$7,objectifs!O:O) -> 1,664,000 | Q48: =objectifs!$Q$373 -> 0.20% | R48: =objectifs!$R$373 -> 7.50 | S48: =P48*Q48*R48 -> 24,960 | T48: =IF(ISERROR(S48/SUMIF(objectifs!$F:$F,$B$7,objectifs!IC:IC)),"nc",S48/SUMIF(objectifs!$F:$F,$B$7,objectifs!IC:IC)) -> 16.4 | V48: =IF(ISERROR(J48/P48),0,J48/P48) -> 102% | W48: =IF(ISERROR(M48/S48),0,M48/S48) -> 152% | X48: =IF(ISERROR(N48-(T48/12*MONTH($C$9))),"nc",N48-(T48/12*MONTH($C$9))) -> 14.6
B49: Commissions ADE (coefficient multiplicateur de 1,3 X) | E49: =IF(E48=0,0,SUMPRODUCT(('Indicateurs mensuels'!$F$4:$F$374=$B$7)*(('Indicateurs mensuels'!$P$4:$P$374)*('Indicateurs mensuels'!$CN$4:$CN$374)/E48))) -> 141.8% | F49: =IF(E48=0,0,SUMPRODUCT(('Indicateurs mensuels'!$F$4:$F$374=$B$7)*(('Indicateurs mensuels'!$P$4:$P$374)*('Indicateurs mensuels'!$CM$4:$CM$374)/E48))) -> 63.2% | H49: =SUMIF('Indicateurs mensuels'!$F:$F,$B$7,'Indicateurs mensuels'!CO:CO) -> 5,006 | J49: =SUMPRODUCT(('Indicateurs Cumulés'!$F$4:$F$374=$B$7)*(('Indicateurs Cumulés'!$P$4:$P$374)*('Indicateurs Cumulés'!$DA$4:$DA$374)/J48)) -> 141.5% | K49: =SUMPRODUCT(('Indicateurs Cumulés'!$F$4:$F$374=$B$7)*(('Indicateurs Cumulés'!$P$4:$P$374)*('Indicateurs Cumulés'!$CZ$4:$CZ$374)/J48)) -> 64.5% | M49: =SUMIF('Indicateurs Cumulés'!$F:$F,$B$7,'Indicateurs Cumulés'!DB:DB) -> 37,137 | N49: =IF(ISERROR(M49/SUMIF('Indicateurs Cumulés'!$F:$F,$B$7,'Indicateurs Cumulés'!HT:HT)),"nc",M49/SUMIF('Indicateurs Cumulés'!$F:$F,$B$7,'Indicateurs Cumulés'!HT:HT)) -> 27.7 | P49: =objectifs!$BI$373 -> 145% | Q49: =objectifs!$BH$373 -> 70% | S49: =SUMIF(objectifs!$F:$F,$B$7,objectifs!BX:BX) -> 27,130 | T49: =IF(ISERROR(S49/SUMIF(objectifs!$F:$F,$B$7,objectifs!IC:IC)),"nc",S49/SUMIF(objectifs!$F:$F,$B$7,objectifs!IC:IC)) -> 17.9 | W49: =IF(ISERROR(M49/S49),0,M49/S49) -> 137% | X49: =IF(ISERROR(N49-(T49/12*MONTH($C$9))),"nc",N49-(T49/12*MONTH($C$9))) -> 12.9
B50: Frais de dossier | H50: =SUMIF('Indicateurs mensuels'!$F:$F,$B$7,'Indicateurs mensuels'!CW:CW) -> 647 | M50: =SUMIF('Indicateurs Cumulés'!$F:$F,$B$7,'Indicateurs Cumulés'!CY:CY) -> 4,830 | N50: =IF(ISERROR(M50/SUMIF('Indicateurs Cumulés'!$F:$F,$B$7,'Indicateurs Cumulés'!HT:HT)),"nc",M50/SUMIF('Indicateurs Cumulés'!$F:$F,$B$7,'Indicateurs Cumulés'!HT:HT)) -> 3.6 | S50: =SUMIF(objectifs!$F:$F,$B$7,objectifs!BP:BP) -> 4,992 | T50: =IF(ISERROR(S50/SUMIF(objectifs!$F:$F,$B$7,objectifs!IC:IC)),"nc",S50/SUMIF(objectifs!$F:$F,$B$7,objectifs!IC:IC)) -> 3.3 | W50: =IF(ISERROR(M50/S50),0,M50/S50) -> 97% | X50: =IF(ISERROR(N50-(T50/12*MONTH($C$9))),"nc",N50-(T50/12*MONTH($C$9))) -> 0.9
B51: Commissions SACCEF | H51: =SUMIF('Indicateurs mensuels'!$F:$F,$B$7,'Indicateurs mensuels'!AI:AI) -> 430 | M51: =SUMIF('Indicateurs Cumulés'!$F:$F,$B$7,'Indicateurs Cumulés'!AI:AI) -> 3,163 | N51: =IF(ISERROR(M51/SUMIF('Indicateurs Cumulés'!$F:$F,$B$7,'Indicateurs Cumulés'!HT:HT)),"nc",M51/SUMIF('Indicateurs Cumulés'!$F:$F,$B$7,'Indicateurs Cumulés'!HT:HT)) -> 2.4 | S51: =SUMIF(objectifs!$F:$F,$B$7,objectifs!CA:CA) -> 3,578
B52: Bonus clients devenus BPe / JBPe via le crédit immobilier | E52: =J52-SUMIF('Indicateurs Cumulés M-1'!$F:$F,'PNB BDD'!$B$7,'Indicateurs Cumulés M-1'!CL:CL) -> 796 | F52: =K52 -> 1,000 € | G52: =L52 -> 1.00 | H52: =E52*F52*G52/1000 -> 796 | J52: =SUMIF('Indicateurs Cumulés'!$F:$F,$B$7,'Indicateurs Cumulés'!CL:CL) -> 3,826 | K52: =IF(ISERROR(M52/(J52*L52)*1000),0,M52/(J52*L52)*1000) -> 1,000 € | L52: 1.00 | M52: =SUMIF('Indicateurs Cumulés'!$F:$F,$B$7,'Indicateurs Cumulés'!CL:CL) -> 3,826 | N52: =IF(ISERROR(M52/SUMIF('Indicateurs Cumulés'!$F:$F,$B$7,'Indicateurs Cumulés'!HT:HT)),"nc",M52/SUMIF('Indicateurs Cumulés'!$F:$F,$B$7,'Indicateurs Cumulés'!HT:HT)) -> 2.9
B53: Commissions apporteurs d'affaires | H53: =M53-SUMIF('Indicateurs Cumulés M-1'!$F:$F,'PNB BDD'!$B$7,'Indicateurs Cumulés M-1'!BW:BW) -> -1,115 | M53: =SUMIF('Indicateurs Cumulés'!$F:$F,$B$7,'Indicateurs Cumulés'!BW:BW) -> -6,539 | N53: =IF(ISERROR(M53/SUMIF('Indicateurs Cumulés'!$F:$F,$B$7,'Indicateurs Cumulés'!HT:HT)),"nc",M53/SUMIF('Indicateurs Cumulés'!$F:$F,$B$7,'Indicateurs Cumulés'!HT:HT)) -> -4.9
B55: CREDIT MLT PRO - Eng. Nets (yc accessoires) | E55: =E56+E57 -> 20,666 | F55: =IF(ISERROR(H55/(E55*G55)),0,H55/(E55*G55)) -> 1.49% | G55: =IF(E55=0,0,SUMPRODUCT(G56:G57,E56:E57)/(E56+E57)) -> 4.53 | H55: =H56+H57+H58+H59 -> 1,393 | J55: =J56+J57 -> 226,197 | K55: =IF(ISERROR(M55/(J55*L55)),0,M55/(J55*L55)) -> 0.88% | L55: =IF(J55=0,0,SUMPRODUCT(L56:L57,J56:J57)/(J56+J57)) -> 4.46 | M55: =M56+M57+M58+M59 -> 8,859 | N55: =IF(ISERROR(M55/SUMIF('Indicateurs Cumulés'!$F:$F,$B$7,'Indicateurs Cumulés'!HT:HT)),"nc",M55/SUMIF('Indicateurs Cumulés'!$F:$F,$B$7,'Indicateurs Cumulés'!HT:HT)) -> 6.6 | P55: =P56+P57 -> 250,000 | Q55: =IF(ISERROR(S55/(P55*R55)),0,S55/(P55*R55)) -> 0.70% | R55: =IF(P55=0,0,SUMPRODUCT(R56:R57,P56:P57)/(P56+P57)) -> 4.39 | S55: =S56+S57+S58+S59 -> 7,646 | T55: =IF(ISERROR(S55/SUMIF(objectifs!$F:$F,$B$7,objectifs!IC:IC)),"nc",S55/SUMIF(objectifs!$F:$F,$B$7,objectifs!IC:IC)) -> 5.0 | V55: =IF(ISERROR(J55/P55),0,J55/P55) -> 90% | W55: =IF(ISERROR(M55/S55),0,M55/S55) -> 116% | X55: =IF(ISERROR(N55-(T55/12*MONTH($C$9))),"nc",N55-(T55/12*MONTH($C$9))) -> 2.4
B56: Crédit MLT (marge hors accessoires) | E56: =SUMIF('Indicateurs mensuels'!$F:$F,$B$7,'Indicateurs mensuels'!AA:AA) -> 19,201 | F56: =IF(E56=0,0,SUMPRODUCT(('Indicateurs mensuels'!$F$4:$F$374=$B$7)*(('Indicateurs mensuels'!$AA$4:$AA$374)*('Indicateurs mensuels'!$AB$4:$AB$374)/E56))) -> 1.30% | G56: =IF(E56=0,0,SUMPRODUCT(('Indicateurs mensuels'!$F$4:$F$374=$B$7)*(('Indicateurs mensuels'!$AA$4:$AA$374)*('Indicateurs mensuels'!$AC$4:$AC$374)/E56))) -> 4.70 | H56: =E56*F56*G56 -> 1,174 | J56: =SUMIF('Indicateurs Cumulés'!$F:$F,$B$7,'Indicateurs Cumulés'!AA:AA) -> 213,697 | K56: =IF(J56=0,0,SUMPRODUCT(('Indicateurs Cumulés'!$F$4:$F$374=$B$7)*(('Indicateurs Cumulés'!$AA$4:$AA$374)*('Indicateurs Cumulés'!$AB$4:$AB$374)/J56))) -> 0.70% | L56: =IF(J56=0,0,SUMPRODUCT(('Indicateurs Cumulés'!$F$4:$F$374=$B$7)*(('Indicateurs Cumulés'!$AA$4:$AA$374)*('Indicateurs Cumulés'!$AC$4:$AC$374)/J56))) -> 4.58 | M56: =J56*K56*L56 -> 6,842 | N56: =IF(ISERROR(M56/SUMIF('Indicateurs Cumulés'!$F:$F,$B$7,'Indicateurs Cumulés'!HT:HT)),"nc",M56/SUMIF('Indicateurs Cumulés'!$F:$F,$B$7,'Indicateurs Cumulés'!HT:HT)) -> 5.1 | P56: =SUMIF(objectifs!$F:$F,$B$7,objectifs!Y:Y) -> 238,000 | Q56: =objectifs!$Z$373 -> 0.40% | R56: =objectifs!$AA$373 -> 4.50 | S56: =P56*Q56*R56 -> 4,284 | T56: =IF(ISERROR(S56/SUMIF(objectifs!$F:$F,$B$7,objectifs!IC:IC)),"nc",S56/SUMIF(objectifs!$F:$F,$B$7,objectifs!IC:IC)) -> 2.8 | V56: =IF(ISERROR(J56/P56),0,J56/P56) -> 90% | W56: =IF(ISERROR(M56/S56),0,M56/S56) -> 160% | X56: =IF(ISERROR(N56-(T56/12*MONTH($C$9))),"nc",N56-(T56/12*MONTH($C$9))) -> 2.8
B57: Crédit Bail Mobilier | E57: =SUMIF('Indicateurs mensuels'!$F:$F,$B$7,'Indicateurs mensuels'!GH:GH) -> 1,465 | F57: =IF(E57=0,0,SUMPRODUCT(('Indicateurs mensuels'!$F$4:$F$374=$B$7)*(('Indicateurs mensuels'!$GH$4:$GH$374)*('Indicateurs mensuels'!$GI$4:$GI$374)/E57))) -> 0.98% | G57: =IF(E57=0,0,SUMPRODUCT(('Indicateurs mensuels'!$F$4:$F$374=$B$7)*(('Indicateurs mensuels'!$GH$4:$GH$374)*('Indicateurs mensuels'!$GJ$4:$GJ$374)/E57))) -> 2.28 | H57: =E57*F57*G57 -> 33 | J57: =SUMIF('Indicateurs Cumulés'!$F:$F,$B$7,'Indicateurs Cumulés'!GP:GP) -> 12,500 | K57: =IF(J57=0,0,SUMPRODUCT(('Indicateurs Cumulés'!$F$4:$F$374=$B$7)*(('Indicateurs Cumulés'!$GP$4:$GP$374)*('Indicateurs Cumulés'!$GQ$4:$GQ$374)/J57))) -> 0.93% | L57: =IF(J57=0,0,SUMPRODUCT(('Indicateurs Cumulés'!$F$4:$F$374=$B$7)*(('Indicateurs Cumulés'!$GP$4:$GP$374)*('Indicateurs Cumulés'!$GR$4:$GR$374)/J57))) -> 2.29 | M57: =J57*K57*L57 -> 265 | N57: =IF(ISERROR(M57/SUMIF('Indicateurs Cumulés'!$F:$F,$B$7,'Indicateurs Cumulés'!HT:HT)),"nc",M57/SUMIF('Indicateurs Cumulés'!$F:$F,$B$7,'Indicateurs Cumulés'!HT:HT)) -> 0.2 | P57: =SUMIF(objectifs!$F:$F,$B$7,objectifs!S:S) -> 12,000 | Q57: =objectifs!$T$373 -> 0.40% | R57: =objectifs!$U$373 -> 2.30 | S57: =P57*Q57*R57 -> 110 | T57: =IF(ISERROR(S57/SUMIF(objectifs!$F:$F,$B$7,objectifs!IC:IC)),"nc",S57/SUMIF(objectifs!$F:$F,$B$7,objectifs!IC:IC)) -> 0.1 | V57: =IF(ISERROR(J57/P57),0,J57/P57) -> 104% | W57: =IF(ISERROR(M57/S57),0,M57/S57) -> 240% | X57: =IF(ISERROR(N57-(T57/12*MONTH($C$9))),"nc",N57-(T57/12*MONTH($C$9))) -> 0.1
B58: Frais de dossier (yc CBM) | H58: =SUMIF('Indicateurs mensuels'!$F:$F,$B$7,'Indicateurs mensuels'!CS:CS)+SUMIF('Indicateurs mensuels'!$F:$F,$B$7,'Indicateurs mensuels'!CX:CX) -> 74 | M58: =SUMIF('Indicateurs Cumulés'!$F:$F,$B$7,'Indicateurs Cumulés'!CS:CS)+SUMIF('Indicateurs Cumulés'!$F:$F,$B$7,'Indicateurs Cumulés'!CU:CU) -> 668 | N58: =IF(ISERROR(M58/SUMIF('Indicateurs Cumulés'!$F:$F,$B$7,'Indicateurs Cumulés'!HT:HT)),"nc",M58/SUMIF('Indicateurs Cumulés'!$F:$F,$B$7,'Indicateurs Cumulés'!HT:HT)) -> 0.5 | S58: =SUMIF(objectifs!$F:$F,$B$7,objectifs!BS:BS) -> 750 | T58: =IF(ISERROR(S58/SUMIF(objectifs!$F:$F,$B$7,objectifs!IC:IC)),"nc",S58/SUMIF(objectifs!$F:$F,$B$7,objectifs!IC:IC)) -> 0.5 | W58: =IF(ISERROR(M58/S58),0,M58/S58) -> 89% | X58: =IF(ISERROR(N58-(T58/12*MONTH($C$9))),"nc",N58-(T58/12*MONTH($C$9))) -> 0.1
B59: Commissions ADE | E59: =IF(E56=0,0,SUMPRODUCT(('Indicateurs mensuels'!$F$4:$F$374=$B$7)*(('Indicateurs mensuels'!$AA$4:$AA$374)*('Indicateurs mensuels'!$HP$4:$HP$374)/E56))) -> 115.0% | F59: =IF(E56=0,0,SUMPRODUCT(('Indicateurs mensuels'!$F$4:$F$374=$B$7)*(('Indicateurs mensuels'!$AA$4:$AA$374)*('Indicateurs mensuels'!$HO$4:$HO$374)/E56))) -> 54.3% | H59: =SUMIF('Indicateurs mensuels'!$F:$F,$B$7,'Indicateurs mensuels'!HQ:HQ) -> 113 | J59: =IF(J56=0,0,SUMPRODUCT(('Indicateurs Cumulés'!$F$4:$F$374=$B$7)*(('Indicateurs Cumulés'!$AA$4:$AA$374)*('Indicateurs Cumulés'!$DH$4:$DH$374)/J56))) -> 111.2% | K59: =IF(J56=0,0,SUMPRODUCT(('Indicateurs Cumulés'!$F$4:$F$374=$B$7)*(('Indicateurs Cumulés'!$AA$4:$AA$374)*('Indicateurs Cumulés'!$DG$4:$DG$374)/J56))) -> 61.4% | M59: =SUMIF('Indicateurs Cumulés'!$F:$F,$B$7,'Indicateurs Cumulés'!DI:DI) -> 1,085 | N59: =IF(ISERROR(M59/SUMIF('Indicateurs Cumulés'!$F:$F,$B$7,'Indicateurs Cumulés'!HT:HT)),"nc",M59/SUMIF('Indicateurs Cumulés'!$F:$F,$B$7,'Indicateurs Cumulés'!HT:HT)) -> 0.8 | P59: =objectifs!$BM$373 -> 110% | Q59: =objectifs!$BL$373 -> 70% | S59: =SUMIF(objectifs!$F:$F,$B$7,objectifs!CB:CB) -> 2,501 | T59: =IF(ISERROR(S59/SUMIF(objectifs!$F:$F,$B$7,objectifs!IC:IC)),"nc",S59/SUMIF(objectifs!$F:$F,$B$7,objectifs!IC:IC)) -> 1.6 | W59: =IF(ISERROR(M59/S59),0,M59/S59) -> 43% | X59: =IF(ISERROR(N59-(T59/12*MONTH($C$9))),"nc",N59-(T59/12*MONTH($C$9))) -> -0.6
B61: BANCA - Ventes nettes | H61: =H62+H68+H75+H76+H77+H78+H82 -> 2,280 | M61: =M62+M68+M75+M76+M77+M78+M82 -> 24,979 | N61: =IF(ISERROR(M61/SUMIF('Indicateurs Cumulés'!$F:$F,$B$7,'Indicateurs Cumulés'!HT:HT)),"nc",M61/SUMIF('Indicateurs Cumulés'!$F:$F,$B$7,'Indicateurs Cumulés'!HT:HT)) -> 18.7 | P61: =P62+P68+P78+P77 -> 59,265 | Q61: =IF(ISERROR(S61/(P61*R61)*1000),0,S61/(P61*R61)*1000) -> 114 € | R61: 5.00 | S61: =S62+S68+S78+S77 -> 33,763 | T61: =IF(ISERROR(S61/SUMIF(objectifs!$F:$F,$B$7,objectifs!IC:IC)),"nc",S61/SUMIF(objectifs!$F:$F,$B$7,objectifs!IC:IC)) -> 22.2 | V61: =IF(ISERROR(J61/P61),0,J61/P61) -> 0% | W61: =IF(ISERROR(M61/S61),0,M61/S61) -> 74% | X61: =IF(ISERROR(N61-(T61/12*MONTH($C$9))),"nc",N61-(T61/12*MONTH($C$9))) -> 0.1
B62: Forfaits - Tarification | E62: =SUM(E63:E67) -> 37 | H62: =SUM(H63:H67) -> 526 | J62: =SUM(J63:J67) -> 6,167 | M62: =SUM(M63:M67) -> 7,063 | N62: =IF(ISERROR(M62/SUMIF('Indicateurs Cumulés'!$F:$F,$B$7,'Indicateurs Cumulés'!HT:HT)),"nc",M62/SUMIF('Indicateurs Cumulés'!$F:$F,$B$7,'Indicateurs Cumulés'!HT:HT)) -> 5.3 | P62: =SUMIF(objectifs!$F:$F,$B$7,objectifs!GD:GD)*0.95 -> 21,280 | Q62: =objectifs!$GD$3 -> 137 € | R62: =objectifs!$GE$3 -> 5.00 | S62: =P62*Q62*R62/1000 -> 14,602 | T62: =IF(ISERROR(S62/SUMIF(objectifs!$F:$F,$B$7,objectifs!IC:IC)),"nc",S62/SUMIF(objectifs!$F:$F,$B$7,objectifs!IC:IC)) -> 9.6 | V62: =IF(ISERROR(J62/P62),0,J62/P62) -> 29% | W62: =IF(ISERROR(M62/S62),0,M62/S62) -> 48% | X62: =IF(ISERROR(N62-(T62/12*MONTH($C$9))),"nc",N62-(T62/12*MONTH($C$9))) -> -2.7
B63: Bouquet liberté HDG | E63: =J63-SUMIF('Indicateurs Cumulés M-1'!$F:$F,$B$7,'Indicateurs Cumulés M-1'!LA:LA) -> 2,680 | F63: =K63 -> 140 € | G63: =L63 -> 5.00 | H63: =E63*F63*G63/1000 -> 1,869 | J63: =SUMIF('Indicateurs Cumulés'!$F:$F,$B$7,'Indicateurs Cumulés'!LA:LA) -> 21,469 | K63: ='Indicateurs Cumulés'!$LA$3 -> 140 € | L63: ='Indicateurs Cumulés'!$LB$3 -> 5.00 | M63: =J63*K63*L63/1000 -> 14,975 | N63: =IF(ISERROR(M63/SUMIF('Indicateurs Cumulés'!$F:$F,$B$7,'Indicateurs Cumulés'!HT:HT)),"nc",M63/SUMIF('Indicateurs Cumulés'!$F:$F,$B$7,'Indicateurs Cumulés'!HT:HT)) -> 11.2
B64: Bouquet liberté Autres | E64: =J64-SUMIF('Indicateurs Cumulés M-1'!$F:$F,$B$7,'Indicateurs Cumulés M-1'!IF:IF) -> -2,398 | F64: =K64 -> 87 € | G64: 5.00 | H64: =E64*F64*G64/1000 -> -1,045 | J64: =SUMIF('Indicateurs Cumulés'!$F:$F,$B$7,'Indicateurs Cumulés'!IF:IF) -> -8,636 | K64: ='Indicateurs Cumulés'!$IF$3 -> 87 € | L64: ='Indicateurs Cumulés'!$IV$3 -> 5.00 | M64: =J64*K64*L64/1000 -> -3,762 | N64: =IF(ISERROR(M64/SUMIF('Indicateurs Cumulés'!$F:$F,$B$7,'Indicateurs Cumulés'!HT:HT)),"nc",M64/SUMIF('Indicateurs Cumulés'!$F:$F,$B$7,'Indicateurs Cumulés'!HT:HT)) -> -2.8
B65: Futéo / SOL 16-17 | E65: =J65-SUMIF('Indicateurs Cumulés M-1'!$F:$F,$B$7,'Indicateurs Cumulés M-1'!IG:IG) -> 204 | F65: 12 € | G65: 5.00 | H65: =E65*F65*G65/1000 -> 12 | J65: =SUMIF('Indicateurs Cumulés'!$F:$F,$B$7,'Indicateurs Cumulés'!IG:IG) -> -657 | K65: ='Indicateurs Cumulés'!$IG$3 -> 12 € | L65: ='Indicateurs Cumulés'!$IW$3 -> 5.00 | M65: =J65*K65*L65/1000 -> -39 | N65: =IF(ISERROR(M65/SUMIF('Indicateurs Cumulés'!$F:$F,$B$7,'Indicateurs Cumulés'!HT:HT)),"nc",M65/SUMIF('Indicateurs Cumulés'!$F:$F,$B$7,'Indicateurs Cumulés'!HT:HT)) -> -0.0
B66: Satellis Essentiel / Essentiel + | E66: =J66-SUMIF('Indicateurs Cumulés M-1'!$F:$F,$B$7,'Indicateurs Cumulés M-1'!IH:IH) -> -377 | F66: 125 € | G66: 5.00 | H66: =E66*F66*G66/1000 -> -235 | J66: =SUMIF('Indicateurs Cumulés'!$F:$F,$B$7,'Indicateurs Cumulés'!IH:IH) -> -5,163 | K66: ='Indicateurs Cumulés'!$IH$3 -> 125 € | L66: ='Indicateurs Cumulés'!$IX$3 -> 5.00 | M66: =J66*K66*L66/1000 -> -3,222 | N66: =IF(ISERROR(M66/SUMIF('Indicateurs Cumulés'!$F:$F,$B$7,'Indicateurs Cumulés'!HT:HT)),"nc",M66/SUMIF('Indicateurs Cumulés'!$F:$F,$B$7,'Indicateurs Cumulés'!HT:HT)) -> -2.4
B67: Satellis Intégral | E67: =J67-SUMIF('Indicateurs Cumulés M-1'!$F:$F,$B$7,'Indicateurs Cumulés M-1'!II:II) -> -72 | F67: 210 € | G67: 5.00 | H67: =E67*F67*G67/1000 -> -76 | J67: =SUMIF('Indicateurs Cumulés'!$F:$F,$B$7,'Indicateurs Cumulés'!II:II) -> -846 | K67: ='Indicateurs Cumulés'!$II$3 -> 210 € | L67: ='Indicateurs Cumulés'!$IY$3 -> 5.00 | M67: =J67*K67*L67/1000 -> -888 | N67: =IF(ISERROR(M67/SUMIF('Indicateurs Cumulés'!$F:$F,$B$7,'Indicateurs Cumulés'!HT:HT)),"nc",M67/SUMIF('Indicateurs Cumulés'!$F:$F,$B$7,'Indicateurs Cumulés'!HT:HT)) -> -0.7
B68: Cartes - Tarification | E68: =SUM(E69:E74) -> -192 | H68: =SUM(H69:H74) -> 1,163 | J68: =SUM(J69:J74) -> 1,535 | M68: =SUM(M69:M74) -> 10,189 | N68: =IF(ISERROR(M68/SUMIF('Indicateurs Cumulés'!$F:$F,$B$7,'Indicateurs Cumulés'!HT:HT)),"nc",M68/SUMIF('Indicateurs Cumulés'!$F:$F,$B$7,'Indicateurs Cumulés'!HT:HT)) -> 7.6 | P68: =SUMIF(objectifs!$F:$F,$B$7,objectifs!GF:GF)*0.95 -> 11,400 | Q68: =objectifs!$GF$3 -> 289 € | R68: =objectifs!$GG$3 -> 5.00 | S68: =P68*Q68*R68/1000 -> 16,484 | T68: =IF(ISERROR(S68/SUMIF(objectifs!$F:$F,$B$7,objectifs!IC:IC)),"nc",S68/SUMIF(objectifs!$F:$F,$B$7,objectifs!IC:IC)) -> 10.9 | V68: =IF(ISERROR(J68/P68),0,J68/P68) -> 13% | W68: =IF(ISERROR(M68/S68),0,M68/S68) -> 62% | X68: =IF(ISERROR(N68-(T68/12*MONTH($C$9))),"nc",N68-(T68/12*MONTH($C$9))) -> -1.4
B69: Carte Infinite | E69: =J69-SUMIF('Indicateurs Cumulés M-1'!$F:$F,$B$7,'Indicateurs Cumulés M-1'!IJ:IJ) -> -6 | F69: =K69 -> 315 € | G69: =L69 -> 5.00 | H69: =E69*F69*G69/1000 -> -9 | J69: =SUMIF('Indicateurs Cumulés'!$F:$F,$B$7,'Indicateurs Cumulés'!IJ:IJ) -> 103 | K69: ='Indicateurs Cumulés'!$IJ$3 -> 315 € | L69: ='Indicateurs Cumulés'!$IZ$3 -> 5.00 | M69: =J69*K69*L69/1000 -> 162 | N69: =IF(ISERROR(M69/SUMIF('Indicateurs Cumulés'!$F:$F,$B$7,'Indicateurs Cumulés'!HT:HT)),"nc",M69/SUMIF('Indicateurs Cumulés'!$F:$F,$B$7,'Indicateurs Cumulés'!HT:HT)) -> 0.1
B70: Carte Platinum (yc izicarte) | E70: =J70-SUMIF('Indicateurs Cumulés M-1'!$F:$F,$B$7,'Indicateurs Cumulés M-1'!IK:IK) -> 110 | F70: =K70 -> 200 € | G70: 5.00 | H70: 110 | J70: =SUMIF('Indicateurs Cumulés'!$F:$F,$B$7,'Indicateurs Cumulés'!IK:IK) -> 979 | K70: ='Indicateurs Cumulés'!$IK$3 -> 200 € | L70: ='Indicateurs Cumulés'!$JA$3 -> 5.00 | M70: 979 | N70: =IF(ISERROR(M70/SUMIF('Indicateurs Cumulés'!$F:$F,$B$7,'Indicateurs Cumulés'!HT:HT)),"nc",M70/SUMIF('Indicateurs Cumulés'!$F:$F,$B$7,'Indicateurs Cumulés'!HT:HT)) -> 0.7
B71: Carte Premier (yc izicarte) | E71: =J71-SUMIF('Indicateurs Cumulés M-1'!$F:$F,$B$7,'Indicateurs Cumulés M-1'!IL:IL) -> 2,576 | F71: 130 € | G71: 5.00 | H71: 1,674 | J71: =SUMIF('Indicateurs Cumulés'!$F:$F,$B$7,'Indicateurs Cumulés'!IL:IL) -> 20,387 | K71: ='Indicateurs Cumulés'!$IL$3 -> 130 € | L71: ='Indicateurs Cumulés'!$JB$3 -> 5.00 | M71: 13,252 | N71: =IF(ISERROR(M71/SUMIF('Indicateurs Cumulés'!$F:$F,$B$7,'Indicateurs Cumulés'!HT:HT)),"nc",M71/SUMIF('Indicateurs Cumulés'!$F:$F,$B$7,'Indicateurs Cumulés'!HT:HT)) -> 9.9
B72: Carte Classic (yc izicarte) | E72: =J72-SUMIF('Indicateurs Cumulés M-1'!$F:$F,$B$7,'Indicateurs Cumulés M-1'!IM:IM) -> -2,200 | F72: 43 € | G72: 5.00 | H72: -473 | J72: =SUMIF('Indicateurs Cumulés'!$F:$F,$B$7,'Indicateurs Cumulés'!IM:IM) -> -17,116 | K72: ='Indicateurs Cumulés'!$IM$3 -> 43 € | L72: ='Indicateurs Cumulés'!$JC$3 -> 5.00 | M72: -3,680 | N72: =IF(ISERROR(M72/SUMIF('Indicateurs Cumulés'!$F:$F,$B$7,'Indicateurs Cumulés'!HT:HT)),"nc",M72/SUMIF('Indicateurs Cumulés'!$F:$F,$B$7,'Indicateurs Cumulés'!HT:HT)) -> -2.7
B73: Carte Sensea | E73: =J73-SUMIF('Indicateurs Cumulés M-1'!$F:$F,$B$7,'Indicateurs Cumulés M-1'!CI:CI) -> -644 | F73: 43 € | G73: 5.00 | H73: -137 | J73: =SUMIF('Indicateurs Cumulés'!$F:$F,$B$7,'Indicateurs Cumulés'!CI:CI) -> -2,329 | K73: ='Indicateurs Cumulés'!$CI$3 -> 43 € | L73: ='Indicateurs Cumulés'!$CJ$3 -> 5.00 | M73: -495 | N73: =IF(ISERROR(M73/SUMIF('Indicateurs Cumulés'!$F:$F,$B$7,'Indicateurs Cumulés'!HT:HT)),"nc",M73/SUMIF('Indicateurs Cumulés'!$F:$F,$B$7,'Indicateurs Cumulés'!HT:HT)) -> -0.4
B74: Autres Cartes | E74: =J74-SUMIF('Indicateurs Cumulés M-1'!$F:$F,$B$7,'Indicateurs Cumulés M-1'!IN:IN) -> -28 | F74: 12 € | G74: 5.00 | H74: -2 | J74: =SUMIF('Indicateurs Cumulés'!$F:$F,$B$7,'Indicateurs Cumulés'!IN:IN) -> -489 | K74: ='Indicateurs Cumulés'!$IN$3 -> 12 € | L74: ='Indicateurs Cumulés'!$JD$3 -> 5.00 | M74: -29 | N74: =IF(ISERROR(M74/SUMIF('Indicateurs Cumulés'!$F:$F,$B$7,'Indicateurs Cumulés'!HT:HT)),"nc",M74/SUMIF('Indicateurs Cumulés'!$F:$F,$B$7,'Indicateurs Cumulés'!HT:HT)) -> -0.0
B75: Booster Cartes débit différé | E75: =J75-SUMIF('Indicateurs Cumulés M-1'!$F:$F,$B$7,'Indicateurs Cumulés M-1'!KX:KX) -> 798 | F75: =K75 -> 40 € | G75: 5.00 | H75: 160 | J75: =SUMIF('Indicateurs Cumulés'!$F:$F,$B$7,'Indicateurs Cumulés'!KX:KX) -> 8,838 | K75: =IF(ISERROR(M75/(J75*L75)*1000),0,M75/(J75*L75)*1000) -> 40 € | L75: =objectifs!$GG$3 -> 5.00 | M75: =SUMIF('Indicateurs Cumulés'!$F:$F,$B$7,'Indicateurs Cumulés'!KY:KY) -> 1,768 | N75: =IF(ISERROR(M75/SUMIF('Indicateurs Cumulés'!$F:$F,$B$7,'Indicateurs Cumulés'!HT:HT)),"nc",M75/SUMIF('Indicateurs Cumulés'!$F:$F,$B$7,'Indicateurs Cumulés'!HT:HT)) -> 1.3
B76: Bonus Mobilité bancaire | E76: =J76-SUMIF('Indicateurs Cumulés M-1'!$F:$F,$B$7,'Indicateurs Cumulés M-1'!CG:CG) -> 484 | F76: =K76 -> 200 € | G76: =L76 -> 1.00 | H76: 97 | J76: =SUMIF('Indicateurs Cumulés'!$F:$F,$B$7,'Indicateurs Cumulés'!CG:CG) -> 5,787 | K76: =IF(ISERROR(M76/(J76*L76)*1000),0,M76/(J76*L76)*1000) -> 200 € | L76: 1.00 | M76: =SUMIF('Indicateurs Cumulés'!$F:$F,$B$7,'Indicateurs Cumulés'!CH:CH) -> 1,157 | N76: =IF(ISERROR(M76/SUMIF('Indicateurs Cumulés'!$F:$F,$B$7,'Indicateurs Cumulés'!HT:HT)),"nc",M76/SUMIF('Indicateurs Cumulés'!$F:$F,$B$7,'Indicateurs Cumulés'!HT:HT)) -> 0.9
B77: Options complémentaires sur Bouquet Liberté | E77: =J77-SUMIF('Indicateurs Cumulés M-1'!$F:$F,$B$7,'Indicateurs Cumulés M-1'!GM:GM) -> 27 | F77: =K77 -> 15 € | G77: =L77 -> 5.00 | H77: 2 | J77: =SUMIF('Indicateurs Cumulés'!$F:$F,$B$7,'Indicateurs Cumulés'!GM:GM) -> 167 | K77: =IF(ISERROR(M77/(J77*L77)*1000),0,M77/(J77*L77)*1000) -> 15 € | L77: ='Indicateurs Cumulés'!$IV$3 -> 5.00 | M77: =SUMIF('Indicateurs Cumulés'!$F:$F,$B$7,'Indicateurs Cumulés'!GN:GN) -> 13 | N77: =IF(ISERROR(M77/SUMIF('Indicateurs Cumulés'!$F:$F,$B$7,'Indicateurs Cumulés'!HT:HT)),"nc",M77/SUMIF('Indicateurs Cumulés'!$F:$F,$B$7,'Indicateurs Cumulés'!HT:HT)) -> 0.0 | P77: =SUMIF(objectifs!$F:$F,$B$7,objectifs!FL:FL) -> 1,600 | Q77: =objectifs!$FL$3 -> 15 € | R77: =objectifs!$FM$3 -> 5.00 | S77: =P77*Q77*R77/1000 -> 120 | T77: =IF(ISERROR(S77/SUMIF(objectifs!$F:$F,$B$7,objectifs!IC:IC)),"nc",S77/SUMIF(objectifs!$F:$F,$B$7,objectifs!IC:IC)) -> 0.1 | V77: =IF(ISERROR(J77/P77),0,J77/P77) -> 10% | W77: =IF(ISERROR(M77/S77),0,M77/S77) -> 10% | X77: =IF(ISERROR(N77-(T77/12*MONTH($C$9))),"nc",N77-(T77/12*MONTH($C$9))) -> -0.1
B78: IARD & Prévoyance - Commissions | E78: =J78-(SUMIF('Indicateurs Cumulés M-1'!$F:$F,$B$7,'Indicateurs Cumulés M-1'!HY:HY) +SUMIF('Indicateurs Cumulés M-1'!$F:$F,$B$7,'Indicateurs Cumulés M-1'!HZ:HZ) +SUMIF('Indicateurs Cumulés M-1'!$F:$F,$B$7,'Indicateurs Cumulés M-1'!IA:IA) +SUMIF('Indicateurs Cumulés M-1'!$F:$F,$B$7,'Indicateurs Cumulés M-1'!IB:IB) +SUMIF('Indicateurs Cumulés M-1'!$F:$F,$B$7,'Indicateurs Cumulés M-1'!IC:IC) +SUMIF('Indicateurs Cumulés M-1'!$F:$F,$B$7,'Indicateurs Cumulés M-1'!ID:ID) +SUMIF('Indicateurs Cumulés M-1'!$F:$F,$B$7,'Indicateurs Cumulés M-1'!IE:IE) +SUMIF('Indicateurs Cumulés M-1'!$F:$F,$B$7,'Indicateurs Cumulés M-1'!JK:JK) +SUMIF('Indicateurs Cumulés M-1'!$F:$F,$B$7,'Indicateurs Cumulés M-1'!LC:LC)) -> 1,401 | F78: =IF(ISERROR(H78/(E78*G78)*1000),0,H78/(E78*G78)*1000) -> 23 € | G78: 5.00 | H78: =M78- (SUMIF('Indicateurs Cumulés M-1'!$F:$F,$B$7,'Indicateurs Cumulés M-1'!IO:IO) +SUMIF('Indicateurs Cumulés M-1'!$F:$F,$B$7,'Indicateurs Cumulés M-1'!IP:IP) +SUMIF('Indicateurs Cumulés M-1'!$F:$F,$B$7,'Indicateurs Cumulés M-1'!IQ:IQ) +SUMIF('Indicateurs Cumulés M-1'!$F:$F,$B$7,'Indicateurs Cumulés M-1'!IR:IR) +SUMIF('Indicateurs Cumulés M-1'!$F:$F,$B$7,'Indicateurs Cumulés M-1'!IS:IS) +SUMIF('Indicateurs Cumulés M-1'!$F:$F,$B$7,'Indicateurs Cumulés M-1'!IT:IT) +SUMIF('Indicateurs Cumulés M-1'!$F:$F,$B$7,'Indicateurs Cumulés M-1'!IU:IU) +SUMIF('Indicateurs Cumulés M-1'!$F:$F,$B$7,'Indicateurs Cumulés M-1'!JL:JL) +SUMIF('Indicateurs Cumulés M-1'!$F:$F,$B$7,'Indicateurs Cumulés M-1'!LD:LD)) -> 161 | J78: =SUMIF('Indicateurs Cumulés'!$F:$F,$B$7,'Indicateurs Cumulés'!HY:HY) +SUMIF('Indicateurs Cumulés'!$F:$F,$B$7,'Indicateurs Cumulés'!HZ:HZ) +SUMIF('Indicateurs Cumulés'!$F:$F,$B$7,'Indicateurs Cumulés'!IA:IA) +SUMIF('Indicateurs Cumulés'!$F:$F,$B$7,'Indicateurs Cumulés'!IB:IB) +SUMIF('Indicateurs Cumulés'!$F:$F,$B$7,'Indicateurs Cumulés'!IC:IC) +SUMIF('Indicateurs Cumulés'!$F:$F,$B$7,'Indicateurs Cumulés'!ID:ID) +SUMIF('Indicateurs Cumulés'!$F:$F,$B$7,'Indicateurs Cumulés'!IE:IE) +SUMIF('Indicateurs Cumulés'!$F:$F,$B$7,'Indicateurs Cumulés'!JK:JK) +SUMIF('Indicateurs Cumulés'!$F:$F,$B$7,'Indicateurs Cumulés'!LC:LC) -> 22,964 | K78: 23 € | L78: =objectifs!$GI$3 -> 5.00 | M78: =SUMIF('Indicateurs Cumulés'!$F:$F,$B$7,'Indicateurs Cumulés'!IO:IO) +SUMIF('Indicateurs Cumulés'!$F:$F,$B$7,'Indicateurs Cumulés'!IP:IP) +SUMIF('Indicateurs Cumulés'!$F:$F,$B$7,'Indicateurs Cumulés'!IQ:IQ) +SUMIF('Indicateurs Cumulés'!$F:$F,$B$7,'Indicateurs Cumulés'!IR:IR) +SUMIF('Indicateurs Cumulés'!$F:$F,$B$7,'Indicateurs Cumulés'!IS:IS) +SUMIF('Indicateurs Cumulés'!$F:$F,$B$7,'Indicateurs Cumulés'!IT:IT) +SUMIF('Indicateurs Cumulés'!$F:$F,$B$7,'Indicateurs Cumulés'!IU:IU) +SUMIF('Indicateurs Cumulés'!$F:$F,$B$7,'Indicateurs Cumulés'!JL:JL) +SUMIF('Indicateurs Cumulés'!$F:$F,$B$7,'Indicateurs Cumulés'!LD:LD) -> 2,610 | N78: =IF(ISERROR(M78/SUMIF('Indicateurs Cumulés'!$F:$F,$B$7,'Indicateurs Cumulés'!HT:HT)),"nc",M78/SUMIF('Indicateurs Cumulés'!$F:$F,$B$7,'Indicateurs Cumulés'!HT:HT)) -> 1.9 | P78: =SUMIF(objectifs!$F:$F,$B$7,objectifs!GH:GH)*0.95 -> 24,985 | Q78: =objectifs!$GH$3 -> 20 € | R78: =objectifs!$GI$3 -> 5.00 | S78: =P78*Q78*R78/1000 -> 2,558 | T78: =IF(ISERROR(S78/SUMIF(objectifs!$F:$F,$B$7,objectifs!IC:IC)),"nc",S78/SUMIF(objectifs!$F:$F,$B$7,objectifs!IC:IC)) -> 1.7 | V78: =IF(ISERROR(J78/P78),0,J78/P78) -> 92% | W78: =IF(ISERROR(M78/S78),0,M78/S78) -> 102% | X78: =IF(ISERROR(N78-(T78/12*MONTH($C$9))),"nc",N78-(T78/12*MONTH($C$9))) -> 0.5
B79: dont AUTO | E79: =J79-SUMIF('Indicateurs Cumulés M-1'!$F:$F,$B$7,'Indicateurs Cumulés M-1'!HY:HY) -> 345 | F79: =K79 -> 43 € | G79: 2.75 | H79: =E79*F79*G79/1000 -> 41 | J79: =SUMIF('Indicateurs Cumulés'!$F:$F,$B$7,'Indicateurs Cumulés'!HY:HY) -> 5,867 | K79: 43 € | L79: =objectifs!$HT$3 -> 2.75 | M79: =SUMIF('Indicateurs Cumulés'!$F:$F,$B$7,'Indicateurs Cumulés'!IO:IO) -> 691 | N79: =IF(ISERROR(M79/SUMIF('Indicateurs Cumulés'!$F:$F,$B$7,'Indicateurs Cumulés'!HT:HT)),"nc",M79/SUMIF('Indicateurs Cumulés'!$F:$F,$B$7,'Indicateurs Cumulés'!HT:HT)) -> 0.5 | P79: =SUMIF(objectifs!$F:$F,$B$7,objectifs!HS:HS) -> 6,400 | Q79: =objectifs!$HS$3 -> 43 € | R79: =objectifs!$HT$3 -> 2.75 | S79: =P79*Q79*R79/1000 -> 754 | T79: =IF(ISERROR(S79/SUMIF(objectifs!$F:$F,$B$7,objectifs!IC:IC)),"nc",S79/SUMIF(objectifs!$F:$F,$B$7,objectifs!IC:IC)) -> 0.5 | V79: =IF(ISERROR(J79/P79),0,J79/P79) -> 92% | W79: =IF(ISERROR(M79/S79),0,M79/S79) -> 92% | X79: =IF(ISERROR(N79-(T79/12*MONTH($C$9))),"nc",N79-(T79/12*MONTH($C$9))) -> 0.1
B80: dont MRH | E80: =J80-SUMIF('Indicateurs Cumulés M-1'!$F:$F,$B$7,'Indicateurs Cumulés M-1'!HZ:HZ) -> 510 | F80: 25 € | G80: 3.96 | H80: =E80*F80*G80/1000 -> 51 | J80: =SUMIF('Indicateurs Cumulés'!$F:$F,$B$7,'Indicateurs Cumulés'!HZ:HZ) -> 5,028 | K80: 25 € | L80: =objectifs!$HV$3 -> 3.96 | M80: =SUMIF('Indicateurs Cumulés'!$F:$F,$B$7,'Indicateurs Cumulés'!IP:IP) -> 499 | N80: =IF(ISERROR(M80/SUMIF('Indicateurs Cumulés'!$F:$F,$B$7,'Indicateurs Cumulés'!HT:HT)),"nc",M80/SUMIF('Indicateurs Cumulés'!$F:$F,$B$7,'Indicateurs Cumulés'!HT:HT)) -> 0.4 | P80: =SUMIF(objectifs!$F:$F,$B$7,objectifs!HU:HU) -> 4,600 | Q80: =objectifs!$HU$3 -> 25 € | R80: =objectifs!$HV$3 -> 3.96 | S80: =P80*Q80*R80/1000 -> 456 | T80: =IF(ISERROR(S80/SUMIF(objectifs!$F:$F,$B$7,objectifs!IC:IC)),"nc",S80/SUMIF(objectifs!$F:$F,$B$7,objectifs!IC:IC)) -> 0.3 | V80: =IF(ISERROR(J80/P80),0,J80/P80) -> 109% | W80: =IF(ISERROR(M80/S80),0,M80/S80) -> 109% | X80: =IF(ISERROR(N80-(T80/12*MONTH($C$9))),"nc",N80-(T80/12*MONTH($C$9))) -> 0.1
B81: dont Sécur Famille | E81: =J81-SUMIF('Indicateurs Cumulés M-1'!$F:$F,$B$7,'Indicateurs Cumulés M-1'!IE:IE) -> 740 | F81: 19 € | G81: 6.00 | H81: =M81-VLOOKUP($B$7,'Indicateurs Cumulés M-1'!$F$3:$JD$390,250,FALSE) -> 85 | J81: =SUMIF('Indicateurs Cumulés'!$F:$F,$B$7,'Indicateurs Cumulés'!IE:IE) -> 9,359 | K81: =+objectifs!$ID$3 -> 19 € | L81: =+objectifs!$IE$3 -> 6.00 | M81: =SUMIF('Indicateurs Cumulés'!$F:$F,$B$7,'Indicateurs Cumulés'!IU:IU) -> 1,078 | N81: =IF(ISERROR(M81/SUMIF('Indicateurs Cumulés'!$F:$F,$B$7,'Indicateurs Cumulés'!HT:HT)),"nc",M81/SUMIF('Indicateurs Cumulés'!$F:$F,$B$7,'Indicateurs Cumulés'!HT:HT)) -> 0.8 | P81: =SUMIF(objectifs!$F:$F,$B$7,objectifs!ID:ID) -> 10,000 | Q81: =+objectifs!$ID$3 -> 19 € | R81: =+objectifs!$IE$3 -> 6.00 | S81: =P81*Q81*R81/1000 -> 1,152 | T81: =IF(ISERROR(S81/SUMIF(objectifs!$F:$F,$B$7,objectifs!IC:IC)),"nc",S81/SUMIF(objectifs!$F:$F,$B$7,objectifs!IC:IC)) -> 0.8 | V81: =IF(ISERROR(J81/P81),0,J81/P81) -> 94% | W81: =IF(ISERROR(M81/S81),0,M81/S81) -> 94% | X81: =IF(ISERROR(N81-(T81/12*MONTH($C$9))),"nc",N81-(T81/12*MONTH($C$9))) -> 0.2
B82: Booster AUTO & MRH | E82: =E79+E80 -> 855 | F82: =K82 -> 40 € | G82: 5.00 | H82: =E82*F82*G82/1000 -> 171 | J82: =J79+J80 -> 10,895 | K82: 40 € | L82: =objectifs!$GG$3 -> 5.00 | M82: =SUMIF('Indicateurs Cumulés'!$F:$F,$B$7,'Indicateurs Cumulés'!BU:BU)+SUMIF('Indicateurs Cumulés'!$F:$F,$B$7,'Indicateurs Cumulés'!BV:BV) -> 2,179 | N82: =IF(ISERROR(M82/SUMIF('Indicateurs Cumulés'!$F:$F,$B$7,'Indicateurs Cumulés'!HT:HT)),"nc",M82/SUMIF('Indicateurs Cumulés'!$F:$F,$B$7,'Indicateurs Cumulés'!HT:HT)) -> 1.6
B84: BANCA PRO - Ventes nettes | E84: =SUM(E85:E91) -> 182 | H84: =SUM(H85:H91) -> 151 | J84: =SUM(J85:J90) -> 2,647 | M84: =SUM(M85:M91) -> 3,924 | N84: =IF(ISERROR(M84/SUMIF('Indicateurs Cumulés'!$F:$F,$B$7,'Indicateurs Cumulés'!HT:HT)),"nc",M84/SUMIF('Indicateurs Cumulés'!$F:$F,$B$7,'Indicateurs Cumulés'!HT:HT)) -> 2.9 | P84: =SUM(P85:P91) -> 4,570 | S84: =SUM(S85:S91) -> 4,913 | T84: =IF(ISERROR(S84/SUMIF(objectifs!$F:$F,$B$7,objectifs!IC:IC)),"nc",S84/SUMIF(objectifs!$F:$F,$B$7,objectifs!IC:IC)) -> 3.2 | V84: =IF(ISERROR(J84/P84),0,J84/P84) -> 58% | W84: =IF(ISERROR(M84/S84),0,M84/S84) -> 80% | X84: =IF(ISERROR(N84-(T84/12*MONTH($C$9))),"nc",N84-(T84/12*MONTH($C$9))) -> 0.2
B85: Forfaits PRO - Tarification | E85: =J85-SUMIF('Indicateurs Cumulés M-1'!$F:$F,$B$7,'Indicateurs Cumulés M-1'!KC:KC)-SUMIF('Indicateurs Cumulés M-1'!$F:$F,$B$7,'Indicateurs Cumulés M-1'!KE:KE) -> 98 | F85: =K85 -> 272 € | G85: =L85 -> 5.00 | H85: =E85*F85*G85/1000 -> 133 | J85: =SUMIF('Indicateurs Cumulés'!$F:$F,$B$7,'Indicateurs Cumulés'!KC:KC)+SUMIF('Indicateurs Cumulés'!$F:$F,$B$7,'Indicateurs Cumulés'!KE:KE) -> 1,125 | K85: =IF(ISERROR(M85/(J85*L85)*1000),0,M85/(J85*L85)*1000) -> 272 € | L85: =objectifs!$HF$3 -> 5.00 | M85: =SUMIF('Indicateurs Cumulés'!$F:$F,$B$7,'Indicateurs Cumulés'!KI:KI)+SUMIF('Indicateurs Cumulés'!$F:$F,$B$7,'Indicateurs Cumulés'!KK:KK) -> 1,532 | N85: =IF(ISERROR(M85/SUMIF('Indicateurs Cumulés'!$F:$F,$B$7,'Indicateurs Cumulés'!HT:HT)),"nc",M85/SUMIF('Indicateurs Cumulés'!$F:$F,$B$7,'Indicateurs Cumulés'!HT:HT)) -> 1.1 | P85: =SUMIF(objectifs!$F:$F,$B$7,objectifs!GZ:GZ)+SUMIF(objectifs!$F:$F,$B$7,objectifs!HB:HB) -> 1,500 | Q85: =IF(ISERROR(S85/(P85*R85)*1000),0,S85/(P85*R85)*1000) -> 204 € | R85: =objectifs!$HF$3 -> 5.00 | S85: =SUMIF(objectifs!$F:$F,$B$7,objectifs!HF:HF)+SUMIF(objectifs!$F:$F,$B$7,objectifs!HH:HH) -> 1,529 | T85: =IF(ISERROR(S85/SUMIF(objectifs!$F:$F,$B$7,objectifs!IC:IC)),"nc",S85/SUMIF(objectifs!$F:$F,$B$7,objectifs!IC:IC)) -> 1.0 | V85: 75% | W85: 100% | X85: 0.3
B86: Cartes PRO - Tarification | E86: =J86-SUMIF('Indicateurs Cumulés M-1'!$F:$F,$B$7,'Indicateurs Cumulés M-1'!KD:KD) -SUMIF('Indicateurs Cumulés M-1'!$F:$F,$B$7,'Indicateurs Cumulés M-1'!KF:KF) -SUMIF('Indicateurs Cumulés M-1'!$F:$F,$B$7,'Indicateurs Cumulés M-1'!KG:KG) -> 35 | F86: 100 € | G86: 5.00 | H86: 17 | J86: =SUMIF('Indicateurs Cumulés'!$F:$F,$B$7,'Indicateurs Cumulés'!KD:KD)+SUMIF('Indicateurs Cumulés'!$F:$F,$B$7,'Indicateurs Cumulés'!KF:KF)+SUMIF('Indicateurs Cumulés'!$F:$F,$B$7,'Indicateurs Cumulés'!KG:KG) -> 762 | K86: 100 € | L86: =objectifs!$HG$3 -> 5.00 | M86: =SUMIF('Indicateurs Cumulés'!$F:$F,$B$7,'Indicateurs Cumulés'!KJ:KJ)+SUMIF('Indicateurs Cumulés'!$F:$F,$B$7,'Indicateurs Cumulés'!KL:KL)+SUMIF('Indicateurs Cumulés'!$F:$F,$B$7,'Indicateurs Cumulés'!KM:KM) -> 380 | N86: =IF(ISERROR(M86/SUMIF('Indicateurs Cumulés'!$F:$F,$B$7,'Indicateurs Cumulés'!HT:HT)),"nc",M86/SUMIF('Indicateurs Cumulés'!$F:$F,$B$7,'Indicateurs Cumulés'!HT:HT)) -> 0.3 | P86: =SUMIF(objectifs!$F:$F,$B$7,objectifs!HA:HA)+SUMIF(objectifs!$F:$F,$B$7,objectifs!HC:HC)+SUMIF(objectifs!$F:$F,$B$7,objectifs!HD:HD) -> 1,000 | Q86: 150 € | R86: =objectifs!$HG$3 -> 5.00 | S86: =SUMIF(objectifs!$F:$F,$B$7,objectifs!HG:HG)+SUMIF(objectifs!$F:$F,$B$7,objectifs!HI:HI)+SUMIF(objectifs!$F:$F,$B$7,objectifs!HJ:HJ) -> 748 | T86: =IF(ISERROR(S86/SUMIF(objectifs!$F:$F,$B$7,objectifs!IC:IC)),"nc",S86/SUMIF(objectifs!$F:$F,$B$7,objectifs!IC:IC)) -> 0.5 | V86: 76% | W86: 51% | X86: -0.1
B87: AUTO PRO (ventes brutes) - Commissions | E87: =J87-SUMIF('Indicateurs Cumulés M-1'!$F:$F,$B$7,'Indicateurs Cumulés M-1'!CA:CA) -> 4 | F87: 100 € | G87: 2.75 | H87: 1 | J87: =SUMIF('Indicateurs Cumulés'!$F:$F,$B$7,'Indicateurs Cumulés'!CA:CA) -> 122 | K87: 100 € | L87: =objectifs!$HZ$3 -> 2.75 | M87: =SUMIF('Indicateurs Cumulés'!$F:$F,$B$7,'Indicateurs Cumulés'!CB:CB) -> 34 | N87: =IF(ISERROR(M87/SUMIF('Indicateurs Cumulés'!$F:$F,$B$7,'Indicateurs Cumulés'!HT:HT)),"nc",M87/SUMIF('Indicateurs Cumulés'!$F:$F,$B$7,'Indicateurs Cumulés'!HT:HT)) -> 0.0 | P87: =SUMIF(objectifs!$F:$F,$B$7,objectifs!HW:HW) -> 340 | Q87: 100 € | R87: =objectifs!$HZ$3 -> 2.75 | S87: =SUMIF(objectifs!$F:$F,$B$7,objectifs!HZ:HZ) -> 94 | T87: =IF(ISERROR(S87/SUMIF(objectifs!$F:$F,$B$7,objectifs!IC:IC)),"nc",S87/SUMIF(objectifs!$F:$F,$B$7,objectifs!IC:IC)) -> 0.1 | V87: 36% | W87: 36% | X87: -0.0
B88: Multirisque PRO (ventes brutes) - Commissions | E88: =J88-SUMIF('Indicateurs Cumulés M-1'!$F:$F,$B$7,'Indicateurs Cumulés M-1'!CC:CC) -> 15 | F88: 30 € | G88: 3.96 | H88: 2 | J88: =SUMIF('Indicateurs Cumulés'!$F:$F,$B$7,'Indicateurs Cumulés'!CC:CC) -> 140 | K88: 30 € | L88: =objectifs!$IA$3 -> 3.96 | M88: =SUMIF('Indicateurs Cumulés'!$F:$F,$B$7,'Indicateurs Cumulés'!CD:CD) -> 17 | N88: =IF(ISERROR(M88/SUMIF('Indicateurs Cumulés'!$F:$F,$B$7,'Indicateurs Cumulés'!HT:HT)),"nc",M88/SUMIF('Indicateurs Cumulés'!$F:$F,$B$7,'Indicateurs Cumulés'!HT:HT)) -> 0.0 | P88: =SUMIF(objectifs!$F:$F,$B$7,objectifs!HX:HX) -> 510 | Q88: 30 € | R88: =objectifs!$IA$3 -> 3.96 | S88: =SUMIF(objectifs!$F:$F,$B$7,objectifs!IA:IA) -> 61 | T88: =IF(ISERROR(S88/SUMIF(objectifs!$F:$F,$B$7,objectifs!IC:IC)),"nc",S88/SUMIF(objectifs!$F:$F,$B$7,objectifs!IC:IC)) -> 0.0 | V88: 27% | W88: 27% | X88: -0.0
B89: PAP - Commissions | E89: =J89-SUMIF('Indicateurs Cumulés M-1'!$F:$F,$B$7,'Indicateurs Cumulés M-1'!KH:KH) -> 19 | F89: 18 € | G89: 5.00 | H89: 2 | J89: =SUMIF('Indicateurs Cumulés'!$F:$F,$B$7,'Indicateurs Cumulés'!KH:KH) -> 330 | K89: 18 € | L89: =objectifs!$HK$3 -> 5.00 | M89: =SUMIF('Indicateurs Cumulés'!$F:$F,$B$7,'Indicateurs Cumulés'!KN:KN) -> 29 | N89: =IF(ISERROR(M89/SUMIF('Indicateurs Cumulés'!$F:$F,$B$7,'Indicateurs Cumulés'!HT:HT)),"nc",M89/SUMIF('Indicateurs Cumulés'!$F:$F,$B$7,'Indicateurs Cumulés'!HT:HT)) -> 0.0 | P89: =SUMIF(objectifs!$F:$F,$B$7,objectifs!HE:HE) -> 480 | Q89: 18 € | R89: =objectifs!$HK$3 -> 5.00 | S89: =SUMIF(objectifs!$F:$F,$B$7,objectifs!HK:HK) -> 42 | T89: =IF(ISERROR(S89/SUMIF(objectifs!$F:$F,$B$7,objectifs!IC:IC)),"nc",S89/SUMIF(objectifs!$F:$F,$B$7,objectifs!IC:IC)) -> 0.0 | V89: 69% | W89: 69% | X89: -0.0
B90: Contrats monétiques actifs - Commissions | E90: =J90-SUMIF('Indicateurs Cumulés M-1'!$F:$F,$B$7,'Indicateurs Cumulés M-1'!CE:CE) -> 11 | F90: 100 € | G90: 5.00 | H90: 6 | J90: =SUMIF('Indicateurs Cumulés'!$F:$F,$B$7,'Indicateurs Cumulés'!CE:CE) -> 168 | K90: 100 € | L90: =objectifs!$IB$3 -> 5.00 | M90: =SUMIF('Indicateurs Cumulés'!$F:$F,$B$7,'Indicateurs Cumulés'!CF:CF) -> 84 | N90: =IF(ISERROR(M90/SUMIF('Indicateurs Cumulés'!$F:$F,$B$7,'Indicateurs Cumulés'!HT:HT)),"nc",M90/SUMIF('Indicateurs Cumulés'!$F:$F,$B$7,'Indicateurs Cumulés'!HT:HT)) -> 0.1 | P90: =SUMIF(objectifs!$F:$F,$B$7,objectifs!HY:HY) -> 740 | Q90: 100 € | R90: =objectifs!$IB$3 -> 5.00 | S90: =SUMIF(objectifs!$F:$F,$B$7,objectifs!IB:IB) -> 370 | T90: =IF(ISERROR(S90/SUMIF(objectifs!$F:$F,$B$7,objectifs!IC:IC)),"nc",S90/SUMIF(objectifs!$F:$F,$B$7,objectifs!IC:IC)) -> 0.2 | V90: 23% | W90: 23% | X90: -0.1
B91: Commisions de mouvement | H91: =VLOOKUP($B$7,'Indicateurs Cumulés'!$F$3:$MZ$391,297,FALSE)-VLOOKUP($B$7,'Indicateurs Cumulés M-1'!$F$3:$MZ$391,297,FALSE) -> -10 | M91: =SUMIF('Indicateurs Cumulés'!$F:$F,$B$7,'Indicateurs Cumulés'!KP:KP) -> 1,849 | N91: =IF(ISERROR(M91/SUMIF('Indicateurs Cumulés'!$F:$F,$B$7,'Indicateurs Cumulés'!HT:HT)),"nc",M91/SUMIF('Indicateurs Cumulés'!$F:$F,$B$7,'Indicateurs Cumulés'!HT:HT)) -> 1.4 | S91: =SUMIF(objectifs!$F:$F,$B$7,objectifs!HM:HM) -> 2,069 | T91: =IF(ISERROR(S91/SUMIF(objectifs!$F:$F,$B$7,objectifs!IC:IC)),"nc",S91/SUMIF(objectifs!$F:$F,$B$7,objectifs!IC:IC)) -> 1.4 | V91: 0% | W91: 89% | X91: 0.2
B93: BANCA PRO Relation privée - Ventes nettes | E93: =SUM(E94:E96) -> -24 | H93: =SUM(H94:H96) -> -50 | J93: =SUM(J94:J96) -> 123 | M93: =SUM(M94:M96) -> -264 | N93: =IF(ISERROR(M93/SUMIF('Indicateurs Cumulés'!$F:$F,$B$7,'Indicateurs Cumulés'!HT:HT)),"nc",M93/SUMIF('Indicateurs Cumulés'!$F:$F,$B$7,'Indicateurs Cumulés'!HT:HT)) -> -0.2 | P93: =SUM(P94:P96) -> 3,035 | Q93: =IF(ISERROR(S93/(P93*R93)*1000),0,S93/(P93*R93)*1000) -> 117 € | R93: =IF(ISERROR(SUMPRODUCT(R94:R96,P94:P96)/SUMPRODUCT(P94:P96)),0,SUMPRODUCT(R94:R96,P94:P96)/SUMPRODUCT(P94:P96)) -> 5.00 | S93: =SUM(S94:S96) -> 1,771 | T93: =IF(ISERROR(S93/SUMIF(objectifs!$F:$F,$B$7,objectifs!IC:IC)),"nc",S93/SUMIF(objectifs!$F:$F,$B$7,objectifs!IC:IC)) -> 1.2 | V93: =IF(ISERROR(J93/P93),0,J93/P93) -> 4% | W93: =IF(ISERROR(M93/S93),0,M93/S93) -> -15% | X93: =IF(ISERROR(N93-(T93/12*MONTH($C$9))),"nc",N93-(T93/12*MONTH($C$9))) -> -1.2
B94: Forfaits - Tarification | E94: =J94-SUMIF('Indicateurs Cumulés M-1'!$F:$F,$B$7,'Indicateurs Cumulés M-1'!LG:LG) -> 47 | F94: =K94 -> 137 € | G94: 5.00 | H94: =E94*F94*G94/1000 -> 32 | J94: =SUMIF('Indicateurs Cumulés'!$F:$F,$B$7,'Indicateurs Cumulés'!LG:LG) -> 42 | K94: =objectifs!$GD$3 -> 137 € | L94: =objectifs!$GE$3 -> 5.00 | M94: =SUMIF('Indicateurs Cumulés'!$F:$F,$B$7,'Indicateurs Cumulés'!LH:LH) -> 29 | N94: =IF(ISERROR(M94/SUMIF('Indicateurs Cumulés'!$F:$F,$B$7,'Indicateurs Cumulés'!HT:HT)),"nc",M94/SUMIF('Indicateurs Cumulés'!$F:$F,$B$7,'Indicateurs Cumulés'!HT:HT)) -> 0.0 | P94: =SUMIF(objectifs!$F:$F,$B$7,objectifs!GD:GD)*5% -> 1,120 | Q94: =objectifs!$GD$3 -> 137 € | R94: =objectifs!$GE$3 -> 5.00 | S94: =P94*Q94*R94/1000 -> 769 | T94: =IF(ISERROR(S94/SUMIF(objectifs!$F:$F,$B$7,objectifs!IC:IC)),"nc",S94/SUMIF(objectifs!$F:$F,$B$7,objectifs!IC:IC)) -> 0.5 | V94: =IF(ISERROR(J94/P94),0,J94/P94) -> 4% | W94: =IF(ISERROR(M94/S94),0,M94/S94) -> 4% | X94: =IF(ISERROR(N94-(T94/12*MONTH($C$9))),"nc",N94-(T94/12*MONTH($C$9))) -> -0.4
B95: Cartes - Tarification | E95: =J95-SUMIF('Indicateurs Cumulés M-1'!$F:$F,$B$7,'Indicateurs Cumulés M-1'!LI:LI) -> -56 | F95: 289 € | G95: 5.00 | H95: =E95*F95*G95/1000 -> -81 | J95: =SUMIF('Indicateurs Cumulés'!$F:$F,$B$7,'Indicateurs Cumulés'!LI:LI) -> -224 | K95: =objectifs!$GF$3 -> 289 € | L95: =objectifs!$GG$3 -> 5.00 | M95: =SUMIF('Indicateurs Cumulés'!$F:$F,$B$7,'Indicateurs Cumulés'!LJ:LJ) -> -324 | N95: =IF(ISERROR(M95/SUMIF('Indicateurs Cumulés'!$F:$F,$B$7,'Indicateurs Cumulés'!HT:HT)),"nc",M95/SUMIF('Indicateurs Cumulés'!$F:$F,$B$7,'Indicateurs Cumulés'!HT:HT)) -> -0.2 | P95: =SUMIF(objectifs!$F:$F,$B$7,objectifs!GF:GF)*5% -> 600 | Q95: =objectifs!$GF$3 -> 289 € | R95: =objectifs!$GG$3 -> 5.00 | S95: =P95*Q95*R95/1000 -> 868 | T95: =IF(ISERROR(S95/SUMIF(objectifs!$F:$F,$B$7,objectifs!IC:IC)),"nc",S95/SUMIF(objectifs!$F:$F,$B$7,objectifs!IC:IC)) -> 0.6 | V95: =IF(ISERROR(J95/P95),0,J95/P95) -> -37% | W95: =IF(ISERROR(M95/S95),0,M95/S95) -> -37% | X95: =IF(ISERROR(N95-(T95/12*MONTH($C$9))),"nc",N95-(T95/12*MONTH($C$9))) -> -0.7
B96: IARD & Prévoyance - Commissions | E96: =J96-SUMIF('Indicateurs Cumulés M-1'!$F:$F,$B$7,'Indicateurs Cumulés M-1'!LK:LK) -> -15 | F96: 20 € | G96: 5.00 | H96: =E96*F96*G96/1000 -> -2 | J96: =SUMIF('Indicateurs Cumulés'!$F:$F,$B$7,'Indicateurs Cumulés'!LK:LK) -> 305 | K96: =objectifs!$GH$3 -> 20 € | L96: =objectifs!$GI$3 -> 5.00 | M96: =SUMIF('Indicateurs Cumulés'!$F:$F,$B$7,'Indicateurs Cumulés'!LL:LL) -> 31 | N96: =IF(ISERROR(M96/SUMIF('Indicateurs Cumulés'!$F:$F,$B$7,'Indicateurs Cumulés'!HT:HT)),"nc",M96/SUMIF('Indicateurs Cumulés'!$F:$F,$B$7,'Indicateurs Cumulés'!HT:HT)) -> 0.0 | P96: =SUMIF(objectifs!$F:$F,$B$7,objectifs!GH:GH)*5% -> 1,315 | Q96: =objectifs!$GH$3 -> 20 € | R96: =objectifs!$GI$3 -> 5.00 | S96: =P96*Q96*R96/1000 -> 135 | T96: =IF(ISERROR(S96/SUMIF(objectifs!$F:$F,$B$7,objectifs!IC:IC)),"nc",S96/SUMIF(objectifs!$F:$F,$B$7,objectifs!IC:IC)) -> 0.1 | V96: =IF(ISERROR(J96/P96),0,J96/P96) -> 23% | W96: =IF(ISERROR(M96/S96),0,M96/S96) -> 23% | X96: =IF(ISERROR(N96-(T96/12*MONTH($C$9))),"nc",N96-(T96/12*MONTH($C$9))) -> -0.1
B98: AUTRES | H98: =H99+H103 -> -455 | M98: =M99+M103 -> -3,823 | N98: =IF(ISERROR(M98/SUMIF('Indicateurs Cumulés'!$F:$F,$B$7,'Indicateurs Cumulés'!HT:HT)),"nc",M98/SUMIF('Indicateurs Cumulés'!$F:$F,$B$7,'Indicateurs Cumulés'!HT:HT)) -> -2.9 | S98: =S99+S103 -> -3,348 | T98: =IF(ISERROR(S98/SUMIF(objectifs!$F:$F,$B$7,objectifs!IC:IC)),"nc",S98/SUMIF(objectifs!$F:$F,$B$7,objectifs!IC:IC)) -> -2.2 | W98: =IF(ISERROR(M98/S98),0,M98/S98) -> 114% | X98: =IF(ISERROR(N98-(T98/12*MONTH($C$9))),"nc",N98-(T98/12*MONTH($C$9))) -> -1.0
B99: Remises commerciales | H99: =M99-SUMIF('Indicateurs Cumulés M-1'!$F:$F,$B$7,'Indicateurs Cumulés M-1'!HN:HN) -> -490 | M99: =SUMIF('Indicateurs Cumulés'!$F:$F,$B$7,'Indicateurs Cumulés'!HN:HN) -> -4,784 | N99: =IF(ISERROR(M99/SUMIF('Indicateurs Cumulés'!$F:$F,$B$7,'Indicateurs Cumulés'!HT:HT)),"nc",M99/SUMIF('Indicateurs Cumulés'!$F:$F,$B$7,'Indicateurs Cumulés'!HT:HT)) -> -3.6 | S99: =SUMIF(objectifs!$F:$F,$B$7,objectifs!FU:FU) -> -5,200 | T99: =IF(ISERROR(S99/SUMIF(objectifs!$F:$F,$B$7,objectifs!IC:IC)),"nc",S99/SUMIF(objectifs!$F:$F,$B$7,objectifs!IC:IC)) -> -3.4 | W99: 92% | X99: -0.7
B100: dont hors MAD | N100: =IF(ISERROR(M100/SUMIF('Indicateurs Cumulés'!$F:$F,$B$7,'Indicateurs Cumulés'!HT:HT)),"nc",M100/SUMIF('Indicateurs Cumulés'!$F:$F,$B$7,'Indicateurs Cumulés'!HT:HT)) -> 0.0 | S100: -2,800 | T100: =IF(ISERROR(S100/SUMIF(objectifs!$F:$F,$B$7,objectifs!IC:IC)),"nc",S100/SUMIF(objectifs!$F:$F,$B$7,objectifs!IC:IC)) -> -1.8 | W100: 0% | X100: 1.5
B101: dont MAD | N101: =IF(ISERROR(M101/SUMIF('Indicateurs Cumulés'!$F:$F,$B$7,'Indicateurs Cumulés'!HT:HT)),"nc",M101/SUMIF('Indicateurs Cumulés'!$F:$F,$B$7,'Indicateurs Cumulés'!HT:HT)) -> 0.0 | S101: -1,700 | T101: =IF(ISERROR(S101/SUMIF(objectifs!$F:$F,$B$7,objectifs!IC:IC)),"nc",S101/SUMIF(objectifs!$F:$F,$B$7,objectifs!IC:IC)) -> -1.1 | W101: 0% | X101: 0.9
B102: dont PRO | H102: =M102 -> 0 | M102: =VLOOKUP($B$7,'Indicateurs Cumulés'!$F$3:$MZ$391,73,FALSE) -> 0 | N102: =IF(ISERROR(M102/SUMIF('Indicateurs Cumulés'!$F:$F,$B$7,'Indicateurs Cumulés'!HT:HT)),"nc",M102/SUMIF('Indicateurs Cumulés'!$F:$F,$B$7,'Indicateurs Cumulés'!HT:HT)) -> 0.0 | S102: -700 | T102: =IF(ISERROR(S102/SUMIF(objectifs!$F:$F,$B$7,objectifs!IC:IC)),"nc",S102/SUMIF(objectifs!$F:$F,$B$7,objectifs!IC:IC)) -> -0.5 | W102: 0% | X102: 0.4
B103: Commissions immobilières | H103: =M103-(SUMIF('Indicateurs Cumulés M-1'!$F:$F,$B$7,'Indicateurs Cumulés M-1'!HR:HR)*'Indicateurs Cumulés M-1'!$HR$3 +SUMIF('Indicateurs Cumulés M-1'!$F:$F,$B$7,'Indicateurs Cumulés M-1'!KZ:KZ)*'Indicateurs Cumulés M-1'!$KZ$3 +SUMIF('Indicateurs Cumulés M-1'!$F:$F,$B$7,'Indicateurs Cumulés M-1'!JG:JG)*'Indicateurs Cumulés M-1'!$JG$3 +SUMIF('Indicateurs Cumulés M-1'!$F:$F,$B$7,'Indicateurs Cumulés M-1'!JH:JH)*'Indicateurs Cumulés M-1'!$JH$3) -> 35 | M103: =SUMIF('Indicateurs Cumulés'!$F:$F,$B$7,'Indicateurs Cumulés'!HR:HR)*'Indicateurs Cumulés'!$HR$3 +SUMIF('Indicateurs Cumulés'!$F:$F,$B$7,'Indicateurs Cumulés'!KZ:KZ)*'Indicateurs Cumulés'!$KZ$3 +SUMIF('Indicateurs Cumulés'!$F:$F,$B$7,'Indicateurs Cumulés'!JG:JG)*'Indicateurs Cumulés'!$JG$3 +SUMIF('Indicateurs Cumulés'!$F:$F,$B$7,'Indicateurs Cumulés'!JH:JH)*'Indicateurs Cumulés'!$JH$3 -> 961 | N103: =IF(ISERROR(M103/SUMIF('Indicateurs Cumulés'!$F:$F,$B$7,'Indicateurs Cumulés'!HT:HT)),"nc",M103/SUMIF('Indicateurs Cumulés'!$F:$F,$B$7,'Indicateurs Cumulés'!HT:HT)) -> 0.7 | S103: =SUMIF(objectifs!$F:$F,$B$7,objectifs!FY:FY) -> 1,852 | T103: =IF(ISERROR(S103/SUMIF(objectifs!$F:$F,$B$7,objectifs!IC:IC)),"nc",S103/SUMIF(objectifs!$F:$F,$B$7,objectifs!IC:IC)) -> 1.2 | W103: 52% | X103: -0.3
B105: PNB BDD sur Activité Nouvelle | H105: =H14+H41+H47+H61+H98+H55+H84+H93 -> 29,021 | M105: =M14+M41+M47+M61+M98+M55+M84+M93 -> 192,994 | N105: =IF(ISERROR(M105/SUMIF('Indicateurs Cumulés'!$F:$F,$B$7,'Indicateurs Cumulés'!HT:HT)),"nc",M105/SUMIF('Indicateurs Cumulés'!$F:$F,$B$7,'Indicateurs Cumulés'!HT:HT)) -> 144.1 | S105: =S14+S41+S47+S61+S98+S55+S84+S93 -> 204,509 | T105: =IF(ISERROR(S105/SUMIF(objectifs!$F:$F,$B$7,objectifs!IC:IC)),"nc",S105/SUMIF(objectifs!$F:$F,$B$7,objectifs!IC:IC)) -> 134.6 | W105: =IF(ISERROR(M105/S105),0,M105/S105) -> 94.4% | X105: =IF(ISERROR(N105-(T105/12*MONTH($C$9))),"nc",N105-(T105/12*MONTH($C$9))) -> 31.9
B107: BONUS DIGITAL | E107: Volume | F107: Montant | G107: Durée | H107: PNB | J107: Volume | K107: Montant | L107: Durée | M107: PNB | N107: PNB / ETP perf. | P107: Volume | Q107: Montant | R107: Durée | S107: PNB | T107: PNB / ETP Cible | V107: Volume | W107: PNB annuel | X107: Ecart /obj. PNB/ETP
B108: Evolution stock clients actifs BAD (1 connexion / mois sur 3 mois) | E108: =J108-SUMIF('Indicateurs Cumulés M-1'!$F:$F,$B$7,'Indicateurs Cumulés M-1'!LT:LT) -> 3,612 | F108: =K108 -> 15 € | G108: =L108 -> 5.00 | H108: =+E108*F108*G108/1000 -> 271 | J108: =SUMIF('Indicateurs Cumulés'!$F:$F,$B$7,'Indicateurs Cumulés'!LT:LT) -> 48,454 | K108: 15 € | L108: 5.00 | M108: =SUMIF('Indicateurs Cumulés'!$F:$F,$B$7,'Indicateurs Cumulés'!LZ:LZ) -> 3,634 | N108: =IF(ISERROR(M108/SUMIF('Indicateurs Cumulés'!$F:$F,$B$7,'Indicateurs Cumulés'!HT:HT)),"nc",M108/SUMIF('Indicateurs Cumulés'!$F:$F,$B$7,'Indicateurs Cumulés'!HT:HT)) -> 2.7
B109: Nombre de SED finalisées (en brut) | E109: =J109-SUMIF('Indicateurs Cumulés M-1'!$F:$F,$B$7,'Indicateurs Cumulés M-1'!LU:LU) -> 5,105 | F109: =K109 -> 10 € | G109: =L109 -> 1.00 | H109: =+E109*F109*G109/1000 -> 51 | J109: =SUMIF('Indicateurs Cumulés'!$F:$F,$B$7,'Indicateurs Cumulés'!LU:LU) -> 46,356 | K109: 10 € | L109: 1.00 | M109: =SUMIF('Indicateurs Cumulés'!$F:$F,$B$7,'Indicateurs Cumulés'!MA:MA) -> 464 | N109: =IF(ISERROR(M109/SUMIF('Indicateurs Cumulés'!$F:$F,$B$7,'Indicateurs Cumulés'!HT:HT)),"nc",M109/SUMIF('Indicateurs Cumulés'!$F:$F,$B$7,'Indicateurs Cumulés'!HT:HT)) -> 0.3
B110: Nombre de SAG finalisées (périmètre SAG hors OPC en brut) | E110: =J110-SUMIF('Indicateurs Cumulés M-1'!$F:$F,$B$7,'Indicateurs Cumulés M-1'!LV:LV) -> 32,085 | F110: 3 € | G110: 1.00 | H110: 96 | J110: =SUMIF('Indicateurs Cumulés'!$F:$F,$B$7,'Indicateurs Cumulés'!LV:LV) -> 328,961 | K110: 3 € | L110: 1.00 | M110: =SUMIF('Indicateurs Cumulés'!$F:$F,$B$7,'Indicateurs Cumulés'!MB:MB) -> 987 | N110: =IF(ISERROR(M110/SUMIF('Indicateurs Cumulés'!$F:$F,$B$7,'Indicateurs Cumulés'!HT:HT)),"nc",M110/SUMIF('Indicateurs Cumulés'!$F:$F,$B$7,'Indicateurs Cumulés'!HT:HT)) -> 0.7
B111: Evolution stock de clients équipés E-documents | E111: =J111-SUMIF('Indicateurs Cumulés M-1'!$F:$F,$B$7,'Indicateurs Cumulés M-1'!LW:LW) -> 3,516 | F111: 10 € | G111: 5.00 | H111: 176 | J111: =SUMIF('Indicateurs Cumulés'!$F:$F,$B$7,'Indicateurs Cumulés'!LW:LW) -> 27,543 | K111: 10 € | L111: 5.00 | M111: =SUMIF('Indicateurs Cumulés'!$F:$F,$B$7,'Indicateurs Cumulés'!MC:MC) -> 1,377 | N111: =IF(ISERROR(M111/SUMIF('Indicateurs Cumulés'!$F:$F,$B$7,'Indicateurs Cumulés'!HT:HT)),"nc",M111/SUMIF('Indicateurs Cumulés'!$F:$F,$B$7,'Indicateurs Cumulés'!HT:HT)) -> 1.0
B112: Evolution stock de clients avec Opt-in-mail et tél. | E112: =J112-SUMIF('Indicateurs Cumulés M-1'!$F:$F,$B$7,'Indicateurs Cumulés M-1'!LX:LX) -> 1,033 | F112: 5 € | G112: 3.00 | H112: 15 | J112: =SUMIF('Indicateurs Cumulés'!$F:$F,$B$7,'Indicateurs Cumulés'!LX:LX) -> 18,697 | K112: 5 € | L112: 3.00 | M112: =SUMIF('Indicateurs Cumulés'!$F:$F,$B$7,'Indicateurs Cumulés'!MD:MD) -> 280 | N112: =IF(ISERROR(M112/SUMIF('Indicateurs Cumulés'!$F:$F,$B$7,'Indicateurs Cumulés'!HT:HT)),"nc",M112/SUMIF('Indicateurs Cumulés'!$F:$F,$B$7,'Indicateurs Cumulés'!HT:HT)) -> 0.2
B113: Evolution stock de clients équipés Sécurpass | E113: =J113-SUMIF('Indicateurs Cumulés M-1'!$F:$F,$B$7,'Indicateurs Cumulés M-1'!LY:LY) -> 2,876 | F113: 1 € | G113: 5.00 | H113: 14 | J113: =SUMIF('Indicateurs Cumulés'!$F:$F,$B$7,'Indicateurs Cumulés'!LY:LY) -> 18,648 | K113: 1 € | L113: 5.00 | M113: =SUMIF('Indicateurs Cumulés'!$F:$F,$B$7,'Indicateurs Cumulés'!ME:ME) -> 93 | N113: =IF(ISERROR(M113/SUMIF('Indicateurs Cumulés'!$F:$F,$B$7,'Indicateurs Cumulés'!HT:HT)),"nc",M113/SUMIF('Indicateurs Cumulés'!$F:$F,$B$7,'Indicateurs Cumulés'!HT:HT)) -> 0.1
B115: PNB sur Bonus digital | H115: =SUM(H108:H114) -> 624 | M115: =SUM(M108:M114) -> 6,835 | N115: =IF(ISERROR(M115/SUMIF('Indicateurs Cumulés'!$F:$F,$B$7,'Indicateurs Cumulés'!HT:HT)),"nc",M115/SUMIF('Indicateurs Cumulés'!$F:$F,$B$7,'Indicateurs Cumulés'!HT:HT)) -> 5.1
B117: PNB Part variable | H117: =H115+H105 -> 29,645 | M117: =+M105+M115 -> 199,829 | N117: =IF(ISERROR(M117/SUMIF('Indicateurs Cumulés'!$F:$F,$B$7,'Indicateurs Cumulés'!HT:HT)),"nc",M117/SUMIF('Indicateurs Cumulés'!$F:$F,$B$7,'Indicateurs Cumulés'!HT:HT)) -> 149.2 | S117: =+S105+S115 -> 204,509 | T117: =IF(ISERROR(S117/SUMIF(objectifs!$F:$F,$B$7,objectifs!IC:IC)),"nc",S117/SUMIF(objectifs!$F:$F,$B$7,objectifs!IC:IC)) -> 134.6 | W117: =IF(ISERROR(M117/S117),0,M117/S117) -> 97.7% | X117: =IF(ISERROR(N117-(T117/12*MONTH($C$9))),"nc",N117-(T117/12*MONTH($C$9))) -> 37.1
B120: COLLECTE PRO (yc DAV) - Excédents | E120: =SUM(E121:E124) -> 3,676 | H120: =SUM(H121:H124) -> 149 | J120: =SUM(J121:J124) -> 54,883 | M120: =SUM(M121:M124) -> 1,959 | N120: =IF(ISERROR(M120/SUMIF('Indicateurs Cumulés'!$F:$F,$B$7,'Indicateurs Cumulés'!HT:HT)),"nc",M120/SUMIF('Indicateurs Cumulés'!$F:$F,$B$7,'Indicateurs Cumulés'!HT:HT)) -> 1.5 | P120: =SUM(P121:P124) -> 40,000 | S120: =SUM(S121:S124) -> 1,601 | T120: =IF(ISERROR(S120/SUMIF(objectifs!$F:$F,$B$7,objectifs!IC:IC)),"nc",S120/SUMIF(objectifs!$F:$F,$B$7,objectifs!IC:IC)) -> 1.1 | V120: =IF(ISERROR(J120/P120),0,J120/P120) -> 137% | W120: =IF(ISERROR(M120/S120),0,M120/S120) -> 122% | X120: =IF(ISERROR(N120-(T120/12*MONTH($C$9))),"nc",N120-(T120/12*MONTH($C$9))) -> 0.6
B121: DAV Créditeurs PRO - Variation d'EMJ mensuel | E121: =SUMIF('Indicateurs mensuels'!$F:$F,$B$7,'Indicateurs mensuels'!HR:HR)/12 -> 113 | F121: =K121 -> 1.00% | G121: 5.37 | H121: =E121*F121*G121 -> 6 | J121: =SUMIF('Indicateurs Cumulés'!$F:$F,$B$7,'Indicateurs Cumulés'!JT:JT) -> 1,236 | K121: ='Indicateurs Cumulés'!$JT$3 -> 1.00% | L121: ='Indicateurs Cumulés'!$KA$3 -> 5.37 | M121: =J121*K121*L121 -> 66 | N121: =IF(ISERROR(M121/SUMIF('Indicateurs Cumulés'!$F:$F,$B$7,'Indicateurs Cumulés'!HT:HT)),"nc",M121/SUMIF('Indicateurs Cumulés'!$F:$F,$B$7,'Indicateurs Cumulés'!HT:HT)) -> 0.0 | P121: =SUMIF(objectifs!$F:$F,$B$7,objectifs!GQ:GQ) -> 15,000 | Q121: =objectifs!$FG$373 -> 1.00% | R121: =objectifs!$FH$373 -> 5.37 | S121: =P121*Q121*R121 -> 806 | T121: =IF(ISERROR(S121/SUMIF(objectifs!$F:$F,$B$7,objectifs!IC:IC)),"nc",S121/SUMIF(objectifs!$F:$F,$B$7,objectifs!IC:IC)) -> 0.5 | V121: =IF(ISERROR(J121/P121),0,J121/P121) -> 8% | W121: =IF(ISERROR(M121/S121),0,M121/S121) -> 8% | X121: =IF(ISERROR(N121-(T121/12*MONTH($C$9))),"nc",N121-(T121/12*MONTH($C$9))) -> -0.4
B122: Compte Excédent Pro | E122: =SUMIF('Indicateurs mensuels'!$F:$F,$B$7,'Indicateurs mensuels'!HS:HS) -> 2,428 | F122: 0.60% | G122: 5.37 | H122: =E122*F122*G122 -> 78 | J122: =SUMIF('Indicateurs Cumulés'!$F:$F,$B$7,'Indicateurs Cumulés'!JR:JR) -> 33,179 | K122: ='Indicateurs Cumulés'!$JR$3 -> 0.60% | L122: ='Indicateurs Cumulés'!$JY$3 -> 5.37 | M122: =SUMIF('Indicateurs Cumulés'!$F:$F,$B$7,'Indicateurs Cumulés'!JY:JY) -> 1,069 | N122: =IF(ISERROR(M122/SUMIF('Indicateurs Cumulés'!$F:$F,$B$7,'Indicateurs Cumulés'!HT:HT)),"nc",M122/SUMIF('Indicateurs Cumulés'!$F:$F,$B$7,'Indicateurs Cumulés'!HT:HT)) -> 0.8 | P122: =SUMIF(objectifs!$F:$F,$B$7,objectifs!GO:GO) -> 25,000 | Q122: =objectifs!$CQ$373 -> 0.60% | R122: =objectifs!$CR$373 -> 5.37 | S122: =P122*Q122*R122 -> 806 | T122: =IF(ISERROR(S122/SUMIF(objectifs!$F:$F,$B$7,objectifs!IC:IC)),"nc",S122/SUMIF(objectifs!$F:$F,$B$7,objectifs!IC:IC)) -> 0.5 | V122: =IF(ISERROR(J122/P122),0,J122/P122) -> 133% | W122: =IF(ISERROR(M122/S122),0,M122/S122) -> 133% | X122: =IF(ISERROR(N122-(T122/12*MONTH($C$9))),"nc",N122-(T122/12*MONTH($C$9))) -> 0.4
B123: Assurance Vie | E123: =SUMIF('Indicateurs mensuels'!$F:$F,$B$7,'Indicateurs mensuels'!BX:BX) -> -206 | F123: 0.45% | G123: 8.00 | H123: =E123*F123*G123 -> -7 | J123: =SUMIF('Indicateurs Cumulés'!$F:$F,$B$7,'Indicateurs Cumulés'!JQ:JQ) -> 14,245 | K123: ='Indicateurs Cumulés'!$JQ$3 -> 0.45% | L123: ='Indicateurs Cumulés'!$JX$3 -> 8.00 | M123: =SUMIF('Indicateurs Cumulés'!$F:$F,$B$7,'Indicateurs Cumulés'!JX:JX) -> 513 | N123: =IF(ISERROR(M123/SUMIF('Indicateurs Cumulés'!$F:$F,$B$7,'Indicateurs Cumulés'!HT:HT)),"nc",M123/SUMIF('Indicateurs Cumulés'!$F:$F,$B$7,'Indicateurs Cumulés'!HT:HT)) -> 0.4 | P123: =SUMIF(objectifs!$F:$F,$B$7,objectifs!GN:GN) -> 6,000 | Q123: =objectifs!$EE$373 -> 0.45% | R123: =objectifs!$EF$373 -> 8.00 | S123: =P123*Q123*R123 -> 216 | T123: =IF(ISERROR(S123/SUMIF(objectifs!$F:$F,$B$7,objectifs!IC:IC)),"nc",S123/SUMIF(objectifs!$F:$F,$B$7,objectifs!IC:IC)) -> 0.1 | V123: =IF(ISERROR(J123/P123),0,J123/P123) -> 237% | W123: =IF(ISERROR(M123/S123),0,M123/S123) -> 237% | X123: =IF(ISERROR(N123-(T123/12*MONTH($C$9))),"nc",N123-(T123/12*MONTH($C$9))) -> 0.3
B124: Autres | E124: =SUMIF('Indicateurs mensuels'!$F:$F,$B$7,'Indicateurs mensuels'!HU:HU) +SUMIF('Indicateurs mensuels'!$F:$F,$B$7,'Indicateurs mensuels'!HV:HV) +SUMIF('Indicateurs mensuels'!$F:$F,$B$7,'Indicateurs mensuels'!HW:HW) +SUMIF('Indicateurs mensuels'!$F:$F,$B$7,'Indicateurs mensuels'!HX:HX) -> 1,341 | F124: =H124/E124/G124 -> 0.60% | G124: =L124 -> 9.00 | H124: =SUMIF('Indicateurs mensuels'!$F:$F,$B$7,'Indicateurs mensuels'!HY:HY) -> 72 | J124: =SUMIF('Indicateurs Cumulés'!$F:$F,$B$7,'Indicateurs Cumulés'!JM:JM)+SUMIF('Indicateurs Cumulés'!$F:$F,$B$7,'Indicateurs Cumulés'!JO:JO) +SUMIF('Indicateurs Cumulés'!$F:$F,$B$7,'Indicateurs Cumulés'!JS:JS)+SUMIF('Indicateurs Cumulés'!$F:$F,$B$7,'Indicateurs Cumulés'!KV:KV) -> 6,223 | K124: =M124/J124/L124 -> 0.55% | L124: ='Indicateurs Cumulés'!$JU$3 -> 9.00 | M124: =SUMIF('Indicateurs Cumulés'!$F:$F,$B$7,'Indicateurs Cumulés'!JU:JU)+SUMIF('Indicateurs Cumulés'!$F:$F,$B$7,'Indicateurs Cumulés'!JV:JV) +SUMIF('Indicateurs Cumulés'!$F:$F,$B$7,'Indicateurs Cumulés'!JZ:JZ)+SUMIF('Indicateurs Cumulés'!$F:$F,$B$7,'Indicateurs Cumulés'!KW:KW) -> 311 | N124: =IF(ISERROR(M124/SUMIF('Indicateurs Cumulés'!$F:$F,$B$7,'Indicateurs Cumulés'!HT:HT)),"nc",M124/SUMIF('Indicateurs Cumulés'!$F:$F,$B$7,'Indicateurs Cumulés'!HT:HT)) -> 0.2 | P124: =SUMIF(objectifs!$F:$F,$B$7,objectifs!GP:GP) -> -6,000 | Q124: =objectifs!$CM$373 -> 0.70% | R124: =objectifs!$CN$373 -> 5.37 | S124: =P124*Q124*R124 -> -226 | T124: =IF(ISERROR(S124/SUMIF(objectifs!$F:$F,$B$7,objectifs!IC:IC)),"nc",S124/SUMIF(objectifs!$F:$F,$B$7,objectifs!IC:IC)) -> -0.1 | V124: =IF(ISERROR(J124/P124),0,J124/P124) -> -104% | W124: =IF(ISERROR(M124/S124),0,M124/S124) -> -138% | X124: =IF(ISERROR(N124-(T124/12*MONTH($C$9))),"nc",N124-(T124/12*MONTH($C$9))) -> 0.4
B126: CREDIT à la CONSOMMATION PRO - Eng. Nets (yc accessoires) | E126: =E127 -> 3,431 | F126: =IF(ISERROR(H126/(E126*G126)),0,H126/(E126*G126)) -> 4.19% | G126: =G127 -> 2.52 | H126: =H127+H128+H129 -> 362 | J126: =J127 -> 36,706 | K126: =IF(ISERROR(M126/(J126*L126)),0,M126/(J126*L126)) -> 3.45% | L126: =L127 -> 2.75 | M126: =M127+M128+M129 -> 3,479 | N126: =IF(ISERROR(M126/SUMIF('Indicateurs Cumulés'!$F:$F,$B$7,'Indicateurs Cumulés'!HT:HT)),"nc",M126/SUMIF('Indicateurs Cumulés'!$F:$F,$B$7,'Indicateurs Cumulés'!HT:HT)) -> 2.6 | P126: =P127 -> 45,000 | Q126: =IF(ISERROR(S126/(P126*R126)),0,S126/(P126*R126)) -> 4.32% | R126: =R127 -> 2.50 | S126: =S127+S128+S129 -> 4,860 | T126: =IF(ISERROR(S126/SUMIF(objectifs!$F:$F,$B$7,objectifs!IC:IC)),"nc",S126/SUMIF(objectifs!$F:$F,$B$7,objectifs!IC:IC)) -> 3.2 | V126: =IF(ISERROR(J126/P126),0,J126/P126) -> 82% | W126: =IF(ISERROR(M126/S126),0,M126/S126) -> 72% | X126: =IF(ISERROR(N126-(T126/12*MONTH($C$9))),"nc",N126-(T126/12*MONTH($C$9))) -> -0.1
B127: Crédit à la Consommation (marge hors accessoires) | E127: =SUMIF('Indicateurs mensuels'!$F:$F,$B$7,'Indicateurs mensuels'!U:U) -> 3,431 | F127: =IF(E127=0,0,SUMPRODUCT(('Indicateurs mensuels'!$F$4:$F$374=$B$7)*(('Indicateurs mensuels'!$U$4:$U$374)*('Indicateurs mensuels'!$V$4:$V$374)/E127))) -> 3.15% | G127: =IF(E127=0,0,SUMPRODUCT(('Indicateurs mensuels'!$F$4:$F$374=$B$7)*(('Indicateurs mensuels'!$U$4:$U$374)*('Indicateurs mensuels'!$W$4:$W$374)/E127))) -> 2.52 | H127: =E127*F127*G127 -> 272 | J127: =SUMIF('Indicateurs Cumulés'!$F:$F,$B$7,'Indicateurs Cumulés'!U:U) -> 36,706 | K127: =IF(J127=0,0,SUMPRODUCT(('Indicateurs Cumulés'!$F$4:$F$374=$B$7)*(('Indicateurs Cumulés'!$U$4:$U$374)*('Indicateurs Cumulés'!$V$4:$V$374)/J127))) -> 2.64% | L127: =IF(J127=0,0,SUMPRODUCT(('Indicateurs Cumulés'!$F$4:$F$374=$B$7)*(('Indicateurs Cumulés'!$U$4:$U$374)*('Indicateurs Cumulés'!$W$4:$W$374)/J127))) -> 2.75 | M127: =J127*K127*L127 -> 2,665 | N127: =IF(ISERROR(M127/SUMIF('Indicateurs Cumulés'!$F:$F,$B$7,'Indicateurs Cumulés'!HT:HT)),"nc",M127/SUMIF('Indicateurs Cumulés'!$F:$F,$B$7,'Indicateurs Cumulés'!HT:HT)) -> 2.0 | P127: =SUMIF(objectifs!$F:$F,$B$7,objectifs!L:L)*objectifs!$L$375/objectifs!$L$373 -> 45,000 | Q127: =objectifs!$M$373 -> 3.05% | R127: =objectifs!$N$373 -> 2.50 | S127: =P127*Q127*R127 -> 3,431 | T127: =IF(ISERROR(S127/SUMIF(objectifs!$F:$F,$B$7,objectifs!IC:IC)),"nc",S127/SUMIF(objectifs!$F:$F,$B$7,objectifs!IC:IC)) -> 2.3 | V127: =IF(ISERROR(J127/P127),0,J127/P127) -> 82% | W127: =IF(ISERROR(M127/S127),0,M127/S127) -> 78% | X127: =IF(ISERROR(N127-(T127/12*MONTH($C$9))),"nc",N127-(T127/12*MONTH($C$9))) -> 0.1
B128: Frais de dossier | H128: =M128-SUMIF('Indicateurs Cumulés M-1'!$F:$F,$B$7,'Indicateurs Cumulés M-1'!CV:CV) -> 16 | M128: =SUMIF('Indicateurs Cumulés'!$F:$F,$B$7,'Indicateurs Cumulés'!CV:CV) -> 122 | N128: =IF(ISERROR(M128/SUMIF('Indicateurs Cumulés'!$F:$F,$B$7,'Indicateurs Cumulés'!HT:HT)),"nc",M128/SUMIF('Indicateurs Cumulés'!$F:$F,$B$7,'Indicateurs Cumulés'!HT:HT)) -> 0.1 | S128: =SUMIF(objectifs!$F:$F,$B$7,objectifs!BO:BO)*objectifs!$L$375/objectifs!$L$373 -> 270 | T128: =IF(ISERROR(S128/SUMIF(objectifs!$F:$F,$B$7,objectifs!IC:IC)),"nc",S128/SUMIF(objectifs!$F:$F,$B$7,objectifs!IC:IC)) -> 0.2 | W128: =IF(ISERROR(M128/S128),0,M128/S128) -> 45% | X128: =IF(ISERROR(N128-(T128/12*MONTH($C$9))),"nc",N128-(T128/12*MONTH($C$9))) -> -0.1
B129: Commissions ADE | E129: =IF(E127=0,0,SUMPRODUCT(('Indicateurs mensuels'!$F$4:$F$374=$B$7)*(('Indicateurs mensuels'!$U$4:$U$374)*('Indicateurs mensuels'!$CQ$4:$CQ$374)/E127))) -> 142.3% | F129: =IF(E127=0,0,SUMPRODUCT(('Indicateurs mensuels'!$F$4:$F$374=$B$7)*(('Indicateurs mensuels'!$U$4:$U$374)*('Indicateurs mensuels'!$CP$4:$CP$374)/E127))) -> 95.5% | H129: =M129-SUMIF('Indicateurs Cumulés M-1'!$F:$F,$B$7,'Indicateurs Cumulés M-1'!CO:CO) -> 74 | J129: =IF(J127=0,0,SUMPRODUCT(('Indicateurs Cumulés'!$F$4:$F$374=$B$7)*(('Indicateurs Cumulés'!$U$4:$U$374)*('Indicateurs Cumulés'!$CN$4:$CN$374)/J126))) -> 144.1% | K129: =IF(J127=0,0,SUMPRODUCT(('Indicateurs Cumulés'!$F$4:$F$374=$B$7)*(('Indicateurs Cumulés'!$U$4:$U$374)*('Indicateurs Cumulés'!$CM$4:$CM$374)/J127))) -> 81.2% | M129: =SUMIF('Indicateurs Cumulés'!$F:$F,$B$7,'Indicateurs Cumulés'!CO:CO) -> 692 | N129: =IF(ISERROR(M129/SUMIF('Indicateurs Cumulés'!$F:$F,$B$7,'Indicateurs Cumulés'!HT:HT)),"nc",M129/SUMIF('Indicateurs Cumulés'!$F:$F,$B$7,'Indicateurs Cumulés'!HT:HT)) -> 0.5 | P129: =P45 -> 135% | Q129: =Q45 -> 95% | S129: =SUMIF(objectifs!$F:$F,$B$7,objectifs!BY:BY)*objectifs!$L$375/objectifs!$L$373 -> 1,159 | T129: =IF(ISERROR(S129/SUMIF(objectifs!$F:$F,$B$7,objectifs!IC:IC)),"nc",S129/SUMIF(objectifs!$F:$F,$B$7,objectifs!IC:IC)) -> 0.8 | W129: =IF(ISERROR(M129/S129),0,M129/S129) -> 60% | X129: =IF(ISERROR(N129-(T129/12*MONTH($C$9))),"nc",N129-(T129/12*MONTH($C$9))) -> -0.1
B131: CREDIT IMMOBILIER PRO - Eng. Nets (yc accessoires) | E131: =E132 -> 8,893 | F131: =IF(ISERROR(H131/(E131*G131)),0,H131/(E131*G131)) -> 0.88% | G131: =G132 -> 7.34 | H131: =H132+H133+H134+H135 -> 575 | J131: =J132 -> 113,372 | K131: =IF(ISERROR(M131/(J131*L131)),0,M131/(J131*L131)) -> 0.50% | L131: =L132 -> 7.11 | M131: =M132+M133+M134+M135 -> 4,060 | N131: =IF(ISERROR(M131/SUMIF('Indicateurs Cumulés'!$F:$F,$B$7,'Indicateurs Cumulés'!HT:HT)),"nc",M131/SUMIF('Indicateurs Cumulés'!$F:$F,$B$7,'Indicateurs Cumulés'!HT:HT)) -> 3.0 | P131: =P132 -> 120,000 | Q131: =IF(ISERROR(S131/(P131*R131)),0,S131/(P131*R131)) -> 0.49% | R131: =R132 -> 7.50 | S131: =S132+S133+S134+S135 -> 4,375 | T131: =IF(ISERROR(S131/SUMIF(objectifs!$F:$F,$B$7,objectifs!IC:IC)),"nc",S131/SUMIF(objectifs!$F:$F,$B$7,objectifs!IC:IC)) -> 2.9 | V131: =IF(ISERROR(J131/P131),0,J131/P131) -> 94% | W131: =IF(ISERROR(M131/S131),0,M131/S131) -> 93% | X131: =IF(ISERROR(N131-(T131/12*MONTH($C$9))),"nc",N131-(T131/12*MONTH($C$9))) -> 0.6
B132: Crédit Immobilier (marge hors accessoires) | E132: =SUMIF('Indicateurs mensuels'!$F:$F,$B$7,'Indicateurs mensuels'!X:X) -> 8,893 | F132: =IF(E132=0,0,SUMPRODUCT(('Indicateurs mensuels'!$F$4:$F$374=$B$7)*(('Indicateurs mensuels'!$X$4:$X$374)*('Indicateurs mensuels'!$Y$4:$Y$374)/E132))) -> 0.54% | G132: =IF(E132=0,0,SUMPRODUCT(('Indicateurs mensuels'!$F$4:$F$374=$B$7)*(('Indicateurs mensuels'!$X$4:$X$374)*('Indicateurs mensuels'!$Z$4:$Z$374)/E132))) -> 7.34 | H132: =E132*F132*G132 -> 356 | J132: =SUMIF('Indicateurs Cumulés'!$F:$F,$B$7,'Indicateurs Cumulés'!X:X) -> 113,372 | K132: =IF(J132=0,0,SUMPRODUCT(('Indicateurs Cumulés'!$F$4:$F$374=$B$7)*(('Indicateurs Cumulés'!$X$4:$X$374)*('Indicateurs Cumulés'!$Y$4:$Y$374)/J132))) -> 0.18% | L132: =IF(J132=0,0,SUMPRODUCT(('Indicateurs Cumulés'!$F$4:$F$374=$B$7)*(('Indicateurs Cumulés'!$X$4:$X$374)*('Indicateurs Cumulés'!$Z$4:$Z$374)/J132))) -> 7.11 | M132: =J132*K132*L132 -> 1,421 | N132: =IF(ISERROR(M132/SUMIF('Indicateurs Cumulés'!$F:$F,$B$7,'Indicateurs Cumulés'!HT:HT)),"nc",M132/SUMIF('Indicateurs Cumulés'!$F:$F,$B$7,'Indicateurs Cumulés'!HT:HT)) -> 1.1 | P132: =SUMIF(objectifs!$F:$F,$B$7,objectifs!O:O)*objectifs!$O$375/objectifs!$O$373 -> 120,000 | Q132: =objectifs!$Q$373 -> 0.20% | R132: =objectifs!$R$373 -> 7.50 | S132: =P132*Q132*R132 -> 1,800 | T132: =IF(ISERROR(S132/SUMIF(objectifs!$F:$F,$B$7,objectifs!IC:IC)),"nc",S132/SUMIF(objectifs!$F:$F,$B$7,objectifs!IC:IC)) -> 1.2 | V132: =IF(ISERROR(J132/P132),0,J132/P132) -> 94% | W132: =IF(ISERROR(M132/S132),0,M132/S132) -> 79% | X132: =IF(ISERROR(N132-(T132/12*MONTH($C$9))),"nc",N132-(T132/12*MONTH($C$9))) -> 0.1
B133: Frais de dossier | H133: =M133-SUMIF('Indicateurs Cumulés M-1'!$F:$F,$B$7,'Indicateurs Cumulés M-1'!CX:CX) -> 26 | M133: =SUMIF('Indicateurs Cumulés'!$F:$F,$B$7,'Indicateurs Cumulés'!CX:CX) -> 306 | N133: =IF(ISERROR(M133/SUMIF('Indicateurs Cumulés'!$F:$F,$B$7,'Indicateurs Cumulés'!HT:HT)),"nc",M133/SUMIF('Indicateurs Cumulés'!$F:$F,$B$7,'Indicateurs Cumulés'!HT:HT)) -> 0.2 | S133: =SUMIF(objectifs!$F:$F,$B$7,objectifs!BP:BP)*objectifs!$O$375/objectifs!$O$373 -> 360 | T133: =IF(ISERROR(S133/SUMIF(objectifs!$F:$F,$B$7,objectifs!IC:IC)),"nc",S133/SUMIF(objectifs!$F:$F,$B$7,objectifs!IC:IC)) -> 0.2 | W133: =IF(ISERROR(M133/S133),0,M133/S133) -> 85% | X133: =IF(ISERROR(N133-(T133/12*MONTH($C$9))),"nc",N133-(T133/12*MONTH($C$9))) -> 0.0
B134: Commissions ADE (coefficient multiplicateur de 1,3 X) | E134: =IF(E132=0,0,SUMPRODUCT(('Indicateurs mensuels'!$F$4:$F$374=$B$7)*(('Indicateurs mensuels'!$X$4:$X$374)*('Indicateurs mensuels'!$CK$4:$CK$374)/E132))) -> 150.1% | F134: =IF(E132=0,0,SUMPRODUCT(('Indicateurs mensuels'!$F$4:$F$374=$B$7)*(('Indicateurs mensuels'!$X$4:$X$374)*('Indicateurs mensuels'!$CJ$4:$CJ$374)/E132))) -> 56.6% | H134: =M134-SUMIF('Indicateurs Cumulés M-1'!$F:$F,$B$7,'Indicateurs Cumulés M-1'!CR:CR) -> 180 | J134: =IF(J132=0,0,SUMPRODUCT(('Indicateurs Cumulés'!$F$4:$F$374=$B$7)*(('Indicateurs Cumulés'!$X$4:$X$374)*('Indicateurs Cumulés'!$CQ$4:$CQ$374)/J132))) -> 139.1% | K134: =IF(J132=0,0,SUMPRODUCT(('Indicateurs Cumulés'!$F$4:$F$374=$B$7)*(('Indicateurs Cumulés'!$X$4:$X$374)*('Indicateurs Cumulés'!$CP$4:$CP$374)/J132))) -> 61.2% | M134: =SUMIF('Indicateurs Cumulés'!$F:$F,$B$7,'Indicateurs Cumulés'!CR:CR) -> 2,163 | N134: =IF(ISERROR(M134/SUMIF('Indicateurs Cumulés'!$F:$F,$B$7,'Indicateurs Cumulés'!HT:HT)),"nc",M134/SUMIF('Indicateurs Cumulés'!$F:$F,$B$7,'Indicateurs Cumulés'!HT:HT)) -> 1.6 | P134: =P49 -> 145% | Q134: =Q49 -> 70% | S134: =SUMIF(objectifs!$F:$F,$B$7,objectifs!BX:BX)*objectifs!$O$375/objectifs!$O$373 -> 1,956 | T134: =IF(ISERROR(S134/SUMIF(objectifs!$F:$F,$B$7,objectifs!IC:IC)),"nc",S134/SUMIF(objectifs!$F:$F,$B$7,objectifs!IC:IC)) -> 1.3 | W134: =IF(ISERROR(M134/S134),0,M134/S134) -> 111% | X134: =IF(ISERROR(N134-(T134/12*MONTH($C$9))),"nc",N134-(T134/12*MONTH($C$9))) -> 0.5
B135: Commissions SACCEF | H135: =M135-SUMIF('Indicateurs Cumulés M-1'!$F:$F,$B$7,'Indicateurs Cumulés M-1'!CT:CT) -> 13 | M135: =SUMIF('Indicateurs Cumulés'!$F:$F,$B$7,'Indicateurs Cumulés'!CT:CT) -> 170 | N135: =IF(ISERROR(M135/SUMIF('Indicateurs Cumulés'!$F:$F,$B$7,'Indicateurs Cumulés'!HT:HT)),"nc",M135/SUMIF('Indicateurs Cumulés'!$F:$F,$B$7,'Indicateurs Cumulés'!HT:HT)) -> 0.1 | S135: =SUMIF(objectifs!$F:$F,$B$7,objectifs!CA:CA)*objectifs!$O$375/objectifs!$O$373 -> 258 | T135: =IF(ISERROR(S135/SUMIF(objectifs!$F:$F,$B$7,objectifs!IC:IC)),"nc",S135/SUMIF(objectifs!$F:$F,$B$7,objectifs!IC:IC)) -> 0.2 | W135: =IF(ISERROR(M135/S135),0,M135/S135) -> 66% | X135: =IF(ISERROR(N135-(T135/12*MONTH($C$9))),"nc",N135-(T135/12*MONTH($C$9))) -> -0.0
B137: CREDIT MLT PRO - Eng. Nets (yc accessoires) | E137: =E138+E139 -> 20,666 | F137: =IF(ISERROR(H137/(E137*G137)),0,H137/(E137*G137)) -> 1.49% | G137: =IF(E137=0,0,SUMPRODUCT(G138:G139,E138:E139)/(E138+E139)) -> 4.53 | H137: =H138+H139+H140+H141 -> 1,393 | J137: =J138+J139 -> 226,197 | K137: =IF(ISERROR(M137/(J137*L137)),0,M137/(J137*L137)) -> 0.88% | L137: =IF(J137=0,0,SUMPRODUCT(L138:L139,J138:J139)/(J138+J139)) -> 4.46 | M137: =M138+M139+M140+M141 -> 8,859 | N137: =IF(ISERROR(M137/SUMIF('Indicateurs Cumulés'!$F:$F,$B$7,'Indicateurs Cumulés'!HT:HT)),"nc",M137/SUMIF('Indicateurs Cumulés'!$F:$F,$B$7,'Indicateurs Cumulés'!HT:HT)) -> 6.6 | P137: =P138+P139 -> 250,000 | Q137: =IF(ISERROR(S137/(P137*R137)),0,S137/(P137*R137)) -> 0.70% | R137: =IF(P137=0,0,SUMPRODUCT(R138:R139,P138:P139)/(P138+P139)) -> 4.39 | S137: =S138+S139+S140+S141 -> 7,646 | T137: =IF(ISERROR(S137/SUMIF(objectifs!$F:$F,$B$7,objectifs!IC:IC)),"nc",S137/SUMIF(objectifs!$F:$F,$B$7,objectifs!IC:IC)) -> 5.0 | V137: =IF(ISERROR(J137/P137),0,J137/P137) -> 90% | W137: =IF(ISERROR(M137/S137),0,M137/S137) -> 116% | X137: =IF(ISERROR(N137-(T137/12*MONTH($C$9))),"nc",N137-(T137/12*MONTH($C$9))) -> 2.4
B138: Crédit MLT (marge hors accessoires) | E138: =SUMIF('Indicateurs mensuels'!$F:$F,$B$7,'Indicateurs mensuels'!AA:AA) -> 19,201 | F138: =IF(E138=0,0,SUMPRODUCT(('Indicateurs mensuels'!$F$4:$F$374=$B$7)*(('Indicateurs mensuels'!$AA$4:$AA$374)*('Indicateurs mensuels'!$AB$4:$AB$374)/E138))) -> 1.30% | G138: =IF(E138=0,0,SUMPRODUCT(('Indicateurs mensuels'!$F$4:$F$374=$B$7)*(('Indicateurs mensuels'!$AA$4:$AA$374)*('Indicateurs mensuels'!$AC$4:$AC$374)/E138))) -> 4.70 | H138: =E138*F138*G138 -> 1,174 | J138: =SUMIF('Indicateurs Cumulés'!$F:$F,$B$7,'Indicateurs Cumulés'!AA:AA) -> 213,697 | K138: =IF(J138=0,0,SUMPRODUCT(('Indicateurs Cumulés'!$F$4:$F$374=$B$7)*(('Indicateurs Cumulés'!$AA$4:$AA$374)*('Indicateurs Cumulés'!$AB$4:$AB$374)/J138))) -> 0.70% | L138: =IF(J138=0,0,SUMPRODUCT(('Indicateurs Cumulés'!$F$4:$F$374=$B$7)*(('Indicateurs Cumulés'!$AA$4:$AA$374)*('Indicateurs Cumulés'!$AC$4:$AC$374)/J138))) -> 4.58 | M138: =J138*K138*L138 -> 6,842 | N138: =IF(ISERROR(M138/SUMIF('Indicateurs Cumulés'!$F:$F,$B$7,'Indicateurs Cumulés'!HT:HT)),"nc",M138/SUMIF('Indicateurs Cumulés'!$F:$F,$B$7,'Indicateurs Cumulés'!HT:HT)) -> 5.1 | P138: =SUMIF(objectifs!$F:$F,$B$7,objectifs!Y:Y) -> 238,000 | Q138: =objectifs!$Z$373 -> 0.40% | R138: =objectifs!$AA$373 -> 4.50 | S138: =P138*Q138*R138 -> 4,284 | T138: =IF(ISERROR(S138/SUMIF(objectifs!$F:$F,$B$7,objectifs!IC:IC)),"nc",S138/SUMIF(objectifs!$F:$F,$B$7,objectifs!IC:IC)) -> 2.8 | V138: =IF(ISERROR(J138/P138),0,J138/P138) -> 90% | W138: =IF(ISERROR(M138/S138),0,M138/S138) -> 160% | X138: =IF(ISERROR(N138-(T138/12*MONTH($C$9))),"nc",N138-(T138/12*MONTH($C$9))) -> 2.8
B139: Crédit Bail Mobilier | E139: =SUMIF('Indicateurs mensuels'!$F:$F,$B$7,'Indicateurs mensuels'!GH:GH) -> 1,465 | F139: =IF(E139=0,0,SUMPRODUCT(('Indicateurs mensuels'!$F$4:$F$374=$B$7)*(('Indicateurs mensuels'!$GH$4:$GH$374)*('Indicateurs mensuels'!$GI$4:$GI$374)/E139))) -> 0.98% | G139: =IF(E139=0,0,SUMPRODUCT(('Indicateurs mensuels'!$F$4:$F$374=$B$7)*(('Indicateurs mensuels'!$GH$4:$GH$374)*('Indicateurs mensuels'!$GJ$4:$GJ$374)/E139))) -> 2.28 | H139: =E139*F139*G139 -> 33 | J139: =SUMIF('Indicateurs Cumulés'!$F:$F,$B$7,'Indicateurs Cumulés'!GP:GP) -> 12,500 | K139: =IF(J139=0,0,SUMPRODUCT(('Indicateurs Cumulés'!$F$4:$F$374=$B$7)*(('Indicateurs Cumulés'!$GP$4:$GP$374)*('Indicateurs Cumulés'!$GQ$4:$GQ$374)/J139))) -> 0.93% | L139: =IF(J139=0,0,SUMPRODUCT(('Indicateurs Cumulés'!$F$4:$F$374=$B$7)*(('Indicateurs Cumulés'!$GP$4:$GP$374)*('Indicateurs Cumulés'!$GR$4:$GR$374)/J139))) -> 2.29 | M139: =J139*K139*L139 -> 265 | N139: =IF(ISERROR(M139/SUMIF('Indicateurs Cumulés'!$F:$F,$B$7,'Indicateurs Cumulés'!HT:HT)),"nc",M139/SUMIF('Indicateurs Cumulés'!$F:$F,$B$7,'Indicateurs Cumulés'!HT:HT)) -> 0.2 | P139: =SUMIF(objectifs!$F:$F,$B$7,objectifs!S:S) -> 12,000 | Q139: =objectifs!$T$373 -> 0.40% | R139: =objectifs!$U$373 -> 2.30 | S139: =P139*Q139*R139 -> 110 | T139: =IF(ISERROR(S139/SUMIF(objectifs!$F:$F,$B$7,objectifs!IC:IC)),"nc",S139/SUMIF(objectifs!$F:$F,$B$7,objectifs!IC:IC)) -> 0.1 | V139: =IF(ISERROR(J139/P139),0,J139/P139) -> 104% | W139: =IF(ISERROR(M139/S139),0,M139/S139) -> 240% | X139: =IF(ISERROR(N139-(T139/12*MONTH($C$9))),"nc",N139-(T139/12*MONTH($C$9))) -> 0.1
B140: Frais de dossier (yc CBM) | H140: =SUMIF('Indicateurs mensuels'!$F:$F,$B$7,'Indicateurs mensuels'!CS:CS)+SUMIF('Indicateurs mensuels'!$F:$F,$B$7,'Indicateurs mensuels'!CX:CX) -> 74 | M140: =SUMIF('Indicateurs Cumulés'!$F:$F,$B$7,'Indicateurs Cumulés'!CS:CS)+SUMIF('Indicateurs Cumulés'!$F:$F,$B$7,'Indicateurs Cumulés'!CU:CU) -> 668 | N140: =IF(ISERROR(M140/SUMIF('Indicateurs Cumulés'!$F:$F,$B$7,'Indicateurs Cumulés'!HT:HT)),"nc",M140/SUMIF('Indicateurs Cumulés'!$F:$F,$B$7,'Indicateurs Cumulés'!HT:HT)) -> 0.5 | S140: =SUMIF(objectifs!$F:$F,$B$7,objectifs!BS:BS) -> 750 | T140: =IF(ISERROR(S140/SUMIF(objectifs!$F:$F,$B$7,objectifs!IC:IC)),"nc",S140/SUMIF(objectifs!$F:$F,$B$7,objectifs!IC:IC)) -> 0.5 | W140: =IF(ISERROR(M140/S140),0,M140/S140) -> 89% | X140: =IF(ISERROR(N140-(T140/12*MONTH($C$9))),"nc",N140-(T140/12*MONTH($C$9))) -> 0.1
B141: Commissions ADE | E141: =IF(E138=0,0,SUMPRODUCT(('Indicateurs mensuels'!$F$4:$F$374=$B$7)*(('Indicateurs mensuels'!$AA$4:$AA$374)*('Indicateurs mensuels'!$HP$4:$HP$374)/E138))) -> 115.0% | F141: =IF(E138=0,0,SUMPRODUCT(('Indicateurs mensuels'!$F$4:$F$374=$B$7)*(('Indicateurs mensuels'!$AA$4:$AA$374)*('Indicateurs mensuels'!$HO$4:$HO$374)/E138))) -> 54.3% | H141: =SUMIF('Indicateurs mensuels'!$F:$F,$B$7,'Indicateurs mensuels'!HQ:HQ) -> 113 | J141: =IF(J138=0,0,SUMPRODUCT(('Indicateurs Cumulés'!$F$4:$F$374=$B$7)*(('Indicateurs Cumulés'!$AA$4:$AA$374)*('Indicateurs Cumulés'!$DH$4:$DH$374)/J138))) -> 111.2% | K141: =IF(J138=0,0,SUMPRODUCT(('Indicateurs Cumulés'!$F$4:$F$374=$B$7)*(('Indicateurs Cumulés'!$AA$4:$AA$374)*('Indicateurs Cumulés'!$DG$4:$DG$374)/J138))) -> 61.4% | M141: =SUMIF('Indicateurs Cumulés'!$F:$F,$B$7,'Indicateurs Cumulés'!DI:DI) -> 1,085 | N141: =IF(ISERROR(M141/SUMIF('Indicateurs Cumulés'!$F:$F,$B$7,'Indicateurs Cumulés'!HT:HT)),"nc",M141/SUMIF('Indicateurs Cumulés'!$F:$F,$B$7,'Indicateurs Cumulés'!HT:HT)) -> 0.8 | P141: =P59 -> 110% | Q141: =Q59 -> 70% | S141: =SUMIF(objectifs!$F:$F,$B$7,objectifs!CB:CB) -> 2,501 | T141: =IF(ISERROR(S141/SUMIF(objectifs!$F:$F,$B$7,objectifs!IC:IC)),"nc",S141/SUMIF(objectifs!$F:$F,$B$7,objectifs!IC:IC)) -> 1.6 | W141: =IF(ISERROR(M141/S141),0,M141/S141) -> 43% | X141: =IF(ISERROR(N141-(T141/12*MONTH($C$9))),"nc",N141-(T141/12*MONTH($C$9))) -> -0.6
B143: BANCA PRO - Ventes nettes | E143: =SUM(E144:E150) -> 182 | H143: =SUM(H144:H150) -> 151 | J143: =SUM(J144:J150) -> 2,647 | M143: =SUM(M144:M150) -> 3,924 | N143: =IF(ISERROR(M143/SUMIF('Indicateurs Cumulés'!$F:$F,$B$7,'Indicateurs Cumulés'!HT:HT)),"nc",M143/SUMIF('Indicateurs Cumulés'!$F:$F,$B$7,'Indicateurs Cumulés'!HT:HT)) -> 2.9 | P143: =SUM(P144:P150) -> 4,570 | S143: =SUM(S144:S150) -> 4,913 | T143: =IF(ISERROR(S143/SUMIF(objectifs!$F:$F,$B$7,objectifs!IC:IC)),"nc",S143/SUMIF(objectifs!$F:$F,$B$7,objectifs!IC:IC)) -> 3.2 | V143: =IF(ISERROR(J143/P143),0,J143/P143) -> 58% | W143: =IF(ISERROR(M143/S143),0,M143/S143) -> 80% | X143: =IF(ISERROR(N143-(T143/12*MONTH($C$9))),"nc",N143-(T143/12*MONTH($C$9))) -> 0.2
B144: Forfaits PRO - Tarification | E144: =J144-SUMIF('Indicateurs Cumulés M-1'!$F:$F,$B$7,'Indicateurs Cumulés M-1'!KC:KC)-SUMIF('Indicateurs Cumulés M-1'!$F:$F,$B$7,'Indicateurs Cumulés M-1'!KE:KE) -> 98 | F144: =K144 -> 272 € | G144: =L144 -> 5.00 | H144: =E144*F144*G144/1000 -> 133 | J144: =SUMIF('Indicateurs Cumulés'!$F:$F,$B$7,'Indicateurs Cumulés'!KC:KC)+SUMIF('Indicateurs Cumulés'!$F:$F,$B$7,'Indicateurs Cumulés'!KE:KE) -> 1,125 | K144: =IF(ISERROR(M144/(J144*L144)*1000),0,M144/(J144*L144)*1000) -> 272 € | L144: =objectifs!$HF$3 -> 5.00 | M144: =SUMIF('Indicateurs Cumulés'!$F:$F,$B$7,'Indicateurs Cumulés'!KI:KI)+SUMIF('Indicateurs Cumulés'!$F:$F,$B$7,'Indicateurs Cumulés'!KK:KK) -> 1,532 | N144: =IF(ISERROR(M144/SUMIF('Indicateurs Cumulés'!$F:$F,$B$7,'Indicateurs Cumulés'!HT:HT)),"nc",M144/SUMIF('Indicateurs Cumulés'!$F:$F,$B$7,'Indicateurs Cumulés'!HT:HT)) -> 1.1 | P144: =SUMIF(objectifs!$F:$F,$B$7,objectifs!GZ:GZ)+SUMIF(objectifs!$F:$F,$B$7,objectifs!HB:HB) -> 1,500 | Q144: =IF(ISERROR(S144/(P144*R144)*1000),0,S144/(P144*R144)*1000) -> 204 € | R144: =objectifs!$HF$3 -> 5.00 | S144: =SUMIF(objectifs!$F:$F,$B$7,objectifs!HF:HF)+SUMIF(objectifs!$F:$F,$B$7,objectifs!HH:HH) -> 1,529 | T144: =IF(ISERROR(S144/SUMIF(objectifs!$F:$F,$B$7,objectifs!IC:IC)),"nc",S144/SUMIF(objectifs!$F:$F,$B$7,objectifs!IC:IC)) -> 1.0 | V144: 75% | W144: 100% | X144: 0.3
B145: Cartes PRO - Tarification | E145: =J145-SUMIF('Indicateurs Cumulés M-1'!$F:$F,$B$7,'Indicateurs Cumulés M-1'!KD:KD) -SUMIF('Indicateurs Cumulés M-1'!$F:$F,$B$7,'Indicateurs Cumulés M-1'!KF:KF) -SUMIF('Indicateurs Cumulés M-1'!$F:$F,$B$7,'Indicateurs Cumulés M-1'!KG:KG) -> 35 | F145: 100 € | G145: 5.00 | H145: 17 | J145: =SUMIF('Indicateurs Cumulés'!$F:$F,$B$7,'Indicateurs Cumulés'!KD:KD)+SUMIF('Indicateurs Cumulés'!$F:$F,$B$7,'Indicateurs Cumulés'!KF:KF)+SUMIF('Indicateurs Cumulés'!$F:$F,$B$7,'Indicateurs Cumulés'!KG:KG) -> 762 | K145: 100 € | L145: =objectifs!$HG$3 -> 5.00 | M145: =SUMIF('Indicateurs Cumulés'!$F:$F,$B$7,'Indicateurs Cumulés'!KJ:KJ)+SUMIF('Indicateurs Cumulés'!$F:$F,$B$7,'Indicateurs Cumulés'!KL:KL)+SUMIF('Indicateurs Cumulés'!$F:$F,$B$7,'Indicateurs Cumulés'!KM:KM) -> 380 | N145: =IF(ISERROR(M145/SUMIF('Indicateurs Cumulés'!$F:$F,$B$7,'Indicateurs Cumulés'!HT:HT)),"nc",M145/SUMIF('Indicateurs Cumulés'!$F:$F,$B$7,'Indicateurs Cumulés'!HT:HT)) -> 0.3 | P145: =SUMIF(objectifs!$F:$F,$B$7,objectifs!HA:HA)+SUMIF(objectifs!$F:$F,$B$7,objectifs!HC:HC)+SUMIF(objectifs!$F:$F,$B$7,objectifs!HD:HD) -> 1,000 | Q145: 150 € | R145: =objectifs!$HG$3 -> 5.00 | S145: =SUMIF(objectifs!$F:$F,$B$7,objectifs!HG:HG)+SUMIF(objectifs!$F:$F,$B$7,objectifs!HI:HI)+SUMIF(objectifs!$F:$F,$B$7,objectifs!HJ:HJ) -> 748 | T145: =IF(ISERROR(S145/SUMIF(objectifs!$F:$F,$B$7,objectifs!IC:IC)),"nc",S145/SUMIF(objectifs!$F:$F,$B$7,objectifs!IC:IC)) -> 0.5 | V145: 76% | W145: 51% | X145: -0.1
B146: AUTO PRO (ventes brutes) - Commissions | E146: =J146-SUMIF('Indicateurs Cumulés M-1'!$F:$F,$B$7,'Indicateurs Cumulés M-1'!CA:CA) -> 4 | F146: 100 € | G146: 2.75 | H146: 1 | J146: =SUMIF('Indicateurs Cumulés'!$F:$F,$B$7,'Indicateurs Cumulés'!CA:CA) -> 122 | K146: 100 € | L146: =objectifs!$HZ$3 -> 2.75 | M146: =SUMIF('Indicateurs Cumulés'!$F:$F,$B$7,'Indicateurs Cumulés'!CB:CB) -> 34 | N146: =IF(ISERROR(M146/SUMIF('Indicateurs Cumulés'!$F:$F,$B$7,'Indicateurs Cumulés'!HT:HT)),"nc",M146/SUMIF('Indicateurs Cumulés'!$F:$F,$B$7,'Indicateurs Cumulés'!HT:HT)) -> 0.0 | P146: =SUMIF(objectifs!$F:$F,$B$7,objectifs!HW:HW) -> 340 | Q146: 100 € | R146: =objectifs!$HZ$3 -> 2.75 | S146: =SUMIF(objectifs!$F:$F,$B$7,objectifs!HZ:HZ) -> 94 | T146: =IF(ISERROR(S146/SUMIF(objectifs!$F:$F,$B$7,objectifs!IC:IC)),"nc",S146/SUMIF(objectifs!$F:$F,$B$7,objectifs!IC:IC)) -> 0.1 | V146: 36% | W146: 36% | X146: -0.0
B147: Multirisque PRO (ventes brutes) - Commissions | E147: =J147-SUMIF('Indicateurs Cumulés M-1'!$F:$F,$B$7,'Indicateurs Cumulés M-1'!CC:CC) -> 15 | F147: 30 € | G147: 3.96 | H147: 2 | J147: =SUMIF('Indicateurs Cumulés'!$F:$F,$B$7,'Indicateurs Cumulés'!CC:CC) -> 140 | K147: 30 € | L147: =objectifs!$IA$3 -> 3.96 | M147: =SUMIF('Indicateurs Cumulés'!$F:$F,$B$7,'Indicateurs Cumulés'!CD:CD) -> 17 | N147: =IF(ISERROR(M147/SUMIF('Indicateurs Cumulés'!$F:$F,$B$7,'Indicateurs Cumulés'!HT:HT)),"nc",M147/SUMIF('Indicateurs Cumulés'!$F:$F,$B$7,'Indicateurs Cumulés'!HT:HT)) -> 0.0 | P147: =SUMIF(objectifs!$F:$F,$B$7,objectifs!HX:HX) -> 510 | Q147: 30 € | R147: =objectifs!$IA$3 -> 3.96 | S147: =SUMIF(objectifs!$F:$F,$B$7,objectifs!IA:IA) -> 61 | T147: =IF(ISERROR(S147/SUMIF(objectifs!$F:$F,$B$7,objectifs!IC:IC)),"nc",S147/SUMIF(objectifs!$F:$F,$B$7,objectifs!IC:IC)) -> 0.0 | V147: 27% | W147: 27% | X147: -0.0
B148: PAP - Commissions | E148: =J148-SUMIF('Indicateurs Cumulés M-1'!$F:$F,$B$7,'Indicateurs Cumulés M-1'!KH:KH) -> 19 | F148: 18 € | G148: 5.00 | H148: 2 | J148: =SUMIF('Indicateurs Cumulés'!$F:$F,$B$7,'Indicateurs Cumulés'!KH:KH) -> 330 | K148: 18 € | L148: =objectifs!$HK$3 -> 5.00 | M148: =SUMIF('Indicateurs Cumulés'!$F:$F,$B$7,'Indicateurs Cumulés'!KN:KN) -> 29 | N148: =IF(ISERROR(M148/SUMIF('Indicateurs Cumulés'!$F:$F,$B$7,'Indicateurs Cumulés'!HT:HT)),"nc",M148/SUMIF('Indicateurs Cumulés'!$F:$F,$B$7,'Indicateurs Cumulés'!HT:HT)) -> 0.0 | P148: =SUMIF(objectifs!$F:$F,$B$7,objectifs!HE:HE) -> 480 | Q148: 18 € | R148: =objectifs!$HK$3 -> 5.00 | S148: =SUMIF(objectifs!$F:$F,$B$7,objectifs!HK:HK) -> 42 | T148: =IF(ISERROR(S148/SUMIF(objectifs!$F:$F,$B$7,objectifs!IC:IC)),"nc",S148/SUMIF(objectifs!$F:$F,$B$7,objectifs!IC:IC)) -> 0.0 | V148: 69% | W148: 69% | X148: -0.0
B149: Contrats monétiques actifs - Commissions | E149: =J149-SUMIF('Indicateurs Cumulés M-1'!$F:$F,$B$7,'Indicateurs Cumulés M-1'!CE:CE) -> 11 | F149: 100 € | G149: 5.00 | H149: 6 | J149: =SUMIF('Indicateurs Cumulés'!$F:$F,$B$7,'Indicateurs Cumulés'!CE:CE) -> 168 | K149: 100 € | L149: =objectifs!$IB$3 -> 5.00 | M149: =SUMIF('Indicateurs Cumulés'!$F:$F,$B$7,'Indicateurs Cumulés'!CF:CF) -> 84 | N149: =IF(ISERROR(M149/SUMIF('Indicateurs Cumulés'!$F:$F,$B$7,'Indicateurs Cumulés'!HT:HT)),"nc",M149/SUMIF('Indicateurs Cumulés'!$F:$F,$B$7,'Indicateurs Cumulés'!HT:HT)) -> 0.1 | P149: =SUMIF(objectifs!$F:$F,$B$7,objectifs!HY:HY) -> 740 | Q149: 100 € | R149: =objectifs!$IB$3 -> 5.00 | S149: =SUMIF(objectifs!$F:$F,$B$7,objectifs!IB:IB) -> 370 | T149: =IF(ISERROR(S149/SUMIF(objectifs!$F:$F,$B$7,objectifs!IC:IC)),"nc",S149/SUMIF(objectifs!$F:$F,$B$7,objectifs!IC:IC)) -> 0.2 | V149: 23% | W149: 23% | X149: -0.1
B150: Commisions de mouvement | H150: =VLOOKUP($B$7,'Indicateurs Cumulés'!$F$3:$MZ$391,297,FALSE)-VLOOKUP($B$7,'Indicateurs Cumulés M-1'!$F$3:$MZ$391,297,FALSE) -> -10 | M150: =SUMIF('Indicateurs Cumulés'!$F:$F,$B$7,'Indicateurs Cumulés'!KP:KP) -> 1,849 | N150: =IF(ISERROR(M150/SUMIF('Indicateurs Cumulés'!$F:$F,$B$7,'Indicateurs Cumulés'!HT:HT)),"nc",M150/SUMIF('Indicateurs Cumulés'!$F:$F,$B$7,'Indicateurs Cumulés'!HT:HT)) -> 1.4 | S150: =SUMIF(objectifs!$F:$F,$B$7,objectifs!HM:HM) -> 2,069 | T150: =IF(ISERROR(S150/SUMIF(objectifs!$F:$F,$B$7,objectifs!IC:IC)),"nc",S150/SUMIF(objectifs!$F:$F,$B$7,objectifs!IC:IC)) -> 1.4 | V150: 0% | W150: 89% | X150: 0.2
B152: BANCA PRO Relation privée - Ventes nettes | E152: =SUM(E153:E155) -> -24 | H152: =SUM(H153:H155) -> -50 | J152: =SUM(J153:J155) -> 123 | M152: =SUM(M153:M155) -> -264 | N152: =IF(ISERROR(M152/SUMIF('Indicateurs Cumulés'!$F:$F,$B$7,'Indicateurs Cumulés'!HT:HT)),"nc",M152/SUMIF('Indicateurs Cumulés'!$F:$F,$B$7,'Indicateurs Cumulés'!HT:HT)) -> -0.2 | P152: =SUM(P153:P155) -> 3,035 | Q152: =IF(ISERROR(S152/(P152*R152)*1000),0,S152/(P152*R152)*1000) -> 117 € | R152: =IF(ISERROR(SUMPRODUCT(R153:R155,P153:P155)/SUMPRODUCT(P153:P155)),0,SUMPRODUCT(R153:R155,P153:P155)/SUMPRODUCT(P153:P155)) -> 5.00 | S152: =SUM(S153:S155) -> 1,771 | T152: =IF(ISERROR(S152/SUMIF(objectifs!$F:$F,$B$7,objectifs!IC:IC)),"nc",S152/SUMIF(objectifs!$F:$F,$B$7,objectifs!IC:IC)) -> 1.2 | V152: =IF(ISERROR(J152/P152),0,J152/P152) -> 4% | W152: =IF(ISERROR(M152/S152),0,M152/S152) -> -15% | X152: =IF(ISERROR(N152-(T152/12*MONTH($C$9))),"nc",N152-(T152/12*MONTH($C$9))) -> -1.2
B153: Forfaits - Tarification | E153: =J153-SUMIF('Indicateurs Cumulés M-1'!$F:$F,$B$7,'Indicateurs Cumulés M-1'!LG:LG) -> 47 | F153: =K153 -> 137 € | G153: =L153 -> 5.00 | H153: =E153*F153*G153/1000 -> 32 | J153: =SUMIF('Indicateurs Cumulés'!$F:$F,$B$7,'Indicateurs Cumulés'!LG:LG) -> 42 | K153: =objectifs!$GD$3 -> 137 € | L153: =objectifs!$GE$3 -> 5.00 | M153: =SUMIF('Indicateurs Cumulés'!$F:$F,$B$7,'Indicateurs Cumulés'!LH:LH) -> 29 | N153: =IF(ISERROR(M153/SUMIF('Indicateurs Cumulés'!$F:$F,$B$7,'Indicateurs Cumulés'!HT:HT)),"nc",M153/SUMIF('Indicateurs Cumulés'!$F:$F,$B$7,'Indicateurs Cumulés'!HT:HT)) -> 0.0 | P153: =SUMIF(objectifs!$F:$F,$B$7,objectifs!GD:GD)*5% -> 1,120 | Q153: =objectifs!$GD$3 -> 137 € | R153: =objectifs!$GE$3 -> 5.00 | S153: =P153*Q153*R153/1000 -> 769 | T153: =IF(ISERROR(S153/SUMIF(objectifs!$F:$F,$B$7,objectifs!IC:IC)),"nc",S153/SUMIF(objectifs!$F:$F,$B$7,objectifs!IC:IC)) -> 0.5 | V153: =IF(ISERROR(J153/P153),0,J153/P153) -> 4% | W153: =IF(ISERROR(M153/S153),0,M153/S153) -> 4% | X153: =IF(ISERROR(N153-(T153/12*MONTH($C$9))),"nc",N153-(T153/12*MONTH($C$9))) -> -0.4
B154: Cartes - Tarification | E154: =J154-SUMIF('Indicateurs Cumulés M-1'!$F:$F,$B$7,'Indicateurs Cumulés M-1'!LI:LI) -> -56 | F154: 289 € | G154: 5.00 | H154: =E154*F154*G154/1000 -> -81 | J154: =SUMIF('Indicateurs Cumulés'!$F:$F,$B$7,'Indicateurs Cumulés'!LI:LI) -> -224 | K154: =objectifs!$GF$3 -> 289 € | L154: =objectifs!$GG$3 -> 5.00 | M154: =SUMIF('Indicateurs Cumulés'!$F:$F,$B$7,'Indicateurs Cumulés'!LJ:LJ) -> -324 | N154: =IF(ISERROR(M154/SUMIF('Indicateurs Cumulés'!$F:$F,$B$7,'Indicateurs Cumulés'!HT:HT)),"nc",M154/SUMIF('Indicateurs Cumulés'!$F:$F,$B$7,'Indicateurs Cumulés'!HT:HT)) -> -0.2 | P154: =SUMIF(objectifs!$F:$F,$B$7,objectifs!GF:GF)*5% -> 600 | Q154: =objectifs!$GF$3 -> 289 € | R154: =objectifs!$GG$3 -> 5.00 | S154: =P154*Q154*R154/1000 -> 868 | T154: =IF(ISERROR(S154/SUMIF(objectifs!$F:$F,$B$7,objectifs!IC:IC)),"nc",S154/SUMIF(objectifs!$F:$F,$B$7,objectifs!IC:IC)) -> 0.6 | V154: =IF(ISERROR(J154/P154),0,J154/P154) -> -37% | W154: =IF(ISERROR(M154/S154),0,M154/S154) -> -37% | X154: =IF(ISERROR(N154-(T154/12*MONTH($C$9))),"nc",N154-(T154/12*MONTH($C$9))) -> -0.7
B155: IARD & Prévoyance - Commissions | E155: =J155-SUMIF('Indicateurs Cumulés M-1'!$F:$F,$B$7,'Indicateurs Cumulés M-1'!LK:LK) -> -15 | F155: 20 € | G155: 5.00 | H155: =E155*F155*G155/1000 -> -2 | J155: =SUMIF('Indicateurs Cumulés'!$F:$F,$B$7,'Indicateurs Cumulés'!LK:LK) -> 305 | K155: =objectifs!$GH$3 -> 20 € | L155: =objectifs!$GI$3 -> 5.00 | M155: =SUMIF('Indicateurs Cumulés'!$F:$F,$B$7,'Indicateurs Cumulés'!LL:LL) -> 31 | N155: =IF(ISERROR(M155/SUMIF('Indicateurs Cumulés'!$F:$F,$B$7,'Indicateurs Cumulés'!HT:HT)),"nc",M155/SUMIF('Indicateurs Cumulés'!$F:$F,$B$7,'Indicateurs Cumulés'!HT:HT)) -> 0.0 | P155: =SUMIF(objectifs!$F:$F,$B$7,objectifs!GH:GH)*5% -> 1,315 | Q155: =objectifs!$GH$3 -> 20 € | R155: =objectifs!$GI$3 -> 5.00 | S155: =P155*Q155*R155/1000 -> 135 | T155: =IF(ISERROR(S155/SUMIF(objectifs!$F:$F,$B$7,objectifs!IC:IC)),"nc",S155/SUMIF(objectifs!$F:$F,$B$7,objectifs!IC:IC)) -> 0.1 | V155: =IF(ISERROR(J155/P155),0,J155/P155) -> 23% | W155: =IF(ISERROR(M155/S155),0,M155/S155) -> 23% | X155: =IF(ISERROR(N155-(T155/12*MONTH($C$9))),"nc",N155-(T155/12*MONTH($C$9))) -> -0.1
B157: AUTRES | H157: =M157 -> 0 | M157: =VLOOKUP($B$7,'Indicateurs Cumulés'!$F$3:$MZ$391,73,FALSE) -> 0 | N157: =IF(ISERROR(M157/SUMIF('Indicateurs Cumulés'!$F:$F,$B$7,'Indicateurs Cumulés'!HT:HT)),"nc",M157/SUMIF('Indicateurs Cumulés'!$F:$F,$B$7,'Indicateurs Cumulés'!HT:HT)) -> 0.0 | S157: =VLOOKUP($B$7,objectifs!$F$3:$AAB$391,172,FALSE)*objectifs!$FU$375/objectifs!$FU$373 -> -700 | T157: =IF(ISERROR(S157/SUMIF(objectifs!$F:$F,$B$7,objectifs!IC:IC)),"nc",S157/SUMIF(objectifs!$F:$F,$B$7,objectifs!IC:IC)) -> -0.5 | W157: =IF(ISERROR(M157/S157),0,M157/S157) -> 0% | X157: =IF(ISERROR(N157-(T157/12*MONTH($C$9))),"nc",N157-(T157/12*MONTH($C$9))) -> 0.4
B159: ZOOM PNB PRO* sur Activité Nouvelle | H159: =H152+H120+H126+H131+H137+H143+H157 -> 2,580 | M159: =M152+M120+M126+M131+M137+M143+M157 -> 22,017 | N159: =IF(ISERROR(M159/SUMIF('Indicateurs Cumulés'!$F:$F,$B$7,'Indicateurs Cumulés'!HT:HT)),"nc",M159/SUMIF('Indicateurs Cumulés'!$F:$F,$B$7,'Indicateurs Cumulés'!HT:HT)) -> 16.4 | S159: =S152+S120+S126+S131+S137+S143+S157 -> 24,465 | T159: =IF(ISERROR(S159/SUMIF(objectifs!$F:$F,$B$7,objectifs!IC:IC)),"nc",S159/SUMIF(objectifs!$F:$F,$B$7,objectifs!IC:IC)) -> 16.1 | W159: =IF(ISERROR(M159/S159),0,M159/S159) -> 90.0% | X159: =IF(ISERROR(N159-(T159/12*MONTH($C$9))),"nc",N159-(T159/12*MONTH($C$9))) -> 3.0
B160: * y compris relation privée du pro

Sheet Lexique
B4: INDICATEURS
A5: Structure
B6: •Mise en place d’une synthèse BDD et d’un zoom Pro (yc relation privée du pro)
B7: •Application des taux réels sur la majorité des lignes de produits Collecte | C7: Les marges de certains produits sont adaptées au niveau local (marges figées) pour être en phase avec la politique commerciale de la CEGEE.
B8: •Ajout de l’indicateur PNB/ETP sur chaque ligne
B9: •Intégration d’un suivi bancarisation « relation privée » du Pro dans la synthèse BDD
A11: ETP
B12: •Le PNB par ETP sur objectifs est déterminé à partir des ETP cible. | C12: Déterminé lors de la fixation des objectifs, il ne change pas
B13: •Le PNB par ETP sur réalisations est calculé à partir de la moyenne des ETP performance. | C13: Mis a jour mensuellement en moyennant les ETP depuis le début d'année
A15: Collecte
B16: •Taux de marge figé à 0,20% sur les produits LEP, LDD, LJ, DAT, Emprunt Ecureuil
B17: •Taux du LGP | C17: Les taux boostés bénéficient d'un mode de calcul adapté a la politique commerciale de la CEGEE
B18: •Ajout des versements FCP structurés (objectif : 75 M€ de versements et 2,1 M€ de PNB)
B19: •Mise en place d'un cap / floor a 150% de l'objectif sur les comptes créditeurs en cas de forte variation
A21: Crédits
B22: •Commissions ADE | C22: Ajout d'un coefficient multiplicateur de 1,3 X sur le montant généré
B23: •Ajout d’un bonus de 1000€ pour chaque client devenu Bpe / JBPe via un crédit immobilier
B24: •Intégration des commissions apporteurs d’affaires venant en déduction du PNB crédit
A26: Bancarisation
B27: •Ajout d’un Booster Cartes à débit différé (40€ par carte à débit différé sur 5 ans) | C27: Sur chaque vente nette de carte à débit différé yc cartes PRO
B28: •Ajout d’un Bonus Mobilité bancaire | C28: 200€ pour chaque client sur la base de la mobilité réglementaire brute
B29: •Ajout d’un Booster sur IARD Auto et MRH (40€ par vente sur 5 ans) | C29: Bonus s'appliquant sur chaque vente nette Auto ou MRH
B30: •Mise en place d’un suivi sur options sur Bouquet Liberté (comptabilisé a partir de la 3e option) | C30: 15€ supplémentaires comptabilisés à compter de la 3e option sur un BL. Pas de pénalité pour les BL ayant moins de 2 options
A32: Autres
B33: •Mise a jour du taux sur commissions immobilières à 4%
B34: •Mise a jour du taux sur remises commerciales à 4%
A36: Bonus digital
B37: •Mise en place d'un floor à 0 sur le PNB lorsque les réalisations sont négatives | C37: Floor mis en place sur les données agrégées pour les secteurs et Dirco

Sheet Liste agences mai 2019
A1: CEGEE | B1: AUBE_HAUTE_MARNE | C1: BAS_RHIN | D1: HAUT_RHIN | E1: MARNE_ARDENNES | F1: MEURTHE_ET_MOSELLE_MEUSE | G1: MOSELLE | H1: VOSGES | I1: AGENCE_PERSONNEL | J1: MESANGE | K1: MBL | L1: BANQUE_DIRIGEANT
A2: AUBE_HAUTE_MARNE | B2: Territoire_TROYES | C2: Territoire_CHAUMONT
A3: BAS_RHIN | B3: Territoire_STRASBOURG | C3: Territoire_HAGUENAU | D3: Territoire_SELESTAT
A4: HAUT_RHIN | B4: Territoire_COLMAR | C4: Territoire_MULHOUSE
A5: MARNE_ARDENNES | B5: Territoire_CHARLEVILLE_MEZIERES | C5: Territoire_CHALONS_EN_CHAMPAGNE | D5: Territoire_REIMS
A6: MEURTHE_ET_MOSELLE_MEUSE | B6: Territoire_PONT_A_MOUSSON | C6: Territoire_NANCY | D6: Territoire_VERDUN
A7: MOSELLE | B7: Territoire_MOSELLE_EST | C7: Territoire_METZ | D7: Territoire_MOSELLE_NORD
A8: VOSGES | B8: Territoire_EPINAL | C8: Territoire_SAINT_DIE
A9: Territoire_TROYES | B9: AIX EN OTHE | C9: ARCIS SUR AUBE | D9: BAR SUR AUBE | E9: BAR SUR SEINE | F9: BRIENNE LE CHATEAU | G9: LA CHAPELLE ST LUC | H9: NOGENT SUR SEINE | I9: ROMILLY SUR SEINE | J9: SAINT ANDRE LES VERGERS | K9: SAINT JULIEN LES VILLAS | L9: SAINTE SAVINE | M9: TROYES 1ER MAI | N9: TROYES BROSSOLETTE | O9: TROYES CHARTREUX | P9: TROYES GAMBETTA | Q9: TROYES ZOLA
A10: Territoire_CHAUMONT | B10: BOURBONNE LES BAINS | C10: CHALINDREY | D10: CHATEAUVILLAIN | E10: CHAUMONT HOTEL DE VILLE | F10: CHAUMONT REPUBLIQUE | G10: JOINVILLE | H10: LANGRES | I10: NOGENT EN BASSIGNY | J10: SAINT DIZIER CENTRE | K10: SAINT DIZIER EUROPE | L10: WASSY
A11: Territoire_STRASBOURG | B11: BISCHHEIM | C11: ECKBOLSHEIM | D11: ESPACE MESANGE | E11: LA WANTZENAU | F11: MUNDOLSHEIM | G11: OBERHAUSBERGEN | H11: REICHSTETT | I11: SCHILTIGHEIM CENTRE | J11: SCHILTIGHEIM KLEBER | K11: STRASBOURG ANVERS | L11: STRASBOURG AUSTERLITZ | M11: STRASBOURG CRONENBOURG | N11: STRASBOURG DANUBE | O11: STRASBOURG ESPLANADE | P11: STRASBOURG FRANCS BOURGEOIS | Q11: STRASBOURG GARE | R11: STRASBOURG HALLES | S11: STRASBOURG KOENIGSHOFFEN | T11: STRASBOURG MEINAU | U11: STRASBOURG MONTAGNE VERTE | V11: STRASBOURG NEUDORF | W11: STRASBOURG ROBERTSAU | X11: STRASBOURG STOCKFELD | Y11: STRASBOURG VOSGES | Z11: VENDENHEIM
A12: Territoire_HAGUENAU | B12: BETSCHDORF | C12: BISCHWILLER | D12: BOUXWILLER | E12: BRUMATH | F12: DIEMERINGEN | G12: DRUSENHEIM | H12: GUNDERSHOFFEN | I12: HAGUENAU HOUBLON | J12: HAGUENAU MUSAU | K12: HERRLISHEIM | L12: HOCHFELDEN | M12: HOERDT | N12: INGWILLER | O12: LAUTERBOURG | P12: MARMOUTIER | Q12: NIEDERBRONN LES BAINS | R12: PFAFFENHOFFEN | S12: REICHSHOFFEN | T12: SARRE UNION | U12: SAVERNE | V12: SCHWEIGHOUSE SUR MODER | W12: SELTZ | X12: SOUFFLENHEIM | Y12: SOULTZ SOUS FORETS | Z12: TRUCHTERSHEIM | AA12: WEITBRUCH | AB12: WINGEN SUR MODER | AC12: WISSEMBOURG | AD12: WOERTH
A13: Territoire_SELESTAT | B13: BARR | C13: BENFELD | D13: CHATENOIS | E13: ERSTEIN | F13: FEGERSHEIM | G13: ILLKIRCH CENTRE | H13: ILLKIRCH NORD | I13: LINGOLSHEIM | J13: MARCKOLSHEIM | K13: MARLENHEIM | L13: MOLSHEIM | M13: MUTZIG | N13: OBERNAI | O13: OSTWALD | P13: ROSHEIM | Q13: SCHIRMECK | R13: SELESTAT CENTRE | S13: SELESTAT OUEST | T13: VILLE | U13: WASSELONNE
A14: Territoire_COLMAR | B14: COLMAR MARAICHERS | C14: COLMAR REPUBLIQUE | D14: COLMAR SAINT JOSEPH | E14: COLMAR SAINTE MARIE | F14: COLMAR VAUBAN | G14: ENSISHEIM | H14: GUEBWILLER | I14: HORBOURG WIHR | J14: INGERSHEIM | K14: KAYSERSBERG | L14: LAPOUTROIE | M14: LIEPVRE | N14: MUNSTER | O14: MUNTZENHEIM | P14: NEUF BRISACH | Q14: ORBEY | R14: PULVERSHEIM | S14: RIBEAUVILLE | T14: ROUFFACH | U14: SAINTE MARIE AUX MINES | V14: SOULTZ | W14: SOULTZMATT | X14: WINTZENHEIM
A15: Territoire_MULHOUSE | B15: ALTKIRCH | C15: BRUNSTATT | D15: CERNAY | E15: DANNEMARIE | F15: FERRETTE | G15: HUNINGUE | H15: ILLZACH | I15: MASEVAUX | J15: MULHOUSE DORNACH | K15: MULHOUSE REUNION | L15: MULHOUSE ROOSEVELT | M15: PFASTATT | N15: RIEDISHEIM | O15: RIXHEIM | P15: SAINT AMARIN | Q15: SAINT LOUIS | R15: SEPPOIS LE BAS | S15: SIERENTZ | T15: THANN | U15: WITTELSHEIM | V15: WITTENHEIM
A16: Territoire_CHARLEVILLE_MEZIERES | B16: CARIGNAN | C16: CHARLEVILLE JEAN JAURES | D16: CHARLEVILLE MEZIERES | E16: CHARLEVILLE MOHON | F16: CHARLEVILLE NEVERS | G16: GIVET | H16: MOUZON | I16: RETHEL | J16: REVIN | K16: ROCROI | L16: SEDAN | M16: VILLERS SEMEUSE CORA | N16: VOUZIERS | O16: VRIGNE AUX BOIS
A17: Territoire_CHALONS_EN_CHAMPAGNE | B17: CHALONS ROOSEVELT | C17: CHALONS VIVIERS | D17: FAGNIERES LECLERC | E17: MONTMIRAIL | F17: MOURMELON SUIPPES | G17: SAINTE MENEHOULD | H17: SARRY | I17: SEZANNE | J17: VERTUS | K17: VITRY LE FRANCOIS
A18: Territoire_REIMS | B18: AY CHAMPAGNE | C18: BETHENY | D18: DAMERY | E18: DORMANS | F18: EPERNAY | G18: FISMES | H18: PIERRY LECLERC | I18: REIMS CENTRE VILLE | J18: REIMS CHATILLONS | K18: REIMS EUROPE | L18: REIMS HIPPODROME | M18: REIMS HOTEL DE VILLE | N18: REIMS JEAN JAURES | O18: REIMS SAINT MARCEAUX | P18: REIMS SAINT REMI | Q18: REIMS SAINT THOMAS | R18: REIMS SAINTE ANNE | S18: TINQUEUX | T18: VERZY
A19: Territoire_PONT_A_MOUSSON | B19: BRIEY | C19: CHALIGNY NEUVES MAISONS | D19: CHAMPIGNEULLES | E19: DIEULOUARD | F19: FROUARD | G19: JARNY | H19: JOEUF | I19: LAXOU ARISTIDE BRIAND | J19: LAXOU LA SAPINIERE | K19: LUDRES | L19: NANCY PLATEAU DE HAYE | M19: NANCY TROIS MAISONS | N19: PAGNY SUR MOSELLE | O19: PIENNES | P19: POMPEY | Q19: PONT A MOUSSON BREUIL | R19: PONT A MOUSSON CENTRALE | S19: TOUL REPUBLIQUE | T19: VEZELISE | U19: VILLERS GENERAL LECLERC
A20: Territoire_NANCY | B20: BACCARAT | C20: BAYON | D20: BLAINVILLE | E20: BLAMONT | F20: DOMBASLE SUR MEURTHE | G20: ESSEY LES NANCY | H20: JARVILLE LA MALGRANGE | I20: LUNEVILLE CARNOT | J20: LUNEVILLE CHATEAU | K20: NANCY ARTEM | L20: NANCY JEAN JAURES | M20: NANCY PLACE DOMBASLE | N20: NANCY POINT CENTRAL | O20: NANCY SAINT SEBASTIEN | P20: SAINT MAX | Q20: SAINT NICOLAS DE PORT | R20: TOMBLAINE | S20: VANDOEUVRE LES NANCY
A21: Territoire_VERDUN | B21: BAR LE DUC | C21: COMMERCY | D21: ETAIN | E21: LIGNY EN BARROIS | F21: LONGUYON | G21: LONGWY BAS | H21: LONGWY HAUT | I21: MONTMEDY | J21: REVIGNY SUR ORNAIN | K21: SAINT MIHIEL | L21: STENAY | M21: VAUCOULEURS | N21: VERDUN CENTRALE | O21: VERDUN MAZEL | P21: VILLERUPT
A22: Territoire_MOSELLE_EST | B22: BEHREN LES FORBACH | C22: BITCHE | D22: CHATEAU SALINS | E22: CREUTZWALD | F22: DIEUZE | G22: FAULQUEMONT | H22: FORBACH CENTRALE | I22: GROSBLIEDERSTROFF | J22: HOMBOURG HAUT | K22: MERLEBACH | L22: MORHANGE | M22: NEUNKIRCH | N22: PHALSBOURG | O22: PUTTELANGE AUX LACS | P22: SAINT AVOLD | Q22: SARREBOURG | R22: SARREGUEMINES | S22: STIRING WENDEL | T22: VALMONT
A23: Territoire_METZ | B23: ARS SUR MOSELLE | C23: BOULAY | D23: CLOUANGE | E23: MAIZIERES LES METZ | F23: MARANGE SILVANGE | G23: MARLY | H23: METZ CATHEDRALE | I23: METZ MOZART | J23: METZ PLAPPEVILLE | K23: METZ POMPIDOU | L23: METZ REPUBLIQUE | M23: METZ SAINT LIVIER | N23: METZ SAINT LOUIS | O23: METZ SAINT MAXIMIN | P23: METZ SARRE | Q23: MONTIGNY LES METZ | R23: MOULINS LES METZ | S23: REMILLY | T23: ROMBAS | U23: SAINT JULIEN LES METZ | V23: SAINTE MARIE AUX CHENES | W23: WOIPPY
A24: Territoire_MOSELLE_NORD | B24: AUDUN LE TICHE | C24: BOUSSE | D24: BOUZONVILLE | E24: CATTENOM | F24: FAMECK | G24: FLORANGE | H24: FONTOY | I24: GUENANGE | J24: HAGONDANGE | K24: HAYANGE | L24: HETTANGE GRANDE | M24: METZERVISSE | N24: NILVANGE | O24: SIERCK LES BAINS | P24: TERVILLE | Q24: THIONVILLE CENTRALE | R24: THIONVILLE COTE DES ROSES | S24: THIONVILLE LA MILLIAIRE | T24: UCKANGE | U24: YUTZ
A25: Territoire_EPINAL | B25: CHANTRAINE | C25: CHARMES | D25: CHATENOIS VOSGES | E25: DARNEY | F25: DOCELLES | G25: ELOYES | H25: EPINAL ARISTIDE BRIAND | I25: EPINAL AVRINSART | J25: EPINAL LEOPOLD BOURG | K25: GOLBEY | L25: LE VAL D AJOL | M25: MIRECOURT | N25: NEUFCHATEAU | O25: NOMEXY | P25: REMIREMONT | Q25: THAON LES VOSGES | R25: VITTEL | S25: XERTIGNY
A26: Territoire_SAINT_DIE | B26: BRUYERES | C26: CORNIMONT LA BRESSE | D26: FRAIZE | E26: GERARDMER | F26: GRANGES AUMONTZEY | G26: LE THILLOT | H26: MOYENMOUTIER | I26: RAMBERVILLERS | J26: RAON L ETAPE | K26: SAINT DIE | L26: SAINT DIE CATHEDRALE | M26: SENONES | N26: VAGNEY

Sheet Indicateurs Cumulés
C1: 1 | F1: 2 | G1: 3 | H1: 4 | I1: 5 | J1: 6 | K1: 7 | L1: 8 | M1: 9 | N1: 10 | O1: 11 | P1: 12 | Q1: 13 | R1: 14 | S1: 15 | T1: 16 | U1: 17 | V1: 18 | W1: 19 | X1: 20 | Y1: 21 | Z1: 22 | AA1: 23 | AB1: 24 | AC1: 25 | AD1: 26 | AE1: 27 | AF1: 28 | AG1: 29 | AH1: 30 | AI1: 31 | AJ1: 32 | AK1: 33 | AL1: 34 | AM1: 35 | AN1: 36 | AO1: 37 | AP1: 38 | AQ1: 39 | AR1: 40 | AS1: 41 | AT1: 42 | AU1: 43 | AV1: 44 | AW1: 45 | AX1: 46 | AY1: 47 | AZ1: 48 | BA1: 49 | BB1: 50 | BC1: 51 | BD1: 52 | BE1: 53 | BF1: 54 | BG1: 55 | BH1: 56 | BI1: 57 | BJ1: 58 | BK1: 59 | BL1: 60 | BM1: 61 | BN1: 62 | BO1: 63 | BP1: 64 | BQ1: 65 | BR1: 66 | BS1: 67 | BT1: 68 | BU1: 69 | BV1: 70 | BW1: 71 | BX1: 72 | BY1: 73 | BZ1: 74 | CA1: 75 | CB1: 76 | CC1: 77 | CD1: 78 | CE1: 79 | CF1: 80 | CG1: 81 | CH1: 82 | CI1: 83 | CJ1: 84 | CK1: 85 | CL1: 86 | CM1: 87 | CN1: 88 | CO1: 89 | CP1: 90 | CQ1: 91 | CR1: 92 | CS1: 93 | CT1: 94 | CU1: 95 | CV1: 96 | CW1: 97 | CX1: 98 | CY1: 99 | CZ1: 100 | DA1: 101 | DB1: 102 | DC1: 103 | DD1: 104 | DE1: 105 | DF1: 106 | DG1: 107 | DH1: 108 | DI1: 109 | DJ1: 110 | DK1: 111 | DL1: 112 | DM1: 113 | DN1: 114 | DO1: 115 | DP1: 116 | DQ1: 117 | DR1: 118 | DS1: 119 | DT1: 120 | DU1: 121 | DV1: 122 | DW1: 123 | DX1: 124 | DY1: 125 | DZ1: 126 | EA1: 127 | EB1: 128 | EC1: 129 | ED1: 130 | EE1: 131 | EF1: 132 | EG1: 133 | EH1: 134 | EI1: 135 | EJ1: 136 | EK1: 137 | EL1: 138 | EM1: 139 | EN1: 140 | EO1: 141 | EP1: 142 | EQ1: 143 | ER1: 144 | ES1: 145 | ET1: 146 | EU1: 147 | EV1: 148 | EW1: 149 | EX1: 150 | EY1: 151 | EZ1: 152 | FA1: 153 | FB1: 154 | FC1: 155 | FD1: 156 | FE1: 157 | FF1: 158 | FG1: 159 | FH1: 160 | FI1: 161 | FJ1: 162 | FK1: 163 | FL1: 164 | FM1: 165 | FN1: 166 | FO1: 167 | FP1: 168 | FQ1: 169 | FR1: 170 | FS1: 171 | FT1: 172 | FU1: 173 | FV1: 174 | FW1: 175 | FX1: 176 | FY1: 177 | FZ1: 178 | GA1: 179 | GB1: 180 | GC1: 181 | GD1: 182 | GE1: 183 | GF1: 184 | GG1: 185 | GH1: 186 | GI1: 187 | GJ1: 188 | GK1: 189 | GL1: 190 | GM1: 191 | GN1: 192 | GO1: 193 | GP1: 194 | GQ1: 195 | GR1: 196 | GS1: 197 | GT1: 198 | GU1: 199 | GV1: 200 | GW1: 201 | GX1: 202 | GY1: 203 | GZ1: 204 | HA1: 205 | HB1: 206 | HC1: 207 | HD1: 208 | HE1: 209 | HF1: 210 | HG1: 211 | HH1: 212 | HI1: 213 | HJ1: 214 | HK1: 215 | HL1: 216 | HM1: 217 | HN1: 218 | HO1: 219 | HP1: 220 | HQ1: 221 | HR1: 222 | HS1: 223 | HT1: 224 | HU1: 225 | HV1: 226 | HW1: 227 | HX1: 228 | HY1: 229 | HZ1: 230 | IA1: 231 | IB1: 232 | IC1: 233 | ID1: 234 | IE1: 235 | IF1: 236 | IG1: 237 | IH1: 238 | II1: 239 | IJ1: 240 | IK1: 241 | IL1: 242 | IM1: 243 | IN1: 244 | IO1: 245 | IP1: 246 | IQ1: 247 | IR1: 248 | IS1: 249 | IT1: 250 | IU1: 251 | IV1: 252 | IW1: 253 | IX1: 254 | IY1: 255 | IZ1: 256 | JA1: 257 | JB1: 258 | JC1: 259 | JD1: 260 | JE1: 261 | JF1: 262 | JG1: 263 | JH1: 264 | JI1: 265 | JJ1: 266 | JK1: 267 | JL1: 268 | JM1: 269 | JN1: 270 | JO1: 271 | JP1: 272 | JQ1: 273 | JR1: 274 | JS1: 275 | JT1: 276 | JU1: 277 | JV1: 278 | JW1: 279 | JX1: 280 | JY1: 281 | JZ1: 282 | KA1: 283 | KB1: 284 | KC1: 285 | KD1: 286 | KE1: 287 | KF1: 288 | KG1: 289 | KH1: 290 | KI1: 291 | KJ1: 292 | KK1: 293 | KL1: 294 | KM1: 295 | KN1: 296 | KO1: 297 | KP1: 298 | KQ1: 299 | KR1: 300 | KS1: 301 | KT1: 302 | KU1: 303 | KV1: 304 | KW1: 305 | KX1: 306 | KY1: 307 | KZ1: 308 | LA1: 309 | LB1: 310 | LC1: 311 | LD1: 312 | LE1: 313 | LF1: 314 | LG1: 315 | LH1: 316 | LI1: 317 | LJ1: 318 | LK1: 319 | LL1: 320 | LM1: 321 | LN1: 322 | LO1: 323 | LP1: 324 | LQ1: 325 | LR1: 326 | LS1: 327 | LT1: 328 | LU1: 329 | LV1: 330 | LW1: 331 | LX1: 332 | LY1: 333 | LZ1: 334 | MA1: 335 | MB1: 336 | MC1: 337 | MD1: 338 | ME1: 339
A2: Id_UC | B2: Id_groupe | C2: Id_PV | D2: Lib_PV | E2: Id_Agence | F2: Lib_Agence | G2: DATE Financements Revolving | H2: Fin Revolving | I2: Tx marg Revolving | J2: DVMA Revolving | K2: DATE CRED | L2: volumes conso BDD | M2: Tx marg conso BDD | N2: DVMA Conso BDD | O2: Marge | P2: volumes immo BDD | Q2: Durée initiale Immo BDD | R2: Tx marg immo BDD | S2: DVMA Immo BDD | T2: DVMA IF Immo BDD | U2: volumes conso PRO | V2: Tx marg conso PRO | W2: DVMA Conso PRO | X2: volumes immo PRO | Y2: Tx marg immo PRO | Z2: DVMA Immo PRO | AA2: volumes Equip | AB2: Tx marg Equip | AC2: DVMA EQUIP | AD2: FDD Immo BDD | AE2: FDD conso BDD | AF2: FDD Equip PRO | AG2: ADE Immo BDD | AH2: ADE Conso BDD | AI2: CAUTION Immo BDD | AJ2: DATE ASSVIE | AK2: Flux IT | AL2: com IT | AM2: Tx com IT | AN2: Flux N3D | AO2: dont Flux N3D UC | AP2: % flux N3D en UC | AQ2: com N3D | AR2: Tx com N3D | AS2: Flux N+ et NP | AT2: dont Flux N+ et NP UC | AU2: %Flux N+ et NP en UC | AV2: com N+ et NP | AW2: Tx com N+ et NP | AX2: Flux Autres Ecu Vie | AY2: dont Flux Autres Ecu Vie UC | AZ2: % Flux Autres Ecu Vie UC | BA2: com Autres Ecu Vie | BB2: Tx com Autres Ecu Vie | BC2: Flux total ECUVIE | BD2: dont total ECUVIE en UC | BE2: % total ECUVIE en UC | BF2: com total ECUVIE | BG2: TX com total ECUVIE | BH2: DVMA | BI2: zoom PNB Crédit CONSO PRO | BJ2: zoom PNB Crédit IMMO PRO | BK2: PNB Crédit CONSO (yc revolving) | BL2: PNB Crédit IMMO | BM2: PNB Crédit MLT | BN2: TCA IMMO BDD | BO2: TCI IMMO BDD | BP2: Id Ecureuil Vie | BQ2: Arbitrage fonds € vers UC Volume | BR2: Arbitrage fonds € vers UC PNB | BS2: FCP structurés (versements) | BT2: FCP structurés PNB | BU2: Booster IARD Auto | BV2: Booster IARD MRH | BW2: Comm apporteurs d'affaires BDD | BX2: Remises commerciales dont Hors MAD | BY2: Remises commerciales dont MAD | BZ2: Remises commerciales dont PRO | CA2: Auto PRO Volume | CB2: Auto PRO PNB | CC2: MRH PRO Volume | CD2: MRH PRO PNB | CE2: Contrats monétiques actif PRO | CF2: Contrats monétiques actif PRO PNB | CG2: Contrats Mobilité bancaire | CH2: Bonus Mobilité bancaire | CI2: Carte Senséa | CJ2: PNB cartes Senséa | CK2: Bonus Bancarisation Crédit Immo | CL2: Bonus Bancarisation PNB Crédit Immo | CM2: taux de pénétration DES PRET CONSO PRO | CN2: QUOTITE ASSUREE CONSO PRO | CO2: PNB CNP CONSO PRO | CP2: QUOTITE ASSUREE IMMO PRO | CQ2: Tx pénétration IMMO PRO | CR2: PNB CNP IMMO PRO | CS2: FDD EQUIP MARCHE BDD | CT2: CAUTION IMMO PRO | CU2: FDD CB Marché PRO | CV2: FDD CONSO MARCHE PRO | CW2: FDD CONSO MARCHE BDD | CX2: FDD IMMO MARCHE PRO | CY2: FDD IMMO MARCHE BDD | CZ2: taux de pénétration DES PRET IMMO | DA2: QUOTITE ASSUREE IMMO | DB2: PNB CNP IMMO BDD | DC2: taux de pénétration DES PRET CONSO BDD | DD2: QUOTITE ASSUREE CONSO BDD | DE2: PNB CNP CONSO BDD | DF2: Taux de conso de l'enveloppe dérogatoire CNP IMMO | DG2: taux de pénétration DES PRET MLT agences | DH2: QUOTITE ASSUREE MLT agences | DI2: PNB CNP MLT agences | DJ2: Volumes LA BDD | DK2: Tx marg LA BDD | DL2: DVMA LA BDD | DM2: PNB LA BDD | DN2: Volumes LB BDD | DO2: Tx marg LB BDD | DP2: DVMA LB BDD | DQ2: PNB LB BDD | DR2: Volumes LGF BDD | DS2: Tx marg LGF BDD | DT2: DVMA LGF BDD | DU2: PNB LGF BDD | DV2: Volumes LGP BDD | DW2: Tx marg LGP BDD | DX2: DVMA LGP BDD | DY2: PNB LGP BDD | DZ2: Volumes LEP BDD | EA2: Tx marg LEP BDD | EB2: DVMA LEP BDD | EC2: PNB LEP BDD | ED2: Volumes LDD BDD | EE2: Tx marg LDD BDD | EF2: DVMA LDD BDD | EG2: PNB LDD BDD | EH2: Volumes LJ (yc 10-12) BDD | EI2: Tx marg LJ (yc 10-12) BDD | EJ2: DVMA LJ (yc 10-12) BDD | EK2: PNB LJ (yc 10-12) BDD | EL2: Volumes CEL BDD | EM2: Tx marg CEL BDD | EN2: DVMA CEL BDD | EO2: PNB CEL BDD | EP2: Volumes SLR BDD | EQ2: Tx marg SLR BDD | ER2: DVMA SLR BDD | ES2: PNB SLR BDD | ET2: Volumes DAT BDD | EU2: Tx marg DAT BDD | EV2: DVMA DAT BDD | EW2: PNB DAT BDD | EX2: Volumes PEL BDD | EY2: Tx marg PEL BDD | EZ2: DVMA PEL BDD | FA2: PNB PEL BDD | FB2: Volumes PEP BDD | FC2: Tx marg PEP BDD | FD2: DVMA PEP BDD | FE2: PNB PEP BDD | FF2: Volumes Ass Vie encours BDD | FG2: Tx marg Ass Vie encours BDD | FH2: DVMA Ass Vie encours BDD | FI2: PNB Ass Vie encours BDD | FJ2: Volumes Ass Vie flux BDD | FK2: Tx marg Ass Vie flux BDD | FL2: DVMA Ass Vie flux BDD | FM2: PNB Ass Vie flux BDD | FN2: Volumes OPCVM encours BDD | FO2: Tx marg OPCVM encours BDD | FP2: DVMA OPCVM encours BDD | FQ2: PNBOPCVM encours BDD | FR2: Volumes OPCVM flux BDD | FS2: Tx marg OPCVM flux BDD | FT2: DVMA OPCVM flux BDD | FU2: PNB OPCVM flux BDD | FV2: Volumes Emprunt BDD | FW2: Tx marg Emprunt BDD | FX2: DVMA Emprunt BDD | FY2: PNB Emprunt BDD | FZ2: Volumes PS BDD | GA2: Tx marg PS BDD | GB2: DVMA PS BDD | GC2: PNB PS BDD | GD2: Volumes Epargne Bilan BDD | GE2: PNB Epargne Bilan BDD | GF2: Volumes Epargne Financière BDD | GG2: PNB Epargne Financière BDD | GH2: Volumes CDD créditeurs BDD hors plafond | GI2: Tx marg CDD créditeurs BDD | GJ2: DVMA CDD créditeurs BDD | GK2: PNB CDD créditeurs BDD | GL2: Volumes CDD créditeurs PRO hors plafond | GM2: Options complémentaires BL > 2e | GN2: PNB option | GP2: Volumes Crédit Bail BDD | GQ2: Tx marg Crédit Bail BDD | GR2: DVMA Crédit Bail BDD | GS2: PNB Crédit Bail BDD | GT2: Volumes Ass Vie BP1818 encours | GU2: Tx marg Ass Vie BP1818 encours | GV2: DVMA Ass Vie BP1818 encours | GW2: PNB Ass Vie BP1818 encours | GX2: Volumes Ass Vie BP1818 flux | GY2: Tx marg Ass Vie BP1818 flux | GZ2: DVMA Ass Vie BP1818 flux | HA2: PNB Ass Vie BP1818 flux | HB2: Volumes OPCVM BP1818 encours | HC2: Tx marg OPCVM BP1818 encours | HD2: DVMA OPCVM BP1818 encours | HE2: PNB OPCVM BP1818 encours | HF2: Volumes OPCVM BP1818 flux | HG2: Tx marg OPCVM BP1818 flux | HH2: DVMA OPCVM BP1818 flux | HI2: PNB OPCVM BP1818 flux | HJ2: Volumes Autres Val MOB | HK2: Tx marg Autres Val MOB | HL2: DVMA Autres Val MOB | HM2: PNB Autres Val MOB | HN2: Volumes Remises | HO2: Volumes Facturé | HP2: Formule individuelle initial | HQ2: Volumes CDD créditeurs BDD plafond (+150% et -50%) | HR2: I selection Volumes (taux pour calcul PNB) | HS2: Formule individuelle confort | HT2: ETP Performance | HU2: Formule individuelle optimal | HV2: Formule famille initial | HW2: Formule famille confort | HX2: Formule famille optimal | HY2: Auto Part | HZ2: MRH Part | IA2: Santé Part | IB2: GAV Part | IC2: PJ-GU Part | ID2: ESO Part | IE2: GF Part | IF2: Bouquet liberté Autres | IG2: Futéo / SOL 16-17 / Jeune / Autonomie | IH2: Satellis Essentiel / Essentiel + | II2: Satellis Intégral | IJ2: Carte Infinite | IK2: Carte Platinum (yc izicarte) | IL2: Carte visa premier (yc izicarte) | IM2: Carte visa classique (yc izicarte) | IN2: Autres Cartes | IO2: Auto | IP2: MRH | IQ2: Santé | IR2: GAV | IS2: PJ GU | IT2: ESO | IU2: GF | IV2: Bouquet liberté Autres | IW2: Futéo / SOL 16-17 / Jeune / Autonomie | IX2: Satellis Essentiel / Essentiel + | IY2: Satellis Intégral | IZ2: Carte Infinite | JA2: Carte Platinum (yc izicarte) | JB2: Carte visa premier (yc izicarte) | JC2: Carte visa classique (yc izicarte) | JD2: Autres Cartes | JE2: PNB BANCA PART | JF2: PNB PRO Crédit MLT | JG2: SCPI Volumes (taux pour calcul PNB) | JH2: STRADIM Volumes (taux pour calcul PNB) | JI2: DVMA | JJ2: tarif | JK2: Assistance Vie | JL2: Assistance Vie | JM2: Volumes DAT PRO | JN2: Tx marg DAT PRO | JO2: Volumes PS PRO | JP2: Volumes Ass Vie flux PRO | JQ2: Volumes Ass Vie encours PRO | JR2: Volumes CE PRO | JS2: Volumes Autre Epargne PRO | JT2: Volumes CDD créditeurs PRO plafond (+150% et -50%) | JU2: PNB DAT PRO | JV2: PNB PS PRO | JW2: PNB Ass Vie flux PRO | JX2: PNB Ass Vie encours PRO | JY2: PNB CE PRO | JZ2: PNB Autre Epargne PRO | KA2: PNB CDD créditeurs PRO plafond (+150% et -50%) | KB2: PNB PRO Collecte yc DAV | KC2: Ventes nettes Libre Convergence Labelis | KD2: Business Platinum | KE2: Auto entrepreneur | KF2: Business | KG2: Business Gold | KH2: PAP | KI2: PNB Libre Convergence | KJ2: Business Platinum | KK2: Auto entrepreneur | KL2: Business | KM2: Business Gold | KN2: PAP | KO2: PNB PRO Banca | KP2: com mouv | KQ2: Composition formule famille initial | KR2: Composition formule famille confort | KS2: Composition formule famille optimal | KV2: Volumes PEL PRO | KW2: PNB PEL PRO | KX2: CARTE dd ventes nettes | KY2: PNB CARTE débit dif bonus de 40€ x 5 ans par carte nette | KZ2: CFF Volumes (taux de 1,00% pour calcul PNB) | LA2: Bouquet liberté HDG | LB2: Bouquet liberté HDG | LC2: Prévoyance du locataire | LD2: Prévoyance du locataire | LE2: PNB TOTAL | LF2: PNB PRO | LG2: Forfaits Part PRO | LH2: PNB Forfaits Part PRO | LI2: Cartes Part PRO | LJ2: PNB Cartes Part PRO | LK2: IARD Part PRO | LL2: PNB IARD Part PRO | LM2: PNB TOTAL (Hors booster) | LN2: PNB TOTAL (Hors booster) / ETP | LO2: PNB TOTAL COLLECTE | LP2: PNB TOTAL CREDITS | LQ2: PNB TOTAL AUTRES | LR2: PNB BANCA part du PRO | LS2: PNB TOTAL / ETP | LT2: Evolution stock clients actifs BAD (1 connexion / mois sur 3 mois) | LU2: Nombre de SED finalisées (en brut) | LV2: Nombre de SAG finalisées (périmètre SAG hors OPC en brut) | LW2: Evolution stock de clients équipés E-documents | LX2: Evolution stock de clients avec Opt-in-mail et tél. | LY2: Evolution stock de clients équipés Sécurpass | LZ2: Evolution stock clients actifs BAD (1 connexion / mois sur 3 mois) PNB | MA2: Nombre de SED finalisées (en brut) PNB | MB2: Nombre de SAG finalisées (périmètre SAG hors OPC en brut) PNB | MC2: Evolution stock de clients équipés E-documents PNB | MD2: Evolution stock de clients avec Opt-in-mail et tél. PNB | ME2: Evolution stock de clients équipés Sécurpass PNB | MF2: PV Bernard L. | MH2: tx
G3: 2019-10-31 | BQ3: =objectifs!EA373 -> 0.25% | BR3: =objectifs!EB373 -> 8.00 | BS3: 2.80% | BT3: 1.00 | BU3: 40 € | BV3: =BU3 -> 40 € | CA3: 100 € | CB3: 2.75 | CC3: 30 € | CD3: 3.96 | CE3: 100 € | CF3: 5.00 | CH3: 200 € | CI3: 43 € | CJ3: 5.00 | CL3: 1,000 € | CR3: =DB3 -> 1.30 | DB3: 1.30 | EZ3: =objectifs!DX373 -> 8.50 | GM3: =objectifs!FL3 -> 15 € | GN3: =objectifs!FM3 -> 5.00 | HR3: =objectifs!FW373 -> 4.00% | HY3: 43 € | HZ3: 25 € | IA3: 65 € | IB3: 15 € | IC3: 3 € | ID3: 14 € | IE3: 19 € | IF3: 87 € | IG3: 12 € | IH3: 125 € | II3: 210 € | IJ3: 315 € | IK3: 200 € | IL3: 130 € | IM3: 43 € | IN3: 12 € | IO3: 2.75 | IP3: 3.96 | IQ3: 3.94 | IR3: 5.37 | IS3: 6.19 | IT3: 7.00 | IU3: 6.00 | IV3: 5.00 | IW3: 5.00 | IX3: 5.00 | IY3: 5.00 | IZ3: 5.00 | JA3: 5.00 | JB3: 5.00 | JC3: 5.00 | JD3: 5.00 | JG3: =objectifs!FW373 -> 4.00% | JH3: 2.00% | JK3: 45 € | JL3: 9.50 | JM3: 0.20% | JO3: 1.00% | JQ3: 0.45% | JR3: =JS3 -> 0.60% | JS3: 0.60% | JT3: 1.00% | JU3: 9.00 | JV3: 5.00 | JX3: 8.00 | JY3: 5.37 | JZ3: 5.37 | KA3: 5.37 | KC3: =objectifs!GZ3 -> 288 € | KD3: =objectifs!HA3 -> 195 € | KE3: =objectifs!HB3 -> 120 € | KF3: =objectifs!HC3 -> 47 € | KG3: =objectifs!HD3 -> 130 € | KH3: =objectifs!HE3 -> 18 € | KI3: =objectifs!HF3 -> 5.00 | KJ3: =objectifs!HG3 -> 5.00 | KK3: =objectifs!HH3 -> 5.00 | KL3: =objectifs!HI3 -> 5.00 | KM3: =objectifs!HJ3 -> 5.00 | KN3: =objectifs!HK3 -> 5.00 | KV3: =EY374 -> 0.00% | KW3: =JU3 -> 9.00 | KY3: 40 € | KZ3: 1.00% | LA3: 140 € | LB3: 5.00 | LC3: 20 € | LD3: 4.50 | LG3: 137 € | LH3: 5.00 | LI3: 289 € | LJ3: 5.00 | LK3: 20 € | LL3: 5.00 | LT3: 5.00 | LU3: 1.00 | LV3: 1.00 | LW3: 5.00 | LX3: 3.00 | LY3: 5.00 | LZ3: 15 € | MA3: 10 € | MB3: 3 € | MC3: 10 € | MD3: 5 € | ME3: 1 €
A4: 105006 | B4: 200262 | C4: 6 | D4: STRASBOURG NEUDORF | E4: 6 | F4: STRASBOURG NEUDORF | G4: =$G$3 -> 2019-10-31 | H4: 209 | I4: 4.32% | J4: 1.57 | K4: 2019-10-31 | L4: 1,769 | M4: 3.42% | N4: 2.42 | O4: =L4*M4*N4 -> 147 | P4: 7,073 | Q4: 0 | R4: 0.32% | S4: 7.47 | T4: 11.38 | U4: 66 | V4: 3.73% | W4: 2.52 | X4: 1,167 | Y4: 0.03% | Z4: 7.94 | AA4: 100 | AB4: 1.72% | AC4: 1.72 | AD4: 17.6 | AE4: 23.5 | AF4: 0.7 | AG4: 611.8 | AH4: 29.3 | AI4: 12.3 | AJ4: 201910 | AK4: 3.00 | AL4: 0.07 | AM4: =IF(ISERROR(AL4/AK4),0,AL4/AK4) -> 2.40% | AN4: 393.28 | AO4: 46.18 | AP4: =IF(ISERROR(AO4/AN4),0,AO4/AN4) -> 12% | AQ4: 5.18 | AR4: =IF(ISERROR(AQ4/AN4),0,AQ4/AN4) -> 1.32% | AS4: 1,471.85 | AT4: 115.71 | AU4: =IF(ISERROR(AT4/AS4),0,AT4/AS4) -> 7.9% | AV4: 6.97 | AW4: =IF(ISERROR(AV4/AS4),0,AV4/AS4) -> 0.47% | AX4: 108.71 | AY4: 2.07 | AZ4: =IF(ISERROR(AY4/AX4),0,AY4/AX4) -> 1.91% | BA4: 1.55 | BB4: =IF(ISERROR(BA4/AX4),0,BA4/AX4) -> 1.43% | BC4: 1,976.85 | BD4: 163.97 | BE4: =IF(ISERROR(BD4/BC4),0,BD4/BC4) -> 8.3% | BF4: 13.77 | BG4: =IF(ISERROR(BF4/BC4),0,BF4/BC4) -> 0.70% | BI4: =(U4*V4*W4)+CV4+CO4 -> 9 | BJ4: =(X4*Y4*Z4)+CR4+CT4+CX4 -> 12 | BK4: =(H4*I4*J4)+(L4*M4*N4)+CW4+DE4 -> 204 | BL4: =(P4*R4*S4)+AD4+AI4+DB4+CL4 -> 324 | BM4: =(AA4*AB4*AC4)+CU4+DI4+GS4+AF4 -> 4 | BN4: 1.06% | BO4: 0.29% | BP4: 6 | BQ4: 365 | BR4: =BQ4*$BQ$3*$BR$3 -> 7 | BS4: 141 | BT4: =BS4*$BS$3*$BT$3 -> 4 | BU4: =HY4*$BU$3*$IV$3/1000 -> 4 | BV4: =HZ4*$BV$3*$IV$3/1000 -> 1 | BW4: -21 | BZ4: 0 | CA4: 0 | CB4: =CA4*$CA$3*$CB$3/1000 -> 0 | CC4: 0 | CD4: =CC4*$CC$3*$CD$3/1000 -> 0 | CE4: 2 | CF4: =CE4*$CE$3*$CF$3/1000 -> 1 | CG4: 17 | CH4: =+CG4*$CH$3/1000 -> 3.4 | CI4: -31 | CJ4: =(CI4*$CI$3*$CJ$3)/1000 -> -7 | CK4: 9 | CL4: =CK4*$CL$3/1000 -> 9 | CM4: 100.00% | CN4: 169.86% | CO4: 2 | CP4: 100.00% | CQ4: 32.97% | CR4: 7 | CS4: =AF4 -> 0.7 | CT4: 2 | CU4: 0.00 | CV4: 1 | CW4: 7 | CX4: 0 | CY4: =+AD4 -> 18 | CZ4: 59.42% | DA4: 119.65% | DB4: 118 | DC4: 96.83% | DD4: 133.69% | DE4: 36 | DG4: 68.08% | DH4: 100.00% | DI4: 0 | DJ4: -92 | DK4: =DK$374 -> 0.70% | DL4: 5.33 | DM4: =DJ4*DK4*DL4 -> -3 | DN4: -19 | DO4: =DO$374 -> 0.66% | DP4: 5.33 | DQ4: =DN4*DO4*DP4 -> -1 | DR4: -49 | DS4: =DS$374 -> 0.75% | DT4: 5.33 | DU4: =DR4*DS4*DT4 -> -2 | DV4: 164 | DW4: =DW$374 -> 0.40% | DX4: 1.14 | DY4: =DV4*DW4*DX4 -> 1 | DZ4: -410 | EA4: =EA$374 -> 0.20% | EB4: 5.37 | EC4: =DZ4*EA4*EB4 -> -4 | ED4: 220 | EE4: =EE$374 -> 0.20% | EF4: 5.37 | EG4: =ED4*EE4*EF4 -> 2 | EH4: -30 | EI4: =EI$374 -> 0.20% | EJ4: 5.37 | EK4: =EH4*EI4*EJ4 -> -0 | EL4: 89 | EM4: =EM$374 -> 0.23% | EN4: 5.33 | EO4: =EL4*EM4*EN4 -> 1 | EP4: -6 | EQ4: =EQ$374 -> 0.10% | ER4: 8.57 | ES4: =EP4*EQ4*ER4 -> -0 | ET4: -78 | EU4: =EU$374 -> 0.20% | EV4: 9.00 | EW4: =ET4*EU4*EV4 -> -1 | EX4: -134 | EY4: =$EY$374 -> 0.00% | EZ4: 8.59 | FA4: =EX4*EY4*EZ4 -> 0 | FB4: -4 | FC4: =FC$374 -> -0.26% | FD4: 0.74 | FE4: =FB4*FC4*FD4 -> 0 | FF4: -1,094 | FG4: =FG$374 -> 0.45% | FH4: 8.00 | FI4: =FF4*FG4*FH4 -> -39 | FJ4: 2,156 | FK4: =BG4 -> 0.70% | FL4: =FL$374 -> 1.00 | FM4: =FJ4*FK4*FL4 -> 15 | FN4: -163 | FO4: =FO$374 -> 0.65% | FP4: 5.00 | FQ4: =FN4*FO4*FP4 -> -5 | FR4: 21 | FS4: =FS$374 -> 0.40% | FT4: 1.00 | FU4: =FR4*FS4*FT4 -> 0 | FV4: -598 | FW4: =FW$374 -> 0.20% | FX4: 8.00 | FY4: =FV4*FW4*FX4 -> -10 | FZ4: 203 | GA4: =GA$374 -> 1.00% | GB4: 5.00 | GC4: =FZ4*GA4*GB4 -> 10 | GD4: =DJ4+DN4+DR4+DV4+DZ4+ED4+EH4+EL4+ET4+EX4+FB4+FV4+FZ4+EP4+JR4 -> -524 | GE4: =DM4+DQ4+DU4+DY4+EC4+EG4+EK4+EO4+EW4+FA4+FE4+FY4+GC4+ES4+JY4 -> -0 | GF4: =FF4+FN4+GT4+HB4+HJ4 -> -1,423 | GG4: =FI4+FM4+FQ4+FU4+GW4+HA4+HE4+HI4+HM4+BR4+BT4 -> -22 | GH4: 166 | GI4: =GI$374 -> 1.00% | GJ4: 5.37 | GK4: =GH4*GI4*GJ4 -> 9 | GL4: 225 | GM4: 0 | GN4: =GM4*$GM$3*$GN$3/1000 -> 0 | GP4: 0 | GQ4: 0.00% | GR4: 0 | GS4: =GP4*GQ4*GR4 -> 0 | GT4: 179 | GU4: =GU$374 -> 0.45% | GV4: 8.00 | GW4: =GT4*GU4*GV4 -> 6 | GX4: 282 | GY4: =FK4 -> 0.70% | GZ4: =GZ$374 -> 1.00 | HA4: =GX4*GY4*GZ4 -> 2 | HB4: -303 | HC4: =HC$374 -> 0.65% | HD4: 5.00 | HE4: =HB4*HC4*HD4 -> -10 | HF4: 0 | HG4: =FS4 -> 0.40% | HH4: =HH$374 -> 1.00 | HI4: =HF4*HG4*HH4 -> 0 | HJ4: -41 | HK4: =HK$374 -> 1.00% | HL4: 5.00 | HM4: =HJ4*HK4*HL4 -> -2 | HN4: -19 | HO4: 556 | HP4: 0 | HQ4: =IF(ISERROR(IF(VLOOKUP($C4,'Indicateurs Cumulés'!$C$3:$HP$560,188,FALSE)/(VLOOKUP($C4,objectifs!$C$3:$AAB$559,158,FALSE))>=1.5,(VLOOKUP($C4,objectifs!$C$3:$AAB$559,158,FALSE))*1.5,IF(VLOOKUP($C4,'Indicateurs Cumulés'!$C$3:$HP$560,188,FALSE)/(VLOOKUP($C4,objectifs!$C$3:$AAB$559,158,FALSE))<=-0.5,(VLOOKUP($C4,objectifs!$C$3:$AAB$559,158,FALSE))*-0.5,VLOOKUP($C4,'Indicateurs Cumulés'!$C$3:$HP$560,188,FALSE)))),VLOOKUP($C4,'Indicateurs Cumulés'!$C$3:$HP$560,188,FALSE),IF(VLOOKUP($C4,'Indicateurs Cumulés'!$C$3:$HP$560,188,FALSE)/(VLOOKUP($C4,objectifs!$C$3:$AAB$559,158,FALSE))>=1.5,(VLOOKUP($C4,objectifs!$C$3:$AAB$559,158,FALSE))*1.5,IF(VLOOKUP($C4,'Indicateurs Cumulés'!$C$3:$HP$560,188,FALSE)/(VLOOKUP($C4,objectifs!$C$3:$AAB$559,158,FALSE))<=-0.5,(VLOOKUP($C4,objectifs!$C$3:$AAB$559,158,FALSE))*-0.5,VLOOKUP($C4,'Indicateurs Cumulés'!$C$3:$HP$560,188,FALSE)))) -> 166 | HR4: 0 | HS4: 0 | HT4: 7.5 | HU4: 0 | HV4: 0 | HW4: 0 | HX4: 0 | HY4: 18 | HZ4: 7 | IA4: -1 | IB4: 15 | IC4: 1 | ID4: 7 | IE4: 25 | IF4: -80 | IG4: 5 | IH4: -60 | II4: -4 | IJ4: 4 | IK4: -1 | IL4: 117 | IM4: -128 | IN4: 0 | IO4: =HY4*IO$3*HY$3/1000 -> 2 | IP4: =HZ4*IP$3*HZ$3/1000 -> 1 | IQ4: -0 | IR4: 1 | IS4: 0 | IT4: =ID4*IT$3*ID$3/1000 -> 1 | IU4: 3 | IV4: -35 | IW4: 0 | IX4: -37 | IY4: -4 | IZ4: 6 | JA4: -1 | JB4: 76 | JC4: -28 | JD4: 0 | JE4: =SUM(IO4:JD4)+BU4+BV4+GN4+JL4+KY4+LB4+LD4+CH4+CJ4 -> 87 | JF4: =BI4+BJ4+BM4 -> 24 | JG4: 0 | JH4: 0 | JI4: =IF(ISERROR((HY4*$IO$3+HZ4*$IP$3+IA4*$IQ$3+IB4*$IR$3+IC4*$IS$3+ID4*$IT$3+IE4*$IU$3+IF4*$IV$3+IG4*$IW$3+IH4*$IX$3+II4*$IY$3+IJ4*$IZ$3+IK4*$JA$3+IL4*$JB$3+IM4*$JC$3+IN4*$JD$3+JK4*$JL$3+GM4*$GN$3+LA4*$LB$3+LC4*$LD$3)/JH4),0,(HY4*$IO$3+HZ4*$IP$3+IA4*$IQ$3+IB4*$IR$3+IC4*$IS$3+ID4*$IT$3+IE4*$IU$3+IF4*$IV$3+IG4*$IW$3+IH4*$IX$3+II4*$IY$3+IJ4*$IZ$3+IK4*$JA$3+IL4*$JB$3+IM4*$JC$3+IN4*$JD$3+JK4*$JL$3+GM4*$GN$3+LA4*$LB$3+LC4*$LD$3)/JH4) -> 0.00 | JJ4: =IF(ISERROR(JE4/(JH4*JI4)*1000),0,JE4/(JH4*JI4)*1000) -> 0.00 | JK4: 0 | JL4: =JK4*JK$3*JL$3/1000 -> 0 | JM4: 0 | JN4: =$EU$374 -> 0.20% | JO4: 11 | JQ4: 9 | JR4: 220 | JS4: -176 | JT4: =IF(ISERROR(IF(VLOOKUP($C4,'Indicateurs Cumulés'!$C$3:$HP$560,192,FALSE)/(VLOOKUP($C4,objectifs!$C$3:$AAB$559,162,FALSE))>=1.5,(VLOOKUP($C4,objectifs!$C$3:$AAB$559,162,FALSE))*1.5,IF(VLOOKUP($C4,'Indicateurs Cumulés'!$C$3:$HP$560,192,FALSE)/(VLOOKUP($C4,objectifs!$C$3:$AAB$559,162,FALSE))<=-0.5,(VLOOKUP($C4,objectifs!$C$3:$AAB$559,162,FALSE))*-0.5,VLOOKUP($C4,'Indicateurs Cumulés'!$C$3:$HP$560,192,FALSE)))),VLOOKUP($C4,'Indicateurs Cumulés'!$C$3:$HP$560,192,FALSE),IF(VLOOKUP($C4,'Indicateurs Cumulés'!$C$3:$HP$560,192,FALSE)/(VLOOKUP($C4,objectifs!$C$3:$AAB$559,162,FALSE))>=1.5,(VLOOKUP($C4,objectifs!$C$3:$AAB$559,162,FALSE))*1.5,IF(VLOOKUP($C4,'Indicateurs Cumulés'!$C$3:$HP$560,192,FALSE)/(VLOOKUP($C4,objectifs!$C$3:$AAB$559,162,FALSE))<=-0.5,(VLOOKUP($C4,objectifs!$C$3:$AAB$559,162,FALSE))*-0.5,VLOOKUP($C4,'Indicateurs Cumulés'!$C$3:$HP$560,192,FALSE)))) -> 8 | JU4: =JM4*$JM$3*$JU$3 -> 0 | JV4: =JO4*$JO$3*$JV$3 -> 1 | JX4: =JQ4*$JQ$3*$JX$3 -> 0 | JY4: =JR4*$JR$3*$JY$3 -> 7 | JZ4: =JS4*$JS$3*$JZ$3 -> -6 | KA4: =JT4*$JT$3*$KA$3 -> 0 | KB4: =JU4+JV4+JW4+JX4+JY4+JZ4+KA4+KW4 -> 3 | KC4: 5 | KD4: 0 | KE4: -1 | KF4: 3 | KG4: 2 | KH4: 0 | KI4: =KC4*KI$3*KC$3/1000 -> 7 | KJ4: 0 | KK4: -1 | KL4: 1 | KM4: 1 | KN4: 0 | KO4: =SUM(KI4:KN4)+KP4+CB4+CD4+CF4 -> 20 | KP4: 11 | KQ4: 0 | KV4: 0 | KW4: =KV4*$KV$3*$KW$3 -> 0 | KX4: 80 | KY4: =KX4*$KY$3*$JB$3/1000 -> 16 | KZ4: 0 | LA4: =IJ4+IK4+IL4 -> 120 | LB4: =LA4*$LA$3*$LB$3/1000 -> 84 | LC4: 0 | LD4: =LC4*$LC$3*$LD$3/1000 -> 0 | LE4: =(H4*I4*J4+L4*M4*N4+P4*R4*S4+AA4*AB4*AC4+AD4+AF4+AI4+CU4+CW4+DB4+DE4+DI4+GS4+BW4+CL4)*1+(GE4+GG4+(HQ4*GI4*GJ4))*1+(HN4+HR4*$HR$3+JG4*$JG$3+KZ4*$KZ$3++JH4*$JH$3)*1+(SUM(IO4:JD4)+JL4+GN4+KY4+LB4+LD4+SUM(KI4:KN4)+BU4+BV4+CB4+CD4+CF4+CH4+KP4+LH4+LJ4+LL4+CJ4)*1 -> 596.3 | LF4: =(U4*V4*W4+X4*Y4*Z4+AA4*AB4*AC4+AF4+CU4+CV4+CX4+CO4+CR4+CT4+DI4+GS4)+(SUM(JU4:KA4)+KW4)+(SUM(KI4:KN4)+KP4+CB4+CD4+CF4)+(LH4+LJ4+LL4)+BZ4 -> 57 | LG4: 4 | LH4: =LG4*$LG$3*$LH$3/1000 -> 3 | LI4: 5 | LJ4: =LI4*$LI$3*$LJ$3/1000 -> 7 | LK4: 0 | LL4: =LK4*$LK$3*$LL$3/1000 -> 0 | LM4: =LE4-KY4-BU4-BV4-CH4-CL4 -> 563 | LN4: =IF(HT4=0,0,LM4/HT4) -> 74.9 | LO4: =(GE4+GG4)+(HQ4*GI4*GJ4) -> -13 | LP4: =BL4+BK4+BM4 -> 532 | LQ4: =(HR4*$HR$3)+(KZ4*$KZ$3)+(JG4*$JG$3)+(JH4*$JH$3)+HN4 -> -19 | LR4: =LH4+LJ4+LL4 -> 10 | LS4: =IF(HT4=0,0,LE4/HT4) -> 79.31 | LT4: 278 | LU4: 346 | LV4: 1338 | LW4: 204 | LX4: 102 | LY4: 143 | LZ4: =IF(LT4<0,0,LT4*$LT$3*$LZ$3/1000) -> 20.9 | MA4: =IF(LU4<0,0,LU4*$LU$3*$MA$3/1000) -> 3.5 | MB4: =IF(LV4<0,0,LV4*$LV$3*$MB$3/1000) -> 4.0 | MC4: =IF(LW4<0,0,LW4*$LW$3*$MC$3/1000) -> 10.2 | MD4: =IF(LX4<0,0,LX4*$LX$3*$MD$3/1000) -> 1.5 | ME4: =IF(LY4<0,0,LY4*$LY$3*$ME$3/1000) -> 0.7 | MF4: =+LE4+SUM(LZ4:ME4) -> 637 | MH4: =CY4/P4 -> 0.25%
A5: 105101 | B5: 200262 | C5: 7 | D5: ILLKIRCH CENTRE | E5: 7 | F5: ILLKIRCH CENTRE | G5: =$G$3 -> 2019-10-31 | H5: 219 | I5: 4.32% | J5: 1.57 | K5: 2019-10-31 | L5: 2,830 | M5: 3.01% | N5: 2.67 | O5: =L5*M5*N5 -> 227 | P5: 10,637 | Q5: 0 | R5: 0.20% | S5: 6.40 | T5: 9.89 | U5: 339 | V5: 2.86% | W5: 2.76 | X5: 1,557 | Y5: 0.18% | Z5: 7.64 | AA5: 1,025 | AB5: 1.46% | AC5: 6.62 | AD5: 24.5 | AE5: 31.9 | AF5: 2.6 | AG5: 1,441.7 | AH5: 46.7 | AI5: 15.1 | AJ5: 201910 | AK5: 25.00 | AL5: 0.17 | AM5: =IF(ISERROR(AL5/AK5),0,AL5/AK5) -> 0.67% | AN5: 871.42 | AO5: 204.76 | AP5: 23% | AQ5: 6.23 | AR5: 0.71% | AS5: 3,157.17 | AT5: 464.05 | AU5: 14.7% | AV5: 6.10 | AW5: 0.19% | AX5: 194.72 | AY5: 26.55 | AZ5: 13.64% | BA5: 2.58 | BB5: 1.33% | BC5: 4,248.30 | BD5: 695.36 | BE5: 16.4% | BF5: 15.08 | BG5: 0.35% | BI5: 35 | BJ5: =(X5*Y5*Z5)+CR5+CT5+CX5 -> 50 | BK5: 317 | BL5: 359 | BM5: 107 | BN5: 1.01% | BO5: 0.00% | BP5: 7 | BQ5: 533 | BR5: =BQ5*$BQ$3*$BR$3 -> 11 | BS5: 674 | BT5: =BS5*$BS$3*$BT$3 -> 19 | BU5: =HY5*$BU$3*$IV$3/1000 -> 7 | BV5: =HZ5*$BV$3*$IV$3/1000 -> 1 | BW5: -27 | BZ5: 0 | CA5: 0 | CB5: =CA5*$CA$3*$CB$3/1000 -> 0 | CC5: 0 | CD5: =CC5*$CC$3*$CD$3/1000 -> 0 | CE5: 5 | CF5: =CE5*$CE$3*$CF$3/1000 -> 3 | CG5: 37 | CH5: =+CG5*$CH$3/1000 -> 7.4 | CI5: -8 | CJ5: =(CI5*$CI$3*$CJ$3)/1000 -> -2 | CK5: 21 | CL5: 21 | CM5: 82.29% | CN5: 144.04% | CO5: 7 | CP5: 180.44% | CQ5: 37.91% | CR5: 21 | CS5: 2.6 | CT5: 3 | CU5: 0.98 | CV5: 1 | CW5: 10 | CX5: 4 | CY5: =+AD5 -> 24 | CZ5: 42.72% | DA5: 158.62% | DB5: 165 | DC5: 87.15% | DD5: 153.13% | DE5: 64 | DG5: 77.78% | DH5: 100.00% | DI5: 0 | DJ5: -646 | DK5: 0.70% | DL5: 5.33 | DM5: =DJ5*DK5*DL5 -> -24 | DN5: 103 | DO5: 0.66% | DP5: 5.33 | DQ5: =DN5*DO5*DP5 -> 4 | DR5: -84 | DS5: 0.75% | DT5: 5.33 | DU5: =DR5*DS5*DT5 -> -3 | DV5: 206 | DW5: 0.40% | DX5: 1.14 | DY5: =DV5*DW5*DX5 -> 1 | DZ5: -448 | EA5: 0.20% | EB5: 5.37 | EC5: =DZ5*EA5*EB5 -> -5 | ED5: -117 | EE5: 0.20% | EF5: 5.37 | EG5: =ED5*EE5*EF5 -> -1 | EH5: -40 | EI5: 0.20% | EJ5: 5.37 | EK5: =EH5*EI5*EJ5 -> -0 | EL5: -77 | EM5: 0.23% | EN5: 5.33 | EO5: =EL5*EM5*EN5 -> -1 | EP5: -37 | EQ5: 0.10% | ER5: 6.90 | ES5: =EP5*EQ5*ER5 -> -0 | ET5: -164 | EU5: 0.20% | EV5: 9.00 | EW5: =ET5*EU5*EV5 -> -3 | EX5: -243 | EY5: =$EY$374 -> 0.00% | EZ5: 7.72 | FA5: =EX5*EY5*EZ5 -> 0 | FB5: 0 | FC5: -0.26% | FD5: 0.74 | FE5: =FB5*FC5*FD5 -> 0 | FF5: 1,338 | FG5: 0.45% | FH5: 8.00 | FI5: =FF5*FG5*FH5 -> 48 | FJ5: 4,252 | FK5: 0.35% | FL5: 1.00 | FM5: =FJ5*FK5*FL5 -> 15 | FN5: -367 | FO5: 0.65% | FP5: 5.00 | FQ5: =FN5*FO5*FP5 -> -12 | FR5: 57 | FS5: 0.40% | FT5: 1.00 | FU5: =FR5*FS5*FT5 -> 0 | FV5: -630 | FW5: 0.20% | FX5: 8.00 | FY5: =FV5*FW5*FX5 -> -10 | FZ5: 237 | GA5: 1.00% | GB5: 5.00 | GC5: =FZ5*GA5*GB5 -> 12 | GD5: -1,362 | GE5: -13 | GF5: =FF5+FN5+GT5+HB5+HJ5 -> 2,129 | GG5: 130 | GH5: -4 | GI5: 1.00% | GJ5: 5.37 | GK5: =GH5*GI5*GJ5 -> -0 | GL5: 261 | GM5: 0 | GN5: =GM5*$GM$3*$GN$3/1000 -> 0 | GP5: 305 | GQ5: 0.58% | GR5: 2.37 | GS5: =GP5*GQ5*GR5 -> 4 | GT5: 817 | GU5: 0.45% | GV5: 8.00 | GW5: =GT5*GU5*GV5 -> 29 | GX5: 817 | GY5: =FK5 -> 0.35% | GZ5: 1.00 | HA5: =GX5*GY5*GZ5 -> 3 | HB5: 0 | HC5: 0.65% | HD5: 5.00 | HE5: =HB5*HC5*HD5 -> 0 | HF5: 0 | HG5: =FS5 -> 0.40% | HH5: 1.00 | HI5: 0 | HJ5: 341 | HK5: 1.00% | HL5: 5.00 | HM5: 17 | HN5: -39 | HO5: 487 | HP5: 0 | HQ5: =IF(ISERROR(IF(VLOOKUP($C5,'Indicateurs Cumulés'!$C$3:$HP$560,188,FALSE)/(VLOOKUP($C5,objectifs!$C$3:$AAB$559,158,FALSE))>=1.5,(VLOOKUP($C5,objectifs!$C$3:$AAB$559,158,FALSE))*1.5,IF(VLOOKUP($C5,'Indicateurs Cumulés'!$C$3:$HP$560,188,FALSE)/(VLOOKUP($C5,objectifs!$C$3:$AAB$559,158,FALSE))<=-0.5,(VLOOKUP($C5,objectifs!$C$3:$AAB$559,158,FALSE))*-0.5,VLOOKUP($C5,'Indicateurs Cumulés'!$C$3:$HP$560,188,FALSE)))),VLOOKUP($C5,'Indicateurs Cumulés'!$C$3:$HP$560,188,FALSE),IF(VLOOKUP($C5,'Indicateurs Cumulés'!$C$3:$HP$560,188,FALSE)/(VLOOKUP($C5,objectifs!$C$3:$AAB$559,158,FALSE))>=1.5,(VLOOKUP($C5,objectifs!$C$3:$AAB$559,158,FALSE))*1.5,IF(VLOOKUP($C5,'Indicateurs Cumulés'!$C$3:$HP$560,188,FALSE)/(VLOOKUP($C5,objectifs!$C$3:$AAB$559,158,FALSE))<=-0.5,(VLOOKUP($C5,objectifs!$C$3:$AAB$559,158,FALSE))*-0.5,VLOOKUP($C5,'Indicateurs Cumulés'!$C$3:$HP$560,188,FALSE)))) -> -4 | HR5: 0 | HS5: 0 | HT5: 7.4 | HU5: 0 | HV5: 0 | HW5: 0 | HX5: 0 | HY5: 37 | HZ5: 6 | IA5: -1 | IB5: 6 | IC5: -31 | ID5: 15 | IE5: 17 | IF5: -40 | IG5: 1 | IH5: -39 | II5: -8 | IJ5: 7 | IK5: 3 | IL5: 52 | IM5: -86 | IN5: -7 | IO5: =HY5*IO$3*HY$3/1000 -> 4 | IP5: =HZ5*IP$3*HZ$3/1000 -> 1 | IQ5: =IA5*IQ$3*IA$3/1000 -> -0 | IR5: =IB5*IR$3*IB$3/1000 -> 0 | IS5: =IC5*IS$3*IC$3/1000 -> -1 | IT5: =ID5*IT$3*ID$3/1000 -> 1 | IU5: =IE5*IU$3*IE$3/1000 -> 2 | IV5: =IF5*IV$3*IF$3/1000 -> -17 | IW5: =IG5*IW$3*IG$3/1000 -> 0 | IX5: =IH5*IX$3*IH$3/1000 -> -24 | IY5: =II5*IY$3*II$3/1000 -> -8 | IZ5: =IJ5*IZ$3*IJ$3/1000 -> 11 | JA5: =IK5*JA$3*IK$3/1000 -> 3 | JB5: =IL5*JB$3*IL$3/1000 -> 34 | JC5: =IM5*JC$3*IM$3/1000 -> -18 | JD5: =IN5*JD$3*IN$3/1000 -> -0 | JE5: 63 | JF5: 191 | JG5: 0 | JH5: 0 | JI5: =IF(ISERROR((HY5*$IO$3+HZ5*$IP$3+IA5*$IQ$3+IB5*$IR$3+IC5*$IS$3+ID5*$IT$3+IE5*$IU$3+IF5*$IV$3+IG5*$IW$3+IH5*$IX$3+II5*$IY$3+IJ5*$IZ$3+IK5*$JA$3+IL5*$JB$3+IM5*$JC$3+IN5*$JD$3+JK5*$JL$3+GM5*$GN$3+LA5*$LB$3+LC5*$LD$3)/JH5),0,(HY5*$IO$3+HZ5*$IP$3+IA5*$IQ$3+IB5*$IR$3+IC5*$IS$3+ID5*$IT$3+IE5*$IU$3+IF5*$IV$3+IG5*$IW$3+IH5*$IX$3+II5*$IY$3+IJ5*$IZ$3+IK5*$JA$3+IL5*$JB$3+IM5*$JC$3+IN5*$JD$3+JK5*$JL$3+GM5*$GN$3+LA5*$LB$3+LC5*$LD$3)/JH5) -> 0.00 | JJ5: =IF(ISERROR(JE5/(JH5*JI5)*1000),0,JE5/(JH5*JI5)*1000) -> 0.00 | JK5: 0 | JL5: =JK5*JK$3*JL$3/1000 -> 0 | JM5: -17 | JN5: =$EU$374 -> 0.20% | JO5: 22 | JQ5: 13 | JR5: 578 | JS5: -42 | JT5: =IF(ISERROR(IF(VLOOKUP($C5,'Indicateurs Cumulés'!$C$3:$HP$560,192,FALSE)/(VLOOKUP($C5,objectifs!$C$3:$AAB$559,162,FALSE))>=1.5,(VLOOKUP($C5,objectifs!$C$3:$AAB$559,162,FALSE))*1.5,IF(VLOOKUP($C5,'Indicateurs Cumulés'!$C$3:$HP$560,192,FALSE)/(VLOOKUP($C5,objectifs!$C$3:$AAB$559,162,FALSE))<=-0.5,(VLOOKUP($C5,objectifs!$C$3:$AAB$559,162,FALSE))*-0.5,VLOOKUP($C5,'Indicateurs Cumulés'!$C$3:$HP$560,192,FALSE)))),VLOOKUP($C5,'Indicateurs Cumulés'!$C$3:$HP$560,192,FALSE),IF(VLOOKUP($C5,'Indicateurs Cumulés'!$C$3:$HP$560,192,FALSE)/(VLOOKUP($C5,objectifs!$C$3:$AAB$559,162,FALSE))>=1.5,(VLOOKUP($C5,objectifs!$C$3:$AAB$559,162,FALSE))*1.5,IF(VLOOKUP($C5,'Indicateurs Cumulés'!$C$3:$HP$560,192,FALSE)/(VLOOKUP($C5,objectifs!$C$3:$AAB$559,162,FALSE))<=-0.5,(VLOOKUP($C5,objectifs!$C$3:$AAB$559,162,FALSE))*-0.5,VLOOKUP($C5,'Indicateurs Cumulés'!$C$3:$HP$560,192,FALSE)))) -> 8 | JU5: =JM5*$JM$3*$JU$3 -> -0 | JV5: =JO5*$JO$3*$JV$3 -> 1 | JX5: =JQ5*$JQ$3*$JX$3 -> 0 | JY5: =JR5*$JR$3*$JY$3 -> 19 | JZ5: =JS5*$JS$3*$JZ$3 -> -1 | KA5: =JT5*$JT$3*$KA$3 -> 0 | KB5: =JU5+JV5+JW5+JX5+JY5+JZ5+KA5+KW5 -> 19 | KC5: 9 | KD5: 1 | KE5: -1 | KF5: -1 | KG5: 1 | KH5: 0 | KI5: =KC5*KI$3*KC$3/1000 -> 13 | KJ5: =KD5*KJ$3*KD$3/1000 -> 1 | KK5: =KE5*KK$3*KE$3/1000 -> -1 | KL5: =KF5*KL$3*KF$3/1000 -> -0 | KM5: =KG5*KM$3*KG$3/1000 -> 1 | KN5: =KH5*KN$3*KH$3/1000 -> 0 | KO5: =SUM(KI5:KN5)+KP5+CB5+CD5+CF5 -> 36 | KP5: 20 | KV5: -0 | KW5: =KV5*$KV$3*$KW$3 -> 0 | KX5: 91 | KY5: =KX5*$KY$3*$JB$3/1000 -> 18 | KZ5: 0 | LA5: =IJ5+IK5+IL5 -> 62 | LB5: =LA5*$LA$3*$LB$3/1000 -> 43 | LC5: 0 | LD5: =LC5*$LC$3*$LD$3/1000 -> 0 | LE5: =(H5*I5*J5+L5*M5*N5+P5*R5*S5+AA5*AB5*AC5+AD5+AF5+AI5+CU5+CW5+DB5+DE5+DI5+GS5+BW5+CL5)*1+(GE5+GG5+(HQ5*GI5*GJ5))*1+(HN5+HR5*$HR$3+JG5*$JG$3+KZ5*$KZ$3++JH5*$JH$3)*1+(SUM(IO5:JD5)+JL5+GN5+KY5+LB5+LD5+SUM(KI5:KN5)+BU5+BV5+CB5+CD5+CF5+CH5+KP5+LH5+LJ5+LL5+CJ5)*1 -> 933.3 | LF5: 247 | LG5: 0 | LH5: =LG5*$LG$3*$LH$3/1000 -> 0 | LI5: 0 | LJ5: =LI5*$LI$3*$LJ$3/1000 -> 0 | LK5: 2 | LL5: =LK5*$LK$3*$LL$3/1000 -> 0 | LM5: =LE5-KY5-BU5-BV5-CH5-CL5 -> 878 | LN5: 118.0 | LO5: =(GE5+GG5)+(HQ5*GI5*GJ5) -> 117 | LP5: 782 | LQ5: =(HR5*$HR$3)+(KZ5*$KZ$3)+(JG5*$JG$3)+(JH5*$JH$3)+HN5 -> -39 | LR5: =LH5+LJ5+LL5 -> 0 | LS5: 125.46 | LT5: 262 | LU5: 173 | LV5: 1283 | LW5: 252 | LX5: 99 | LY5: 91 | LZ5: =IF(LT5<0,0,LT5*$LT$3*$LZ$3/1000) -> 19.7 | MA5: =IF(LU5<0,0,LU5*$LU$3*$MA$3/1000) -> 1.7 | MB5: =IF(LV5<0,0,LV5*$LV$3*$MB$3/1000) -> 3.8 | MC5: =IF(LW5<0,0,LW5*$LW$3*$MC$3/1000) -> 12.6 | MD5: =IF(LX5<0,0,LX5*$LX$3*$MD$3/1000) -> 1.5 | ME5: =IF(LY5<0,0,LY5*$LY$3*$ME$3/1000) -> 0.5 | MF5: =+LE5+SUM(LZ5:ME5) -> 973 | MH5: 0.23%
A6: 105101 | B6: 200262 | C6: 8 | D6: FEGERSHEIM | E6: 8 | F6: FEGERSHEIM | G6: 2019-10-31 | H6: 104 | I6: 4.32% | J6: 1.57 | K6: 2019-10-31 | L6: 1,312 | M6: 2.52% | N6: 2.76 | O6: 91 | P6: 6,004 | Q6: 0 | R6: 0.38% | S6: 7.80 | T6: 12.03 | U6: 147 | V6: 2.50% | W6: 2.48 | X6: 91 | Y6: -0.36% | Z6: 7.56 | AA6: 45 | AB6: 1.53% | AC6: 1.43 | AD6: 18.8 | AE6: 22.2 | AF6: 0.7 | AG6: 128.5 | AH6: 35.7 | AI6: 11.5 | AJ6: 201910 | AK6: 56.12 | AL6: 0 | AM6: 0.00% | AN6: 397.94 | AO6: 115.84 | AP6: 29% | AQ6: 3.15 | AR6: 0.79% | AS6: 995.46 | AT6: 224.33 | AU6: 22.5% | AV6: 0.92 | AW6: 0.09% | AX6: 125.59 | AY6: 28.60 | AZ6: 22.77% | BA6: 1.22 | BB6: 0.97% | BC6: 1,576.71 | BD6: 368.77 | BE6: 23.4% | BF6: 5.33 | BG6: 0.34% | BI6: 12 | BJ6: -2 | BK6: 129 | BL6: 305 | BM6: 7 | BN6: 0.96% | BO6: 0.00% | BP6: 8 | BQ6: 127 | BR6: 3 | BS6: 297 | BT6: 8 | BU6: -1 | BV6: 2 | BW6: -16 | BZ6: 0 | CA6: 0 | CB6: 0 | CC6: 2 | CD6: 0 | CE6: -6 | CF6: -3 | CG6: 6 | CH6: 1.2 | CI6: -6 | CJ6: -1 | CK6: 8 | CL6: =CK6*$CL$3/1000 -> 8 | CM6: 100.00% | CN6: 86.39% | CO6: 2 | CP6: 0.00% | CQ6: 0.00% | CR6: 0 | CS6: 0.7 | CT6: 0 | CU6: 1.65 | CV6: 1 | CW6: 7 | CX6: 0 | CY6: 19 | CZ6: 44.83% | DA6: 119.98% | DB6: 91 | DC6: 94.49% | DD6: 126.41% | DE6: 24 | DG6: 83.33% | DH6: 100.00% | DI6: 0 | DJ6: 13 | DK6: 0.70% | DL6: 5.33 | DM6: 0 | DN6: 452 | DO6: 0.66% | DP6: 5.33 | DQ6: 16 | DR6: -75 | DS6: 0.75% | DT6: 5.33 | DU6: -3 | DV6: 355 | DW6: 0.40% | DX6: 1.14 | DY6: 2 | DZ6: -219 | EA6: 0.20% | EB6: 5.37 | EC6: -2 | ED6: 117 | EE6: 0.20% | EF6: 5.37 | EG6: 1 | EH6: -37 | EI6: 0.20% | EJ6: 5.37 | EK6: -0 | EL6: 33 | EM6: 0.23% | EN6: 5.33 | EO6: 0 | EP6: -4 | EQ6: 0.10% | ER6: 7.32 | ES6: -0 | ET6: -252 | EU6: 0.20% | EV6: 9.00 | EW6: -5 | EX6: 296 | EY6: 0.00% | EZ6: 8.59 | FA6: 0 | FB6: -1 | FC6: -0.26% | FD6: 0.74 | FE6: 0 | FF6: -98 | FG6: 0.45% | FH6: 8.00 | FI6: -4 | FJ6: 1,332 | FK6: 0.34% | FL6: 1.00 | FM6: 5 | FN6: -81 | FO6: 0.65% | FP6: 5.00 | FQ6: -3 | FR6: 8 | FS6: 0.40% | FT6: 1.00 | FU6: 0 | FV6: -521 | FW6: 0.20% | FX6: 8.00 | FY6: -8 | FZ6: 289 | GA6: 1.00% | GB6: 5.00 | GC6: 14 | GD6: 518 | GE6: 18 | GF6: -9 | GG6: 17 | GH6: -74 | GI6: 1.00% | GJ6: 5.37 | GK6: -4 | GL6: 55 | GM6: 0 | GN6: 0 | GP6: 176 | GQ6: 1.10% | GR6: 2.06 | GS6: 4 | GT6: 136 | GU6: 0.45% | GV6: 8.00 | GW6: 5 | GX6: 200 | GY6: 0.34% | GZ6: 1.00 | HA6: 1 | HB6: 0 | HC6: 0.65% | HD6: 5.00 | HE6: 0 | HF6: 0 | HG6: 0.40% | HH6: 1.00 | HI6: 0 | HJ6: 34 | HK6: 1.00% | HL6: 5.00 | HM6: 2 | HN6: -15 | HO6: 243 | HP6: 0 | HQ6: =IF(ISERROR(IF(VLOOKUP($C6,'Indicateurs Cumulés'!$C$3:$HP$560,188,FALSE)/(VLOOKUP($C6,objectifs!$C$3:$AAB$559,158,FALSE))>=1.5,(VLOOKUP($C6,objectifs!$C$3:$AAB$559,158,FALSE))*1.5,IF(VLOOKUP($C6,'Indicateurs Cumulés'!$C$3:$HP$560,188,FALSE)/(VLOOKUP($C6,objectifs!$C$3:$AAB$559,158,FALSE))<=-0.5,(VLOOKUP($C6,objectifs!$C$3:$AAB$559,158,FALSE))*-0.5,VLOOKUP($C6,'Indicateurs Cumulés'!$C$3:$HP$560,188,FALSE)))),VLOOKUP($C6,'Indicateurs Cumulés'!$C$3:$HP$560,188,FALSE),IF(VLOOKUP($C6,'Indicateurs Cumulés'!$C$3:$HP$560,188,FALSE)/(VLOOKUP($C6,objectifs!$C$3:$AAB$559,158,FALSE))>=1.5,(VLOOKUP($C6,objectifs!$C$3:$AAB$559,158,FALSE))*1.5,IF(VLOOKUP($C6,'Indicateurs Cumulés'!$C$3:$HP$560,188,FALSE)/(VLOOKUP($C6,objectifs!$C$3:$AAB$559,158,FALSE))<=-0.5,(VLOOKUP($C6,objectifs!$C$3:$AAB$559,158,FALSE))*-0.5,VLOOKUP($C6,'Indicateurs Cumulés'!$C$3:$HP$560,188,FALSE)))) -> -74 | HR6: 170 | HS6: 0 | HT6: 3.4 | HU6: 0 | HV6: 0 | HW6: 0 | HX6: 0 | HY6: -4 | HZ6: 10 | IA6: 0 | IB6: 17 | IC6: -4 | ID6: -1 | IE6: 67 | IF6: -75 | IG6: -3 | IH6: -12 | II6: -1 | IJ6: 0 | IK6: -1 | IL6: 106 | IM6: -94 | IN6: 1 | IO6: -0 | IP6: 1 | IQ6: 0 | IR6: 1 | IS6: -0 | IT6: -0 | IU6: 8 | IV6: -33 | IW6: -0 | IX6: -7 | IY6: -1 | IZ6: 0 | JA6: -1 | JB6: 69 | JC6: -20 | JD6: 0 | JE6: 95 | JF6: 18 | JG6: 0 | JH6: 0 | JI6: 0.00 | JJ6: 0.00 | JK6: 0 | JL6: 0 | JM6: -142 | JN6: 0.20% | JO6: 12 | JQ6: 30 | JR6: 72 | JS6: -145 | JT6: =IF(ISERROR(IF(VLOOKUP($C6,'Indicateurs Cumulés'!$C$3:$HP$560,192,FALSE)/(VLOOKUP($C6,objectifs!$C$3:$AAB$559,162,FALSE))>=1.5,(VLOOKUP($C6,objectifs!$C$3:$AAB$559,162,FALSE))*1.5,IF(VLOOKUP($C6,'Indicateurs Cumulés'!$C$3:$HP$560,192,FALSE)/(VLOOKUP($C6,objectifs!$C$3:$AAB$559,162,FALSE))<=-0.5,(VLOOKUP($C6,objectifs!$C$3:$AAB$559,162,FALSE))*-0.5,VLOOKUP($C6,'Indicateurs Cumulés'!$C$3:$HP$560,192,FALSE)))),VLOOKUP($C6,'Indicateurs Cumulés'!$C$3:$HP$560,192,FALSE),IF(VLOOKUP($C6,'Indicateurs Cumulés'!$C$3:$HP$560,192,FALSE)/(VLOOKUP($C6,objectifs!$C$3:$AAB$559,162,FALSE))>=1.5,(VLOOKUP($C6,objectifs!$C$3:$AAB$559,162,FALSE))*1.5,IF(VLOOKUP($C6,'Indicateurs Cumulés'!$C$3:$HP$560,192,FALSE)/(VLOOKUP($C6,objectifs!$C$3:$AAB$559,162,FALSE))<=-0.5,(VLOOKUP($C6,objectifs!$C$3:$AAB$559,162,FALSE))*-0.5,VLOOKUP($C6,'Indicateurs Cumulés'!$C$3:$HP$560,192,FALSE)))) -> 8 | JU6: -3 | JV6: 1 | JX6: 1 | JY6: 2 | JZ6: -5 | KA6: 0 | KB6: -3 | KC6: 5 | KD6: 0 | KE6: 0 | KF6: 0 | KG6: 0 | KH6: 1 | KI6: 7 | KJ6: 0 | KK6: 0 | KL6: 0 | KM6: 0 | KN6: 0 | KO6: 10 | KP6: 6 | KV6: -28 | KW6: 0 | KX6: 22 | KY6: 4 | KZ6: 0 | LA6: 105 | LB6: 73 | LC6: 0 | LD6: 0 | LE6: 549.9 | LF6: 23 | LG6: 1 | LH6: 1 | LI6: -2 | LJ6: -3 | LK6: -4 | LL6: -0 | LM6: 535 | LN6: 159.2 | LO6: 30 | LP6: 441 | LQ6: -8 | LR6: -3 | LS6: 163.60 | LT6: 160 | LU6: 17 | LV6: 837 | LW6: 85 | LX6: 55 | LY6: 43 | LZ6: 12.0 | MA6: 0.2 | MB6: 2.5 | MC6: 4.3 | MD6: 0.8 | ME6: 0.2 | MF6: 570 | MH6: 0.31%
A7: 105006 | B7: 200262 | C7: 10 | D7: STRASBOURG MEINAU | E7: 10 | F7: STRASBOURG MEINAU | G7: 2019-10-31 | H7: 131 | I7: 4.32% | J7: 1.57 | K7: 2019-10-31 | L7: 873 | M7: 3.31% | N7: 2.51 | O7: 73 | P7: 3,502 | Q7: 0 | R7: 0.08% | S7: 8.10 | T7: 12.27 | U7: 36 | V7: 2.47% | W7: 3.12 | X7: 458 | Y7: 0.23% | Z7: 7.74 | AA7: 0 | AB7: 0.00% | AC7: 0 | AD7: 14.2 | AE7: 6.3 | AF7: 0 | AG7: 89.0 | AH7: 12.9 | AI7: 6.6 | AJ7: 201910 | AK7: 13.50 | AL7: 0.32 | AM7: 2.40% | AN7: 125.88 | AO7: 17.50 | AP7: 14% | AQ7: 2.25 | AR7: 1.79% | AS7: 826.43 | AT7: 86.86 | AU7: 10.5% | AV7: 2.05 | AW7: 0.25% | AX7: 43.11 | AY7: 3.48 | AZ7: 8.08% | BA7: 0.92 | BB7: 2.14% | BC7: 1,008.92 | BD7: 107.84 | BE7: 10.7% | BF7: 5.55 | BG7: 0.55% | BI7: 3 | BJ7: 20 | BK7: 104 | BL7: 113 | BM7: 0 | BN7: 1.36% | BO7: 0.00% | BP7: 10 | BQ7: 40 | BR7: 1 | BS7: 123 | BT7: 3 | BU7: -1 | BV7: 1 | BW7: -5 | BZ7: 0 | CA7: 0 | CB7: 0 | CC7: 0 | CD7: 0 | CE7: -1 | CF7: -1 | CG7: 16 | CH7: 3.2 | CI7: -5 | CJ7: -1 | CK7: 11 | CL7: 11 | CM7: 41.67% | CN7: 200.00% | CO7: 1 | CP7: 164.94% | CQ7: 62.27% | CR7: 9 | CS7: 0 | CT7: 0 | CU7: 0.00 | CV7: 0 | CW7: 4 | CX7: 2 | CY7: 14 | CZ7: 51.69% | DA7: 146.71% | DB7: 59 | DC7: 91.20% | DD7: 139.76% | DE7: 18 | DG7: 0.00% | DH7: 0.00% | DI7: 0 | DJ7: 125 | DK7: 0.70% | DL7: 5.33 | DM7: 5 | DN7: 388 | DO7: 0.66% | DP7: 5.33 | DQ7: 14 | DR7: -42 | DS7: 0.75% | DT7: 5.33 | DU7: -2 | DV7: -196 | DW7: 0.40% | DX7: 1.14 | DY7: -1 | DZ7: -238 | EA7: 0.20% | EB7: 5.37 | EC7: -3 | ED7: 130 | EE7: 0.20% | EF7: 5.37 | EG7: 1 | EH7: -40 | EI7: 0.20% | EJ7: 5.37 | EK7: -0 | EL7: -49 | EM7: 0.23% | EN7: 5.33 | EO7: -1 | EP7: -1 | EQ7: 0.10% | ER7: 8.65 | ES7: -0 | ET7: 85 | EU7: 0.20% | EV7: 9.00 | EW7: 2 | EX7: -271 | EY7: 0.00% | EZ7: 8.59 | FA7: 0 | FB7: 0 | FC7: -0.26% | FD7: 0.74 | FE7: 0 | FF7: -559 | FG7: 0.45% | FH7: 8.00 | FI7: -20 | FJ7: 1,243 | FK7: 0.55% | FL7: 1.00 | FM7: 7 | FN7: -99 | FO7: 0.65% | FP7: 5.00 | FQ7: -3 | FR7: 11 | FS7: 0.40% | FT7: 1.00 | FU7: 0 | FV7: -306 | FW7: 0.20% | FX7: 8.00 | FY7: -5 | FZ7: -13 | GA7: 1.00% | GB7: 5.00 | GC7: -1 | GD7: -394 | GE7: 11 | GF7: -837 | GG7: -18 | GH7: 144 | GI7: 1.00% | GJ7: 5.37 | GK7: 8 | GL7: 47 | GM7: 0 | GN7: 0 | GP7: 0 | GQ7: 0.00% | GR7: 0 | GS7: 0 | GT7: -218 | GU7: 0.45% | GV7: 8.00 | GW7: -8 | GX7: 0 | GY7: 0.55% | GZ7: 1.00 | HA7: 0 | HB7: 0 | HC7: 0.65% | HD7: 5.00 | HE7: 0 | HF7: 0 | HG7: 0.40% | HH7: 1.00 | HI7: 0 | HJ7: 40 | HK7: 1.00% | HL7: 5.00 | HM7: 2 | HN7: -14 | HO7: 307 | HP7: 0 | HQ7: =IF(ISERROR(IF(VLOOKUP($C7,'Indicateurs Cumulés'!$C$3:$HP$560,188,FALSE)/(VLOOKUP($C7,objectifs!$C$3:$AAB$559,158,FALSE))>=1.5,(VLOOKUP($C7,objectifs!$C$3:$AAB$559,158,FALSE))*1.5,IF(VLOOKUP($C7,'Indicateurs Cumulés'!$C$3:$HP$560,188,FALSE)/(VLOOKUP($C7,objectifs!$C$3:$AAB$559,158,FALSE))<=-0.5,(VLOOKUP($C7,objectifs!$C$3:$AAB$559,158,FALSE))*-0.5,VLOOKUP($C7,'Indicateurs Cumulés'!$C$3:$HP$560,188,FALSE)))),VLOOKUP($C7,'Indicateurs Cumulés'!$C$3:$HP$560,188,FALSE),IF(VLOOKUP($C7,'Indicateurs Cumulés'!$C$3:$HP$560,188,FALSE)/(VLOOKUP($C7,objectifs!$C$3:$AAB$559,158,FALSE))>=1.5,(VLOOKUP($C7,objectifs!$C$3:$AAB$559,158,FALSE))*1.5,IF(VLOOKUP($C7,'Indicateurs Cumulés'!$C$3:$HP$560,188,FALSE)/(VLOOKUP($C7,objectifs!$C$3:$AAB$559,158,FALSE))<=-0.5,(VLOOKUP($C7,objectifs!$C$3:$AAB$559,158,FALSE))*-0.5,VLOOKUP($C7,'Indicateurs Cumulés'!$C$3:$HP$560,188,FALSE)))) -> 144 | HR7: 360 | HS7: 0 | HT7: 3.5 | HU7: 0 | HV7: 0 | HW7: 0 | HX7: 0 | HY7: -7 | HZ7: 6 | IA7: 1 | IB7: -1 | IC7: -2 | ID7: 1 | IE7: 23 | IF7: -14 | IG7: 7 | IH7: -11 | II7: -1 | IJ7: 4 | IK7: -1 | IL7: 29 | IM7: -28 | IN7: -2 | IO7: -1 | IP7: 1 | IQ7: 0 | IR7: -0 | IS7: -0 | IT7: 0 | IU7: 3 | IV7: -6 | IW7: 0 | IX7: -7 | IY7: -1 | IZ7: 6 | JA7: -1 | JB7: 19 | JC7: -6 | JD7: -0 | JE7: 36 | JF7: 23 | JG7: 0 | JH7: 0 | JI7: 0.00 | JJ7: 0.00 | JK7: 0 | JL7: 0 | JM7: -1 | JN7: 0.20% | JO7: 1 | JQ7: 1 | JR7: 33 | JS7: -102 | JT7: =IF(ISERROR(IF(VLOOKUP($C7,'Indicateurs Cumulés'!$C$3:$HP$560,192,FALSE)/(VLOOKUP($C7,objectifs!$C$3:$AAB$559,162,FALSE))>=1.5,(VLOOKUP($C7,objectifs!$C$3:$AAB$559,162,FALSE))*1.5,IF(VLOOKUP($C7,'Indicateurs Cumulés'!$C$3:$HP$560,192,FALSE)/(VLOOKUP($C7,objectifs!$C$3:$AAB$559,162,FALSE))<=-0.5,(VLOOKUP($C7,objectifs!$C$3:$AAB$559,162,FALSE))*-0.5,VLOOKUP($C7,'Indicateurs Cumulés'!$C$3:$HP$560,192,FALSE)))),VLOOKUP($C7,'Indicateurs Cumulés'!$C$3:$HP$560,192,FALSE),IF(VLOOKUP($C7,'Indicateurs Cumulés'!$C$3:$HP$560,192,FALSE)/(VLOOKUP($C7,objectifs!$C$3:$AAB$559,162,FALSE))>=1.5,(VLOOKUP($C7,objectifs!$C$3:$AAB$559,162,FALSE))*1.5,IF(VLOOKUP($C7,'Indicateurs Cumulés'!$C$3:$HP$560,192,FALSE)/(VLOOKUP($C7,objectifs!$C$3:$AAB$559,162,FALSE))<=-0.5,(VLOOKUP($C7,objectifs!$C$3:$AAB$559,162,FALSE))*-0.5,VLOOKUP($C7,'Indicateurs Cumulés'!$C$3:$HP$560,192,FALSE)))) -> 8 | JU7: -0 | JV7: 0 | JX7: 0 | JY7: 1 | JZ7: -3 | KA7: 0 | KB7: -2 | KC7: -2 | KD7: 0 | KE7: 0 | KF7: 0 | KG7: -1 | KH7: 0 | KI7: -3 | KJ7: 0 | KK7: 0 | KL7: 0 | KM7: -1 | KN7: 0 | KO7: -2 | KP7: 2 | KV7: 17 | KW7: 0 | KX7: 25 | KY7: 5 | KZ7: 0 | LA7: 32 | LB7: 22 | LC7: 1 | LD7: 0 | LE7: 250.8 | LF7: 22 | LG7: 1 | LH7: 1 | LI7: 1 | LJ7: 1 | LK7: 0 | LL7: 0 | LM7: 232 | LN7: 66.5 | LO7: 0 | LP7: 217 | LQ7: 1 | LR7: 2 | LS7: 71.94 | LT7: 116 | LU7: 123 | LV7: 709 | LW7: 140 | LX7: -34 | LY7: 72 | LZ7: 8.7 | MA7: 1.2 | MB7: 2.1 | MC7: 7.0 | MD7: 0.0 | ME7: 0.4 | MF7: 270 | MH7: 0.41%
A8: 105006 | B8: 200262 | C8: 12 | D8: STRASBOURG STOCKFELD | E8: 12 | F8: STRASBOURG STOCKFELD | G8: 2019-10-31 | H8: 96 | I8: 4.32% | J8: 1.57 | K8: 2019-10-31 | L8: 527 | M8: 3.76% | N8: 2.28 | O8: 45 | P8: 949 | Q8: 0 | R8: 0.44% | S8: 8.08 | T8: 12.48 | U8: 0 | V8: 0.00% | W8: 0 | X8: 0 | Y8: 0.00% | Z8: 0 | AA8: 15 | AB8: 1.33% | AC8: 2.38 | AD8: 3.1 | AE8: 5.3 | AF8: 0.2 | AG8: 41.0 | AH8: 8.0 | AI8: 1.7 | AJ8: 201910 | AK8: 24.94 | AL8: 0.60 | AM8: 2.40% | AN8: 291.85 | AO8: 91.80 | AP8: 31% | AQ8: 4.06 | AR8: 1.39% | AS8: 523.96 | AT8: 3.63 | AU8: 0.7% | AV8: 0.26 | AW8: 0.05% | AX8: 55.74 | AY8: 1.83 | AZ8: 3.28% | BA8: 0.60 | BB8: 1.08% | BC8: 896.49 | BD8: 97.26 | BE8: 10.8% | BF8: 5.52 | BG8: 0.62% | BI8: 0 | BJ8: 0 | BK8: 65 | BL8: 68 | BM8: 1 | BN8: 0.87% | BP8: 12 | BQ8: 58 | BR8: 1 | BS8: 122 | BT8: 3 | BU8: 0 | BV8: -2 | BW8: -10 | BZ8: 0 | CA8: 0 | CB8: 0 | CC8: 0 | CD8: 0 | CE8: -6 | CF8: -3 | CG8: 5 | CH8: 1.0 | CI8: -6 | CJ8: -1 | CK8: 2 | CL8: 2 | CM8: 0.00% | CN8: 0.00% | CO8: 0 | CP8: 0.00% | CQ8: 0.00% | CR8: 0 | CS8: 0.2 | CT8: 0 | CU8: 0.00 | CV8: 0 | CW8: 3 | CX8: 0 | CY8: 3 | CZ8: 100.00% | DA8: 152.30% | DB8: 28 | DC8: 93.26% | DD8: 143.36% | DE8: 11 | DG8: 0.00% | DH8: 0.00% | DI8: 0 | DJ8: -70 | DK8: 0.70% | DL8: 5.33 | DM8: -3 | DN8: 69 | DO8: 0.66% | DP8: 5.33 | DQ8: 2 | DR8: 36 | DS8: 0.75% | DT8: 5.33 | DU8: 1 | DV8: -5 | DW8: 0.40% | DX8: 1.14 | DY8: -0 | DZ8: -154 | EA8: 0.20% | EB8: 5.37 | EC8: -2 | ED8: 57 | EE8: 0.20% | EF8: 5.37 | EG8: 1 | EH8: -16 | EI8: 0.20% | EJ8: 5.37 | EK8: -0 | EL8: 17 | EM8: 0.23% | EN8: 5.33 | EO8: 0 | EP8: 13 | EQ8: 0.10% | ER8: 7.64 | ES8: 0 | ET8: -13 | EU8: 0.20% | EV8: 9.00 | EW8: -0 | EX8: -545 | EY8: 0.00% | EZ8: 8.59 | FA8: 0 | FB8: 0 | FC8: -0.26% | FD8: 0.74 | FE8: 0 | FF8: 142 | FG8: 0.45% | FH8: 8.00 | FI8: 5 | FJ8: 892 | FK8: 0.62% | FL8: 1.00 | FM8: 5 | FN8: -53 | FO8: 0.65% | FP8: 5.00 | FQ8: -2 | FR8: 5 | FS8: 0.40% | FT8: 1.00 | FU8: 0 | FV8: -243 | FW8: 0.20% | FX8: 8.00 | FY8: -4 | FZ8: 213 | GA8: 1.00% | GB8: 5.00 | GC8: 11 | GD8: -687 | GE8: 5 | GF8: 93 | GG8: 14 | GH8: 41 | GI8: 1.00% | GJ8: 5.37 | GK8: 2 | GL8: 18 | GM8: 0 | GN8: 0 | GP8: 0 | GQ8: 0.00% | GR8: 0 | GS8: 0 | GT8: 0 | GU8: 0.45% | GV8: 8.00 | GW8: 0 | GX8: 0 | GY8: 0.62% | GZ8: 1.00 | HA8: 0 | HB8: 0 | HC8: 0.65% | HD8: 5.00 | HE8: 0 | HF8: 0 | HG8: 0.40% | HH8: 1.00 | HI8: 0 | HJ8: 3 | HK8: 1.00% | HL8: 5.00 | HM8: 0 | HN8: -10 | HO8: 260 | HP8: 0 | HQ8: =IF(ISERROR(IF(VLOOKUP($C8,'Indicateurs Cumulés'!$C$3:$HP$560,188,FALSE)/(VLOOKUP($C8,objectifs!$C$3:$AAB$559,158,FALSE))>=1.5,(VLOOKUP($C8,objectifs!$C$3:$AAB$559,158,FALSE))*1.5,IF(VLOOKUP($C8,'Indicateurs Cumulés'!$C$3:$HP$560,188,FALSE)/(VLOOKUP($C8,objectifs!$C$3:$AAB$559,158,FALSE))<=-0.5,(VLOOKUP($C8,objectifs!$C$3:$AAB$559,158,FALSE))*-0.5,VLOOKUP($C8,'Indicateurs Cumulés'!$C$3:$HP$560,188,FALSE)))),VLOOKUP($C8,'Indicateurs Cumulés'!$C$3:$HP$560,188,FALSE),IF(VLOOKUP($C8,'Indicateurs Cumulés'!$C$3:$HP$560,188,FALSE)/(VLOOKUP($C8,objectifs!$C$3:$AAB$559,158,FALSE))>=1.5,(VLOOKUP($C8,objectifs!$C$3:$AAB$559,158,FALSE))*1.5,IF(VLOOKUP($C8,'Indicateurs Cumulés'!$C$3:$HP$560,188,FALSE)/(VLOOKUP($C8,objectifs!$C$3:$AAB$559,158,FALSE))<=-0.5,(VLOOKUP($C8,objectifs!$C$3:$AAB$559,158,FALSE))*-0.5,VLOOKUP($C8,'Indicateurs Cumulés'!$C$3:$HP$560,188,FALSE)))) -> 41 | HR8: 0 | HS8: 0 | HT8: 3.1 | HU8: 0 | HV8: 0 | HW8: 0 | HX8: 0 | HY8: 0 | HZ8: -10 | IA8: -1 | IB8: 25 | IC8: -2 | ID8: 9 | IE8: 16 | IF8: 5 | IG8: 2 | IH8: -20 | II8: -2 | IJ8: 0 | IK8: -2 | IL8: 45 | IM8: -32 | IN8: -5 | IO8: 0 | IP8: -1 | IQ8: -0 | IR8: 2 | IS8: -0 | IT8: 1 | IU8: 2 | IV8: 2 | IW8: 0 | IX8: -12 | IY8: -2 | IZ8: 0 | JA8: -2 | JB8: 29 | JC8: -7 | JD8: -0 | JE8: 46 | JF8: 1 | JG8: 0 | JH8: 0 | JI8: 0.00 | JJ8: 0.00 | JK8: 0 | JL8: 0 | JM8: 0 | JN8: 0.20% | JO8: -0 | JQ8: 0 | JR8: -44 | JS8: -39 | JT8: =IF(ISERROR(IF(VLOOKUP($C8,'Indicateurs Cumulés'!$C$3:$HP$560,192,FALSE)/(VLOOKUP($C8,objectifs!$C$3:$AAB$559,162,FALSE))>=1.5,(VLOOKUP($C8,objectifs!$C$3:$AAB$559,162,FALSE))*1.5,IF(VLOOKUP($C8,'Indicateurs Cumulés'!$C$3:$HP$560,192,FALSE)/(VLOOKUP($C8,objectifs!$C$3:$AAB$559,162,FALSE))<=-0.5,(VLOOKUP($C8,objectifs!$C$3:$AAB$559,162,FALSE))*-0.5,VLOOKUP($C8,'Indicateurs Cumulés'!$C$3:$HP$560,192,FALSE)))),VLOOKUP($C8,'Indicateurs Cumulés'!$C$3:$HP$560,192,FALSE),IF(VLOOKUP($C8,'Indicateurs Cumulés'!$C$3:$HP$560,192,FALSE)/(VLOOKUP($C8,objectifs!$C$3:$AAB$559,162,FALSE))>=1.5,(VLOOKUP($C8,objectifs!$C$3:$AAB$559,162,FALSE))*1.5,IF(VLOOKUP($C8,'Indicateurs Cumulés'!$C$3:$HP$560,192,FALSE)/(VLOOKUP($C8,objectifs!$C$3:$AAB$559,162,FALSE))<=-0.5,(VLOOKUP($C8,objectifs!$C$3:$AAB$559,162,FALSE))*-0.5,VLOOKUP($C8,'Indicateurs Cumulés'!$C$3:$HP$560,192,FALSE)))) -> 8 | JU8: 0 | JV8: -0 | JX8: 0 | JY8: -1 | JZ8: -1 | KA8: 0 | KB8: -2 | KC8: 0 | KD8: 0 | KE8: 0 | KF8: -2 | KG8: 0 | KH8: 0 | KI8: 0 | KJ8: 0 | KK8: 0 | KL8: -0 | KM8: 0 | KN8: 0 | KO8: -2 | KP8: 2 | KV8: -29 | KW8: 0 | KX8: 33 | KY8: 7 | KZ8: 0 | LA8: 43 | LB8: 30 | LC8: -1 | LD8: -0 | LE8: 170.3 | LF8: -12 | LG8: -3 | LH8: -2 | LI8: -5 | LJ8: -7 | LK8: 0 | LL8: 0 | LM8: 163 | LN8: 53.3 | LO8: 21 | LP8: 134 | LQ8: -10 | LR8: -9 | LS8: 55.79 | LT8: 91 | LU8: 63 | LV8: 783 | LW8: 44 | LX8: 19 | LY8: 44 | LZ8: 6.8 | MA8: 0.6 | MB8: 2.3 | MC8: 2.2 | MD8: 0.3 | ME8: 0.2 | MF8: 183 | MH8: 0.33%
A9: 105101 | B9: 200262 | C9: 13 | D9: ILLKIRCH NORD | E9: 7 | F9: ILLKIRCH CENTRE | G9: 2019-10-31 | H9: 81 | I9: 4.32% | J9: 1.57 | K9: 2019-10-31 | L9: 728 | M9: 3.10% | N9: 2.32 | O9: 52 | P9: 6,175 | Q9: 0 | R9: 0.18% | S9: 7.52 | T9: 11.69 | U9: 17 | V9: 2.98% | W9: 2.08 | X9: 191 | Y9: -0.15% | Z9: 7.56 | AA9: 0 | AB9: 0.00% | AC9: 0 | AD9: 14.8 | AE9: 6.3 | AF9: 0 | AG9: 413.3 | AH9: 12.5 | AI9: 12.6 | AJ9: 201910 | AK9: 4.60 | AL9: 0 | AM9: 0.00% | AN9: 346.45 | AO9: 104.24 | AP9: 30% | AQ9: 1.98 | AR9: 0.57% | AS9: 612.59 | AT9: 102.33 | AU9: 16.7% | AV9: 0.87 | AW9: 0.14% | AX9: 75.08 | AY9: 2.40 | AZ9: 3.20% | BA9: 1.34 | BB9: 1.79% | BC9: 1,038.72 | BD9: 208.97 | BE9: 20.1% | BF9: 4.20 | BG9: 0.40% | BI9: 2 | BJ9: -1 | BK9: 75 | BL9: 203 | BM9: 0 | BN9: 1.01% | BO9: 0.00% | BP9: 13 | BQ9: 42 | BR9: 1 | BS9: 176 | BT9: 5 | BU9: 3 | BV9: 6 | BW9: -18 | BZ9: 0 | CA9: 0 | CB9: 0 | CC9: -2 | CD9: -0 | CE9: 0 | CF9: 0 | CG9: 24 | CH9: 4.8 | CI9: 0 | CJ9: 0 | CK9: 11 | CL9: 11 | CM9: 100.00% | CN9: 200.00% | CO9: 0 | CP9: 0.00% | CQ9: 0.00% | CR9: 0 | CS9: 0 | CT9: 0 | CU9: 0.00 | CV9: 0 | CW9: 4 | CX9: 1 | CY9: 15 | CZ9: 39.15% | DA9: 130.92% | DB9: 81 | DC9: 81.74% | DD9: 150.33% | DE9: 13 | DG9: 0.00% | DH9: 0.00% | DI9: 0 | DJ9: 165 | DK9: 0.70% | DL9: 5.33 | DM9: 6 | DN9: -176 | DO9: 0.66% | DP9: 5.33 | DQ9: -6 | DR9: -16 | DS9: 0.75% | DT9: 5.33 | DU9: -1 | DV9: 12 | DW9: 0.40% | DX9: 1.14 | DY9: 0 | DZ9: -62 | EA9: 0.20% | EB9: 5.37 | EC9: -1 | ED9: 65 | EE9: 0.20% | EF9: 5.37 | EG9: 1 | EH9: -12 | EI9: 0.20% | EJ9: 5.37 | EK9: -0 | EL9: -74 | EM9: 0.23% | EN9: 5.33 | EO9: -1 | EP9: -3 | EQ9: 0.10% | ER9: 6.70 | ES9: -0 | ET9: -5 | EU9: 0.20% | EV9: 9.00 | EW9: -0 | EX9: -109 | EY9: 0.00% | EZ9: 7.05 | FA9: 0 | FB9: 0 | FC9: -0.26% | FD9: 0.74 | FE9: 0 | FF9: -262 | FG9: 0.45% | FH9: 8.00 | FI9: -9 | FJ9: 967 | FK9: 0.40% | FL9: 1.00 | FM9: 4 | FN9: -76 | FO9: 0.65% | FP9: 5.00 | FQ9: -2 | FR9: 17 | FS9: 0.40% | FT9: 1.00 | FU9: 0 | FV9: -185 | FW9: 0.20% | FX9: 8.00 | FY9: -3 | FZ9: 117 | GA9: 1.00% | GB9: 5.00 | GC9: 6 | GD9: -253 | GE9: 2 | GF9: -149 | GG9: 6 | GH9: -306 | GI9: 1.00% | GJ9: 5.37 | GK9: -16 | GL9: 5 | GM9: 0 | GN9: 0 | GP9: 0 | GQ9: 0.00% | GR9: 0 | GS9: 0 | GT9: 138 | GU9: 0.45% | GV9: 8.00 | GW9: 5 | GX9: 200 | GY9: 0.40% | GZ9: 1.00 | HA9: 1 | HB9: 0 | HC9: 0.65% | HD9: 5.00 | HE9: 0 | HF9: 0 | HG9: 0.40% | HH9: 1.00 | HI9: 0 | HJ9: 51 | HK9: 1.00% | HL9: 5.00 | HM9: 3 | HN9: -12 | HO9: 150 | HP9: 0 | HQ9: =IF(ISERROR(IF(VLOOKUP($C9,'Indicateurs Cumulés'!$C$3:$HP$560,188,FALSE)/(VLOOKUP($C9,objectifs!$C$3:$AAB$559,158,FALSE))>=1.5,(VLOOKUP($C9,objectifs!$C$3:$AAB$559,158,FALSE))*1.5,IF(VLOOKUP($C9,'Indicateurs Cumulés'!$C$3:$HP$560,188,FALSE)/(VLOOKUP($C9,objectifs!$C$3:$AAB$559,158,FALSE))<=-0.5,(VLOOKUP($C9,objectifs!$C$3:$AAB$559,158,FALSE))*-0.5,VLOOKUP($C9,'Indicateurs Cumulés'!$C$3:$HP$560,188,FALSE)))),VLOOKUP($C9,'Indicateurs Cumulés'!$C$3:$HP$560,188,FALSE),IF(VLOOKUP($C9,'Indicateurs Cumulés'!$C$3:$HP$560,188,FALSE)/(VLOOKUP($C9,objectifs!$C$3:$AAB$559,158,FALSE))>=1.5,(VLOOKUP($C9,objectifs!$C$3:$AAB$559,158,FALSE))*1.5,IF(VLOOKUP($C9,'Indicateurs Cumulés'!$C$3:$HP$560,188,FALSE)/(VLOOKUP($C9,objectifs!$C$3:$AAB$559,158,FALSE))<=-0.5,(VLOOKUP($C9,objectifs!$C$3:$AAB$559,158,FALSE))*-0.5,VLOOKUP($C9,'Indicateurs Cumulés'!$C$3:$HP$560,188,FALSE)))) -> -140 | HR9: 0 | HS9: 0 | HT9: 0.8 | HU9: 0 | HV9: 0 | HW9: 0 | HX9: 0 | HY9: 15 | HZ9: 30 | IA9: 3 | IB9: -1 | IC9: -4 | ID9: 0 | IE9: 9 | IF9: -7 | IG9: -2 | IH9: -7 | II9: -4 | IJ9: 2 | IK9: -3 | IL9: 32 | IM9: -22 | IN9: -3 | IO9: 2 | IP9: 3 | IQ9: 1 | IR9: -0 | IS9: -0 | IT9: 0 | IU9: 1 | IV9: -3 | IW9: -0 | IX9: -4 | IY9: -4 | IZ9: 3 | JA9: -3 | JB9: 21 | JC9: -5 | JD9: -0 | JE9: 47 | JF9: 1 | JG9: 0 | JH9: 0 | JI9: 0.00 | JJ9: 0.00 | JK9: 0 | JL9: 0 | JM9: -1 | JN9: 0.20% | JO9: 0 | JQ9: 4 | JR9: 31 | JS9: 39 | JT9: =IF(ISERROR(IF(VLOOKUP($C9,'Indicateurs Cumulés'!$C$3:$HP$560,192,FALSE)/(VLOOKUP($C9,objectifs!$C$3:$AAB$559,162,FALSE))>=1.5,(VLOOKUP($C9,objectifs!$C$3:$AAB$559,162,FALSE))*1.5,IF(VLOOKUP($C9,'Indicateurs Cumulés'!$C$3:$HP$560,192,FALSE)/(VLOOKUP($C9,objectifs!$C$3:$AAB$559,162,FALSE))<=-0.5,(VLOOKUP($C9,objectifs!$C$3:$AAB$559,162,FALSE))*-0.5,VLOOKUP($C9,'Indicateurs Cumulés'!$C$3:$HP$560,192,FALSE)))),VLOOKUP($C9,'Indicateurs Cumulés'!$C$3:$HP$560,192,FALSE),IF(VLOOKUP($C9,'Indicateurs Cumulés'!$C$3:$HP$560,192,FALSE)/(VLOOKUP($C9,objectifs!$C$3:$AAB$559,162,FALSE))>=1.5,(VLOOKUP($C9,objectifs!$C$3:$AAB$559,162,FALSE))*1.5,IF(VLOOKUP($C9,'Indicateurs Cumulés'!$C$3:$HP$560,192,FALSE)/(VLOOKUP($C9,objectifs!$C$3:$AAB$559,162,FALSE))<=-0.5,(VLOOKUP($C9,objectifs!$C$3:$AAB$559,162,FALSE))*-0.5,VLOOKUP($C9,'Indicateurs Cumulés'!$C$3:$HP$560,192,FALSE)))) -> 5 | JU9: -0 | JV9: 0 | JX9: 0 | JY9: 1 | JZ9: 1 | KA9: 0 | KB9: 3 | KC9: 2 | KD9: 0 | KE9: 2 | KF9: 1 | KG9: 0 | KH9: 0 | KI9: 3 | KJ9: 0 | KK9: 1 | KL9: 0 | KM9: 0 | KN9: 0 | KO9: 5 | KP9: 0 | KV9: 5 | KW9: 0 | KX9: 5 | KY9: 1 | KZ9: 0 | LA9: 31 | LB9: 22 | LC9: 0 | LD9: 0 | LE9: 297.0 | LF9: 4 | LG9: -2 | LH9: -1 | LI9: -2 | LJ9: -3 | LK9: 6 | LL9: 1 | LM9: 271 | LN9: 340.3 | LO9: 1 | LP9: 278 | LQ9: -12 | LR9: -4 | LS9: 372.73 | LT9: 90 | LU9: 127 | LV9: 443 | LW9: 73 | LX9: 250 | LY9: 32 | LZ9: 6.8 | MA9: 1.3 | MB9: 1.3 | MC9: 3.7 | MD9: 3.8 | ME9: 0.2 | MF9: 314 | MH9: 0.24%
A10: 105101 | B10: 200262 | C10: 14 | D10: OSTWALD | E10: 15 | F10: LINGOLSHEIM | G10: 2019-10-31 | H10: 84 | I10: 4.32% | J10: 1.57 | K10: 2019-10-31 | L10: 847 | M10: 3.02% | N10: 2.48 | O10: 63 | P10: 3,315 | Q10: 0 | R10: 0.32% | S10: 6.15 | T10: 9.36 | U10: 20 | V10: 3.57% | W10: 1.52 | X10: 212 | Y10: -0.06% | Z10: 6.34 | AA10: 538 | AB10: -0.08% | AC10: 4.38 | AD10: 8.8 | AE10: 6.7 | AF10: 1.0 | AG10: 52.5 | AH10: 13.7 | AI10: 6.1 | AJ10: 201910 | AK10: 0 | AL10: 0 | AM10: 0.00% | AN10: 121.78 | AO10: 35.06 | AP10: 29% | AQ10: 1.15 | AR10: 0.95% | AS10: 682.61 | AT10: 112.71 | AU10: 16.5% | AV10: 0.10 | AW10: 0.01% | AX10: 53.53 | AY10: 1.95 | AZ10: 3.64% | BA10: 0.54 | BB10: 1.00% | BC10: 857.92 | BD10: 149.72 | BE10: 17.5% | BF10: 1.79 | BG10: 0.21% | BI10: 1 | BJ10: 1 | BK10: 88 | BL10: 128 | BM10: -1 | BN10: 0.85% | BO10: 0.00% | BP10: 14 | BQ10: 86 | BR10: 2 | BS10: 64 | BT10: 2 | BU10: 1 | BV10: 1 | BW10: -14 | BZ10: 0 | CA10: 0 | CB10: 0 | CC10: 0 | CD10: 0 | CE10: -6 | CF10: -3 | CG10: 11 | CH10: 2.2 | CI10: -11 | CJ10: -2 | CK10: 3 | CL10: 3 | CM10: 100.00% | CN10: 100.00% | CO10: 0 | CP10: 0.00% | CQ10: 0.00% | CR10: 1 | CS10: 1.0 | CT10: 1 | CU10: 0.00 | CV10: 0 | CW10: 2 | CX10: 1 | CY10: 9 | CZ10: 56.11% | DA10: 129.79% | DB10: 45 | DC10: 95.75% | DD10: 128.21% | DE10: 17 | DG10: 0.00% | DH10: 0.00% | DI10: 0 | DJ10: 69 | DK10: 0.70% | DL10: 5.33 | DM10: 3 | DN10: 235 | DO10: 0.66% | DP10: 5.33 | DQ10: 8 | DR10: -82 | DS10: 0.75% | DT10: 5.33 | DU10: -3 | DV10: 122 | DW10: 0.40% | DX10: 1.14 | DY10: 1 | DZ10: -272 | EA10: 0.20% | EB10: 5.37 | EC10: -3 | ED10: 64 | EE10: 0.20% | EF10: 5.37 | EG10: 1 | EH10: -7 | EI10: 0.20% | EJ10: 5.37 | EK10: -0 | EL10: -18 | EM10: 0.23% | EN10: 5.33 | EO10: -0 | EP10: -10 | EQ10: 0.10% | ER10: 8.23 | ES10: -0 | ET10: 98 | EU10: 0.20% | EV10: 9.00 | EW10: 2 | EX10: -212 | EY10: 0.00% | EZ10: 2.99 | FA10: 0 | FB10: 0 | FC10: -0.26% | FD10: 0.74 | FE10: 0 | FF10: 405 | FG10: 0.45% | FH10: 8.00 | FI10: 15 | FJ10: 769 | FK10: 0.21% | FL10: 1.00 | FM10: 2 | FN10: -33 | FO10: 0.65% | FP10: 5.00 | FQ10: -1 | FR10: 14 | FS10: 0.40% | FT10: 1.00 | FU10: 0 | FV10: -142 | FW10: 0.20% | FX10: 8.00 | FY10: -2 | FZ10: -50 | GA10: 1.00% | GB10: 5.00 | GC10: -2 | GD10: -262 | GE10: 1 | GF10: 757 | GG10: 33 | GH10: -116 | GI10: 1.00% | GJ10: 5.37 | GK10: -6 | GL10: -209 | GM10: 0 | GN10: 0 | GP10: 0 | GQ10: 0.00% | GR10: 0 | GS10: 0 | GT10: 403 | GU10: 0.45% | GV10: 8.00 | GW10: 14 | GX10: 403 | GY10: 0.21% | GZ10: 1.00 | HA10: 1 | HB10: 0 | HC10: 0.65% | HD10: 5.00 | HE10: 0 | HF10: 0 | HG10: 0.40% | HH10: 1.00 | HI10: 0 | HJ10: -18 | HK10: 1.00% | HL10: 5.00 | HM10: -1 | HN10: -10 | HO10: 148 | HP10: 0 | HQ10: =IF(ISERROR(IF(VLOOKUP($C10,'Indicateurs Cumulés'!$C$3:$HP$560,188,FALSE)/(VLOOKUP($C10,objectifs!$C$3:$AAB$559,158,FALSE))>=1.5,(VLOOKUP($C10,objectifs!$C$3:$AAB$559,158,FALSE))*1.5,IF(VLOOKUP($C10,'Indicateurs Cumulés'!$C$3:$HP$560,188,FALSE)/(VLOOKUP($C10,objectifs!$C$3:$AAB$559,158,FALSE))<=-0.5,(VLOOKUP($C10,objectifs!$C$3:$AAB$559,158,FALSE))*-0.5,VLOOKUP($C10,'Indicateurs Cumulés'!$C$3:$HP$560,188,FALSE)))),VLOOKUP($C10,'Indicateurs Cumulés'!$C$3:$HP$560,188,FALSE),IF(VLOOKUP($C10,'Indicateurs Cumulés'!$C$3:$HP$560,188,FALSE)/(VLOOKUP($C10,objectifs!$C$3:$AAB$559,158,FALSE))>=1.5,(VLOOKUP($C10,objectifs!$C$3:$AAB$559,158,FALSE))*1.5,IF(VLOOKUP($C10,'Indicateurs Cumulés'!$C$3:$HP$560,188,FALSE)/(VLOOKUP($C10,objectifs!$C$3:$AAB$559,158,FALSE))<=-0.5,(VLOOKUP($C10,objectifs!$C$3:$AAB$559,158,FALSE))*-0.5,VLOOKUP($C10,'Indicateurs Cumulés'!$C$3:$HP$560,188,FALSE)))) -> -116 | HR10: 0 | HS10: 0 | HT10: 0.8 | HU10: 0 | HV10: 0 | HW10: 0 | HX10: 0 | HY10: 7 | HZ10: 5 | IA10: 0 | IB10: 0 | IC10: -2 | ID10: 0 | IE10: -3 | IF10: 4 | IG10: -3 | IH10: -6 | II10: -7 | IJ10: 2 | IK10: 3 | IL10: 17 | IM10: -10 | IN10: -1 | IO10: 1 | IP10: 0 | IQ10: 0 | IR10: 0 | IS10: -0 | IT10: 0 | IU10: -0 | IV10: 2 | IW10: -0 | IX10: -4 | IY10: -7 | IZ10: 3 | JA10: 3 | JB10: 11 | JC10: -2 | JD10: -0 | JE10: 27 | JF10: 2 | JG10: 0 | JH10: 0 | JI10: 0.00 | JJ10: 0.00 | JK10: 0 | JL10: 0 | JM10: 0 | JN10: 0.20% | JO10: 0 | JQ10: -0 | JR10: -58 | JS10: -35 | JT10: =IF(ISERROR(IF(VLOOKUP($C10,'Indicateurs Cumulés'!$C$3:$HP$560,192,FALSE)/(VLOOKUP($C10,objectifs!$C$3:$AAB$559,162,FALSE))>=1.5,(VLOOKUP($C10,objectifs!$C$3:$AAB$559,162,FALSE))*1.5,IF(VLOOKUP($C10,'Indicateurs Cumulés'!$C$3:$HP$560,192,FALSE)/(VLOOKUP($C10,objectifs!$C$3:$AAB$559,162,FALSE))<=-0.5,(VLOOKUP($C10,objectifs!$C$3:$AAB$559,162,FALSE))*-0.5,VLOOKUP($C10,'Indicateurs Cumulés'!$C$3:$HP$560,192,FALSE)))),VLOOKUP($C10,'Indicateurs Cumulés'!$C$3:$HP$560,192,FALSE),IF(VLOOKUP($C10,'Indicateurs Cumulés'!$C$3:$HP$560,192,FALSE)/(VLOOKUP($C10,objectifs!$C$3:$AAB$559,162,FALSE))>=1.5,(VLOOKUP($C10,objectifs!$C$3:$AAB$559,162,FALSE))*1.5,IF(VLOOKUP($C10,'Indicateurs Cumulés'!$C$3:$HP$560,192,FALSE)/(VLOOKUP($C10,objectifs!$C$3:$AAB$559,162,FALSE))<=-0.5,(VLOOKUP($C10,objectifs!$C$3:$AAB$559,162,FALSE))*-0.5,VLOOKUP($C10,'Indicateurs Cumulés'!$C$3:$HP$560,192,FALSE)))) -> -3 | JU10: 0 | JV10: 0 | JX10: -0 | JY10: -2 | JZ10: -1 | KA10: -0 | KB10: -3 | KC10: 1 | KD10: 0 | KE10: 0 | KF10: -1 | KG10: 2 | KH10: 0 | KI10: 1 | KJ10: 0 | KK10: 0 | KL10: -0 | KM10: 1 | KN10: 0 | KO10: 2 | KP10: 2 | KV10: 11 | KW10: 0 | KX10: 14 | KY10: 3 | KZ10: 0 | LA10: 22 | LB10: 15 | LC10: 0 | LD10: 0 | LE10: 242.3 | LF10: -5 | LG10: -1 | LH10: -1 | LI10: -3 | LJ10: -4 | LK10: 1 | LL10: 0 | LM10: 232 | LN10: 293.2 | LO10: 28 | LP10: 215 | LQ10: -10 | LR10: -5 | LS10: 306.35 | LT10: 78 | LU10: 71 | LV10: 489 | LW10: 49 | LX10: 42 | LY10: 28 | LZ10: 5.9 | MA10: 0.7 | MB10: 1.5 | MC10: 2.5 | MD10: 0.6 | ME10: 0.1 | MF10: 254 | MH10: 0.27%
A11: 105101 | B11: 200262 | C11: 15 | D11: LINGOLSHEIM | E11: 15 | F11: LINGOLSHEIM | G11: 2019-10-31 | H11: 126 | I11: 4.32% | J11: 1.57 | K11: 2019-10-31 | L11: 1,183 | M11: 2.99% | N11: 2.39 | O11: 85 | P11: 4,672 | Q11: 0 | R11: 0.44% | S11: 7.67 | T11: 11.91 | U11: 30 | V11: 2.87% | W11: 1.78 | X11: 436 | Y11: 0.46% | Z11: 7.24 | AA11: 312 | AB11: 1.32% | AC11: 2.58 | AD11: 14.2 | AE11: 13.8 | AF11: 1.9 | AG11: 838.4 | AH11: 20.0 | AI11: 9.5 | AJ11: 201910 | AK11: 0 | AL11: 0 | AM11: 0.00% | AN11: 346.72 | AO11: 131.36 | AP11: 38% | AQ11: 2.42 | AR11: 0.70% | AS11: 1,311.01 | AT11: 174.47 | AU11: 13.3% | AV11: 1.26 | AW11: 0.10% | AX11: 86.41 | AY11: 1.36 | AZ11: 1.57% | BA11: 1.64 | BB11: 1.90% | BC11: 1,744.14 | BD11: 307.18 | BE11: 17.6% | BF11: 5.32 | BG11: 0.31% | BI11: 2 | BJ11: 17 | BK11: 122 | BL11: 286 | BM11: 15 | BN11: 0.85% | BO11: 0.00% | BP11: 15 | BQ11: 151 | BR11: 3 | BS11: 162 | BT11: 5 | BU11: 1 | BV11: 4 | BW11: -31 | BZ11: 0 | CA11: 0 | CB11: 0 | CC11: 2 | CD11: 0 | CE11: 1 | CF11: 1 | CG11: 20 | CH11: 4.0 | CI11: -13 | CJ11: -3 | CK11: 5 | CL11: 5 | CM11: 100.00% | CN11: 100.00% | CO11: 0 | CP11: 0.00% | CQ11: 0.00% | CR11: 0 | CS11: 1.9 | CT11: 1 | CU11: 0.12 | CV11: 0 | CW11: 5 | CX11: 1 | CY11: 14 | CZ11: 45.50% | DA11: 154.49% | DB11: 99 | DC11: 95.33% | DD11: 132.19% | DE11: 24 | DG11: 47.84% | DH11: 140.82% | DI11: 1 | DJ11: 296 | DK11: 0.70% | DL11: 5.33 | DM11: 11 | DN11: 69 | DO11: 0.66% | DP11: 5.33 | DQ11: 2 | DR11: 8 | DS11: 0.75% | DT11: 5.33 | DU11: 0 | DV11: 402 | DW11: 0.40% | DX11: 1.14 | DY11: 2 | DZ11: -237 | EA11: 0.20% | EB11: 5.37 | EC11: -3 | ED11: 8 | EE11: 0.20% | EF11: 5.37 | EG11: 0 | EH11: -39 | EI11: 0.20% | EJ11: 5.37 | EK11: -0 | EL11: -33 | EM11: 0.23% | EN11: 5.33 | EO11: -0 | EP11: -3 | EQ11: 0.10% | ER11: 8.37 | ES11: -0 | ET11: -40 | EU11: 0.20% | EV11: 9.00 | EW11: -1 | EX11: -237 | EY11: 0.00% | EZ11: 8.59 | FA11: 0 | FB11: 0 | FC11: -0.26% | FD11: 0.74 | FE11: 0 | FF11: 556 | FG11: 0.45% | FH11: 8.00 | FI11: 20 | FJ11: 1,635 | FK11: 0.31% | FL11: 1.00 | FM11: 5 | FN11: -36 | FO11: 0.65% | FP11: 5.00 | FQ11: -1 | FR11: 41 | FS11: 0.40% | FT11: 1.00 | FU11: 0 | FV11: -241 | FW11: 0.20% | FX11: 8.00 | FY11: -4 | FZ11: -86 | GA11: 1.00% | GB11: 5.00 | GC11: -4 | GD11: -245 | GE11: -0 | GF11: 618 | GG11: 36 | GH11: 131 | GI11: 1.00% | GJ11: 5.37 | GK11: 7 | GL11: -158 | GM11: 0 | GN11: 0 | GP11: 25 | GQ11: 1.02% | GR11: 2.37 | GS11: 1 | GT11: 12 | GU11: 0.45% | GV11: 8.00 | GW11: 0 | GX11: 20 | GY11: 0.31% | GZ11: 1.00 | HA11: 0 | HB11: 0 | HC11: 0.65% | HD11: 5.00 | HE11: 0 | HF11: 0 | HG11: 0.40% | HH11: 1.00 | HI11: 0 | HJ11: 86 | HK11: 1.00% | HL11: 5.00 | HM11: 4 | HN11: -13 | HO11: 285 | HP11: 0 | HQ11: =IF(ISERROR(IF(VLOOKUP($C11,'Indicateurs Cumulés'!$C$3:$HP$560,188,FALSE)/(VLOOKUP($C11,objectifs!$C$3:$AAB$559,158,FALSE))>=1.5,(VLOOKUP($C11,objectifs!$C$3:$AAB$559,158,FALSE))*1.5,IF(VLOOKUP($C11,'Indicateurs Cumulés'!$C$3:$HP$560,188,FALSE)/(VLOOKUP($C11,objectifs!$C$3:$AAB$559,158,FALSE))<=-0.5,(VLOOKUP($C11,objectifs!$C$3:$AAB$559,158,FALSE))*-0.5,VLOOKUP($C11,'Indicateurs Cumulés'!$C$3:$HP$560,188,FALSE)))),VLOOKUP($C11,'Indicateurs Cumulés'!$C$3:$HP$560,188,FALSE),IF(VLOOKUP($C11,'Indicateurs Cumulés'!$C$3:$HP$560,188,FALSE)/(VLOOKUP($C11,objectifs!$C$3:$AAB$559,158,FALSE))>=1.5,(VLOOKUP($C11,objectifs!$C$3:$AAB$559,158,FALSE))*1.5,IF(VLOOKUP($C11,'Indicateurs Cumulés'!$C$3:$HP$560,188,FALSE)/(VLOOKUP($C11,objectifs!$C$3:$AAB$559,158,FALSE))<=-0.5,(VLOOKUP($C11,objectifs!$C$3:$AAB$559,158,FALSE))*-0.5,VLOOKUP($C11,'Indicateurs Cumulés'!$C$3:$HP$560,188,FALSE)))) -> 131 | HR11: 0 | HS11: 0 | HT11: 4.8 | HU11: 0 | HV11: 0 | HW11: 0 | HX11: 0 | HY11: 7 | HZ11: 18 | IA11: -2 | IB11: 3 | IC11: 9 | ID11: 6 | IE11: 9 | IF11: -39 | IG11: -6 | IH11: -15 | II11: -1 | IJ11: 2 | IK11: 5 | IL11: 76 | IM11: -62 | IN11: -1 | IO11: 1 | IP11: 2 | IQ11: -1 | IR11: 0 | IS11: 0 | IT11: 1 | IU11: 1 | IV11: -17 | IW11: -0 | IX11: -9 | IY11: -1 | IZ11: 3 | JA11: 5 | JB11: 49 | JC11: -13 | JD11: -0 | JE11: 100 | JF11: 33 | JG11: 0 | JH11: 0 | JI11: 0.00 | JJ11: 0.00 | JK11: 0 | JL11: 0 | JM11: -4 | JN11: 0.20% | JO11: 1 | JQ11: 5 | JR11: -112 | JS11: -83 | JT11: =IF(ISERROR(IF(VLOOKUP($C11,'Indicateurs Cumulés'!$C$3:$HP$560,192,FALSE)/(VLOOKUP($C11,objectifs!$C$3:$AAB$559,162,FALSE))>=1.5,(VLOOKUP($C11,objectifs!$C$3:$AAB$559,162,FALSE))*1.5,IF(VLOOKUP($C11,'Indicateurs Cumulés'!$C$3:$HP$560,192,FALSE)/(VLOOKUP($C11,objectifs!$C$3:$AAB$559,162,FALSE))<=-0.5,(VLOOKUP($C11,objectifs!$C$3:$AAB$559,162,FALSE))*-0.5,VLOOKUP($C11,'Indicateurs Cumulés'!$C$3:$HP$560,192,FALSE)))),VLOOKUP($C11,'Indicateurs Cumulés'!$C$3:$HP$560,192,FALSE),IF(VLOOKUP($C11,'Indicateurs Cumulés'!$C$3:$HP$560,192,FALSE)/(VLOOKUP($C11,objectifs!$C$3:$AAB$559,162,FALSE))>=1.5,(VLOOKUP($C11,objectifs!$C$3:$AAB$559,162,FALSE))*1.5,IF(VLOOKUP($C11,'Indicateurs Cumulés'!$C$3:$HP$560,192,FALSE)/(VLOOKUP($C11,objectifs!$C$3:$AAB$559,162,FALSE))<=-0.5,(VLOOKUP($C11,objectifs!$C$3:$AAB$559,162,FALSE))*-0.5,VLOOKUP($C11,'Indicateurs Cumulés'!$C$3:$HP$560,192,FALSE)))) -> -3 | JU11: -0 | JV11: 0 | JX11: 0 | JY11: -4 | JZ11: -3 | KA11: -0 | KB11: -6 | KC11: 1 | KD11: 0 | KE11: 0 | KF11: 1 | KG11: 1 | KH11: 0 | KI11: 1 | KJ11: 0 | KK11: 0 | KL11: 0 | KM11: 1 | KN11: 0 | KO11: 11 | KP11: 8 | KV11: 8 | KW11: 0 | KX11: 74 | KY11: 15 | KZ11: 0 | LA11: 83 | LB11: 58 | LC11: 3 | LD11: 0 | LE11: 527.9 | LF11: 32 | LG11: 0 | LH11: 0 | LI11: -4 | LJ11: -6 | LK11: 0 | LL11: 0 | LM11: 499 | LN11: 104.8 | LO11: 43 | LP11: 424 | LQ11: -13 | LR11: -6 | LS11: 110.83 | LT11: 151 | LU11: 191 | LV11: 1011 | LW11: 183 | LX11: 144 | LY11: 59 | LZ11: 11.3 | MA11: 1.9 | MB11: 3.0 | MC11: 9.2 | MD11: 2.2 | ME11: 0.3 | MF11: 556 | MH11: 0.30%
A12: 105006 | B12: 200262 | C12: 19 | D12: STRASBOURG ANVERS | E12: 19 | F12: STRASBOURG ANVERS | G12: 2019-10-31 | H12: 114 | I12: 4.32% | J12: 1.57 | K12: 2019-10-31 | L12: 1,580 | M12: 3.03% | N12: 2.65 | O12: 126 | P12: 11,113 | Q12: 0 | R12: 0.22% | S12: 8.03 | T12: 12.17 | U12: 237 | V12: 3.23% | W12: 2.68 | X12: 1,763 | Y12: 0.12% | Z12: 8.22 | AA12: 3,337 | AB12: 1.50% | AC12: 6.37 | AD12: 24.5 | AE12: 23.0 | AF12: 9.3 | AG12: 263.4 | AH12: 23.8 | AI12: 17.8 | AJ12: 201910 | AK12: 25.00 | AL12: 0.60 | AM12: 2.40% | AN12: 508.62 | AO12: 75.05 | AP12: 15% | AQ12: 4.50 | AR12: 0.88% | AS12: 1,718.52 | AT12: 94.85 | AU12: 5.5% | AV12: 3.00 | AW12: 0.17% | AX12: 110.04 | AY12: 9.98 | AZ12: 9.07% | BA12: 1.60 | BB12: 1.45% | BC12: 2,362.19 | BD12: 179.88 | BE12: 7.6% | BF12: 9.69 | BG12: 0.41% | BI12: 28 | BJ12: 48 | BK12: 173 | BL12: 453 | BM12: 340 | BN12: 1.09% | BO12: 0.00% | BP12: 19 | BQ12: 358 | BR12: 7 | BS12: 255 | BT12: 7 | BU12: 5 | BV12: 7 | BW12: -33 | BZ12: 0 | CA12: 2 | CB12: 1 | CC12: -1 | CD12: -0 | CE12: -9 | CF12: -5 | CG12: 34 | CH12: 6.8 | CI12: -12 | CJ12: -3 | CK12: 16 | CL12: 16 | CM12: 100.00% | CN12: 129.96% | CO12: 5 | CP12: 144.21% | CQ12: 34.65% | CR12: 22 | CS12: 9.3 | CT12: 3 | CU12: 0.43 | CV12: 2 | CW12: 8 | CX12: 6 | CY12: 24 | CZ12: 47.94% | DA12: 137.54% | DB12: 194 | DC12: 76.66% | DD12: 149.57% | DE12: 31 | DG12: 33.27% | DH12: 100.00% | DI12: 10 | DJ12: -93 | DK12: 0.70% | DL12: 5.33 | DM12: -3 | DN12: 487 | DO12: 0.66% | DP12: 5.33 | DQ12: 17 | DR12: -111 | DS12: 0.75% | DT12: 5.33 | DU12: -4 | DV12: 998 | DW12: 0.40% | DX12: 1.14 | DY12: 5 | DZ12: -383 | EA12: 0.20% | EB12: 5.37 | EC12: -4 | ED12: 62 | EE12: 0.20% | EF12: 5.37 | EG12: 1 | EH12: -23 | EI12: 0.20% | EJ12: 5.37 | EK12: -0 | EL12: 29 | EM12: 0.23% | EN12: 5.33 | EO12: 0 | EP12: -27 | EQ12: 0.10% | ER12: 7.74 | ES12: -0 | ET12: -137 | EU12: 0.20% | EV12: 9.00 | EW12: -2 | EX12: -642 | EY12: 0.00% | EZ12: 8.59 | FA12: 0 | FB12: 0 | FC12: -0.26% | FD12: 0.74 | FE12: 0 | FF12: -20 | FG12: 0.45% | FH12: 8.00 | FI12: -1 | FJ12: 2,640 | FK12: 0.41% | FL12: 1.00 | FM12: 11 | FN12: -136 | FO12: 0.65% | FP12: 5.00 | FQ12: -4 | FR12: 229 | FS12: 0.40% | FT12: 1.00 | FU12: 1 | FV12: -617 | FW12: 0.20% | FX12: 8.00 | FY12: -10 | FZ12: 486 | GA12: 1.00% | GB12: 5.00 | GC12: 24 | GD12: 660 | GE12: 43 | GF12: -179 | GG12: 20 | GH12: -134 | GI12: 1.00% | GJ12: 5.37 | GK12: -7 | GL12: -650 | GM12: 0 | GN12: 0 | GP12: 72 | GQ12: 1.05% | GR12: 1.62 | GS12: 1 | GT12: -38 | GU12: 0.45% | GV12: 8.00 | GW12: -1 | GX12: 0 | GY12: 0.41% | GZ12: 1.00 | HA12: 0 | HB12: 12 | HC12: 0.65% | HD12: 5.00 | HE12: 0 | HF12: 12 | HG12: 0.40% | HH12: 1.00 | HI12: 0 | HJ12: 3 | HK12: 1.00% | HL12: 5.00 | HM12: 0 | HN12: -28 | HO12: 403 | HP12: 0 | HQ12: =IF(ISERROR(IF(VLOOKUP($C12,'Indicateurs Cumulés'!$C$3:$HP$560,188,FALSE)/(VLOOKUP($C12,objectifs!$C$3:$AAB$559,158,FALSE))>=1.5,(VLOOKUP($C12,objectifs!$C$3:$AAB$559,158,FALSE))*1.5,IF(VLOOKUP($C12,'Indicateurs Cumulés'!$C$3:$HP$560,188,FALSE)/(VLOOKUP($C12,objectifs!$C$3:$AAB$559,158,FALSE))<=-0.5,(VLOOKUP($C12,objectifs!$C$3:$AAB$559,158,FALSE))*-0.5,VLOOKUP($C12,'Indicateurs Cumulés'!$C$3:$HP$560,188,FALSE)))),VLOOKUP($C12,'Indicateurs Cumulés'!$C$3:$HP$560,188,FALSE),IF(VLOOKUP($C12,'Indicateurs Cumulés'!$C$3:$HP$560,188,FALSE)/(VLOOKUP($C12,objectifs!$C$3:$AAB$559,158,FALSE))>=1.5,(VLOOKUP($C12,objectifs!$C$3:$AAB$559,158,FALSE))*1.5,IF(VLOOKUP($C12,'Indicateurs Cumulés'!$C$3:$HP$560,188,FALSE)/(VLOOKUP($C12,objectifs!$C$3:$AAB$559,158,FALSE))<=-0.5,(VLOOKUP($C12,objectifs!$C$3:$AAB$559,158,FALSE))*-0.5,VLOOKUP($C12,'Indicateurs Cumulés'!$C$3:$HP$560,188,FALSE)))) -> -134 | HR12: 0 | HS12: 0 | HT12: 5.0 | HU12: 0 | HV12: 0 | HW12: 0 | HX12: 0 | HY12: 24 | HZ12: 33 | IA12: 5 | IB12: 14 | IC12: 10 | ID12: 3 | IE12: 37 | IF12: -40 | IG12: -4 | IH12: -9 | II12: -2 | IJ12: 0 | IK12: 38 | IL12: 46 | IM12: -65 | IN12: -2 | IO12: 3 | IP12: 3 | IQ12: 1 | IR12: 1 | IS12: 0 | IT12: 0 | IU12: 4 | IV12: -17 | IW12: -0 | IX12: -6 | IY12: -2 | IZ12: 0 | JA12: 38 | JB12: 30 | JC12: -14 | JD12: -0 | JE12: 140 | JF12: 416 | JG12: 0 | JH12: 0 | JI12: 0.00 | JJ12: 0.00 | JK12: 0 | JL12: 0 | JM12: -38 | JN12: 0.20% | JO12: -1 | JQ12: -12 | JR12: 632 | JS12: 206 | JT12: =IF(ISERROR(IF(VLOOKUP($C12,'Indicateurs Cumulés'!$C$3:$HP$560,192,FALSE)/(VLOOKUP($C12,objectifs!$C$3:$AAB$559,162,FALSE))>=1.5,(VLOOKUP($C12,objectifs!$C$3:$AAB$559,162,FALSE))*1.5,IF(VLOOKUP($C12,'Indicateurs Cumulés'!$C$3:$HP$560,192,FALSE)/(VLOOKUP($C12,objectifs!$C$3:$AAB$559,162,FALSE))<=-0.5,(VLOOKUP($C12,objectifs!$C$3:$AAB$559,162,FALSE))*-0.5,VLOOKUP($C12,'Indicateurs Cumulés'!$C$3:$HP$560,192,FALSE)))),VLOOKUP($C12,'Indicateurs Cumulés'!$C$3:$HP$560,192,FALSE),IF(VLOOKUP($C12,'Indicateurs Cumulés'!$C$3:$HP$560,192,FALSE)/(VLOOKUP($C12,objectifs!$C$3:$AAB$559,162,FALSE))>=1.5,(VLOOKUP($C12,objectifs!$C$3:$AAB$559,162,FALSE))*1.5,IF(VLOOKUP($C12,'Indicateurs Cumulés'!$C$3:$HP$560,192,FALSE)/(VLOOKUP($C12,objectifs!$C$3:$AAB$559,162,FALSE))<=-0.5,(VLOOKUP($C12,objectifs!$C$3:$AAB$559,162,FALSE))*-0.5,VLOOKUP($C12,'Indicateurs Cumulés'!$C$3:$HP$560,192,FALSE)))) -> -3 | JU12: -1 | JV12: -0 | JX12: -0 | JY12: 20 | JZ12: 7 | KA12: -0 | KB12: 26 | KC12: -1 | KD12: 1 | KE12: -2 | KF12: -3 | KG12: -1 | KH12: 3 | KI12: -1 | KJ12: 1 | KK12: -1 | KL12: -1 | KM12: -1 | KN12: 0 | KO12: 7 | KP12: 14 | KV12: -42 | KW12: 0 | KX12: 120 | KY12: 24 | KZ12: 0 | LA12: 84 | LB12: 59 | LC12: 0 | LD12: 0 | LE12: 1,105.7 | LF12: 447 | LG12: -1 | LH12: -1 | LI12: -1 | LJ12: -1 | LK12: 0 | LL12: 0 | LM12: 1,048 | LN12: 211.4 | LO12: 56 | LP12: 966 | LQ12: -28 | LR12: -2 | LS12: 223.13 | LT12: 210 | LU12: 165 | LV12: 907 | LW12: 130 | LX12: 181 | LY12: 45 | LZ12: 15.8 | MA12: 1.7 | MB12: 2.7 | MC12: 6.5 | MD12: 2.7 | ME12: 0.2 | MF12: 1135 | MH12: 0.22%
A13: 105006 | B13: 200262 | C13: 20 | D13: STRASBOURG ROBERTSAU | E13: 20 | F13: STRASBOURG ROBERTSAU | G13: 2019-10-31 | H13: 132 | I13: 4.32% | J13: 1.57 | K13: 2019-10-31 | L13: 2,189 | M13: 2.83% | N13: 2.55 | O13: 158 | P13: 8,772 | Q13: 0 | R13: 0.16% | S13: 7.32 | T13: 11.41 | U13: 60 | V13: 3.30% | W13: 1.74 | X13: 1,805 | Y13: 0.29% | Z13: 8.70 | AA13: 389 | AB13: 1.05% | AC13: 2.89 | AD13: 20.9 | AE13: 23.1 | AF13: 1.5 | AG13: 210.2 | AH13: 33.5 | AI13: 15.6 | AJ13: 201910 | AK13: 0 | AL13: 0 | AM13: 0.00% | AN13: 252.23 | AO13: 47.92 | AP13: 19% | AQ13: 2.95 | AR13: 1.17% | AS13: 3,115.26 | AT13: 678.64 | AU13: 21.8% | AV13: 5.33 | AW13: 0.17% | AX13: 91.91 | AY13: 15.31 | AZ13: 16.66% | BA13: 1.37 | BB13: 1.50% | BC13: 3,459.40 | BD13: 741.86 | BE13: 21.4% | BF13: 9.66 | BG13: 0.28% | BI13: 5 | BJ13: 95 | BK13: 220 | BL13: 276 | BM13: 19 | BN13: 1.13% | BO13: 0.00% | BP13: 20 | BQ13: 186 | BR13: 4 | BS13: 147 | BT13: 4 | BU13: 1 | BV13: -2 | BW13: -9 | BZ13: 0 | CA13: 0 | CB13: 0 | CC13: 1 | CD13: 0 | CE13: -5 | CF13: -3 | CG13: 12 | CH13: 2.4 | CI13: -16 | CJ13: -3 | CK13: 3 | CL13: 3 | CM13: 100.00% | CN13: 201.43% | CO13: 2 | CP13: 179.19% | CQ13: 54.77% | CR13: 44 | CS13: 1.5 | CT13: 3 | CU13: 0.40 | CV13: 0 | CW13: 7 | CX13: 3 | CY13: 21 | CZ13: 40.78% | DA13: 137.29% | DB13: 131 | DC13: 92.81% | DD13: 139.76% | DE13: 46 | DG13: 100.00% | DH13: 100.00% | DI13: 2 | DJ13: -349 | DK13: 0.70% | DL13: 5.33 | DM13: -13 | DN13: -1,374 | DO13: 0.66% | DP13: 5.33 | DQ13: -49 | DR13: -29 | DS13: 0.75% | DT13: 5.33 | DU13: -1 | DV13: 32 | DW13: 0.40% | DX13: 1.14 | DY13: 0 | DZ13: -367 | EA13: 0.20% | EB13: 5.37 | EC13: -4 | ED13: -118 | EE13: 0.20% | EF13: 5.37 | EG13: -1 | EH13: -40 | EI13: 0.20% | EJ13: 5.37 | EK13: -0 | EL13: -43 | EM13: 0.23% | EN13: 5.33 | EO13: -1 | EP13: -5 | EQ13: 0.10% | ER13: 8.94 | ES13: -0 | ET13: -120 | EU13: 0.20% | EV13: 9.00 | EW13: -2 | EX13: -581 | EY13: 0.00% | EZ13: 8.59 | FA13: 0 | FB13: 0 | FC13: -0.26% | FD13: 0.74 | FE13: 0 | FF13: 925 | FG13: 0.45% | FH13: 8.00 | FI13: 33 | FJ13: 3,175 | FK13: 0.28% | FL13: 1.00 | FM13: 9 | FN13: -122 | FO13: 0.65% | FP13: 5.00 | FQ13: -4 | FR13: 110 | FS13: 0.40% | FT13: 1.00 | FU13: 0 | FV13: -577 | FW13: 0.20% | FX13: 8.00 | FY13: -9 | FZ13: -8 | GA13: 1.00% | GB13: 5.00 | GC13: -0 | GD13: -3,327 | GE13: -73 | GF13: 682 | GG13: 40 | GH13: -24 | GI13: 1.00% | GJ13: 5.37 | GK13: -1 | GL13: -389 | GM13: 0 | GN13: 0 | GP13: 293 | GQ13: 0.86% | GR13: 1.48 | GS13: 4 | GT13: 0 | GU13: 0.45% | GV13: 8.00 | GW13: 0 | GX13: 0 | GY13: 0.28% | GZ13: 1.00 | HA13: 0 | HB13: 4 | HC13: 0.65% | HD13: 5.00 | HE13: 0 | HF13: 4 | HG13: 0.40% | HH13: 1.00 | HI13: 0 | HJ13: -125 | HK13: 1.00% | HL13: 5.00 | HM13: -6 | HN13: -27 | HO13: 391 | HP13: 0 | HQ13: =IF(ISERROR(IF(VLOOKUP($C13,'Indicateurs Cumulés'!$C$3:$HP$560,188,FALSE)/(VLOOKUP($C13,objectifs!$C$3:$AAB$559,158,FALSE))>=1.5,(VLOOKUP($C13,objectifs!$C$3:$AAB$559,158,FALSE))*1.5,IF(VLOOKUP($C13,'Indicateurs Cumulés'!$C$3:$HP$560,188,FALSE)/(VLOOKUP($C13,objectifs!$C$3:$AAB$559,158,FALSE))<=-0.5,(VLOOKUP($C13,objectifs!$C$3:$AAB$559,158,FALSE))*-0.5,VLOOKUP($C13,'Indicateurs Cumulés'!$C$3:$HP$560,188,FALSE)))),VLOOKUP($C13,'Indicateurs Cumulés'!$C$3:$HP$560,188,FALSE),IF(VLOOKUP($C13,'Indicateurs Cumulés'!$C$3:$HP$560,188,FALSE)/(VLOOKUP($C13,objectifs!$C$3:$AAB$559,158,FALSE))>=1.5,(VLOOKUP($C13,objectifs!$C$3:$AAB$559,158,FALSE))*1.5,IF(VLOOKUP($C13,'Indicateurs Cumulés'!$C$3:$HP$560,188,FALSE)/(VLOOKUP($C13,objectifs!$C$3:$AAB$559,158,FALSE))<=-0.5,(VLOOKUP($C13,objectifs!$C$3:$AAB$559,158,FALSE))*-0.5,VLOOKUP($C13,'Indicateurs Cumulés'!$C$3:$HP$560,188,FALSE)))) -> -24 | HR13: 0 | HS13: 0 | HT13: 5.2 | HU13: 0 | HV13: 0 | HW13: 0 | HX13: 0 | HY13: 5 | HZ13: -12 | IA13: 0 | IB13: -11 | IC13: -8 | ID13: 5 | IE13: 24 | IF13: -89 | IG13: 5 | IH13: -11 | II13: -7 | IJ13: 0 | IK13: 6 | IL13: 135 | IM13: -94 | IN13: -10 | IO13: 1 | IP13: -1 | IQ13: 0 | IR13: -1 | IS13: -0 | IT13: 0 | IU13: 3 | IV13: -39 | IW13: 0 | IX13: -7 | IY13: -7 | IZ13: 0 | JA13: 6 | JB13: 88 | JC13: -20 | JD13: -1 | JE13: 131 | JF13: 120 | JG13: 0 | JH13: 0 | JI13: 0.00 | JJ13: 0.00 | JK13: 0 | JL13: 0 | JM13: 0 | JN13: 0.20% | JO13: 40 | JQ13: 357 | JR13: 251 | JS13: -17 | JT13: =IF(ISERROR(IF(VLOOKUP($C13,'Indicateurs Cumulés'!$C$3:$HP$560,192,FALSE)/(VLOOKUP($C13,objectifs!$C$3:$AAB$559,162,FALSE))>=1.5,(VLOOKUP($C13,objectifs!$C$3:$AAB$559,162,FALSE))*1.5,IF(VLOOKUP($C13,'Indicateurs Cumulés'!$C$3:$HP$560,192,FALSE)/(VLOOKUP($C13,objectifs!$C$3:$AAB$559,162,FALSE))<=-0.5,(VLOOKUP($C13,objectifs!$C$3:$AAB$559,162,FALSE))*-0.5,VLOOKUP($C13,'Indicateurs Cumulés'!$C$3:$HP$560,192,FALSE)))),VLOOKUP($C13,'Indicateurs Cumulés'!$C$3:$HP$560,192,FALSE),IF(VLOOKUP($C13,'Indicateurs Cumulés'!$C$3:$HP$560,192,FALSE)/(VLOOKUP($C13,objectifs!$C$3:$AAB$559,162,FALSE))>=1.5,(VLOOKUP($C13,objectifs!$C$3:$AAB$559,162,FALSE))*1.5,IF(VLOOKUP($C13,'Indicateurs Cumulés'!$C$3:$HP$560,192,FALSE)/(VLOOKUP($C13,objectifs!$C$3:$AAB$559,162,FALSE))<=-0.5,(VLOOKUP($C13,objectifs!$C$3:$AAB$559,162,FALSE))*-0.5,VLOOKUP($C13,'Indicateurs Cumulés'!$C$3:$HP$560,192,FALSE)))) -> -3 | JU13: 0 | JV13: 2 | JX13: 13 | JY13: 8 | JZ13: -1 | KA13: -0 | KB13: 22 | KC13: 5 | KD13: 2 | KE13: -1 | KF13: -1 | KG13: 1 | KH13: 1 | KI13: 7 | KJ13: 2 | KK13: -1 | KL13: -0 | KM13: 1 | KN13: 0 | KO13: 18 | KP13: 11 | KV13: -52 | KW13: 0 | KX13: 65 | KY13: 13 | KZ13: 0 | LA13: 141 | LB13: 98 | LC13: 0 | LD13: 0 | LE13: 591.4 | LF13: 157 | LG13: 0 | LH13: 0 | LI13: -2 | LJ13: -3 | LK13: 6 | LL13: 1 | LM13: 574 | LN13: 110.5 | LO13: -33 | LP13: 515 | LQ13: -27 | LR13: -2 | LS13: 113.78 | LT13: 151 | LU13: 186 | LV13: 664 | LW13: 167 | LX13: 46 | LY13: 64 | LZ13: 11.3 | MA13: 1.9 | MB13: 2.0 | MC13: 8.4 | MD13: 0.7 | ME13: 0.3 | MF13: 616 | MH13: 0.24%
A14: 105006 | B14: 200262 | C14: 23 | D14: STRASBOURG VOSGES | E14: 23 | F14: STRASBOURG VOSGES | G14: 2019-10-31 | H14: 86 | I14: 4.32% | J14: 1.57 | K14: 2019-10-31 | L14: 791 | M14: 2.61% | N14: 2.64 | O14: 55 | P14: 987 | Q14: 0 | R14: 0.07% | S14: 7.97 | T14: 12.26 | U14: 112 | V14: 0.87% | W14: 3.59 | X14: 0 | Y14: 0.00% | Z14: 0 | AA14: 502 | AB14: 0.37% | AC14: 6.18 | AD14: 3.9 | AE14: 9.0 | AF14: 1.4 | AG14: 22.0 | AH14: 29.3 | AI14: 1.5 | AJ14: 201910 | AK14: 3.00 | AL14: 0.07 | AM14: 2.40% | AN14: 216.50 | AO14: 25.92 | AP14: 12% | AQ14: 1.98 | AR14: 0.91% | AS14: 484.51 | AT14: 81.92 | AU14: 16.9% | AV14: 0.35 | AW14: 0.07% | AX14: 59.33 | AY14: 2.21 | AZ14: 3.73% | BA14: 0.93 | BB14: 1.56% | BC14: 763.34 | BD14: 110.05 | BE14: 14.4% | BF14: 3.32 | BG14: 0.44% | BI14: 7 | BJ14: 0 | BK14: 83 | BL14: 40 | BM14: 14 | BN14: 1.35% | BO14: 0.00% | BP14: 23 | BQ14: 112 | BR14: 2 | BS14: 92 | BT14: 3 | BU14: -0 | BV14: -0 | BW14: -10 | BZ14: 0 | CA14: 1 | CB14: 0 | CC14: 0 | CD14: 0 | CE14: 0 | CF14: 0 | CG14: 8 | CH14: 1.6 | CI14: 0 | CJ14: 0 | CK14: 2 | CL14: 2 | CM14: 78.17% | CN14: 216.36% | CO14: 3 | CP14: 0.00% | CQ14: 0.00% | CR14: 0 | CS14: 1.4 | CT14: 0 | CU14: 0.00 | CV14: 0 | CW14: 3 | CX14: 0 | CY14: 4 | CZ14: 66.80% | DA14: 144.15% | DB14: 27 | DC14: 97.73% | DD14: 146.22% | DE14: 19 | DG14: 38.78% | DH14: 100.00% | DI14: 1 | DJ14: 430 | DK14: 0.70% | DL14: 5.33 | DM14: 16 | DN14: 979 | DO14: 0.66% | DP14: 5.33 | DQ14: 35 | DR14: -6 | DS14: 0.75% | DT14: 5.33 | DU14: -0 | DV14: 666 | DW14: 0.40% | DX14: 1.14 | DY14: 3 | DZ14: -317 | EA14: 0.20% | EB14: 5.37 | EC14: -3 | ED14: 113 | EE14: 0.20% | EF14: 5.37 | EG14: 1 | EH14: -44 | EI14: 0.20% | EJ14: 5.37 | EK14: -0 | EL14: 17 | EM14: 0.23% | EN14: 5.33 | EO14: 0 | EP14: -16 | EQ14: 0.10% | ER14: 7.23 | ES14: -0 | ET14: -289 | EU14: 0.20% | EV14: 9.00 | EW14: -5 | EX14: -6 | EY14: 0.00% | EZ14: 8.59 | FA14: 0 | FB14: 0 | FC14: -0.26% | FD14: 0.74 | FE14: 0 | FF14: -284 | FG14: 0.45% | FH14: 8.00 | FI14: -10 | FJ14: 941 | FK14: 0.44% | FL14: 1.00 | FM14: 4 | FN14: -124 | FO14: 0.65% | FP14: 5.00 | FQ14: -4 | FR14: 42 | FS14: 0.40% | FT14: 1.00 | FU14: 0 | FV14: -409 | FW14: 0.20% | FX14: 8.00 | FY14: -7 | FZ14: 107 | GA14: 1.00% | GB14: 5.00 | GC14: 5 | GD14: 1,080 | GE14: 40 | GF14: 292 | GG14: 22 | GH14: -330 | GI14: 1.00% | GJ14: 5.37 | GK14: -18 | GL14: 141 | GM14: 0 | GN14: 0 | GP14: 0 | GQ14: 0.00% | GR14: 0 | GS14: 0 | GT14: 800 | GU14: 0.45% | GV14: 8.00 | GW14: 29 | GX14: 800 | GY14: 0.44% | GZ14: 1.00 | HA14: 3 | HB14: 0 | HC14: 0.65% | HD14: 5.00 | HE14: 0 | HF14: 0 | HG14: 0.40% | HH14: 1.00 | HI14: 0 | HJ14: -100 | HK14: 1.00% | HL14: 5.00 | HM14: -5 | HN14: -13 | HO14: 254 | HP14: 0 | HQ14: =IF(ISERROR(IF(VLOOKUP($C14,'Indicateurs Cumulés'!$C$3:$HP$560,188,FALSE)/(VLOOKUP($C14,objectifs!$C$3:$AAB$559,158,FALSE))>=1.5,(VLOOKUP($C14,objectifs!$C$3:$AAB$559,158,FALSE))*1.5,IF(VLOOKUP($C14,'Indicateurs Cumulés'!$C$3:$HP$560,188,FALSE)/(VLOOKUP($C14,objectifs!$C$3:$AAB$559,158,FALSE))<=-0.5,(VLOOKUP($C14,objectifs!$C$3:$AAB$559,158,FALSE))*-0.5,VLOOKUP($C14,'Indicateurs Cumulés'!$C$3:$HP$560,188,FALSE)))),VLOOKUP($C14,'Indicateurs Cumulés'!$C$3:$HP$560,188,FALSE),IF(VLOOKUP($C14,'Indicateurs Cumulés'!$C$3:$HP$560,188,FALSE)/(VLOOKUP($C14,objectifs!$C$3:$AAB$559,158,FALSE))>=1.5,(VLOOKUP($C14,objectifs!$C$3:$AAB$559,158,FALSE))*1.5,IF(VLOOKUP($C14,'Indicateurs Cumulés'!$C$3:$HP$560,188,FALSE)/(VLOOKUP($C14,objectifs!$C$3:$AAB$559,158,FALSE))<=-0.5,(VLOOKUP($C14,objectifs!$C$3:$AAB$559,158,FALSE))*-0.5,VLOOKUP($C14,'Indicateurs Cumulés'!$C$3:$HP$560,188,FALSE)))) -> -262 | HR14: 0 | HS14: 0 | HT14: 3.4 | HU14: 0 | HV14: 0 | HW14: 0 | HX14: 0 | HY14: -1 | HZ14: -1 | IA14: -3 | IB14: -10 | IC14: -23 | ID14: -1 | IE14: -20 | IF14: 7 | IG14: -1 | IH14: -2 | II14: 0 | IJ14: 0 | IK14: -1 | IL14: -19 | IM14: -15 | IN14: -2 | IO14: -0 | IP14: -0 | IQ14: -1 | IR14: -1 | IS14: -0 | IT14: -0 | IU14: -2 | IV14: 3 | IW14: -0 | IX14: -1 | IY14: 0 | IZ14: 0 | JA14: -1 | JB14: -12 | JC14: -3 | JD14: -0 | JE14: -30 | JF14: 21 | JG14: 0 | JH14: 0 | JI14: 0.00 | JJ14: 0.00 | JK14: 0 | JL14: 0 | JM14: -89 | JN14: 0.20% | JO14: 0 | JQ14: 191 | JR14: -145 | JS14: -75 | JT14: =IF(ISERROR(IF(VLOOKUP($C14,'Indicateurs Cumulés'!$C$3:$HP$560,192,FALSE)/(VLOOKUP($C14,objectifs!$C$3:$AAB$559,162,FALSE))>=1.5,(VLOOKUP($C14,objectifs!$C$3:$AAB$559,162,FALSE))*1.5,IF(VLOOKUP($C14,'Indicateurs Cumulés'!$C$3:$HP$560,192,FALSE)/(VLOOKUP($C14,objectifs!$C$3:$AAB$559,162,FALSE))<=-0.5,(VLOOKUP($C14,objectifs!$C$3:$AAB$559,162,FALSE))*-0.5,VLOOKUP($C14,'Indicateurs Cumulés'!$C$3:$HP$560,192,FALSE)))),VLOOKUP($C14,'Indicateurs Cumulés'!$C$3:$HP$560,192,FALSE),IF(VLOOKUP($C14,'Indicateurs Cumulés'!$C$3:$HP$560,192,FALSE)/(VLOOKUP($C14,objectifs!$C$3:$AAB$559,162,FALSE))>=1.5,(VLOOKUP($C14,objectifs!$C$3:$AAB$559,162,FALSE))*1.5,IF(VLOOKUP($C14,'Indicateurs Cumulés'!$C$3:$HP$560,192,FALSE)/(VLOOKUP($C14,objectifs!$C$3:$AAB$559,162,FALSE))<=-0.5,(VLOOKUP($C14,objectifs!$C$3:$AAB$559,162,FALSE))*-0.5,VLOOKUP($C14,'Indicateurs Cumulés'!$C$3:$HP$560,192,FALSE)))) -> 8 | JU14: -2 | JV14: 0 | JX14: 7 | JY14: -5 | JZ14: -2 | KA14: 0 | KB14: -1 | KC14: 6 | KD14: -2 | KE14: 0 | KF14: 4 | KG14: 0 | KH14: 0 | KI14: 9 | KJ14: -2 | KK14: 0 | KL14: 1 | KM14: 0 | KN14: 0 | KO14: 12 | KP14: 4 | KV14: 5 | KW14: 0 | KX14: 10 | KY14: 2 | KZ14: 0 | LA14: -20 | LB14: -14 | LC14: 0 | LD14: 0 | LE14: 143.9 | LF14: 31 | LG14: 0 | LH14: 0 | LI14: 0 | LJ14: 0 | LK14: 2 | LL14: 0 | LM14: 139 | LN14: 40.8 | LO14: 48 | LP14: 137 | LQ14: -13 | LR14: 0 | LS14: 42.37 | LT14: 123 | LU14: 103 | LV14: 511 | LW14: 100 | LX14: 60 | LY14: 37 | LZ14: 9.2 | MA14: 1.0 | MB14: 1.5 | MC14: 5.0 | MD14: 0.9 | ME14: 0.2 | MF14: 162 | MH14: 0.40%
A15: 105006 | B15: 200262 | C15: 24 | D15: STRASBOURG AUSTERLITZ | E15: 24 | F15: STRASBOURG AUSTERLITZ | G15: 2019-10-31 | H15: 119 | I15: 4.32% | J15: 1.57 | K15: 2019-10-31 | L15: 778 | M15: 3.05% | N15: 2.66 | O15: 63 | P15: 3,446 | Q15: 0 | R15: 0.32% | S15: 7.91 | T15: 12.21 | U15: 0 | V15: 0.00% | W15: 0 | X15: 113 | Y15: 0.06% | Z15: 4.38 | AA15: 0 | AB15: 0.00% | AC15: 0 | AD15: 9.5 | AE15: 8.3 | AF15: 0 | AG15: 63.2 | AH15: 12.2 | AI15: 5.1 | AJ15: 201910 | AK15: 0 | AL15: 0 | AM15: 0.00% | AN15: 192.92 | AO15: 34.09 | AP15: 18% | AQ15: 2.17 | AR15: 1.12% | AS15: 1,089.00 | AT15: 169.07 | AU15: 15.5% | AV15: 1.51 | AW15: 0.14% | AX15: 46.81 | AY15: 1.54 | AZ15: 3.28% | BA15: 0.74 | BB15: 1.59% | BC15: 1,328.73 | BD15: 204.69 | BE15: 15.4% | BF15: 4.42 | BG15: 0.33% | BI15: 0 | BJ15: 1 | BK15: 95 | BL15: 156 | BM15: 0 | BN15: 1.04% | BO15: 0.00% | BP15: 24 | BQ15: 21 | BR15: 0 | BS15: 120 | BT15: 3 | BU15: 0 | BV15: 2 | BW15: -19 | BZ15: 0 | CA15: 0 | CB15: 0 | CC15: 0 | CD15: 0 | CE15: -1 | CF15: -1 | CG15: 23 | CH15: 4.6 | CI15: -12 | CJ15: -3 | CK15: 3 | CL15: 3 | CM15: 0.00% | CN15: 0.00% | CO15: 0 | CP15: 0.00% | CQ15: 0.00% | CR15: 0 | CS15: 0 | CT15: 0 | CU15: 0.00 | CV15: 0 | CW15: 4 | CX15: 1 | CY15: 10 | CZ15: 38.40% | DA15: 126.75% | DB15: 50 | DC15: 99.55% | DD15: 143.60% | DE15: 19 | DG15: 0.00% | DH15: 0.00% | DI15: 0 | DJ15: -154 | DK15: 0.70% | DL15: 5.33 | DM15: -6 | DN15: -46 | DO15: 0.66% | DP15: 5.33 | DQ15: -2 | DR15: 50 | DS15: 0.75% | DT15: 5.33 | DU15: 2 | DV15: 55 | DW15: 0.40% | DX15: 1.14 | DY15: 0 | DZ15: -222 | EA15: 0.20% | EB15: 5.37 | EC15: -2 | ED15: 130 | EE15: 0.20% | EF15: 5.37 | EG15: 1 | EH15: -29 | EI15: 0.20% | EJ15: 5.37 | EK15: -0 | EL15: 34 | EM15: 0.23% | EN15: 5.33 | EO15: 0 | EP15: 1 | EQ15: 0.10% | ER15: 9.51 | ES15: 0 | ET15: -116 | EU15: 0.20% | EV15: 9.00 | EW15: -2 | EX15: -727 | EY15: 0.00% | EZ15: 8.59 | FA15: 0 | FB15: 0 | FC15: -0.26% | FD15: 0.74 | FE15: 0 | FF15: 264 | FG15: 0.45% | FH15: 8.00 | FI15: 10 | FJ15: 1,268 | FK15: 0.33% | FL15: 1.00 | FM15: 4 | FN15: -0 | FO15: 0.65% | FP15: 5.00 | FQ15: -0 | FR15: 17 | FS15: 0.40% | FT15: 1.00 | FU15: 0 | FV15: -203 | FW15: 0.20% | FX15: 8.00 | FY15: -3 | FZ15: -226 | GA15: 1.00% | GB15: 5.00 | GC15: -11 | GD15: -1,937 | GE15: -38 | GF15: 722 | GG15: 36 | GH15: 415 | GI15: 1.00% | GJ15: 5.37 | GK15: 22 | GL15: -122 | GM15: 0 | GN15: 0 | GP15: 0 | GQ15: 0.00% | GR15: 0 | GS15: 0 | GT15: 445 | GU15: 0.45% | GV15: 8.00 | GW15: 16 | GX15: 445 | GY15: 0.33% | GZ15: 1.00 | HA15: 1 | HB15: 0 | HC15: 0.65% | HD15: 5.00 | HE15: 0 | HF15: 0 | HG15: 0.40% | HH15: 1.00 | HI15: 0 | HJ15: 13 | HK15: 1.00% | HL15: 5.00 | HM15: 1 | HN15: -8 | HO15: 271 | HP15: 0 | HQ15: =IF(ISERROR(IF(VLOOKUP($C15,'Indicateurs Cumulés'!$C$3:$HP$560,188,FALSE)/(VLOOKUP($C15,objectifs!$C$3:$AAB$559,158,FALSE))>=1.5,(VLOOKUP($C15,objectifs!$C$3:$AAB$559,158,FALSE))*1.5,IF(VLOOKUP($C15,'Indicateurs Cumulés'!$C$3:$HP$560,188,FALSE)/(VLOOKUP($C15,objectifs!$C$3:$AAB$559,158,FALSE))<=-0.5,(VLOOKUP($C15,objectifs!$C$3:$AAB$559,158,FALSE))*-0.5,VLOOKUP($C15,'Indicateurs Cumulés'!$C$3:$HP$560,188,FALSE)))),VLOOKUP($C15,'Indicateurs Cumulés'!$C$3:$HP$560,188,FALSE),IF(VLOOKUP($C15,'Indicateurs Cumulés'!$C$3:$HP$560,188,FALSE)/(VLOOKUP($C15,objectifs!$C$3:$AAB$559,158,FALSE))>=1.5,(VLOOKUP($C15,objectifs!$C$3:$AAB$559,158,FALSE))*1.5,IF(VLOOKUP($C15,'Indicateurs Cumulés'!$C$3:$HP$560,188,FALSE)/(VLOOKUP($C15,objectifs!$C$3:$AAB$559,158,FALSE))<=-0.5,(VLOOKUP($C15,objectifs!$C$3:$AAB$559,158,FALSE))*-0.5,VLOOKUP($C15,'Indicateurs Cumulés'!$C$3:$HP$560,188,FALSE)))) -> 415 | HR15: 0 | HS15: 0 | HT15: 2.7 | HU15: 0 | HV15: 0 | HW15: 0 | HX15: 0 | HY15: 2 | HZ15: 10 | IA15: -2 | IB15: 0 | IC15: 5 | ID15: 6 | IE15: 15 | IF15: 14 | IG15: 2 | IH15: -17 | II15: -4 | IJ15: 1 | IK15: 4 | IL15: 23 | IM15: -14 | IN15: 0 | IO15: 0 | IP15: 1 | IQ15: -1 | IR15: 0 | IS15: 0 | IT15: 1 | IU15: 2 | IV15: 6 | IW15: 0 | IX15: -11 | IY15: -4 | IZ15: 2 | JA15: 4 | JB15: 15 | JC15: -3 | JD15: 0 | JE15: 47 | JF15: 1 | JG15: 0 | JH15: 0 | JI15: 0.00 | JJ15: 0.00 | JK15: 0 | JL15: 0 | JM15: 0 | JN15: 0.20% | JO15: 5 | JQ15: -23 | JR15: -485 | JS15: 2 | JT15: =IF(ISERROR(IF(VLOOKUP($C15,'Indicateurs Cumulés'!$C$3:$HP$560,192,FALSE)/(VLOOKUP($C15,objectifs!$C$3:$AAB$559,162,FALSE))>=1.5,(VLOOKUP($C15,objectifs!$C$3:$AAB$559,162,FALSE))*1.5,IF(VLOOKUP($C15,'Indicateurs Cumulés'!$C$3:$HP$560,192,FALSE)/(VLOOKUP($C15,objectifs!$C$3:$AAB$559,162,FALSE))<=-0.5,(VLOOKUP($C15,objectifs!$C$3:$AAB$559,162,FALSE))*-0.5,VLOOKUP($C15,'Indicateurs Cumulés'!$C$3:$HP$560,192,FALSE)))),VLOOKUP($C15,'Indicateurs Cumulés'!$C$3:$HP$560,192,FALSE),IF(VLOOKUP($C15,'Indicateurs Cumulés'!$C$3:$HP$560,192,FALSE)/(VLOOKUP($C15,objectifs!$C$3:$AAB$559,162,FALSE))>=1.5,(VLOOKUP($C15,objectifs!$C$3:$AAB$559,162,FALSE))*1.5,IF(VLOOKUP($C15,'Indicateurs Cumulés'!$C$3:$HP$560,192,FALSE)/(VLOOKUP($C15,objectifs!$C$3:$AAB$559,162,FALSE))<=-0.5,(VLOOKUP($C15,objectifs!$C$3:$AAB$559,162,FALSE))*-0.5,VLOOKUP($C15,'Indicateurs Cumulés'!$C$3:$HP$560,192,FALSE)))) -> -3 | JU15: 0 | JV15: 0 | JX15: -1 | JY15: -16 | JZ15: 0 | KA15: -0 | KB15: -16 | KC15: -1 | KD15: 0 | KE15: 1 | KF15: 0 | KG15: 1 | KH15: 0 | KI15: -1 | KJ15: 0 | KK15: 1 | KL15: 0 | KM15: 1 | KN15: 0 | KO15: 3 | KP15: 4 | KV15: -57 | KW15: 0 | KX15: 53 | KY15: 11 | KZ15: 0 | LA15: 28 | LB15: 20 | LC15: 0 | LD15: 0 | LE15: 287.0 | LF15: -19 | LG15: -3 | LH15: -2 | LI15: -3 | LJ15: -4 | LK15: -1 | LL15: -0 | LM15: 266 | LN15: 97.2 | LO15: 20 | LP15: 250 | LQ15: -8 | LR15: -6 | LS15: 104.68 | LT15: 119 | LU15: 99 | LV15: 836 | LW15: 104 | LX15: 112 | LY15: 57 | LZ15: 8.9 | MA15: 1.0 | MB15: 2.5 | MC15: 5.2 | MD15: 1.7 | ME15: 0.3 | MF15: 307 | MH15: 0.28%
A16: 105006 | B16: 200262 | C16: 25 | D16: STRASBOURG ESPLANADE | E16: 25 | F16: STRASBOURG ESPLANADE | G16: 2019-10-31 | H16: 127 | I16: 4.32% | J16: 1.57 | K16: 2019-10-31 | L16: 943 | M16: 3.67% | N16: 2.31 | O16: 80 | P16: 5,220 | Q16: 0 | R16: 0.33% | S16: 6.15 | T16: 9.54 | U16: 16 | V16: 2.82% | W16: 2.05 | X16: 571 | Y16: 0.03% | Z16: 6.09 | AA16: 1,568 | AB16: 0.69% | AC16: 5.24 | AD16: 12.0 | AE16: 10.4 | AF16: 3.9 | AG16: 89.3 | AH16: 16.9 | AI16: 6.3 | AJ16: 201910 | AK16: 0 | AL16: 0 | AM16: 0.00% | AN16: 263.67 | AO16: 97.18 | AP16: 37% | AQ16: 1.93 | AR16: 0.73% | AS16: 745.67 | AT16: 189.01 | AU16: 25.3% | AV16: 1.57 | AW16: 0.21% | AX16: 45.04 | AY16: 11.39 | AZ16: 25.28% | BA16: 0.80 | BB16: 1.78% | BC16: 1,054.39 | BD16: 297.58 | BE16: 28.2% | BF16: 4.30 | BG16: 0.41% | BI16: 1 | BJ16: 16 | BK16: 115 | BL16: 208 | BM16: 62 | BN16: 0.95% | BO16: 0.00% | BP16: 25 | BQ16: 182 | BR16: 4 | BS16: 74 | BT16: 2 | BU16: -1 | BV16: -6 | BW16: -4 | BZ16: 0 | CA16: 2 | CB16: 1 | CC16: 0 | CD16: 0 | CE16: -10 | CF16: -5 | CG16: 7 | CH16: 1.4 | CI16: 4 | CJ16: 1 | CK16: 3 | CL16: 3 | CM16: 100.00% | CN16: 200.00% | CO16: 0 | CP16: 125.47% | CQ16: 100.00% | CR16: 13 | CS16: 3.9 | CT16: 1 | CU16: 0.00 | CV16: 0 | CW16: 6 | CX16: 1 | CY16: 12 | CZ16: 60.42% | DA16: 135.58% | DB16: 81 | DC16: 90.25% | DD16: 155.88% | DE16: 21 | DG16: 12.67% | DH16: 137.19% | DI16: 2 | DJ16: 70 | DK16: 0.70% | DL16: 5.33 | DM16: 3 | DN16: 162 | DO16: 0.66% | DP16: 5.33 | DQ16: 6 | DR16: -26 | DS16: 0.75% | DT16: 5.33 | DU16: -1 | DV16: 28 | DW16: 0.40% | DX16: 1.14 | DY16: 0 | DZ16: -278 | EA16: 0.20% | EB16: 5.37 | EC16: -3 | ED16: -102 | EE16: 0.20% | EF16: 5.37 | EG16: -1 | EH16: -31 | EI16: 0.20% | EJ16: 5.37 | EK16: -0 | EL16: 35 | EM16: 0.23% | EN16: 5.33 | EO16: 0 | EP16: 4 | EQ16: 0.10% | ER16: 8.51 | ES16: 0 | ET16: -43 | EU16: 0.20% | EV16: 9.00 | EW16: -1 | EX16: -119 | EY16: 0.00% | EZ16: 8.59 | FA16: 0 | FB16: 0 | FC16: -0.26% | FD16: 0.74 | FE16: 0 | FF16: -235 | FG16: 0.45% | FH16: 8.00 | FI16: -8 | FJ16: 949 | FK16: 0.41% | FL16: 1.00 | FM16: 4 | FN16: -175 | FO16: 0.65% | FP16: 5.00 | FQ16: -6 | FR16: 10 | FS16: 0.40% | FT16: 1.00 | FU16: 0 | FV16: -515 | FW16: 0.20% | FX16: 8.00 | FY16: -8 | FZ16: -27 | GA16: 1.00% | GB16: 5.00 | GC16: -1 | GD16: -881 | GE16: -8 | GF16: 18 | GG16: 11 | GH16: 107 | GI16: 1.00% | GJ16: 5.37 | GK16: 6 | GL16: -84 | GM16: 0 | GN16: 0 | GP16: 0 | GQ16: 0.00% | GR16: 0 | GS16: 0 | GT16: 571 | GU16: 0.45% | GV16: 8.00 | GW16: 21 | GX16: 577 | GY16: 0.41% | GZ16: 1.00 | HA16: 2 | HB16: 0 | HC16: 0.65% | HD16: 5.00 | HE16: 0 | HF16: 0 | HG16: 0.40% | HH16: 1.00 | HI16: 0 | HJ16: -142 | HK16: 1.00% | HL16: 5.00 | HM16: -7 | HN16: -16 | HO16: 367 | HP16: 0 | HQ16: =IF(ISERROR(IF(VLOOKUP($C16,'Indicateurs Cumulés'!$C$3:$HP$560,188,FALSE)/(VLOOKUP($C16,objectifs!$C$3:$AAB$559,158,FALSE))>=1.5,(VLOOKUP($C16,objectifs!$C$3:$AAB$559,158,FALSE))*1.5,IF(VLOOKUP($C16,'Indicateurs Cumulés'!$C$3:$HP$560,188,FALSE)/(VLOOKUP($C16,objectifs!$C$3:$AAB$559,158,FALSE))<=-0.5,(VLOOKUP($C16,objectifs!$C$3:$AAB$559,158,FALSE))*-0.5,VLOOKUP($C16,'Indicateurs Cumulés'!$C$3:$HP$560,188,FALSE)))),VLOOKUP($C16,'Indicateurs Cumulés'!$C$3:$HP$560,188,FALSE),IF(VLOOKUP($C16,'Indicateurs Cumulés'!$C$3:$HP$560,188,FALSE)/(VLOOKUP($C16,objectifs!$C$3:$AAB$559,158,FALSE))>=1.5,(VLOOKUP($C16,objectifs!$C$3:$AAB$559,158,FALSE))*1.5,IF(VLOOKUP($C16,'Indicateurs Cumulés'!$C$3:$HP$560,188,FALSE)/(VLOOKUP($C16,objectifs!$C$3:$AAB$559,158,FALSE))<=-0.5,(VLOOKUP($C16,objectifs!$C$3:$AAB$559,158,FALSE))*-0.5,VLOOKUP($C16,'Indicateurs Cumulés'!$C$3:$HP$560,188,FALSE)))) -> 107 | HR16: 0 | HS16: 0 | HT16: 3.8 | HU16: 0 | HV16: 0 | HW16: 0 | HX16: 0 | HY16: -7 | HZ16: -28 | IA16: -1 | IB16: -11 | IC16: -20 | ID16: -2 | IE16: -15 | IF16: 8 | IG16: 0 | IH16: -15 | II16: -3 | IJ16: 0 | IK16: 1 | IL16: 0 | IM16: -15 | IN16: 1 | IO16: -1 | IP16: -3 | IQ16: -0 | IR16: -1 | IS16: -0 | IT16: -0 | IU16: -2 | IV16: 3 | IW16: 0 | IX16: -9 | IY16: -3 | IZ16: 0 | JA16: 1 | JB16: 0 | JC16: -3 | JD16: 0 | JE16: -24 | JF16: 80 | JG16: 0 | JH16: 0 | JI16: 0.00 | JJ16: 0.00 | JK16: 0 | JL16: 0 | JM16: -1 | JN16: 0.20% | JO16: 1 | JQ16: -66 | JR16: -41 | JS16: 10 | JT16: =IF(ISERROR(IF(VLOOKUP($C16,'Indicateurs Cumulés'!$C$3:$HP$560,192,FALSE)/(VLOOKUP($C16,objectifs!$C$3:$AAB$559,162,FALSE))>=1.5,(VLOOKUP($C16,objectifs!$C$3:$AAB$559,162,FALSE))*1.5,IF(VLOOKUP($C16,'Indicateurs Cumulés'!$C$3:$HP$560,192,FALSE)/(VLOOKUP($C16,objectifs!$C$3:$AAB$559,162,FALSE))<=-0.5,(VLOOKUP($C16,objectifs!$C$3:$AAB$559,162,FALSE))*-0.5,VLOOKUP($C16,'Indicateurs Cumulés'!$C$3:$HP$560,192,FALSE)))),VLOOKUP($C16,'Indicateurs Cumulés'!$C$3:$HP$560,192,FALSE),IF(VLOOKUP($C16,'Indicateurs Cumulés'!$C$3:$HP$560,192,FALSE)/(VLOOKUP($C16,objectifs!$C$3:$AAB$559,162,FALSE))>=1.5,(VLOOKUP($C16,objectifs!$C$3:$AAB$559,162,FALSE))*1.5,IF(VLOOKUP($C16,'Indicateurs Cumulés'!$C$3:$HP$560,192,FALSE)/(VLOOKUP($C16,objectifs!$C$3:$AAB$559,162,FALSE))<=-0.5,(VLOOKUP($C16,objectifs!$C$3:$AAB$559,162,FALSE))*-0.5,VLOOKUP($C16,'Indicateurs Cumulés'!$C$3:$HP$560,192,FALSE)))) -> -3 | JU16: -0 | JV16: 0 | JX16: -2 | JY16: -1 | JZ16: 0 | KA16: -0 | KB16: -3 | KC16: -5 | KD16: -3 | KE16: 2 | KF16: 0 | KG16: -2 | KH16: 0 | KI16: -7 | KJ16: -3 | KK16: 1 | KL16: 0 | KM16: -1 | KN16: 0 | KO16: -7 | KP16: 7 | KV16: 27 | KW16: 0 | KX16: -6 | KY16: -1 | KZ16: 0 | LA16: 1 | LB16: 1 | LC16: 0 | LD16: 0 | LE16: 328.0 | LF16: 54 | LG16: -5 | LH16: -3 | LI16: -8 | LJ16: -12 | LK16: -4 | LL16: -0 | LM16: 332 | LN16: 86.6 | LO16: 9 | LP16: 385 | LQ16: -16 | LR16: -15 | LS16: 85.63 | LT16: 117 | LU16: 94 | LV16: 762 | LW16: 66 | LX16: 25 | LY16: 43 | LZ16: 8.8 | MA16: 0.9 | MB16: 2.3 | MC16: 3.3 | MD16: 0.4 | ME16: 0.2 | MF16: 344 | MH16: 0.23%
A17: 105006 | B17: 200262 | C17: 26 | D17: STRASBOURG DANUBE | E17: 26 | F17: STRASBOURG DANUBE | G17: 2019-10-31 | H17: 78 | I17: 4.32% | J17: 1.57 | K17: 2019-10-31 | L17: 624 | M17: 2.66% | N17: 2.36 | O17: 39 | P17: 4,611 | Q17: 0 | R17: 0.43% | S17: 7.81 | T17: 12.05 | U17: 16 | V17: 2.82% | W17: 3.43 | X17: 222 | Y17: -0.04% | Z17: 7.56 | AA17: 0 | AB17: 0.00% | AC17: 0 | AD17: 12.8 | AE17: 7.7 | AF17: 0 | AG17: -124.0 | AH17: 8.9 | AI17: 7.4 | AJ17: 201910 | AK17: 0 | AL17: 0 | AM17: 0.00% | AN17: 135.81 | AO17: 27.67 | AP17: 20% | AQ17: 1.22 | AR17: 0.90% | AS17: 188.85 | AT17: 49.10 | AU17: 26.0% | AV17: 0.11 | AW17: 0.06% | AX17: 34.25 | AY17: 4.58 | AZ17: 13.36% | BA17: 0.64 | BB17: 1.87% | BC17: 358.91 | BD17: 81.35 | BE17: 22.7% | BF17: 1.97 | BG17: 0.55% | BI17: 3 | BJ17: 10 | BK17: 63 | BL17: 287 | BM17: 0 | BN17: 0.86% | BO17: 0.00% | BP17: 26 | BQ17: 81 | BR17: 2 | BS17: 17 | BT17: 0 | BU17: 3 | BV17: 2 | BW17: -3 | BZ17: 0 | CA17: 0 | CB17: 0 | CC17: 1 | CD17: 0 | CE17: 0 | CF17: 0 | CG17: 13 | CH17: 2.6 | CI17: -4 | CJ17: -1 | CK17: 6 | CL17: 6 | CM17: 100.00% | CN17: 300.00% | CO17: 1 | CP17: 200.00% | CQ17: 100.00% | CR17: 11 | CS17: 0 | CT17: 0 | CU17: 0.00 | CV17: 0 | CW17: 3 | CX17: 0 | CY17: 13 | CZ17: 71.61% | DA17: 141.23% | DB17: 106 | DC17: 68.85% | DD17: 188.98% | DE17: 15 | DG17: 0.00% | DH17: 0.00% | DI17: 0 | DJ17: 50 | DK17: 0.70% | DL17: 5.33 | DM17: 2 | DN17: 46 | DO17: 0.66% | DP17: 5.33 | DQ17: 2 | DR17: -36 | DS17: 0.75% | DT17: 5.33 | DU17: -1 | DV17: 93 | DW17: 0.40% | DX17: 1.14 | DY17: 0 | DZ17: -100 | EA17: 0.20% | EB17: 5.37 | EC17: -1 | ED17: 24 | EE17: 0.20% | EF17: 5.37 | EG17: 0 | EH17: -12 | EI17: 0.20% | EJ17: 5.37 | EK17: -0 | EL17: 55 | EM17: 0.23% | EN17: 5.33 | EO17: 1 | EP17: 6 | EQ17: 0.10% | ER17: 8.19 | ES17: 0 | ET17: -58 | EU17: 0.20% | EV17: 9.00 | EW17: -1 | EX17: 200 | EY17: 0.00% | EZ17: 3.56 | FA17: 0 | FB17: 0 | FC17: -0.26% | FD17: 0.74 | FE17: 0 | FF17: -45 | FG17: 0.45% | FH17: 8.00 | FI17: -2 | FJ17: 375 | FK17: 0.55% | FL17: 1.00 | FM17: 2 | FN17: -23 | FO17: 0.65% | FP17: 5.00 | FQ17: -1 | FR17: 13 | FS17: 0.40% | FT17: 1.00 | FU17: 0 | FV17: -71 | FW17: 0.20% | FX17: 8.00 | FY17: -1 | FZ17: 73 | GA17: 1.00% | GB17: 5.00 | GC17: 4 | GD17: 263 | GE17: 3 | GF17: -70 | GG17: 2 | GH17: -294 | GI17: 1.00% | GJ17: 5.37 | GK17: -16 | GL17: -29 | GM17: 9 | GN17: 1 | GP17: 0 | GQ17: 0.00% | GR17: 0 | GS17: 0 | GT17: 0 | GU17: 0.45% | GV17: 8.00 | GW17: 0 | GX17: 0 | GY17: 0.55% | GZ17: 1.00 | HA17: 0 | HB17: 0 | HC17: 0.65% | HD17: 5.00 | HE17: 0 | HF17: 0 | HG17: 0.40% | HH17: 1.00 | HI17: 0 | HJ17: -2 | HK17: 1.00% | HL17: 5.00 | HM17: -0 | HN17: -9 | HO17: 146 | HP17: 0 | HQ17: =IF(ISERROR(IF(VLOOKUP($C17,'Indicateurs Cumulés'!$C$3:$HP$560,188,FALSE)/(VLOOKUP($C17,objectifs!$C$3:$AAB$559,158,FALSE))>=1.5,(VLOOKUP($C17,objectifs!$C$3:$AAB$559,158,FALSE))*1.5,IF(VLOOKUP($C17,'Indicateurs Cumulés'!$C$3:$HP$560,188,FALSE)/(VLOOKUP($C17,objectifs!$C$3:$AAB$559,158,FALSE))<=-0.5,(VLOOKUP($C17,objectifs!$C$3:$AAB$559,158,FALSE))*-0.5,VLOOKUP($C17,'Indicateurs Cumulés'!$C$3:$HP$560,188,FALSE)))),VLOOKUP($C17,'Indicateurs Cumulés'!$C$3:$HP$560,188,FALSE),IF(VLOOKUP($C17,'Indicateurs Cumulés'!$C$3:$HP$560,188,FALSE)/(VLOOKUP($C17,objectifs!$C$3:$AAB$559,158,FALSE))>=1.5,(VLOOKUP($C17,objectifs!$C$3:$AAB$559,158,FALSE))*1.5,IF(VLOOKUP($C17,'Indicateurs Cumulés'!$C$3:$HP$560,188,FALSE)/(VLOOKUP($C17,objectifs!$C$3:$AAB$559,158,FALSE))<=-0.5,(VLOOKUP($C17,objectifs!$C$3:$AAB$559,158,FALSE))*-0.5,VLOOKUP($C17,'Indicateurs Cumulés'!$C$3:$HP$560,188,FALSE)))) -> -131 | HR17: 0 | HS17: 0 | HT17: 2.0 | HU17: 0 | HV17: 0 | HW17: 0 | HX17: 0 | HY17: 16 | HZ17: 9 | IA17: 0 | IB17: -3 | IC17: -2 | ID17: 0 | IE17: -6 | IF17: -20 | IG17: -2 | IH17: -2 | II17: 0 | IJ17: 1 | IK17: 0 | IL17: 21 | IM17: -25 | IN17: 3 | IO17: 2 | IP17: 1 | IQ17: 0 | IR17: -0 | IS17: -0 | IT17: 0 | IU17: -1 | IV17: -9 | IW17: -0 | IX17: -1 | IY17: 0 | IZ17: 2 | JA17: 0 | JB17: 14 | JC17: -5 | JD17: 0 | JE17: 27 | JF17: 13 | JG17: 0 | JH17: 0 | JI17: 0.00 | JJ17: 0.00 | JK17: 0 | JL17: 0 | JM17: 0 | JN17: 0.20% | JO17: -0 | JQ17: 1 | JR17: -10 | JS17: -120 | JT17: =IF(ISERROR(IF(VLOOKUP($C17,'Indicateurs Cumulés'!$C$3:$HP$560,192,FALSE)/(VLOOKUP($C17,objectifs!$C$3:$AAB$559,162,FALSE))>=1.5,(VLOOKUP($C17,objectifs!$C$3:$AAB$559,162,FALSE))*1.5,IF(VLOOKUP($C17,'Indicateurs Cumulés'!$C$3:$HP$560,192,FALSE)/(VLOOKUP($C17,objectifs!$C$3:$AAB$559,162,FALSE))<=-0.5,(VLOOKUP($C17,objectifs!$C$3:$AAB$559,162,FALSE))*-0.5,VLOOKUP($C17,'Indicateurs Cumulés'!$C$3:$HP$560,192,FALSE)))),VLOOKUP($C17,'Indicateurs Cumulés'!$C$3:$HP$560,192,FALSE),IF(VLOOKUP($C17,'Indicateurs Cumulés'!$C$3:$HP$560,192,FALSE)/(VLOOKUP($C17,objectifs!$C$3:$AAB$559,162,FALSE))>=1.5,(VLOOKUP($C17,objectifs!$C$3:$AAB$559,162,FALSE))*1.5,IF(VLOOKUP($C17,'Indicateurs Cumulés'!$C$3:$HP$560,192,FALSE)/(VLOOKUP($C17,objectifs!$C$3:$AAB$559,162,FALSE))<=-0.5,(VLOOKUP($C17,objectifs!$C$3:$AAB$559,162,FALSE))*-0.5,VLOOKUP($C17,'Indicateurs Cumulés'!$C$3:$HP$560,192,FALSE)))) -> -3 | JU17: 0 | JV17: -0 | JX17: 0 | JY17: -0 | JZ17: -4 | KA17: -0 | KB17: -4 | KC17: 1 | KD17: 0 | KE17: -2 | KF17: 0 | KG17: 0 | KH17: 0 | KI17: 1 | KJ17: 0 | KK17: -1 | KL17: 0 | KM17: 0 | KN17: 0 | KO17: 1 | KP17: 0 | KV17: 1 | KW17: 0 | KX17: 10 | KY17: 2 | KZ17: 0 | LA17: 22 | LB17: 15 | LC17: 0 | LD17: 0 | LE17: 359.5 | LF17: 6 | LG17: 0 | LH17: 0 | LI17: -2 | LJ17: -3 | LK17: -2 | LL17: -0 | LM17: 344 | LN17: 173.0 | LO17: -2 | LP17: 350 | LQ17: -9 | LR17: -3 | LS17: 180.86 | LT17: 100 | LU17: 88 | LV17: 259 | LW17: 70 | LX17: -24 | LY17: 33 | LZ17: 7.5 | MA17: 0.9 | MB17: 0.8 | MC17: 3.5 | MD17: 0.0 | ME17: 0.2 | MF17: 372 | MH17: 0.28%
A18: 105006 | B18: 200262 | C18: 27 | D18: SCHILTIGHEIM CENTRE | E18: 27 | F18: SCHILTIGHEIM CENTRE | G18: 2019-10-31 | H18: 171 | I18: 4.32% | J18: 1.57 | K18: 2019-10-31 | L18: 1,909 | M18: 3.24% | N18: 2.38 | O18: 147 | P18: 7,158 | Q18: 0 | R18: 0.30% | S18: 7.99 | T18: 12.32 | U18: 255 | V18: 2.81% | W18: 2.47 | X18: 594 | Y18: 0.30% | Z18: 7.94 | AA18: 1,440 | AB18: 0.83% | AC18: 4.12 | AD18: 24.3 | AE18: 16.4 | AF18: 5.7 | AG18: 174.8 | AH18: 25.4 | AI18: 15.1 | AJ18: 201910 | AK18: 40.00 | AL18: 0.48 | AM18: 1.20% | AN18: 509.30 | AO18: 181.69 | AP18: 36% | AQ18: 3.01 | AR18: 0.59% | AS18: 1,579.31 | AT18: 202.44 | AU18: 12.8% | AV18: 2.88 | AW18: 0.18% | AX18: 73.50 | AY18: 2.88 | AZ18: 3.92% | BA18: 0.96 | BB18: 1.30% | BC18: 2,202.10 | BD18: 387.01 | BE18: 17.6% | BF18: 7.32 | BG18: 0.33% | BI18: 22 | BJ18: 18 | BK18: 199 | BL18: 395 | BM18: 61 | BN18: 1.06% | BO18: 0.00% | BP18: 27 | BQ18: 55 | BR18: 1 | BS18: 184 | BT18: 5 | BU18: 0 | BV18: 1 | BW18: -30 | BZ18: 0 | CA18: 1 | CB18: 0 | CC18: 4 | CD18: 0 | CE18: 1 | CF18: 1 | CG18: 27 | CH18: 5.4 | CI18: -11 | CJ18: -2 | CK18: 18 | CL18: 18 | CM18: 87.72% | CN18: 117.49% | CO18: 4 | CP18: 100.00% | CQ18: 11.34% | CR18: 1 | CS18: 5.7 | CT18: 1 | CU18: 0.00 | CV18: 1 | CW18: 7 | CX18: 1 | CY18: 24 | CZ18: 67.47% | DA18: 141.45% | DB18: 165 | DC18: 92.27% | DD18: 122.76% | DE18: 34 | DG18: 100.00% | DH18: 100.00% | DI18: 6 | DJ18: 155 | DK18: 0.70% | DL18: 5.33 | DM18: 6 | DN18: 204 | DO18: 0.66% | DP18: 5.33 | DQ18: 7 | DR18: -19 | DS18: 0.75% | DT18: 5.33 | DU18: -1 | DV18: 164 | DW18: 0.40% | DX18: 1.14 | DY18: 1 | DZ18: -335 | EA18: 0.20% | EB18: 5.37 | EC18: -4 | ED18: -61 | EE18: 0.20% | EF18: 5.37 | EG18: -1 | EH18: -23 | EI18: 0.20% | EJ18: 5.37 | EK18: -0 | EL18: -19 | EM18: 0.23% | EN18: 5.33 | EO18: -0 | EP18: -42 | EQ18: 0.10% | ER18: 9.30 | ES18: -0 | ET18: -21 | EU18: 0.20% | EV18: 9.00 | EW18: -0 | EX18: -155 | EY18: 0.00% | EZ18: 8.59 | FA18: 0 | FB18: 0 | FC18: -0.26% | FD18: 0.74 | FE18: 0 | FF18: 477 | FG18: 0.45% | FH18: 8.00 | FI18: 17 | FJ18: 2,366 | FK18: 0.33% | FL18: 1.00 | FM18: 8 | FN18: -36 | FO18: 0.65% | FP18: 5.00 | FQ18: -1 | FR18: 4 | FS18: 0.40% | FT18: 1.00 | FU18: 0 | FV18: -297 | FW18: 0.20% | FX18: 8.00 | FY18: -5 | FZ18: 74 | GA18: 1.00% | GB18: 5.00 | GC18: 4 | GD18: -71 | GE18: 16 | GF18: 523 | GG18: 33 | GH18: 95 | GI18: 1.00% | GJ18: 5.37 | GK18: 5 | GL18: 368 | GM18: 0 | GN18: 0 | GP18: 0 | GQ18: 0.00% | GR18: 0 | GS18: 0 | GT18: 100 | GU18: 0.45% | GV18: 8.00 | GW18: 4 | GX18: 100 | GY18: 0.33% | GZ18: 1.00 | HA18: 0 | HB18: 0 | HC18: 0.65% | HD18: 5.00 | HE18: 0 | HF18: 0 | HG18: 0.40% | HH18: 1.00 | HI18: 0 | HJ18: -18 | HK18: 1.00% | HL18: 5.00 | HM18: -1 | HN18: -20 | HO18: 428 | HP18: 0 | HQ18: =IF(ISERROR(IF(VLOOKUP($C18,'Indicateurs Cumulés'!$C$3:$HP$560,188,FALSE)/(VLOOKUP($C18,objectifs!$C$3:$AAB$559,158,FALSE))>=1.5,(VLOOKUP($C18,objectifs!$C$3:$AAB$559,158,FALSE))*1.5,IF(VLOOKUP($C18,'Indicateurs Cumulés'!$C$3:$HP$560,188,FALSE)/(VLOOKUP($C18,objectifs!$C$3:$AAB$559,158,FALSE))<=-0.5,(VLOOKUP($C18,objectifs!$C$3:$AAB$559,158,FALSE))*-0.5,VLOOKUP($C18,'Indicateurs Cumulés'!$C$3:$HP$560,188,FALSE)))),VLOOKUP($C18,'Indicateurs Cumulés'!$C$3:$HP$560,188,FALSE),IF(VLOOKUP($C18,'Indicateurs Cumulés'!$C$3:$HP$560,188,FALSE)/(VLOOKUP($C18,objectifs!$C$3:$AAB$559,158,FALSE))>=1.5,(VLOOKUP($C18,objectifs!$C$3:$AAB$559,158,FALSE))*1.5,IF(VLOOKUP($C18,'Indicateurs Cumulés'!$C$3:$HP$560,188,FALSE)/(VLOOKUP($C18,objectifs!$C$3:$AAB$559,158,FALSE))<=-0.5,(VLOOKUP($C18,objectifs!$C$3:$AAB$559,158,FALSE))*-0.5,VLOOKUP($C18,'Indicateurs Cumulés'!$C$3:$HP$560,188,FALSE)))) -> 95 | HR18: 0 | HS18: 0 | HT18: 4.6 | HU18: 0 | HV18: 0 | HW18: 0 | HX18: 0 | HY18: 0 | HZ18: 6 | IA18: -1 | IB18: -10 | IC18: -19 | ID18: 6 | IE18: 7 | IF18: -22 | IG18: 7 | IH18: -7 | II18: 0 | IJ18: 1 | IK18: -4 | IL18: 48 | IM18: -23 | IN18: 1 | IO18: 0 | IP18: 1 | IQ18: -0 | IR18: -1 | IS18: -0 | IT18: 1 | IU18: 1 | IV18: -10 | IW18: 0 | IX18: -4 | IY18: 0 | IZ18: 2 | JA18: -4 | JB18: 31 | JC18: -5 | JD18: 0 | JE18: 57 | JF18: 101 | JG18: 0 | JH18: 0 | JI18: 0.00 | JJ18: 0.00 | JK18: 0 | JL18: 0 | JM18: 0 | JN18: 0.20% | JO18: 27 | JQ18: 64 | JR18: 304 | JS18: 194 | JT18: =IF(ISERROR(IF(VLOOKUP($C18,'Indicateurs Cumulés'!$C$3:$HP$560,192,FALSE)/(VLOOKUP($C18,objectifs!$C$3:$AAB$559,162,FALSE))>=1.5,(VLOOKUP($C18,objectifs!$C$3:$AAB$559,162,FALSE))*1.5,IF(VLOOKUP($C18,'Indicateurs Cumulés'!$C$3:$HP$560,192,FALSE)/(VLOOKUP($C18,objectifs!$C$3:$AAB$559,162,FALSE))<=-0.5,(VLOOKUP($C18,objectifs!$C$3:$AAB$559,162,FALSE))*-0.5,VLOOKUP($C18,'Indicateurs Cumulés'!$C$3:$HP$560,192,FALSE)))),VLOOKUP($C18,'Indicateurs Cumulés'!$C$3:$HP$560,192,FALSE),IF(VLOOKUP($C18,'Indicateurs Cumulés'!$C$3:$HP$560,192,FALSE)/(VLOOKUP($C18,objectifs!$C$3:$AAB$559,162,FALSE))>=1.5,(VLOOKUP($C18,objectifs!$C$3:$AAB$559,162,FALSE))*1.5,IF(VLOOKUP($C18,'Indicateurs Cumulés'!$C$3:$HP$560,192,FALSE)/(VLOOKUP($C18,objectifs!$C$3:$AAB$559,162,FALSE))<=-0.5,(VLOOKUP($C18,objectifs!$C$3:$AAB$559,162,FALSE))*-0.5,VLOOKUP($C18,'Indicateurs Cumulés'!$C$3:$HP$560,192,FALSE)))) -> 8 | JU18: 0 | JV18: 1 | JX18: 2 | JY18: 10 | JZ18: 6 | KA18: 0 | KB18: 20 | KC18: 12 | KD18: 0 | KE18: 1 | KF18: 3 | KG18: 2 | KH18: 1 | KI18: 17 | KJ18: 0 | KK18: 1 | KL18: 1 | KM18: 1 | KN18: 0 | KO18: 40 | KP18: 18 | KV18: 29 | KW18: 0 | KX18: 50 | KY18: 10 | KZ18: 0 | LA18: 45 | LB18: 31 | LC18: 0 | LD18: 0 | LE18: 773.6 | LF18: 179 | LG18: 9 | LH18: 6 | LI18: 8 | LJ18: 12 | LK18: 6 | LL18: 1 | LM18: 739 | LN18: 159.5 | LO18: 55 | LP18: 655 | LQ18: -20 | LR18: 18 | LS18: 166.98 | LT18: 197 | LU18: 123 | LV18: 910 | LW18: 196 | LX18: 139 | LY18: 88 | LZ18: 14.8 | MA18: 1.2 | MB18: 2.7 | MC18: 9.8 | MD18: 2.1 | ME18: 0.4 | MF18: 805 | MH18: 0.34%
A19: 105006 | B19: 200262 | C19: 28 | D19: BISCHHEIM | E19: 28 | F19: BISCHHEIM | G19: 2019-10-31 | H19: 180 | I19: 4.32% | J19: 1.57 | K19: 2019-10-31 | L19: 1,161 | M19: 3.29% | N19: 2.35 | O19: 90 | P19: 3,241 | Q19: 0 | R19: 0.19% | S19: 7.33 | T19: 11.01 | U19: 33 | V19: 2.33% | W19: 3.43 | X19: 283 | Y19: 0.55% | Z19: 7.78 | AA19: 160 | AB19: 0.85% | AC19: 3.01 | AD19: 10.4 | AE19: 9.7 | AF19: 0.9 | AG19: 490.3 | AH19: 22.3 | AI19: 5.8 | AJ19: 201910 | AK19: 11.50 | AL19: 0.28 | AM19: 2.40% | AN19: 322.21 | AO19: 89.89 | AP19: 28% | AQ19: 3.44 | AR19: 1.07% | AS19: 1,407.72 | AT19: 167.75 | AU19: 11.9% | AV19: 1.78 | AW19: 0.13% | AX19: 133.04 | AY19: 16.37 | AZ19: 12.30% | BA19: 2.28 | BB19: 1.71% | BC19: 1,874.48 | BD19: 274.01 | BE19: 14.6% | BF19: 7.78 | BG19: 0.41% | BI19: 4 | BJ19: 29 | BK19: 132 | BL19: 165 | BM19: 6 | BN19: 1.43% | BO19: 0.00% | BP19: 28 | BQ19: 223 | BR19: 4 | BS19: 102 | BT19: 3 | BU19: 4 | BV19: 2 | BW19: -6 | BZ19: 0 | CA19: 2 | CB19: 1 | CC19: -1 | CD19: -0 | CE19: 0 | CF19: 0 | CG19: 9 | CH19: 1.8 | CI19: -10 | CJ19: -2 | CK19: 8 | CL19: 8 | CM19: 100.00% | CN19: 200.00% | CO19: 1 | CP19: 200.00% | CQ19: 99.65% | CR19: 15 | CS19: 0.9 | CT19: 1 | CU19: 0.20 | CV19: 0 | CW19: 6 | CX19: 1 | CY19: 10 | CZ19: 75.66% | DA19: 162.47% | DB19: 96 | DC19: 96.83% | DD19: 137.95% | DE19: 24 | DG19: 100.00% | DH19: 100.00% | DI19: 0 | DJ19: -72 | DK19: 0.70% | DL19: 5.33 | DM19: -3 | DN19: 14 | DO19: 0.66% | DP19: 5.33 | DQ19: 1 | DR19: -10 | DS19: 0.75% | DT19: 5.33 | DU19: -0 | DV19: 18 | DW19: 0.40% | DX19: 1.14 | DY19: 0 | DZ19: -240 | EA19: 0.20% | EB19: 5.37 | EC19: -3 | ED19: 151 | EE19: 0.20% | EF19: 5.37 | EG19: 2 | EH19: -51 | EI19: 0.20% | EJ19: 5.37 | EK19: -1 | EL19: 12 | EM19: 0.23% | EN19: 5.33 | EO19: 0 | EP19: 5 | EQ19: 0.10% | ER19: 6.29 | ES19: 0 | ET19: -70 | EU19: 0.20% | EV19: 9.00 | EW19: -1 | EX19: 183 | EY19: 0.00% | EZ19: 8.59 | FA19: 0 | FB19: -5 | FC19: -0.26% | FD19: 0.74 | FE19: 0 | FF19: 407 | FG19: 0.45% | FH19: 8.00 | FI19: 15 | FJ19: 1,934 | FK19: 0.41% | FL19: 1.00 | FM19: 8 | FN19: -152 | FO19: 0.65% | FP19: 5.00 | FQ19: -5 | FR19: 22 | FS19: 0.40% | FT19: 1.00 | FU19: 0 | FV19: -412 | FW19: 0.20% | FX19: 8.00 | FY19: -7 | FZ19: -72 | GA19: 1.00% | GB19: 5.00 | GC19: -4 | GD19: -340 | GE19: -9 | GF19: 310 | GG19: 28 | GH19: 510 | GI19: 1.00% | GJ19: 5.37 | GK19: 27 | GL19: 97 | GM19: 0 | GN19: 0 | GP19: 18 | GQ19: 1.95% | GR19: 1.93 | GS19: 1 | GT19: 0 | GU19: 0.45% | GV19: 8.00 | GW19: 0 | GX19: 0 | GY19: 0.41% | GZ19: 1.00 | HA19: 0 | HB19: 0 | HC19: 0.65% | HD19: 5.00 | HE19: 0 | HF19: 0 | HG19: 0.40% | HH19: 1.00 | HI19: 0 | HJ19: 55 | HK19: 1.00% | HL19: 5.00 | HM19: 3 | HN19: -15 | HO19: 358 | HP19: 0 | HQ19: =IF(ISERROR(IF(VLOOKUP($C19,'Indicateurs Cumulés'!$C$3:$HP$560,188,FALSE)/(VLOOKUP($C19,objectifs!$C$3:$AAB$559,158,FALSE))>=1.5,(VLOOKUP($C19,objectifs!$C$3:$AAB$559,158,FALSE))*1.5,IF(VLOOKUP($C19,'Indicateurs Cumulés'!$C$3:$HP$560,188,FALSE)/(VLOOKUP($C19,objectifs!$C$3:$AAB$559,158,FALSE))<=-0.5,(VLOOKUP($C19,objectifs!$C$3:$AAB$559,158,FALSE))*-0.5,VLOOKUP($C19,'Indicateurs Cumulés'!$C$3:$HP$560,188,FALSE)))),VLOOKUP($C19,'Indicateurs Cumulés'!$C$3:$HP$560,188,FALSE),IF(VLOOKUP($C19,'Indicateurs Cumulés'!$C$3:$HP$560,188,FALSE)/(VLOOKUP($C19,objectifs!$C$3:$AAB$559,158,FALSE))>=1.5,(VLOOKUP($C19,objectifs!$C$3:$AAB$559,158,FALSE))*1.5,IF(VLOOKUP($C19,'Indicateurs Cumulés'!$C$3:$HP$560,188,FALSE)/(VLOOKUP($C19,objectifs!$C$3:$AAB$559,158,FALSE))<=-0.5,(VLOOKUP($C19,objectifs!$C$3:$AAB$559,158,FALSE))*-0.5,VLOOKUP($C19,'Indicateurs Cumulés'!$C$3:$HP$560,188,FALSE)))) -> 510 | HR19: 0 | HS19: 0 | HT19: 3.7 | HU19: 0 | HV19: 0 | HW19: 0 | HX19: 0 | HY19: 18 | HZ19: 8 | IA19: -1 | IB19: -2 | IC19: -16 | ID19: 5 | IE19: 27 | IF19: -21 | IG19: 7 | IH19: -22 | II19: -5 | IJ19: 0 | IK19: 4 | IL19: 35 | IM19: -49 | IN19: -1 | IO19: 2 | IP19: 1 | IQ19: -0 | IR19: -0 | IS19: -0 | IT19: 0 | IU19: 3 | IV19: -9 | IW19: 0 | IX19: -14 | IY19: -5 | IZ19: 0 | JA19: 4 | JB19: 23 | JC19: -11 | JD19: -0 | JE19: 28 | JF19: 39 | JG19: 0 | JH19: 0 | JI19: 0.00 | JJ19: 0.00 | JK19: 0 | JL19: 0 | JM19: -45 | JN19: 0.20% | JO19: 21 | JQ19: 1 | JR19: 210 | JS19: -27 | JT19: =IF(ISERROR(IF(VLOOKUP($C19,'Indicateurs Cumulés'!$C$3:$HP$560,192,FALSE)/(VLOOKUP($C19,objectifs!$C$3:$AAB$559,162,FALSE))>=1.5,(VLOOKUP($C19,objectifs!$C$3:$AAB$559,162,FALSE))*1.5,IF(VLOOKUP($C19,'Indicateurs Cumulés'!$C$3:$HP$560,192,FALSE)/(VLOOKUP($C19,objectifs!$C$3:$AAB$559,162,FALSE))<=-0.5,(VLOOKUP($C19,objectifs!$C$3:$AAB$559,162,FALSE))*-0.5,VLOOKUP($C19,'Indicateurs Cumulés'!$C$3:$HP$560,192,FALSE)))),VLOOKUP($C19,'Indicateurs Cumulés'!$C$3:$HP$560,192,FALSE),IF(VLOOKUP($C19,'Indicateurs Cumulés'!$C$3:$HP$560,192,FALSE)/(VLOOKUP($C19,objectifs!$C$3:$AAB$559,162,FALSE))>=1.5,(VLOOKUP($C19,objectifs!$C$3:$AAB$559,162,FALSE))*1.5,IF(VLOOKUP($C19,'Indicateurs Cumulés'!$C$3:$HP$560,192,FALSE)/(VLOOKUP($C19,objectifs!$C$3:$AAB$559,162,FALSE))<=-0.5,(VLOOKUP($C19,objectifs!$C$3:$AAB$559,162,FALSE))*-0.5,VLOOKUP($C19,'Indicateurs Cumulés'!$C$3:$HP$560,192,FALSE)))) -> 8 | JU19: -1 | JV19: 1 | JX19: 0 | JY19: 7 | JZ19: -1 | KA19: 0 | KB19: 7 | KC19: -4 | KD19: 0 | KE19: -2 | KF19: -3 | KG19: -1 | KH19: 0 | KI19: -6 | KJ19: 0 | KK19: -1 | KL19: -1 | KM19: -1 | KN19: 0 | KO19: -1 | KP19: 7 | KV19: 3 | KW19: 0 | KX19: 7 | KY19: 1 | KZ19: 0 | LA19: 39 | LB19: 27 | LC19: 0 | LD19: 0 | LE19: 346.3 | LF19: 35 | LG19: -4 | LH19: -3 | LI19: -5 | LJ19: -7 | LK19: 0 | LL19: 0 | LM19: 330 | LN19: 89.0 | LO19: 47 | LP19: 304 | LQ19: -15 | LR19: -10 | LS19: 93.44 | LT19: 167 | LU19: 115 | LV19: 930 | LW19: 142 | LX19: 202 | LY19: 81 | LZ19: 12.5 | MA19: 1.2 | MB19: 2.8 | MC19: 7.1 | MD19: 3.0 | ME19: 0.4 | MF19: 373 | MH19: 0.32%
A20: 105006 | B20: 200262 | C20: 29 | D20: SCHILTIGHEIM KLEBER | E20: 29 | F20: SCHILTIGHEIM KLEBER | G20: 2019-10-31 | H20: 140 | I20: 4.32% | J20: 1.57 | K20: 2019-10-31 | L20: 1,110 | M20: 3.24% | N20: 2.30 | O20: 83 | P20: 1,995 | Q20: 0 | R20: 0.22% | S20: 7.86 | T20: 11.97 | U20: 32 | V20: 3.23% | W20: 2.18 | X20: 0 | Y20: 0.00% | Z20: 0 | AA20: 73 | AB20: 2.04% | AC20: 2.90 | AD20: 5.8 | AE20: 12.1 | AF20: 1.2 | AG20: 56.8 | AH20: 16.9 | AI20: 4.5 | AJ20: 201910 | AK20: 32.00 | AL20: 0.48 | AM20: 1.50% | AN20: 266.23 | AO20: 43.22 | AP20: 16% | AQ20: 1.30 | AR20: 0.49% | AS20: 1,339.31 | AT20: 150.42 | AU20: 11.2% | AV20: 0.87 | AW20: 0.06% | AX20: 29.23 | AY20: 4.18 | AZ20: 14.30% | BA20: 0.58 | BB20: 2.00% | BC20: 1,666.78 | BD20: 197.81 | BE20: 11.9% | BF20: 3.23 | BG20: 0.19% | BI20: 3 | BJ20: 0 | BK20: 114 | BL20: 96 | BM20: 6 | BN20: 1.23% | BO20: 0.00% | BP20: 29 | BQ20: 148 | BR20: 3 | BS20: 94 | BT20: 3 | BU20: 4 | BV20: 2 | BW20: -2 | BZ20: 0 | CA20: 0 | CB20: 0 | CC20: 1 | CD20: 0 | CE20: 1 | CF20: 1 | CG20: 17 | CH20: 3.4 | CI20: 18 | CJ20: 4 | CK20: 7 | CL20: 7 | CM20: 100.00% | CN20: 131.75% | CO20: 1 | CP20: 0.00% | CQ20: 0.00% | CR20: 0 | CS20: 1.2 | CT20: 0 | CU20: 0.00 | CV20: 0 | CW20: 0 | CX20: 0 | CY20: 6 | CZ20: 82.91% | DA20: 149.44% | DB20: 44 | DC20: 98.36% | DD20: 128.40% | DE20: 22 | DG20: 100.00% | DH20: 100.00% | DI20: 0 | DJ20: -49 | DK20: 0.70% | DL20: 5.33 | DM20: -2 | DN20: 132 | DO20: 0.66% | DP20: 5.33 | DQ20: 5 | DR20: -12 | DS20: 0.75% | DT20: 5.33 | DU20: -0 | DV20: 295 | DW20: 0.40% | DX20: 1.14 | DY20: 1 | DZ20: -159 | EA20: 0.20% | EB20: 5.37 | EC20: -2 | ED20: -44 | EE20: 0.20% | EF20: 5.37 | EG20: -0 | EH20: -14 | EI20: 0.20% | EJ20: 5.37 | EK20: -0 | EL20: 65 | EM20: 0.23% | EN20: 5.33 | EO20: 1 | EP20: -4 | EQ20: 0.10% | ER20: 8.41 | ES20: -0 | ET20: -6 | EU20: 0.20% | EV20: 9.00 | EW20: -0 | EX20: -315 | EY20: 0.00% | EZ20: 8.59 | FA20: 0 | FB20: 0 | FC20: -0.26% | FD20: 0.74 | FE20: 0 | FF20: 816 | FG20: 0.45% | FH20: 8.00 | FI20: 29 | FJ20: 1,699 | FK20: 0.19% | FL20: 1.00 | FM20: 3 | FN20: -84 | FO20: 0.65% | FP20: 5.00 | FQ20: -3 | FR20: 7 | FS20: 0.40% | FT20: 1.00 | FU20: 0 | FV20: -457 | FW20: 0.20% | FX20: 8.00 | FY20: -7 | FZ20: 81 | GA20: 1.00% | GB20: 5.00 | GC20: 4 | GD20: -363 | GE20: 3 | GF20: 850 | GG20: 40 | GH20: -16 | GI20: 1.00% | GJ20: 5.37 | GK20: -1 | GL20: 49 | GM20: 0 | GN20: 0 | GP20: 0 | GQ20: 0.00% | GR20: 0 | GS20: 0 | GT20: 100 | GU20: 0.45% | GV20: 8.00 | GW20: 4 | GX20: 100 | GY20: 0.19% | GZ20: 1.00 | HA20: 0 | HB20: 0 | HC20: 0.65% | HD20: 5.00 | HE20: 0 | HF20: 0 | HG20: 0.40% | HH20: 1.00 | HI20: 0 | HJ20: 19 | HK20: 1.00% | HL20: 5.00 | HM20: 1 | HN20: -10 | HO20: 235 | HP20: 0 | HQ20: =IF(ISERROR(IF(VLOOKUP($C20,'Indicateurs Cumulés'!$C$3:$HP$560,188,FALSE)/(VLOOKUP($C20,objectifs!$C$3:$AAB$559,158,FALSE))>=1.5,(VLOOKUP($C20,objectifs!$C$3:$AAB$559,158,FALSE))*1.5,IF(VLOOKUP($C20,'Indicateurs Cumulés'!$C$3:$HP$560,188,FALSE)/(VLOOKUP($C20,objectifs!$C$3:$AAB$559,158,FALSE))<=-0.5,(VLOOKUP($C20,objectifs!$C$3:$AAB$559,158,FALSE))*-0.5,VLOOKUP($C20,'Indicateurs Cumulés'!$C$3:$HP$560,188,FALSE)))),VLOOKUP($C20,'Indicateurs Cumulés'!$C$3:$HP$560,188,FALSE),IF(VLOOKUP($C20,'Indicateurs Cumulés'!$C$3:$HP$560,188,FALSE)/(VLOOKUP($C20,objectifs!$C$3:$AAB$559,158,FALSE))>=1.5,(VLOOKUP($C20,objectifs!$C$3:$AAB$559,158,FALSE))*1.5,IF(VLOOKUP($C20,'Indicateurs Cumulés'!$C$3:$HP$560,188,FALSE)/(VLOOKUP($C20,objectifs!$C$3:$AAB$559,158,FALSE))<=-0.5,(VLOOKUP($C20,objectifs!$C$3:$AAB$559,158,FALSE))*-0.5,VLOOKUP($C20,'Indicateurs Cumulés'!$C$3:$HP$560,188,FALSE)))) -> -16 | HR20: 0 | HS20: 0 | HT20: 2.9 | HU20: 0 | HV20: 0 | HW20: 0 | HX20: 0 | HY20: 18 | HZ20: 9 | IA20: 1 | IB20: -7 | IC20: -2 | ID20: 3 | IE20: 24 | IF20: 12 | IG20: 1 | IH20: -8 | II20: 0 | IJ20: 0 | IK20: 2 | IL20: 42 | IM20: -11 | IN20: -6 | IO20: 2 | IP20: 1 | IQ20: 0 | IR20: -1 | IS20: -0 | IT20: 0 | IU20: 3 | IV20: 5 | IW20: 0 | IX20: -5 | IY20: 0 | IZ20: 0 | JA20: 2 | JB20: 27 | JC20: -2 | JD20: -0 | JE20: 88 | JF20: 9 | JG20: 0 | JH20: 0 | JI20: 0.00 | JJ20: 0.00 | JK20: 0 | JL20: 0 | JM20: 0 | JN20: 0.20% | JO20: 65 | JQ20: 100 | JR20: 125 | JS20: 34 | JT20: =IF(ISERROR(IF(VLOOKUP($C20,'Indicateurs Cumulés'!$C$3:$HP$560,192,FALSE)/(VLOOKUP($C20,objectifs!$C$3:$AAB$559,162,FALSE))>=1.5,(VLOOKUP($C20,objectifs!$C$3:$AAB$559,162,FALSE))*1.5,IF(VLOOKUP($C20,'Indicateurs Cumulés'!$C$3:$HP$560,192,FALSE)/(VLOOKUP($C20,objectifs!$C$3:$AAB$559,162,FALSE))<=-0.5,(VLOOKUP($C20,objectifs!$C$3:$AAB$559,162,FALSE))*-0.5,VLOOKUP($C20,'Indicateurs Cumulés'!$C$3:$HP$560,192,FALSE)))),VLOOKUP($C20,'Indicateurs Cumulés'!$C$3:$HP$560,192,FALSE),IF(VLOOKUP($C20,'Indicateurs Cumulés'!$C$3:$HP$560,192,FALSE)/(VLOOKUP($C20,objectifs!$C$3:$AAB$559,162,FALSE))>=1.5,(VLOOKUP($C20,objectifs!$C$3:$AAB$559,162,FALSE))*1.5,IF(VLOOKUP($C20,'Indicateurs Cumulés'!$C$3:$HP$560,192,FALSE)/(VLOOKUP($C20,objectifs!$C$3:$AAB$559,162,FALSE))<=-0.5,(VLOOKUP($C20,objectifs!$C$3:$AAB$559,162,FALSE))*-0.5,VLOOKUP($C20,'Indicateurs Cumulés'!$C$3:$HP$560,192,FALSE)))) -> 8 | JU20: 0 | JV20: 3 | JX20: 4 | JY20: 4 | JZ20: 1 | KA20: 0 | KB20: 12 | KC20: 0 | KD20: 3 | KE20: 1 | KF20: 2 | KG20: 0 | KH20: 1 | KI20: 0 | KJ20: 3 | KK20: 1 | KL20: 0 | KM20: 0 | KN20: 0 | KO20: 11 | KP20: 6 | KV20: 12 | KW20: 0 | KX20: 58 | KY20: 12 | KZ20: 0 | LA20: 44 | LB20: 31 | LC20: 0 | LD20: 0 | LE20: 341.3 | LF20: 28 | LG20: -1 | LH20: -1 | LI20: -2 | LJ20: -3 | LK20: -1 | LL20: -0 | LM20: 314 | LN20: 107.3 | LO20: 42 | LP20: 216 | LQ20: -10 | LR20: -4 | LS20: 116.68 | LT20: 127 | LU20: 144 | LV20: 729 | LW20: 116 | LX20: 108 | LY20: 54 | LZ20: 9.5 | MA20: 1.4 | MB20: 2.2 | MC20: 5.8 | MD20: 1.6 | ME20: 0.3 | MF20: 362 | MH20: 0.29%
A21: 105060 | B21: 200262 | C21: 30 | D21: BRUMATH | E21: 30 | F21: BRUMATH | G21: 2019-10-31 | H21: 167 | I21: 4.32% | J21: 1.57 | K21: 2019-10-31 | L21: 2,214 | M21: 3.21% | N21: 2.57 | O21: 183 | P21: 7,199 | Q21: 0 | R21: 0.24% | S21: 7.83 | T21: 12.08 | U21: 177 | V21: 3.15% | W21: 2.57 | X21: 518 | Y21: 0.08% | Z21: 7.42 | AA21: 1,925 | AB21: 0.61% | AC21: 3.95 | AD21: 23.9 | AE21: 23.4 | AF21: 6.6 | AG21: 562.4 | AH21: 37.6 | AI21: 13.6 | AJ21: 201910 | AK21: 24.00 | AL21: 0.36 | AM21: 1.50% | AN21: 510.65 | AO21: 74.46 | AP21: 15% | AQ21: 5.92 | AR21: 1.16% | AS21: 2,381.65 | AT21: 140.45 | AU21: 5.9% | AV21: 4.91 | AW21: 0.21% | AX21: 130.43 | AY21: 9.56 | AZ21: 7.33% | BA21: 2.36 | BB21: 1.81% | BC21: 3,046.73 | BD21: 224.47 | BE21: 7.4% | BF21: 13.55 | BG21: 0.44% | BI21: 20 | BJ21: 18 | BK21: 255 | BL21: 343 | BM21: 67 | BN21: 1.17% | BO21: 0.00% | BP21: 30 | BQ21: 136 | BR21: 3 | BS21: 266 | BT21: 7 | BU21: 5 | BV21: 2 | BW21: -39 | BZ21: 0 | CA21: -2 | CB21: -1 | CC21: -1 | CD21: -0 | CE21: 3 | CF21: 2 | CG21: 14 | CH21: 2.8 | CI21: -9 | CJ21: -2 | CK21: 13 | CL21: 13 | CM21: 100.00% | CN21: 180.95% | CO21: 4 | CP21: 151.51% | CQ21: 63.91% | CR21: 11 | CS21: 6.6 | CT21: 1 | CU21: 0.43 | CV21: 1 | CW21: 11 | CX21: 2 | CY21: 24 | CZ21: 60.11% | DA21: 146.70% | DB21: 157 | DC21: 95.29% | DD21: 140.58% | DE21: 51 | DG21: 70.94% | DH21: 114.49% | DI21: 10 | DJ21: 631 | DK21: 0.70% | DL21: 5.33 | DM21: 24 | DN21: 147 | DO21: 0.66% | DP21: 5.33 | DQ21: 5 | DR21: -2 | DS21: 0.75% | DT21: 5.33 | DU21: -0 | DV21: 324 | DW21: 0.40% | DX21: 1.14 | DY21: 1 | DZ21: -278 | EA21: 0.20% | EB21: 5.37 | EC21: -3 | ED21: 163 | EE21: 0.20% | EF21: 5.37 | EG21: 2 | EH21: -51 | EI21: 0.20% | EJ21: 5.37 | EK21: -1 | EL21: -56 | EM21: 0.23% | EN21: 5.33 | EO21: -1 | EP21: -41 | EQ21: 0.10% | ER21: 8.39 | ES21: -0 | ET21: 9 | EU21: 0.20% | EV21: 9.00 | EW21: 0 | EX21: -285 | EY21: 0.00% | EZ21: 8.59 | FA21: 0 | FB21: -5 | FC21: -0.26% | FD21: 0.74 | FE21: 0 | FF21: 795 | FG21: 0.45% | FH21: 8.00 | FI21: 29 | FJ21: 2,734 | FK21: 0.44% | FL21: 1.00 | FM21: 12 | FN21: -142 | FO21: 0.65% | FP21: 5.00 | FQ21: -5 | FR21: 70 | FS21: 0.40% | FT21: 1.00 | FU21: 0 | FV21: -479 | FW21: 0.20% | FX21: 8.00 | FY21: -8 | FZ21: 422 | GA21: 1.00% | GB21: 5.00 | GC21: 21 | GD21: 949 | GE21: 55 | GF21: 792 | GG21: 54 | GH21: 239 | GI21: 1.00% | GJ21: 5.37 | GK21: 13 | GL21: -10 | GM21: 0 | GN21: 0 | GP21: 151 | GQ21: 0.77% | GR21: 2.37 | GS21: 3 | GT21: 0 | GU21: 0.45% | GV21: 8.00 | GW21: 0 | GX21: 0 | GY21: 0.44% | GZ21: 1.00 | HA21: 0 | HB21: 0 | HC21: 0.65% | HD21: 5.00 | HE21: 0 | HF21: 0 | HG21: 0.40% | HH21: 1.00 | HI21: 0 | HJ21: 139 | HK21: 1.00% | HL21: 5.00 | HM21: 7 | HN21: -25 | HO21: 411 | HP21: 0 | HQ21: =IF(ISERROR(IF(VLOOKUP($C21,'Indicateurs Cumulés'!$C$3:$HP$560,188,FALSE)/(VLOOKUP($C21,objectifs!$C$3:$AAB$559,158,FALSE))>=1.5,(VLOOKUP($C21,objectifs!$C$3:$AAB$559,158,FALSE))*1.5,IF(VLOOKUP($C21,'Indicateurs Cumulés'!$C$3:$HP$560,188,FALSE)/(VLOOKUP($C21,objectifs!$C$3:$AAB$559,158,FALSE))<=-0.5,(VLOOKUP($C21,objectifs!$C$3:$AAB$559,158,FALSE))*-0.5,VLOOKUP($C21,'Indicateurs Cumulés'!$C$3:$HP$560,188,FALSE)))),VLOOKUP($C21,'Indicateurs Cumulés'!$C$3:$HP$560,188,FALSE),IF(VLOOKUP($C21,'Indicateurs Cumulés'!$C$3:$HP$560,188,FALSE)/(VLOOKUP($C21,objectifs!$C$3:$AAB$559,158,FALSE))>=1.5,(VLOOKUP($C21,objectifs!$C$3:$AAB$559,158,FALSE))*1.5,IF(VLOOKUP($C21,'Indicateurs Cumulés'!$C$3:$HP$560,188,FALSE)/(VLOOKUP($C21,objectifs!$C$3:$AAB$559,158,FALSE))<=-0.5,(VLOOKUP($C21,objectifs!$C$3:$AAB$559,158,FALSE))*-0.5,VLOOKUP($C21,'Indicateurs Cumulés'!$C$3:$HP$560,188,FALSE)))) -> 239 | HR21: 0 | HS21: 0 | HT21: 7.6 | HU21: 0 | HV21: 0 | HW21: 0 | HX21: 0 | HY21: 26 | HZ21: 8 | IA21: -5 | IB21: 3 | IC21: -9 | ID21: 7 | IE21: 40 | IF21: -34 | IG21: 60 | IH21: -37 | II21: -7 | IJ21: 1 | IK21: 0 | IL21: 93 | IM21: -85 | IN21: 2 | IO21: 3 | IP21: 1 | IQ21: -1 | IR21: 0 | IS21: -0 | IT21: 1 | IU21: 5 | IV21: -15 | IW21: 4 | IX21: -23 | IY21: -7 | IZ21: 2 | JA21: 0 | JB21: 60 | JC21: -18 | JD21: 0 | JE21: 88 | JF21: 104 | JG21: 14 | JH21: 0 | JI21: 0.00 | JJ21: 0.00 | JK21: 0 | JL21: 0 | JM21: -6 | JN21: 0.20% | JO21: 24 | JQ21: 3 | JR21: 450 | JS21: -123 | JT21: =IF(ISERROR(IF(VLOOKUP($C21,'Indicateurs Cumulés'!$C$3:$HP$560,192,FALSE)/(VLOOKUP($C21,objectifs!$C$3:$AAB$559,162,FALSE))>=1.5,(VLOOKUP($C21,objectifs!$C$3:$AAB$559,162,FALSE))*1.5,IF(VLOOKUP($C21,'Indicateurs Cumulés'!$C$3:$HP$560,192,FALSE)/(VLOOKUP($C21,objectifs!$C$3:$AAB$559,162,FALSE))<=-0.5,(VLOOKUP($C21,objectifs!$C$3:$AAB$559,162,FALSE))*-0.5,VLOOKUP($C21,'Indicateurs Cumulés'!$C$3:$HP$560,192,FALSE)))),VLOOKUP($C21,'Indicateurs Cumulés'!$C$3:$HP$560,192,FALSE),IF(VLOOKUP($C21,'Indicateurs Cumulés'!$C$3:$HP$560,192,FALSE)/(VLOOKUP($C21,objectifs!$C$3:$AAB$559,162,FALSE))>=1.5,(VLOOKUP($C21,objectifs!$C$3:$AAB$559,162,FALSE))*1.5,IF(VLOOKUP($C21,'Indicateurs Cumulés'!$C$3:$HP$560,192,FALSE)/(VLOOKUP($C21,objectifs!$C$3:$AAB$559,162,FALSE))<=-0.5,(VLOOKUP($C21,objectifs!$C$3:$AAB$559,162,FALSE))*-0.5,VLOOKUP($C21,'Indicateurs Cumulés'!$C$3:$HP$560,192,FALSE)))) -> -3 | JU21: -0 | JV21: 1 | JX21: 0 | JY21: 15 | JZ21: -4 | KA21: -0 | KB21: 12 | KC21: 10 | KD21: 0 | KE21: -1 | KF21: 5 | KG21: -1 | KH21: 3 | KI21: 14 | KJ21: 0 | KK21: -1 | KL21: 1 | KM21: -1 | KN21: 0 | KO21: 36 | KP21: 21 | KV21: 6 | KW21: 0 | KX21: 22 | KY21: 4 | KZ21: 0 | LA21: 94 | LB21: 66 | LC21: 0 | LD21: 0 | LE21: 855.5 | LF21: 161 | LG21: 3 | LH21: 2 | LI21: 4 | LJ21: 6 | LK21: 8 | LL21: 1 | LM21: 828 | LN21: 108.8 | LO21: 122 | LP21: 665 | LQ21: -25 | LR21: 9 | LS21: 112.36 | LT21: 193 | LU21: 299 | LV21: 1043 | LW21: 133 | LX21: 48 | LY21: 61 | LZ21: 14.5 | MA21: 3.0 | MB21: 3.1 | MC21: 6.7 | MD21: 0.7 | ME21: 0.3 | MF21: 884 | MH21: 0.33%
A22: 105060 | B22: 200262 | C22: 31 | D22: TRUCHTERSHEIM | E22: 31 | F22: TRUCHTERSHEIM | G22: 2019-10-31 | H22: 76 | I22: 4.32% | J22: 1.57 | K22: 2019-10-31 | L22: 1,069 | M22: 2.70% | N22: 2.27 | O22: 66 | P22: 7,883 | Q22: 0 | R22: 0.19% | S22: 7.58 | T22: 11.73 | U22: 139 | V22: 2.58% | W22: 2.41 | X22: 242 | Y22: -0.06% | Z22: 5.42 | AA22: 404 | AB22: 1.52% | AC22: 2.47 | AD22: 16.9 | AE22: 10.1 | AF22: 2.7 | AG22: 399.4 | AH22: 10.9 | AI22: 14.1 | AJ22: 201910 | AK22: 0 | AL22: 0 | AM22: 0.00% | AN22: 225.31 | AO22: 34.67 | AP22: 15% | AQ22: 2.13 | AR22: 0.95% | AS22: 833.72 | AT22: 35.95 | AU22: 4.3% | AV22: 0.29 | AW22: 0.03% | AX22: 28.48 | AY22: 4.37 | AZ22: 15.36% | BA22: 0.65 | BB22: 2.29% | BC22: 1,087.50 | BD22: 75.00 | BE22: 6.9% | BF22: 3.07 | BG22: 0.28% | BI22: 12 | BJ22: 2 | BK22: 93 | BL22: 253 | BM22: 19 | BN22: 1.17% | BO22: 0.00% | BP22: 31 | BQ22: 61 | BR22: 1 | BS22: 252 | BT22: 7 | BU22: 2 | BV22: 4 | BW22: -28 | BZ22: 0 | CA22: 0 | CB22: 0 | CC22: 2 | CD22: 0 | CE22: -1 | CF22: -1 | CG22: 26 | CH22: 5.2 | CI22: -1 | CJ22: -0 | CK22: 21 | CL22: 21 | CM22: 92.57% | CN22: 140.16% | CO22: 3 | CP22: 100.00% | CQ22: 40.26% | CR22: 1 | CS22: 2.7 | CT22: 0 | CU22: 0.00 | CV22: 1 | CW22: 3 | CX22: 1 | CY22: 17 | CZ22: 29.79% | DA22: 106.89% | DB22: 88 | DC22: 91.98% | DD22: 128.52% | DE22: 19 | DG22: 78.14% | DH22: 100.00% | DI22: 1 | DJ22: 355 | DK22: 0.70% | DL22: 5.33 | DM22: 13 | DN22: 719 | DO22: 0.66% | DP22: 5.33 | DQ22: 25 | DR22: -48 | DS22: 0.75% | DT22: 5.33 | DU22: -2 | DV22: 113 | DW22: 0.40% | DX22: 1.14 | DY22: 1 | DZ22: -182 | EA22: 0.20% | EB22: 5.37 | EC22: -2 | ED22: 286 | EE22: 0.20% | EF22: 5.37 | EG22: 3 | EH22: -38 | EI22: 0.20% | EJ22: 5.37 | EK22: -0 | EL22: -20 | EM22: 0.23% | EN22: 5.33 | EO22: -0 | EP22: -2 | EQ22: 0.10% | ER22: 8.03 | ES22: -0 | ET22: -138 | EU22: 0.20% | EV22: 9.00 | EW22: -2 | EX22: 354 | EY22: 0.00% | EZ22: 8.59 | FA22: 0 | FB22: 0 | FC22: -0.26% | FD22: 0.74 | FE22: 0 | FF22: -219 | FG22: 0.45% | FH22: 8.00 | FI22: -8 | FJ22: 1,145 | FK22: 0.28% | FL22: 1.00 | FM22: 3 | FN22: -120 | FO22: 0.65% | FP22: 5.00 | FQ22: -4 | FR22: 11 | FS22: 0.40% | FT22: 1.00 | FU22: 0 | FV22: -238 | FW22: 0.20% | FX22: 8.00 | FY22: -4 | FZ22: 393 | GA22: 1.00% | GB22: 5.00 | GC22: 20 | GD22: 2,244 | GE22: 73 | GF22: -226 | GG22: 6 | GH22: -431 | GI22: 1.00% | GJ22: 5.37 | GK22: -23 | GL22: -110 | GM22: 0 | GN22: 0 | GP22: 0 | GQ22: 0.00% | GR22: 0 | GS22: 0 | GT22: -40 | GU22: 0.45% | GV22: 8.00 | GW22: -1 | GX22: 0 | GY22: 0.28% | GZ22: 1.00 | HA22: 0 | HB22: 0 | HC22: 0.65% | HD22: 5.00 | HE22: 0 | HF22: 0 | HG22: 0.40% | HH22: 1.00 | HI22: 0 | HJ22: 153 | HK22: 1.00% | HL22: 5.00 | HM22: 8 | HN22: -15 | HO22: 235 | HP22: 0 | HQ22: =IF(ISERROR(IF(VLOOKUP($C22,'Indicateurs Cumulés'!$C$3:$HP$560,188,FALSE)/(VLOOKUP($C22,objectifs!$C$3:$AAB$559,158,FALSE))>=1.5,(VLOOKUP($C22,objectifs!$C$3:$AAB$559,158,FALSE))*1.5,IF(VLOOKUP($C22,'Indicateurs Cumulés'!$C$3:$HP$560,188,FALSE)/(VLOOKUP($C22,objectifs!$C$3:$AAB$559,158,FALSE))<=-0.5,(VLOOKUP($C22,objectifs!$C$3:$AAB$559,158,FALSE))*-0.5,VLOOKUP($C22,'Indicateurs Cumulés'!$C$3:$HP$560,188,FALSE)))),VLOOKUP($C22,'Indicateurs Cumulés'!$C$3:$HP$560,188,FALSE),IF(VLOOKUP($C22,'Indicateurs Cumulés'!$C$3:$HP$560,188,FALSE)/(VLOOKUP($C22,objectifs!$C$3:$AAB$559,158,FALSE))>=1.5,(VLOOKUP($C22,objectifs!$C$3:$AAB$559,158,FALSE))*1.5,IF(VLOOKUP($C22,'Indicateurs Cumulés'!$C$3:$HP$560,188,FALSE)/(VLOOKUP($C22,objectifs!$C$3:$AAB$559,158,FALSE))<=-0.5,(VLOOKUP($C22,objectifs!$C$3:$AAB$559,158,FALSE))*-0.5,VLOOKUP($C22,'Indicateurs Cumulés'!$C$3:$HP$560,188,FALSE)))) -> -242 | HR22: 0 | HS22: 0 | HT22: 3.4 | HU22: 0 | HV22: 0 | HW22: 0 | HX22: 0 | HY22: 8 | HZ22: 18 | IA22: 4 | IB22: 5 | IC22: -3 | ID22: 3 | IE22: 14 | IF22: -17 | IG22: -8 | IH22: -7 | II22: -5 | IJ22: 1 | IK22: -2 | IL22: 64 | IM22: -45 | IN22: -3 | IO22: 1 | IP22: 2 | IQ22: 1 | IR22: 0 | IS22: -0 | IT22: 0 | IU22: 2 | IV22: -7 | IW22: -0 | IX22: -4 | IY22: -5 | IZ22: 2 | JA22: -2 | JB22: 42 | JC22: -10 | JD22: -0 | JE22: 85 | JF22: 33 | JG22: 0 | JH22: 168 | JI22: 2.54 | JJ22: 199.75 | JK22: 0 | JL22: 0 | JM22: -1 | JN22: 0.20% | JO22: 1 | JQ22: 2 | JR22: 689 | JS22: 35 | JT22: =IF(ISERROR(IF(VLOOKUP($C22,'Indicateurs Cumulés'!$C$3:$HP$560,192,FALSE)/(VLOOKUP($C22,objectifs!$C$3:$AAB$559,162,FALSE))>=1.5,(VLOOKUP($C22,objectifs!$C$3:$AAB$559,162,FALSE))*1.5,IF(VLOOKUP($C22,'Indicateurs Cumulés'!$C$3:$HP$560,192,FALSE)/(VLOOKUP($C22,objectifs!$C$3:$AAB$559,162,FALSE))<=-0.5,(VLOOKUP($C22,objectifs!$C$3:$AAB$559,162,FALSE))*-0.5,VLOOKUP($C22,'Indicateurs Cumulés'!$C$3:$HP$560,192,FALSE)))),VLOOKUP($C22,'Indicateurs Cumulés'!$C$3:$HP$560,192,FALSE),IF(VLOOKUP($C22,'Indicateurs Cumulés'!$C$3:$HP$560,192,FALSE)/(VLOOKUP($C22,objectifs!$C$3:$AAB$559,162,FALSE))>=1.5,(VLOOKUP($C22,objectifs!$C$3:$AAB$559,162,FALSE))*1.5,IF(VLOOKUP($C22,'Indicateurs Cumulés'!$C$3:$HP$560,192,FALSE)/(VLOOKUP($C22,objectifs!$C$3:$AAB$559,162,FALSE))<=-0.5,(VLOOKUP($C22,objectifs!$C$3:$AAB$559,162,FALSE))*-0.5,VLOOKUP($C22,'Indicateurs Cumulés'!$C$3:$HP$560,192,FALSE)))) -> -3 | JU22: -0 | JV22: 0 | JX22: 0 | JY22: 22 | JZ22: 1 | KA22: -0 | KB22: 23 | KC22: 7 | KD22: 1 | KE22: 1 | KF22: 5 | KG22: 1 | KH22: 0 | KI22: 10 | KJ22: 1 | KK22: 1 | KL22: 1 | KM22: 1 | KN22: 0 | KO22: 21 | KP22: 8 | KV22: 21 | KW22: 0 | KX22: 57 | KY22: 11 | KZ22: 0 | LA22: 63 | LB22: 44 | LC22: 0 | LD22: 0 | LE22: 524.7 | LF22: 103 | LG22: 13 | LH22: 9 | LI22: 12 | LJ22: 17 | LK22: 2 | LL22: 0 | LM22: 482 | LN22: 143.3 | LO22: 66 | LP22: 365 | LQ22: -11 | LR22: 26 | LS22: 156.03 | LT22: 157 | LU22: 123 | LV22: 704 | LW22: 120 | LX22: 113 | LY22: 34 | LZ22: 11.8 | MA22: 1.2 | MB22: 2.1 | MC22: 6.0 | MD22: 1.7 | ME22: 0.2 | MF22: 548 | MH22: 0.21%
A23: 105006 | B23: 200262 | C23: 33 | D23: LA WANTZENAU | E23: 33 | F23: LA WANTZENAU | G23: 2019-10-31 | H23: 47 | I23: 4.32% | J23: 1.57 | K23: 2019-10-31 | L23: 919 | M23: 3.24% | N23: 2.38 | O23: 71 | P23: 5,563 | Q23: 0 | R23: 0.34% | S23: 7.24 | T23: 11.23 | U23: 134 | V23: 2.76% | W23: 2.86 | X23: 159 | Y23: 0.93% | Z23: 8.80 | AA23: 5 | AB23: 0.46% | AC23: 6.54 | AD23: 12.6 | AE23: 9.1 | AF23: 2.2 | AG23: 86.2 | AH23: 15.9 | AI23: 7.2 | AJ23: 201910 | AK23: 0 | AL23: 0 | AM23: 0.00% | AN23: 472.52 | AO23: 98.36 | AP23: 21% | AQ23: 2.64 | AR23: 0.56% | AS23: 1,075.90 | AT23: 9.69 | AU23: 0.9% | AV23: 1.31 | AW23: 0.12% | AX23: 49.42 | AY23: 9.17 | AZ23: 18.56% | BA23: 0.81 | BB23: 1.64% | BC23: 1,597.85 | BD23: 117.22 | BE23: 7.3% | BF23: 4.76 | BG23: 0.30% | BI23: 16 | BJ23: 14 | BK23: 99 | BL23: 226 | BM23: 4 | BN23: 0.97% | BO23: 0.00% | BP23: 33 | BQ23: 64 | BR23: 1 | BS23: 168 | BT23: 5 | BU23: 1 | BV23: 1 | BW23: -14 | BZ23: 0 | CA23: 0 | CB23: 0 | CC23: 0 | CD23: 0 | CE23: 5 | CF23: 3 | CG23: 17 | CH23: 3.4 | CI23: -14 | CJ23: -3 | CK23: 7 | CL23: 7 | CM23: 100.00% | CN23: 170.15% | CO23: 4 | CP23: 0.00% | CQ23: 0.00% | CR23: 0 | CS23: 2.2 | CT23: 0 | CU23: 0.00 | CV23: 1 | CW23: 5 | CX23: 1 | CY23: 13 | CZ23: 42.90% | DA23: 104.34% | DB23: 61 | DC23: 95.65% | DD23: 139.27% | DE23: 20 | DG23: 100.00% | DH23: 102.13% | DI23: 1 | DJ23: 39 | DK23: 0.70% | DL23: 5.33 | DM23: 1 | DN23: 583 | DO23: 0.66% | DP23: 5.33 | DQ23: 21 | DR23: -54 | DS23: 0.75% | DT23: 5.33 | DU23: -2 | DV23: 185 | DW23: 0.40% | DX23: 1.14 | DY23: 1 | DZ23: -95 | EA23: 0.20% | EB23: 5.37 | EC23: -1 | ED23: 143 | EE23: 0.20% | EF23: 5.37 | EG23: 2 | EH23: -31 | EI23: 0.20% | EJ23: 5.37 | EK23: -0 | EL23: -39 | EM23: 0.23% | EN23: 5.33 | EO23: -0 | EP23: -13 | EQ23: 0.10% | ER23: 7.02 | ES23: -0 | ET23: -191 | EU23: 0.20% | EV23: 9.00 | EW23: -3 | EX23: 67 | EY23: 0.00% | EZ23: 8.59 | FA23: 0 | FB23: 0 | FC23: -0.26% | FD23: 0.74 | FE23: 0 | FF23: 154 | FG23: 0.45% | FH23: 8.00 | FI23: 6 | FJ23: 1,578 | FK23: 0.30% | FL23: 1.00 | FM23: 5 | FN23: -81 | FO23: 0.65% | FP23: 5.00 | FQ23: -3 | FR23: 27 | FS23: 0.40% | FT23: 1.00 | FU23: 0 | FV23: -286 | FW23: 0.20% | FX23: 8.00 | FY23: -5 | FZ23: 418 | GA23: 1.00% | GB23: 5.00 | GC23: 21 | GD23: 740 | GE23: 34 | GF23: 112 | GG23: 16 | GH23: -887 | GI23: 1.00% | GJ23: 5.37 | GK23: -48 | GL23: 96 | GM23: 0 | GN23: 0 | GP23: 0 | GQ23: 0.00% | GR23: 0 | GS23: 0 | GT23: 0 | GU23: 0.45% | GV23: 8.00 | GW23: 0 | GX23: 0 | GY23: 0.30% | GZ23: 1.00 | HA23: 0 | HB23: 0 | HC23: 0.65% | HD23: 5.00 | HE23: 0 | HF23: 0 | HG23: 0.40% | HH23: 1.00 | HI23: 0 | HJ23: 39 | HK23: 1.00% | HL23: 5.00 | HM23: 2 | HN23: -7 | HO23: 164 | HP23: 0 | HQ23: =IF(ISERROR(IF(VLOOKUP($C23,'Indicateurs Cumulés'!$C$3:$HP$560,188,FALSE)/(VLOOKUP($C23,objectifs!$C$3:$AAB$559,158,FALSE))>=1.5,(VLOOKUP($C23,objectifs!$C$3:$AAB$559,158,FALSE))*1.5,IF(VLOOKUP($C23,'Indicateurs Cumulés'!$C$3:$HP$560,188,FALSE)/(VLOOKUP($C23,objectifs!$C$3:$AAB$559,158,FALSE))<=-0.5,(VLOOKUP($C23,objectifs!$C$3:$AAB$559,158,FALSE))*-0.5,VLOOKUP($C23,'Indicateurs Cumulés'!$C$3:$HP$560,188,FALSE)))),VLOOKUP($C23,'Indicateurs Cumulés'!$C$3:$HP$560,188,FALSE),IF(VLOOKUP($C23,'Indicateurs Cumulés'!$C$3:$HP$560,188,FALSE)/(VLOOKUP($C23,objectifs!$C$3:$AAB$559,158,FALSE))>=1.5,(VLOOKUP($C23,objectifs!$C$3:$AAB$559,158,FALSE))*1.5,IF(VLOOKUP($C23,'Indicateurs Cumulés'!$C$3:$HP$560,188,FALSE)/(VLOOKUP($C23,objectifs!$C$3:$AAB$559,158,FALSE))<=-0.5,(VLOOKUP($C23,objectifs!$C$3:$AAB$559,158,FALSE))*-0.5,VLOOKUP($C23,'Indicateurs Cumulés'!$C$3:$HP$560,188,FALSE)))) -> -192 | HR23: 0 | HS23: 0 | HT23: 2.8 | HU23: 0 | HV23: 0 | HW23: 0 | HX23: 0 | HY23: 5 | HZ23: 5 | IA23: -4 | IB23: 3 | IC23: 6 | ID23: 0 | IE23: 15 | IF23: -54 | IG23: -4 | IH23: -5 | II23: -3 | IJ23: 1 | IK23: -5 | IL23: 76 | IM23: -49 | IN23: 2 | IO23: 1 | IP23: 0 | IQ23: -1 | IR23: 0 | IS23: 0 | IT23: 0 | IU23: 2 | IV23: -24 | IW23: -0 | IX23: -3 | IY23: -3 | IZ23: 2 | JA23: -5 | JB23: 49 | JC23: -11 | JD23: 0 | JE23: 75 | JF23: 33 | JG23: 0 | JH23: 0 | JI23: 0.00 | JJ23: 0.00 | JK23: 0 | JL23: 0 | JM23: 0 | JN23: 0.20% | JO23: -2 | JQ23: -151 | JR23: 16 | JS23: 24 | JT23: =IF(ISERROR(IF(VLOOKUP($C23,'Indicateurs Cumulés'!$C$3:$HP$560,192,FALSE)/(VLOOKUP($C23,objectifs!$C$3:$AAB$559,162,FALSE))>=1.5,(VLOOKUP($C23,objectifs!$C$3:$AAB$559,162,FALSE))*1.5,IF(VLOOKUP($C23,'Indicateurs Cumulés'!$C$3:$HP$560,192,FALSE)/(VLOOKUP($C23,objectifs!$C$3:$AAB$559,162,FALSE))<=-0.5,(VLOOKUP($C23,objectifs!$C$3:$AAB$559,162,FALSE))*-0.5,VLOOKUP($C23,'Indicateurs Cumulés'!$C$3:$HP$560,192,FALSE)))),VLOOKUP($C23,'Indicateurs Cumulés'!$C$3:$HP$560,192,FALSE),IF(VLOOKUP($C23,'Indicateurs Cumulés'!$C$3:$HP$560,192,FALSE)/(VLOOKUP($C23,objectifs!$C$3:$AAB$559,162,FALSE))>=1.5,(VLOOKUP($C23,objectifs!$C$3:$AAB$559,162,FALSE))*1.5,IF(VLOOKUP($C23,'Indicateurs Cumulés'!$C$3:$HP$560,192,FALSE)/(VLOOKUP($C23,objectifs!$C$3:$AAB$559,162,FALSE))<=-0.5,(VLOOKUP($C23,objectifs!$C$3:$AAB$559,162,FALSE))*-0.5,VLOOKUP($C23,'Indicateurs Cumulés'!$C$3:$HP$560,192,FALSE)))) -> 8 | JU23: 0 | JV23: -0 | JX23: -5 | JY23: 1 | JZ23: 1 | KA23: 0 | KB23: -4 | KC23: -1 | KD23: 0 | KE23: 1 | KF23: 3 | KG23: 0 | KH23: 0 | KI23: -1 | KJ23: 0 | KK23: 1 | KL23: 1 | KM23: 0 | KN23: 0 | KO23: 6 | KP23: 3 | KV23: 2 | KW23: 0 | KX23: 71 | KY23: 14 | KZ23: 0 | LA23: 72 | LB23: 50 | LC23: 0 | LD23: 0 | LE23: 431.0 | LF23: 39 | LG23: 3 | LH23: 2 | LI23: 1 | LJ23: 1 | LK23: 2 | LL23: 0 | LM23: 404 | LN23: 146.1 | LO23: 39 | LP23: 329 | LQ23: -7 | LR23: 4 | LS23: 155.67 | LT23: 127 | LU23: 55 | LV23: 671 | LW23: 107 | LX23: 52 | LY23: 44 | LZ23: 9.5 | MA23: 0.6 | MB23: 2.0 | MC23: 5.4 | MD23: 0.8 | ME23: 0.2 | MF23: 449 | MH23: 0.23%
A24: 105006 | B24: 200262 | C24: 34 | D24: VENDENHEIM | E24: 37 | F24: MUNDOLSHEIM | G24: 2019-10-31 | H24: 49 | I24: 4.32% | J24: 1.57 | K24: 2019-10-31 | L24: 446 | M24: 3.69% | N24: 2.22 | O24: 37 | P24: 2,394 | Q24: 0 | R24: 0.22% | S24: 8.14 | T24: 12.40 | U24: 16 | V24: 3.57% | W24: 1.23 | X24: 135 | Y24: 0.61% | Z24: 6.75 | AA24: 465 | AB24: 1.82% | AC24: 3.88 | AD24: 11.1 | AE24: 4.9 | AF24: 1.8 | AG24: 58.6 | AH24: 10.1 | AI24: 6.0 | AJ24: 201910 | AK24: 53.74 | AL24: 0 | AM24: 0.00% | AN24: 211.75 | AO24: 39.15 | AP24: 18% | AQ24: 1.38 | AR24: 0.65% | AS24: 376.79 | AT24: 0 | AU24: 0.0% | AV24: 0.80 | AW24: 0.21% | AX24: 30.15 | AY24: 2.80 | AZ24: 9.30% | BA24: 0.61 | BB24: 2.01% | BC24: 681.43 | BD24: 41.95 | BE24: 6.2% | BF24: 3.00 | BG24: 0.44% | BI24: 1 | BJ24: 9 | BK24: 52 | BL24: 97 | BM24: 35 | BN24: 1.11% | BO24: 0.00% | BP24: 34 | BQ24: 48 | BR24: 1 | BS24: 62 | BT24: 2 | BU24: 1 | BV24: 2 | BW24: -10 | BZ24: 0 | CA24: 0 | CB24: 0 | CC24: 0 | CD24: 0 | CE24: 2 | CF24: 1 | CG24: 6 | CH24: 1.2 | CI24: -13 | CJ24: -3 | CK24: 2 | CL24: 2 | CM24: 100.00% | CN24: 137.50% | CO24: 0 | CP24: 0.00% | CQ24: 0.00% | CR24: 1 | CS24: 1.8 | CT24: 0 | CU24: 0.00 | CV24: 0 | CW24: 3 | CX24: 1 | CY24: 11 | CZ24: 40.90% | DA24: 127.00% | DB24: 34 | DC24: 97.71% | DD24: 139.59% | DE24: 9 | DG24: 100.00% | DH24: 100.00% | DI24: 0 | DJ24: 98 | DK24: =DK$374 -> 0.70% | DL24: 5.33 | DM24: 4 | DN24: 177 | DO24: =DO$374 -> 0.66% | DP24: 5.33 | DQ24: 6 | DR24: -30 | DS24: =DS$374 -> 0.75% | DT24: 5.33 | DU24: -1 | DV24: 272 | DW24: =DW$374 -> 0.40% | DX24: 1.14 | DY24: 1 | DZ24: -191 | EA24: =EA$374 -> 0.20% | EB24: 5.37 | EC24: -2 | ED24: 9 | EE24: =EE$374 -> 0.20% | EF24: 5.37 | EG24: 0 | EH24: -36 | EI24: =EI$374 -> 0.20% | EJ24: 5.37 | EK24: -0 | EL24: 36 | EM24: =EM$374 -> 0.23% | EN24: 5.33 | EO24: 0 | EP24: -11 | EQ24: 0.10% | ER24: 4.74 | ES24: -0 | ET24: -27 | EU24: =EU$374 -> 0.20% | EV24: 9.00 | EW24: -0 | EX24: 507 | EY24: 0.00% | EZ24: 8.59 | FA24: 0 | FB24: 0 | FC24: =FC$374 -> -0.26% | FD24: 0.74 | FE24: 0 | FF24: -428 | FG24: =FG$374 -> 0.45% | FH24: 8.00 | FI24: -15 | FJ24: 640 | FK24: 0.44% | FL24: 1.00 | FM24: 3 | FN24: -138 | FO24: =FO$374 -> 0.65% | FP24: 5.00 | FQ24: -4 | FR24: 10 | FS24: =FS$374 -> 0.40% | FT24: 1.00 | FU24: 0 | FV24: -213 | FW24: =FW$374 -> 0.20% | FX24: 8.00 | FY24: -3 | FZ24: 348 | GA24: =GA$374 -> 1.00% | GB24: 5.00 | GC24: 17 | GD24: 969 | GE24: 23 | GF24: -595 | GG24: -16 | GH24: 47 | GI24: =GI$374 -> 1.00% | GJ24: 5.37 | GK24: 3 | GL24: 90 | GM24: 0 | GN24: 0 | GP24: 0 | GQ24: 0.00% | GR24: 0 | GS24: 0 | GT24: 0 | GU24: =GU$374 -> 0.45% | GV24: 8.00 | GW24: 0 | GX24: 0 | GY24: 0.44% | GZ24: 1.00 | HA24: 0 | HB24: 0 | HC24: =HC$374 -> 0.65% | HD24: 5.00 | HE24: 0 | HF24: 0 | HG24: 0.40% | HH24: 1.00 | HI24: 0 | HJ24: -29 | HK24: =HK$374 -> 1.00% | HL24: 5.00 | HM24: -1 | HN24: -9 | HO24: 147 | HP24: 0 | HQ24: =IF(ISERROR(IF(VLOOKUP($C24,'Indicateurs Cumulés'!$C$3:$HP$560,188,FALSE)/(VLOOKUP($C24,objectifs!$C$3:$AAB$559,158,FALSE))>=1.5,(VLOOKUP($C24,objectifs!$C$3:$AAB$559,158,FALSE))*1.5,IF(VLOOKUP($C24,'Indicateurs Cumulés'!$C$3:$HP$560,188,FALSE)/(VLOOKUP($C24,objectifs!$C$3:$AAB$559,158,FALSE))<=-0.5,(VLOOKUP($C24,objectifs!$C$3:$AAB$559,158,FALSE))*-0.5,VLOOKUP($C24,'Indicateurs Cumulés'!$C$3:$HP$560,188,FALSE)))),VLOOKUP($C24,'Indicateurs Cumulés'!$C$3:$HP$560,188,FALSE),IF(VLOOKUP($C24,'Indicateurs Cumulés'!$C$3:$HP$560,188,FALSE)/(VLOOKUP($C24,objectifs!$C$3:$AAB$559,158,FALSE))>=1.5,(VLOOKUP($C24,objectifs!$C$3:$AAB$559,158,FALSE))*1.5,IF(VLOOKUP($C24,'Indicateurs Cumulés'!$C$3:$HP$560,188,FALSE)/(VLOOKUP($C24,objectifs!$C$3:$AAB$559,158,FALSE))<=-0.5,(VLOOKUP($C24,objectifs!$C$3:$AAB$559,158,FALSE))*-0.5,VLOOKUP($C24,'Indicateurs Cumulés'!$C$3:$HP$560,188,FALSE)))) -> 47 | HR24: 0 | HS24: 0 | HT24: 0.8 | HU24: 0 | HV24: 0 | HW24: 0 | HX24: 0 | HY24: 5 | HZ24: 12 | IA24: -3 | IB24: -2 | IC24: -1 | ID24: 1 | IE24: 4 | IF24: -28 | IG24: -5 | IH24: -12 | II24: -2 | IJ24: 0 | IK24: 0 | IL24: 51 | IM24: -42 | IN24: -3 | IO24: 1 | IP24: 1 | IQ24: -1 | IR24: -0 | IS24: -0 | IT24: 0 | IU24: 0 | IV24: -12 | IW24: -0 | IX24: -7 | IY24: -2 | IZ24: 0 | JA24: 0 | JB24: 33 | JC24: -9 | JD24: -0 | JE24: 43 | JF24: 45 | JG24: 0 | JH24: 0 | JI24: 0.00 | JJ24: 0.00 | JK24: 0 | JL24: 0 | JM24: -2 | JN24: 0.20% | JO24: 91 | JQ24: -2 | JR24: 30 | JS24: 94 | JT24: =IF(ISERROR(IF(VLOOKUP($C24,'Indicateurs Cumulés'!$C$3:$HP$560,192,FALSE)/(VLOOKUP($C24,objectifs!$C$3:$AAB$559,162,FALSE))>=1.5,(VLOOKUP($C24,objectifs!$C$3:$AAB$559,162,FALSE))*1.5,IF(VLOOKUP($C24,'Indicateurs Cumulés'!$C$3:$HP$560,192,FALSE)/(VLOOKUP($C24,objectifs!$C$3:$AAB$559,162,FALSE))<=-0.5,(VLOOKUP($C24,objectifs!$C$3:$AAB$559,162,FALSE))*-0.5,VLOOKUP($C24,'Indicateurs Cumulés'!$C$3:$HP$560,192,FALSE)))),VLOOKUP($C24,'Indicateurs Cumulés'!$C$3:$HP$560,192,FALSE),IF(VLOOKUP($C24,'Indicateurs Cumulés'!$C$3:$HP$560,192,FALSE)/(VLOOKUP($C24,objectifs!$C$3:$AAB$559,162,FALSE))>=1.5,(VLOOKUP($C24,objectifs!$C$3:$AAB$559,162,FALSE))*1.5,IF(VLOOKUP($C24,'Indicateurs Cumulés'!$C$3:$HP$560,192,FALSE)/(VLOOKUP($C24,objectifs!$C$3:$AAB$559,162,FALSE))<=-0.5,(VLOOKUP($C24,objectifs!$C$3:$AAB$559,162,FALSE))*-0.5,VLOOKUP($C24,'Indicateurs Cumulés'!$C$3:$HP$560,192,FALSE)))) -> 8 | JU24: -0 | JV24: 5 | JX24: -0 | JY24: 1 | JZ24: 3 | KA24: 0 | KB24: 9 | KC24: 2 | KD24: 0 | KE24: 0 | KF24: 4 | KG24: -1 | KH24: 1 | KI24: 3 | KJ24: 0 | KK24: 0 | KL24: 1 | KM24: -1 | KN24: 0 | KO24: 11 | KP24: 6 | KV24: -22 | KW24: 0 | KX24: 14 | KY24: 3 | KZ24: 0 | LA24: 51 | LB24: 36 | LC24: 0 | LD24: 0 | LE24: 227.0 | LF24: 63 | LG24: 1 | LH24: 1 | LI24: -1 | LJ24: -1 | LK24: -4 | LL24: -0 | LM24: 218 | LN24: 283.8 | LO24: 9 | LP24: 183 | LQ24: -9 | LR24: -1 | LS24: 296.07 | LT24: 90 | LU24: 53 | LV24: 477 | LW24: 92 | LX24: 123 | LY24: 27 | LZ24: 6.8 | MA24: 0.5 | MB24: 1.4 | MC24: 4.6 | MD24: 1.8 | ME24: 0.1 | MF24: 242 | MH24: 0.47%
A25: 105006 | B25: 200262 | C25: 37 | D25: MUNDOLSHEIM | E25: 37 | F25: MUNDOLSHEIM | G25: 2019-10-31 | H25: 62 | I25: 4.32% | J25: 1.57 | K25: 2019-10-31 | L25: 1,255 | M25: 3.22% | N25: 2.40 | O25: 97 | P25: 6,667 | Q25: 0 | R25: 0.33% | S25: 7.75 | T25: 11.85 | U25: 200 | V25: 3.55% | W25: 2.76 | X25: 370 | Y25: 0.22% | Z25: 5.31 | AA25: 267 | AB25: 0.46% | AC25: 4.38 | AD25: 28.8 | AE25: 16.8 | AF25: 0.8 | AG25: 129.8 | AH25: 18.3 | AI25: 14.6 | AJ25: 201910 | AK25: 0 | AL25: 0 | AM25: 0.00% | AN25: 256.99 | AO25: 66.03 | AP25: 26% | AQ25: 1.14 | AR25: 0.44% | AS25: 1,236.85 | AT25: 79.13 | AU25: 6.4% | AV25: 1.27 | AW25: 0.10% | AX25: 43.37 | AY25: 9.10 | AZ25: 20.99% | BA25: 0.64 | BB25: 1.47% | BC25: 1,537.22 | BD25: 154.27 | BE25: 10.0% | BF25: 3.05 | BG25: 0.20% | BI25: 25 | BJ25: 6 | BK25: 134 | BL25: 343 | BM25: 8 | BN25: 1.11% | BO25: 0.00% | BP25: 37 | BQ25: 3 | BR25: 0 | BS25: 155 | BT25: 4 | BU25: 2 | BV25: 4 | BW25: -10 | BZ25: 0 | CA25: 0 | CB25: 0 | CC25: 2 | CD25: 0 | CE25: 0 | CF25: 0 | CG25: 27 | CH25: 5.4 | CI25: -10 | CJ25: -2 | CK25: 17 | CL25: 17 | CM25: 100.00% | CN25: 140.63% | CO25: 4 | CP25: 0.00% | CQ25: 0.00% | CR25: 0 | CS25: 0.8 | CT25: 1 | CU25: 0.00 | CV25: 1 | CW25: 6 | CX25: 1 | CY25: 29 | CZ25: 44.13% | DA25: 154.45% | DB25: 112 | DC25: 98.80% | DD25: 135.57% | DE25: 27 | DG25: 93.61% | DH25: 100.00% | DI25: 2 | DJ25: 207 | DK25: 0.70% | DL25: 5.33 | DM25: 8 | DN25: 60 | DO25: 0.66% | DP25: 5.33 | DQ25: 2 | DR25: -39 | DS25: 0.75% | DT25: 5.33 | DU25: -2 | DV25: -30 | DW25: 0.40% | DX25: 1.14 | DY25: -0 | DZ25: -184 | EA25: 0.20% | EB25: 5.37 | EC25: -2 | ED25: 178 | EE25: 0.20% | EF25: 5.37 | EG25: 2 | EH25: -27 | EI25: 0.20% | EJ25: 5.37 | EK25: -0 | EL25: 60 | EM25: 0.23% | EN25: 5.33 | EO25: 1 | EP25: 4 | EQ25: 0.10% | ER25: 7.98 | ES25: 0 | ET25: -145 | EU25: 0.20% | EV25: 9.00 | EW25: -3 | EX25: -94 | EY25: 0.00% | EZ25: 8.59 | FA25: 0 | FB25: 0 | FC25: -0.26% | FD25: 0.74 | FE25: 0 | FF25: 902 | FG25: 0.45% | FH25: 8.00 | FI25: 32 | FJ25: 1,405 | FK25: 0.20% | FL25: 1.00 | FM25: 3 | FN25: -32 | FO25: 0.65% | FP25: 5.00 | FQ25: -1 | FR25: 6 | FS25: 0.40% | FT25: 1.00 | FU25: 0 | FV25: -255 | FW25: 0.20% | FX25: 8.00 | FY25: -4 | FZ25: 92 | GA25: 1.00% | GB25: 5.00 | GC25: 5 | GD25: -142 | GE25: 7 | GF25: 763 | GG25: 33 | GH25: 540 | GI25: 1.00% | GJ25: 5.37 | GK25: 29 | GL25: 45 | GM25: 0 | GN25: 0 | GP25: 0 | GQ25: 0.00% | GR25: 0 | GS25: 0 | GT25: 0 | GU25: 0.45% | GV25: 8.00 | GW25: 0 | GX25: 0 | GY25: 0.20% | GZ25: 1.00 | HA25: 0 | HB25: 0 | HC25: 0.65% | HD25: 5.00 | HE25: 0 | HF25: 0 | HG25: 0.40% | HH25: 1.00 | HI25: 0 | HJ25: -107 | HK25: 1.00% | HL25: 5.00 | HM25: -5 | HN25: -10 | HO25: 181 | HP25: 0 | HQ25: =IF(ISERROR(IF(VLOOKUP($C25,'Indicateurs Cumulés'!$C$3:$HP$560,188,FALSE)/(VLOOKUP($C25,objectifs!$C$3:$AAB$559,158,FALSE))>=1.5,(VLOOKUP($C25,objectifs!$C$3:$AAB$559,158,FALSE))*1.5,IF(VLOOKUP($C25,'Indicateurs Cumulés'!$C$3:$HP$560,188,FALSE)/(VLOOKUP($C25,objectifs!$C$3:$AAB$559,158,FALSE))<=-0.5,(VLOOKUP($C25,objectifs!$C$3:$AAB$559,158,FALSE))*-0.5,VLOOKUP($C25,'Indicateurs Cumulés'!$C$3:$HP$560,188,FALSE)))),VLOOKUP($C25,'Indicateurs Cumulés'!$C$3:$HP$560,188,FALSE),IF(VLOOKUP($C25,'Indicateurs Cumulés'!$C$3:$HP$560,188,FALSE)/(VLOOKUP($C25,objectifs!$C$3:$AAB$559,158,FALSE))>=1.5,(VLOOKUP($C25,objectifs!$C$3:$AAB$559,158,FALSE))*1.5,IF(VLOOKUP($C25,'Indicateurs Cumulés'!$C$3:$HP$560,188,FALSE)/(VLOOKUP($C25,objectifs!$C$3:$AAB$559,158,FALSE))<=-0.5,(VLOOKUP($C25,objectifs!$C$3:$AAB$559,158,FALSE))*-0.5,VLOOKUP($C25,'Indicateurs Cumulés'!$C$3:$HP$560,188,FALSE)))) -> 540 | HR25: 0 | HS25: 0 | HT25: 3.7 | HU25: 0 | HV25: 0 | HW25: 0 | HX25: 0 | HY25: 8 | HZ25: 18 | IA25: -5 | IB25: 3 | IC25: 4 | ID25: 1 | IE25: 11 | IF25: 14 | IG25: -5 | IH25: -18 | II25: -1 | IJ25: 0 | IK25: 0 | IL25: 42 | IM25: -15 | IN25: -1 | IO25: 1 | IP25: 2 | IQ25: -1 | IR25: 0 | IS25: 0 | IT25: 0 | IU25: 1 | IV25: 6 | IW25: -0 | IX25: -11 | IY25: -1 | IZ25: 0 | JA25: 0 | JB25: 27 | JC25: -3 | JD25: -0 | JE25: 64 | JF25: 39 | JG25: 0 | JH25: 289 | JI25: 1.67 | JJ25: 132.64 | JK25: 0 | JL25: 0 | JM25: 1 | JN25: 0.20% | JO25: 10 | JQ25: 1 | JR25: 31 | JS25: 61 | JT25: =IF(ISERROR(IF(VLOOKUP($C25,'Indicateurs Cumulés'!$C$3:$HP$560,192,FALSE)/(VLOOKUP($C25,objectifs!$C$3:$AAB$559,162,FALSE))>=1.5,(VLOOKUP($C25,objectifs!$C$3:$AAB$559,162,FALSE))*1.5,IF(VLOOKUP($C25,'Indicateurs Cumulés'!$C$3:$HP$560,192,FALSE)/(VLOOKUP($C25,objectifs!$C$3:$AAB$559,162,FALSE))<=-0.5,(VLOOKUP($C25,objectifs!$C$3:$AAB$559,162,FALSE))*-0.5,VLOOKUP($C25,'Indicateurs Cumulés'!$C$3:$HP$560,192,FALSE)))),VLOOKUP($C25,'Indicateurs Cumulés'!$C$3:$HP$560,192,FALSE),IF(VLOOKUP($C25,'Indicateurs Cumulés'!$C$3:$HP$560,192,FALSE)/(VLOOKUP($C25,objectifs!$C$3:$AAB$559,162,FALSE))>=1.5,(VLOOKUP($C25,objectifs!$C$3:$AAB$559,162,FALSE))*1.5,IF(VLOOKUP($C25,'Indicateurs Cumulés'!$C$3:$HP$560,192,FALSE)/(VLOOKUP($C25,objectifs!$C$3:$AAB$559,162,FALSE))<=-0.5,(VLOOKUP($C25,objectifs!$C$3:$AAB$559,162,FALSE))*-0.5,VLOOKUP($C25,'Indicateurs Cumulés'!$C$3:$HP$560,192,FALSE)))) -> 8 | JU25: 0 | JV25: 1 | JX25: 0 | JY25: 1 | JZ25: 2 | KA25: 0 | KB25: 4 | KC25: 5 | KD25: 0 | KE25: 1 | KF25: 5 | KG25: 0 | KH25: 5 | KI25: 7 | KJ25: 0 | KK25: 1 | KL25: 1 | KM25: 0 | KN25: 0 | KO25: 13 | KP25: 4 | KV25: 8 | KW25: 0 | KX25: 27 | KY25: 5 | KZ25: 0 | LA25: 42 | LB25: 29 | LC25: 1 | LD25: 0 | LE25: 625.2 | LF25: 65 | LG25: 5 | LH25: 3 | LI25: 3 | LJ25: 4 | LK25: 2 | LL25: 0 | LM25: 592 | LN25: 158.8 | LO25: 70 | LP25: 485 | LQ25: -5 | LR25: 8 | LS25: 167.62 | LT25: 104 | LU25: 138 | LV25: 582 | LW25: 86 | LX25: 195 | LY25: 19 | LZ25: 7.8 | MA25: 1.4 | MB25: 1.7 | MC25: 4.3 | MD25: 2.9 | ME25: 0.1 | MF25: 643 | MH25: 0.43%
A26: 105006 | B26: 200262 | C26: 38 | D26: OBERHAUSBERGEN | E26: 38 | F26: OBERHAUSBERGEN | G26: 2019-10-31 | H26: 143 | I26: 4.32% | J26: 1.57 | K26: 2019-10-31 | L26: 1,443 | M26: 3.38% | N26: 2.42 | O26: 118 | P26: 7,676 | Q26: 0 | R26: 0.25% | S26: 6.94 | T26: 10.82 | U26: 49 | V26: 4.29% | W26: 1.90 | X26: 640 | Y26: 0.20% | Z26: 5.58 | AA26: 919 | AB26: 0.82% | AC26: 5.02 | AD26: 17.8 | AE26: 14.5 | AF26: 4.5 | AG26: 360.9 | AH26: 23.3 | AI26: 15.1 | AJ26: 201910 | AK26: 16.00 | AL26: 0.07 | AM26: 0.45% | AN26: 183.74 | AO26: 30.04 | AP26: 16% | AQ26: 3.12 | AR26: 1.70% | AS26: 1,311.12 | AT26: 96.33 | AU26: 7.3% | AV26: 2.60 | AW26: 0.20% | AX26: 40.79 | AY26: 1.03 | AZ26: 2.53% | BA26: 0.83 | BB26: 2.03% | BC26: 1,551.65 | BD26: 127.40 | BE26: 8.2% | BF26: 6.62 | BG26: 0.43% | BI26: 6 | BJ26: 12 | BK26: 165 | BL26: 305 | BM26: 48 | BN26: 1.08% | BO26: 0.00% | BP26: 38 | BQ26: 341 | BR26: 7 | BS26: 154 | BT26: 4 | BU26: 6 | BV26: 5 | BW26: -22 | BZ26: 0 | CA26: 0 | CB26: 0 | CC26: 2 | CD26: 0 | CE26: 7 | CF26: 4 | CG26: 31 | CH26: 6.2 | CI26: -5 | CJ26: -1 | CK26: 15 | CL26: 15 | CM26: 100.00% | CN26: 151.56% | CO26: 1 | CP26: 100.00% | CQ26: 5.66% | CR26: 2 | CS26: 4.5 | CT26: 1 | CU26: 0.00 | CV26: 0 | CW26: 5 | CX26: 2 | CY26: 18 | CZ26: 47.24% | DA26: 139.23% | DB26: 123 | DC26: 99.03% | DD26: 140.85% | DE26: 32 | DG26: 89.12% | DH26: 116.12% | DI26: 5 | DJ26: 408 | DK26: 0.70% | DL26: 5.33 | DM26: 15 | DN26: 873 | DO26: 0.66% | DP26: 5.33 | DQ26: 31 | DR26: -20 | DS26: 0.75% | DT26: 5.33 | DU26: -1 | DV26: 167 | DW26: 0.40% | DX26: 1.14 | DY26: 1 | DZ26: -334 | EA26: 0.20% | EB26: 5.37 | EC26: -4 | ED26: 10 | EE26: 0.20% | EF26: 5.37 | EG26: 0 | EH26: -27 | EI26: 0.20% | EJ26: 5.37 | EK26: -0 | EL26: -28 | EM26: 0.23% | EN26: 5.33 | EO26: -0 | EP26: -0 | EQ26: 0.10% | ER26: 8.38 | ES26: -0 | ET26: -27 | EU26: 0.20% | EV26: 9.00 | EW26: -0 | EX26: -67 | EY26: 0.00% | EZ26: 8.59 | FA26: 0 | FB26: 0 | FC26: -0.26% | FD26: 0.74 | FE26: 0 | FF26: 399 | FG26: 0.45% | FH26: 8.00 | FI26: 14 | FJ26: 1,370 | FK26: 0.43% | FL26: 1.00 | FM26: 6 | FN26: -119 | FO26: 0.65% | FP26: 5.00 | FQ26: -4 | FR26: 16 | FS26: 0.40% | FT26: 1.00 | FU26: 0 | FV26: -518 | FW26: 0.20% | FX26: 8.00 | FY26: -8 | FZ26: 506 | GA26: 1.00% | GB26: 5.00 | GC26: 25 | GD26: 1,105 | GE26: 64 | GF26: 320 | GG26: 30 | GH26: -154 | GI26: 1.00% | GJ26: 5.37 | GK26: -8 | GL26: -11 | GM26: 0 | GN26: 0 | GP26: 0 | GQ26: 0.00% | GR26: 0 | GS26: 0 | GT26: 0 | GU26: 0.45% | GV26: 8.00 | GW26: 0 | GX26: 0 | GY26: 0.43% | GZ26: 1.00 | HA26: 0 | HB26: 0 | HC26: 0.65% | HD26: 5.00 | HE26: 0 | HF26: 0 | HG26: 0.40% | HH26: 1.00 | HI26: 0 | HJ26: 40 | HK26: 1.00% | HL26: 5.00 | HM26: 2 | HN26: -27 | HO26: 299 | HP26: 0 | HQ26: =IF(ISERROR(IF(VLOOKUP($C26,'Indicateurs Cumulés'!$C$3:$HP$560,188,FALSE)/(VLOOKUP($C26,objectifs!$C$3:$AAB$559,158,FALSE))>=1.5,(VLOOKUP($C26,objectifs!$C$3:$AAB$559,158,FALSE))*1.5,IF(VLOOKUP($C26,'Indicateurs Cumulés'!$C$3:$HP$560,188,FALSE)/(VLOOKUP($C26,objectifs!$C$3:$AAB$559,158,FALSE))<=-0.5,(VLOOKUP($C26,objectifs!$C$3:$AAB$559,158,FALSE))*-0.5,VLOOKUP($C26,'Indicateurs Cumulés'!$C$3:$HP$560,188,FALSE)))),VLOOKUP($C26,'Indicateurs Cumulés'!$C$3:$HP$560,188,FALSE),IF(VLOOKUP($C26,'Indicateurs Cumulés'!$C$3:$HP$560,188,FALSE)/(VLOOKUP($C26,objectifs!$C$3:$AAB$559,158,FALSE))>=1.5,(VLOOKUP($C26,objectifs!$C$3:$AAB$559,158,FALSE))*1.5,IF(VLOOKUP($C26,'Indicateurs Cumulés'!$C$3:$HP$560,188,FALSE)/(VLOOKUP($C26,objectifs!$C$3:$AAB$559,158,FALSE))<=-0.5,(VLOOKUP($C26,objectifs!$C$3:$AAB$559,158,FALSE))*-0.5,VLOOKUP($C26,'Indicateurs Cumulés'!$C$3:$HP$560,188,FALSE)))) -> -154 | HR26: 179 | HS26: 0 | HT26: 3.2 | HU26: 0 | HV26: 0 | HW26: 0 | HX26: 0 | HY26: 28 | HZ26: 26 | IA26: 2 | IB26: 7 | IC26: -9 | ID26: 0 | IE26: 13 | IF26: -44 | IG26: -1 | IH26: -5 | II26: -4 | IJ26: -1 | IK26: 15 | IL26: 56 | IM26: -52 | IN26: 0 | IO26: 3 | IP26: 3 | IQ26: 1 | IR26: 1 | IS26: -0 | IT26: 0 | IU26: 1 | IV26: -19 | IW26: -0 | IX26: -3 | IY26: -4 | IZ26: -2 | JA26: 15 | JB26: 36 | JC26: -11 | JD26: 0 | JE26: 97 | JF26: 65 | JG26: 0 | JH26: 0 | JI26: 0.00 | JJ26: 0.00 | JK26: 0 | JL26: 0 | JM26: 0 | JN26: 0.20% | JO26: 31 | JQ26: 9 | JR26: 161 | JS26: 17 | JT26: =IF(ISERROR(IF(VLOOKUP($C26,'Indicateurs Cumulés'!$C$3:$HP$560,192,FALSE)/(VLOOKUP($C26,objectifs!$C$3:$AAB$559,162,FALSE))>=1.5,(VLOOKUP($C26,objectifs!$C$3:$AAB$559,162,FALSE))*1.5,IF(VLOOKUP($C26,'Indicateurs Cumulés'!$C$3:$HP$560,192,FALSE)/(VLOOKUP($C26,objectifs!$C$3:$AAB$559,162,FALSE))<=-0.5,(VLOOKUP($C26,objectifs!$C$3:$AAB$559,162,FALSE))*-0.5,VLOOKUP($C26,'Indicateurs Cumulés'!$C$3:$HP$560,192,FALSE)))),VLOOKUP($C26,'Indicateurs Cumulés'!$C$3:$HP$560,192,FALSE),IF(VLOOKUP($C26,'Indicateurs Cumulés'!$C$3:$HP$560,192,FALSE)/(VLOOKUP($C26,objectifs!$C$3:$AAB$559,162,FALSE))>=1.5,(VLOOKUP($C26,objectifs!$C$3:$AAB$559,162,FALSE))*1.5,IF(VLOOKUP($C26,'Indicateurs Cumulés'!$C$3:$HP$560,192,FALSE)/(VLOOKUP($C26,objectifs!$C$3:$AAB$559,162,FALSE))<=-0.5,(VLOOKUP($C26,objectifs!$C$3:$AAB$559,162,FALSE))*-0.5,VLOOKUP($C26,'Indicateurs Cumulés'!$C$3:$HP$560,192,FALSE)))) -> -3 | JU26: 0 | JV26: 2 | JX26: 0 | JY26: 5 | JZ26: 1 | KA26: -0 | KB26: 7 | KC26: 5 | KD26: 0 | KE26: -1 | KF26: 4 | KG26: 2 | KH26: 0 | KI26: 7 | KJ26: 0 | KK26: -1 | KL26: 1 | KM26: 1 | KN26: 0 | KO26: 24 | KP26: 11 | KV26: 50 | KW26: 0 | KX26: 57 | KY26: 11 | KZ26: 0 | LA26: 70 | LB26: 49 | LC26: 0 | LD26: 0 | LE26: 682.7 | LF26: 98 | LG26: 2 | LH26: 1 | LI26: 0 | LJ26: 0 | LK26: 5 | LL26: 1 | LM26: 639 | LN26: 200.8 | LO26: 85 | LP26: 517 | LQ26: -20 | LR26: 2 | LS26: 214.40 | LT26: 101 | LU26: 124 | LV26: 836 | LW26: 102 | LX26: 146 | LY26: 48 | LZ26: 7.6 | MA26: 1.2 | MB26: 2.5 | MC26: 5.1 | MD26: 2.2 | ME26: 0.2 | MF26: 702 | MH26: 0.23%
A27: 105006 | B27: 200262 | C27: 39 | D27: REICHSTETT | E27: 39 | F27: REICHSTETT | G27: 2019-10-31 | H27: 65 | I27: 4.32% | J27: 1.57 | K27: 2019-10-31 | L27: 767 | M27: 3.26% | N27: 2.67 | O27: 67 | P27: 1,336 | Q27: 0 | R27: 0.23% | S27: 8.08 | T27: 12.51 | U27: 71 | V27: 3.42% | W27: 2.19 | X27: 0 | Y27: 0.00% | Z27: 0 | AA27: 256 | AB27: 0.25% | AC27: 5.84 | AD27: 2.7 | AE27: 6.9 | AF27: 1.1 | AG27: 43.5 | AH27: 15.9 | AI27: 2.3 | AJ27: 201910 | AK27: 26.00 | AL27: 0.31 | AM27: 1.20% | AN27: 77.47 | AO27: 9.12 | AP27: 12% | AQ27: 1.31 | AR27: 1.69% | AS27: 379.93 | AT27: 17.40 | AU27: 4.6% | AV27: 0.93 | AW27: 0.24% | AX27: 56.19 | AY27: 1.88 | AZ27: 3.35% | BA27: 0.51 | BB27: 0.91% | BC27: 539.58 | BD27: 28.40 | BE27: 5.3% | BF27: 3.06 | BG27: 0.57% | BI27: 7 | BJ27: 0 | BK27: 94 | BL27: 68 | BM27: 9 | BN27: 1.14% | BO27: 0.00% | BP27: 39 | BQ27: 4 | BR27: 0 | BS27: 45 | BT27: 1 | BU27: -0 | BV27: -0 | BW27: -8 | BZ27: 0 | CA27: 0 | CB27: 0 | CC27: -1 | CD27: -0 | CE27: 0 | CF27: 0 | CG27: 5 | CH27: 1.0 | CI27: 6 | CJ27: 1 | CK27: 2 | CL27: 2 | CM27: 100.00% | CN27: 121.13% | CO27: 1 | CP27: 0.00% | CQ27: 0.00% | CR27: 0 | CS27: 1.1 | CT27: 0 | CU27: 0.00 | CV27: 0 | CW27: 4 | CX27: 0 | CY27: 3 | CZ27: 47.27% | DA27: 185.74% | DB27: 35 | DC27: 95.17% | DD27: 147.62% | DE27: 19 | DG27: 100.00% | DH27: 99.58% | DI27: 4 | DJ27: -194 | DK27: 0.70% | DL27: 5.33 | DM27: -7 | DN27: 42 | DO27: 0.66% | DP27: 5.33 | DQ27: 1 | DR27: -10 | DS27: 0.75% | DT27: 5.33 | DU27: -0 | DV27: -5 | DW27: 0.40% | DX27: 1.14 | DY27: -0 | DZ27: -185 | EA27: 0.20% | EB27: 5.37 | EC27: -2 | ED27: -35 | EE27: 0.20% | EF27: 5.37 | EG27: -0 | EH27: -16 | EI27: 0.20% | EJ27: 5.37 | EK27: -0 | EL27: -11 | EM27: 0.23% | EN27: 5.33 | EO27: -0 | EP27: -2 | EQ27: 0.10% | ER27: 9.25 | ES27: -0 | ET27: -3 | EU27: 0.20% | EV27: 9.00 | EW27: -0 | EX27: -29 | EY27: 0.00% | EZ27: 8.59 | FA27: 0 | FB27: 13 | FC27: -0.26% | FD27: 0.74 | FE27: -0 | FF27: -143 | FG27: 0.45% | FH27: 8.00 | FI27: -5 | FJ27: 491 | FK27: 0.57% | FL27: 1.00 | FM27: 3 | FN27: -33 | FO27: 0.65% | FP27: 5.00 | FQ27: -1 | FR27: 6 | FS27: 0.40% | FT27: 1.00 | FU27: 0 | FV27: -161 | FW27: 0.20% | FX27: 8.00 | FY27: -3 | FZ27: 80 | GA27: 1.00% | GB27: 5.00 | GC27: 4 | GD27: -442 | GE27: -5 | GF27: -136 | GG27: -0 | GH27: 196 | GI27: 1.00% | GJ27: 5.37 | GK27: 11 | GL27: -11 | GM27: 0 | GN27: 0 | GP27: 0 | GQ27: 0.00% | GR27: 0 | GS27: 0 | GT27: 0 | GU27: 0.45% | GV27: 8.00 | GW27: 0 | GX27: 0 | GY27: 0.57% | GZ27: 1.00 | HA27: 0 | HB27: 0 | HC27: 0.65% | HD27: 5.00 | HE27: 0 | HF27: 0 | HG27: 0.40% | HH27: 1.00 | HI27: 0 | HJ27: 40 | HK27: 1.00% | HL27: 5.00 | HM27: 2 | HN27: -9 | HO27: 148 | HP27: 0 | HQ27: =IF(ISERROR(IF(VLOOKUP($C27,'Indicateurs Cumulés'!$C$3:$HP$560,188,FALSE)/(VLOOKUP($C27,objectifs!$C$3:$AAB$559,158,FALSE))>=1.5,(VLOOKUP($C27,objectifs!$C$3:$AAB$559,158,FALSE))*1.5,IF(VLOOKUP($C27,'Indicateurs Cumulés'!$C$3:$HP$560,188,FALSE)/(VLOOKUP($C27,objectifs!$C$3:$AAB$559,158,FALSE))<=-0.5,(VLOOKUP($C27,objectifs!$C$3:$AAB$559,158,FALSE))*-0.5,VLOOKUP($C27,'Indicateurs Cumulés'!$C$3:$HP$560,188,FALSE)))),VLOOKUP($C27,'Indicateurs Cumulés'!$C$3:$HP$560,188,FALSE),IF(VLOOKUP($C27,'Indicateurs Cumulés'!$C$3:$HP$560,188,FALSE)/(VLOOKUP($C27,objectifs!$C$3:$AAB$559,158,FALSE))>=1.5,(VLOOKUP($C27,objectifs!$C$3:$AAB$559,158,FALSE))*1.5,IF(VLOOKUP($C27,'Indicateurs Cumulés'!$C$3:$HP$560,188,FALSE)/(VLOOKUP($C27,objectifs!$C$3:$AAB$559,158,FALSE))<=-0.5,(VLOOKUP($C27,objectifs!$C$3:$AAB$559,158,FALSE))*-0.5,VLOOKUP($C27,'Indicateurs Cumulés'!$C$3:$HP$560,188,FALSE)))) -> 196 | HR27: 0 | HS27: 0 | HT27: 1.9 | HU27: 0 | HV27: 0 | HW27: 0 | HX27: 0 | HY27: -2 | HZ27: -2 | IA27: 2 | IB27: 1 | IC27: -12 | ID27: -1 | IE27: -3 | IF27: -8 | IG27: -2 | IH27: -1 | II27: 0 | IJ27: 0 | IK27: 0 | IL27: 16 | IM27: -39 | IN27: -2 | IO27: -0 | IP27: -0 | IQ27: 1 | IR27: 0 | IS27: -0 | IT27: -0 | IU27: -0 | IV27: -3 | IW27: -0 | IX27: -1 | IY27: 0 | IZ27: 0 | JA27: 0 | JB27: 10 | JC27: -8 | JD27: -0 | JE27: 12 | JF27: 16 | JG27: 0 | JH27: 0 | JI27: 0.00 | JJ27: 0.00 | JK27: 0 | JL27: 0 | JM27: 0 | JN27: 0.20% | JO27: 0 | JQ27: 2 | JR27: 75 | JS27: 7 | JT27: =IF(ISERROR(IF(VLOOKUP($C27,'Indicateurs Cumulés'!$C$3:$HP$560,192,FALSE)/(VLOOKUP($C27,objectifs!$C$3:$AAB$559,162,FALSE))>=1.5,(VLOOKUP($C27,objectifs!$C$3:$AAB$559,162,FALSE))*1.5,IF(VLOOKUP($C27,'Indicateurs Cumulés'!$C$3:$HP$560,192,FALSE)/(VLOOKUP($C27,objectifs!$C$3:$AAB$559,162,FALSE))<=-0.5,(VLOOKUP($C27,objectifs!$C$3:$AAB$559,162,FALSE))*-0.5,VLOOKUP($C27,'Indicateurs Cumulés'!$C$3:$HP$560,192,FALSE)))),VLOOKUP($C27,'Indicateurs Cumulés'!$C$3:$HP$560,192,FALSE),IF(VLOOKUP($C27,'Indicateurs Cumulés'!$C$3:$HP$560,192,FALSE)/(VLOOKUP($C27,objectifs!$C$3:$AAB$559,162,FALSE))>=1.5,(VLOOKUP($C27,objectifs!$C$3:$AAB$559,162,FALSE))*1.5,IF(VLOOKUP($C27,'Indicateurs Cumulés'!$C$3:$HP$560,192,FALSE)/(VLOOKUP($C27,objectifs!$C$3:$AAB$559,162,FALSE))<=-0.5,(VLOOKUP($C27,objectifs!$C$3:$AAB$559,162,FALSE))*-0.5,VLOOKUP($C27,'Indicateurs Cumulés'!$C$3:$HP$560,192,FALSE)))) -> -3 | JU27: 0 | JV27: 0 | JX27: 0 | JY27: 2 | JZ27: 0 | KA27: -0 | KB27: 3 | KC27: 0 | KD27: 0 | KE27: 0 | KF27: -4 | KG27: 0 | KH27: 0 | KI27: 0 | KJ27: 0 | KK27: 0 | KL27: -1 | KM27: 0 | KN27: 0 | KO27: 2 | KP27: 3 | KV27: 4 | KW27: 0 | KX27: 12 | KY27: 2 | KZ27: 0 | LA27: 16 | LB27: 11 | LC27: 0 | LD27: 0 | LE27: 178.1 | LF27: 26 | LG27: 1 | LH27: 1 | LI27: 3 | LJ27: 4 | LK27: 2 | LL27: 0 | LM27: 174 | LN27: 90.7 | LO27: 5 | LP27: 171 | LQ27: -9 | LR27: 5 | LS27: 93.09 | LT27: 40 | LU27: 58 | LV27: 123 | LW27: 34 | LX27: 9 | LY27: 30 | LZ27: 3.0 | MA27: 0.6 | MB27: 0.4 | MC27: 1.7 | MD27: 0.1 | ME27: 0.2 | MF27: 184 | MH27: 0.21%
A28: 105006 | B28: 200262 | C28: 40 | D28: ECKBOLSHEIM | E28: 48 | F28: STRASBOURG KOENIGSHOFFEN | G28: 2019-10-31 | H28: 68 | I28: 4.32% | J28: 1.57 | K28: 2019-10-31 | L28: 622 | M28: 2.56% | N28: 3.00 | O28: 48 | P28: 2,259 | Q28: 0 | R28: 0.17% | S28: 6.65 | T28: 10.64 | U28: 163 | V28: 2.05% | W28: 4.34 | X28: 318 | Y28: 0.17% | Z28: 8.80 | AA28: 15 | AB28: 1.78% | AC28: 1.72 | AD28: 7.6 | AE28: 4.4 | AF28: 0.2 | AG28: 47.3 | AH28: 10.4 | AI28: 4.1 | AJ28: 201910 | AK28: 0 | AL28: 0 | AM28: 0.00% | AN28: 135.35 | AO28: 11.18 | AP28: 8% | AQ28: 2.06 | AR28: 1.52% | AS28: 712.06 | AT28: 43.70 | AU28: 6.1% | AV28: 0.34 | AW28: 0.05% | AX28: 50.64 | AY28: 0.61 | AZ28: 1.21% | BA28: 1.16 | BB28: 2.28% | BC28: 898.06 | BD28: 55.49 | BE28: 6.2% | BF28: 3.56 | BG28: 0.40% | BI28: 19 | BJ28: 6 | BK28: 68 | BL28: 75 | BM28: 2 | BN28: 1.14% | BO28: 0.00% | BP28: 40 | BQ28: 123 | BR28: 2 | BS28: 47 | BT28: 1 | BU28: 1 | BV28: -1 | BW28: -8 | BZ28: 0 | CA28: 0 | CB28: 0 | CC28: -1 | CD28: -0 | CE28: -2 | CF28: -1 | CG28: 9 | CH28: 1.8 | CI28: -19 | CJ28: -4 | CK28: 6 | CL28: 6 | CM28: 100.00% | CN28: 100.00% | CO28: 4 | CP28: 0.00% | CQ28: 0.00% | CR28: 0 | CS28: 0.2 | CT28: 1 | CU28: 0.31 | CV28: 1 | CW28: 2 | CX28: 1 | CY28: 8 | CZ28: 42.12% | DA28: 116.81% | DB28: 32 | DC28: 90.59% | DD28: 137.29% | DE28: 13 | DG28: 100.00% | DH28: 100.00% | DI28: 0 | DJ28: 62 | DK28: 0.70% | DL28: 5.33 | DM28: 2 | DN28: -70 | DO28: 0.66% | DP28: 5.33 | DQ28: -2 | DR28: 45 | DS28: 0.75% | DT28: 5.33 | DU28: 2 | DV28: 319 | DW28: 0.40% | DX28: 1.14 | DY28: 1 | DZ28: -181 | EA28: 0.20% | EB28: 5.37 | EC28: -2 | ED28: 140 | EE28: 0.20% | EF28: 5.37 | EG28: 2 | EH28: -36 | EI28: 0.20% | EJ28: 5.37 | EK28: -0 | EL28: 54 | EM28: 0.23% | EN28: 5.33 | EO28: 1 | EP28: -1 | EQ28: 0.10% | ER28: 8.58 | ES28: -0 | ET28: -149 | EU28: 0.20% | EV28: 9.00 | EW28: -3 | EX28: -78 | EY28: 0.00% | EZ28: 8.59 | FA28: 0 | FB28: 0 | FC28: -0.26% | FD28: 0.74 | FE28: 0 | FF28: 488 | FG28: 0.45% | FH28: 8.00 | FI28: 18 | FJ28: 934 | FK28: 0.40% | FL28: 1.00 | FM28: 4 | FN28: -10 | FO28: 0.65% | FP28: 5.00 | FQ28: -0 | FR28: 11 | FS28: 0.40% | FT28: 1.00 | FU28: 0 | FV28: -352 | FW28: 0.20% | FX28: 8.00 | FY28: -6 | FZ28: 28 | GA28: 1.00% | GB28: 5.00 | GC28: 1 | GD28: -230 | GE28: -4 | GF28: 494 | GG28: 23 | GH28: 427 | GI28: 1.00% | GJ28: 5.37 | GK28: 23 | GL28: 51 | GM28: 0 | GN28: 0 | GP28: 31 | GQ28: 1.20% | GR28: 1.93 | GS28: 1 | GT28: 250 | GU28: 0.45% | GV28: 8.00 | GW28: 9 | GX28: 250 | GY28: 0.40% | GZ28: 1.00 | HA28: 1 | HB28: 0 | HC28: 0.65% | HD28: 5.00 | HE28: 0 | HF28: 0 | HG28: 0.40% | HH28: 1.00 | HI28: 0 | HJ28: -235 | HK28: 1.00% | HL28: 5.00 | HM28: -12 | HN28: -9 | HO28: 164 | HP28: 0 | HQ28: =IF(ISERROR(IF(VLOOKUP($C28,'Indicateurs Cumulés'!$C$3:$HP$560,188,FALSE)/(VLOOKUP($C28,objectifs!$C$3:$AAB$559,158,FALSE))>=1.5,(VLOOKUP($C28,objectifs!$C$3:$AAB$559,158,FALSE))*1.5,IF(VLOOKUP($C28,'Indicateurs Cumulés'!$C$3:$HP$560,188,FALSE)/(VLOOKUP($C28,objectifs!$C$3:$AAB$559,158,FALSE))<=-0.5,(VLOOKUP($C28,objectifs!$C$3:$AAB$559,158,FALSE))*-0.5,VLOOKUP($C28,'Indicateurs Cumulés'!$C$3:$HP$560,188,FALSE)))),VLOOKUP($C28,'Indicateurs Cumulés'!$C$3:$HP$560,188,FALSE),IF(VLOOKUP($C28,'Indicateurs Cumulés'!$C$3:$HP$560,188,FALSE)/(VLOOKUP($C28,objectifs!$C$3:$AAB$559,158,FALSE))>=1.5,(VLOOKUP($C28,objectifs!$C$3:$AAB$559,158,FALSE))*1.5,IF(VLOOKUP($C28,'Indicateurs Cumulés'!$C$3:$HP$560,188,FALSE)/(VLOOKUP($C28,objectifs!$C$3:$AAB$559,158,FALSE))<=-0.5,(VLOOKUP($C28,objectifs!$C$3:$AAB$559,158,FALSE))*-0.5,VLOOKUP($C28,'Indicateurs Cumulés'!$C$3:$HP$560,188,FALSE)))) -> 420 | HR28: 0 | HS28: 0 | HT28: 0.8 | HU28: 0 | HV28: 0 | HW28: 0 | HX28: 0 | HY28: 7 | HZ28: -7 | IA28: 1 | IB28: 2 | IC28: -6 | ID28: 2 | IE28: 7 | IF28: -56 | IG28: -2 | IH28: -6 | II28: 0 | IJ28: 0 | IK28: 6 | IL28: 41 | IM28: -63 | IN28: -1 | IO28: 1 | IP28: -1 | IQ28: 0 | IR28: 0 | IS28: -0 | IT28: 0 | IU28: 1 | IV28: -24 | IW28: -0 | IX28: -4 | IY28: 0 | IZ28: 0 | JA28: 6 | JB28: 27 | JC28: -14 | JD28: -0 | JE28: 28 | JF28: 26 | JG28: 0 | JH28: 0 | JI28: 0.00 | JJ28: 0.00 | JK28: 0 | JL28: 0 | JM28: 0 | JN28: 0.20% | JO28: 0 | JQ28: -4 | JR28: -11 | JS28: 15 | JT28: =IF(ISERROR(IF(VLOOKUP($C28,'Indicateurs Cumulés'!$C$3:$HP$560,192,FALSE)/(VLOOKUP($C28,objectifs!$C$3:$AAB$559,162,FALSE))>=1.5,(VLOOKUP($C28,objectifs!$C$3:$AAB$559,162,FALSE))*1.5,IF(VLOOKUP($C28,'Indicateurs Cumulés'!$C$3:$HP$560,192,FALSE)/(VLOOKUP($C28,objectifs!$C$3:$AAB$559,162,FALSE))<=-0.5,(VLOOKUP($C28,objectifs!$C$3:$AAB$559,162,FALSE))*-0.5,VLOOKUP($C28,'Indicateurs Cumulés'!$C$3:$HP$560,192,FALSE)))),VLOOKUP($C28,'Indicateurs Cumulés'!$C$3:$HP$560,192,FALSE),IF(VLOOKUP($C28,'Indicateurs Cumulés'!$C$3:$HP$560,192,FALSE)/(VLOOKUP($C28,objectifs!$C$3:$AAB$559,162,FALSE))>=1.5,(VLOOKUP($C28,objectifs!$C$3:$AAB$559,162,FALSE))*1.5,IF(VLOOKUP($C28,'Indicateurs Cumulés'!$C$3:$HP$560,192,FALSE)/(VLOOKUP($C28,objectifs!$C$3:$AAB$559,162,FALSE))<=-0.5,(VLOOKUP($C28,objectifs!$C$3:$AAB$559,162,FALSE))*-0.5,VLOOKUP($C28,'Indicateurs Cumulés'!$C$3:$HP$560,192,FALSE)))) -> 8 | JU28: 0 | JV28: 0 | JX28: -0 | JY28: -0 | JZ28: 0 | KA28: 0 | KB28: 0 | KC28: 1 | KD28: 0 | KE28: 0 | KF28: 1 | KG28: 0 | KH28: 0 | KI28: 1 | KJ28: 0 | KK28: 0 | KL28: 0 | KM28: 0 | KN28: 0 | KO28: 3 | KP28: 2 | KV28: 1 | KW28: 0 | KX28: 28 | KY28: 6 | KZ28: 0 | LA28: 47 | LB28: 33 | LC28: 0 | LD28: 0 | LE28: 202.9 | LF28: 32 | LG28: 1 | LH28: 1 | LI28: 1 | LJ28: 1 | LK28: 0 | LL28: 0 | LM28: 190 | LN28: 251.5 | LO28: 41 | LP28: 145 | LQ28: -9 | LR28: 2 | LS28: 269.23 | LT28: 62 | LU28: 85 | LV28: 513 | LW28: 61 | LX28: 13 | LY28: 57 | LZ28: 4.7 | MA28: 0.9 | MB28: 1.5 | MC28: 3.1 | MD28: 0.2 | ME28: 0.3 | MF28: 213 | MH28: 0.34%
A29: 105060 | B29: 200262 | C29: 41 | D29: HOERDT | E29: 41 | F29: HOERDT | G29: 2019-10-31 | H29: 107 | I29: 4.32% | J29: 1.57 | K29: 2019-10-31 | L29: 816 | M29: 3.31% | N29: 2.50 | O29: 68 | P29: 3,930 | Q29: 0 | R29: 0.18% | S29: 6.91 | T29: 10.51 | U29: 29 | V29: 4.72% | W29: 1.76 | X29: 0 | Y29: 0.00% | Z29: 0 | AA29: 542 | AB29: 1.33% | AC29: 3.51 | AD29: 7.7 | AE29: 7.1 | AF29: 1.2 | AG29: 104.2 | AH29: 14.5 | AI29: 5.8 | AJ29: 201910 | AK29: 27.00 | AL29: 0.65 | AM29: 2.40% | AN29: 156.87 | AO29: 12.79 | AP29: 8% | AQ29: 1.58 | AR29: 1.01% | AS29: 891.11 | AT29: 53.48 | AU29: 6.0% | AV29: 0.98 | AW29: 0.11% | AX29: 30.06 | AY29: 0.77 | AZ29: 2.58% | BA29: 0.53 | BB29: 1.76% | BC29: 1,105.04 | BD29: 67.05 | BE29: 6.1% | BF29: 3.74 | BG29: 0.34% | BI29: 3 | BJ29: 0 | BK29: 98 | BL29: 184 | BM29: 30 | BN29: 1.29% | BO29: 0.00% | BP29: 41 | BQ29: 26 | BR29: 1 | BS29: 93 | BT29: 3 | BU29: 5 | BV29: 2 | BW29: -13 | BZ29: 0 | CA29: 0 | CB29: 0 | CC29: 1 | CD29: 0 | CE29: 6 | CF29: 3 | CG29: 8 | CH29: 1.6 | CI29: -2 | CJ29: -0 | CK29: 4 | CL29: 4 | CM29: 100.00% | CN29: 100.00% | CO29: 0 | CP29: 0.00% | CQ29: 0.00% | CR29: 0 | CS29: 1.2 | CT29: 0 | CU29: 0.00 | CV29: 0 | CW29: 4 | CX29: 0 | CY29: 8 | CZ29: 56.68% | DA29: 198.22% | DB29: 117 | DC29: 98.20% | DD29: 143.16% | DE29: 19 | DG29: 100.00% | DH29: 152.52% | DI29: 4 | DJ29: 207 | DK29: 0.70% | DL29: 5.33 | DM29: 8 | DN29: -201 | DO29: 0.66% | DP29: 5.33 | DQ29: -7 | DR29: 7 | DS29: 0.75% | DT29: 5.33 | DU29: 0 | DV29: 20 | DW29: 0.40% | DX29: 1.14 | DY29: 0 | DZ29: -128 | EA29: 0.20% | EB29: 5.37 | EC29: -1 | ED29: 42 | EE29: 0.20% | EF29: 5.37 | EG29: 0 | EH29: -10 | EI29: 0.20% | EJ29: 5.37 | EK29: -0 | EL29: -49 | EM29: 0.23% | EN29: 5.33 | EO29: -1 | EP29: -13 | EQ29: 0.10% | ER29: 7.87 | ES29: -0 | ET29: -58 | EU29: 0.20% | EV29: 9.00 | EW29: -1 | EX29: 220 | EY29: 0.00% | EZ29: 8.59 | FA29: 0 | FB29: 0 | FC29: -0.26% | FD29: 0.74 | FE29: 0 | FF29: 681 | FG29: 0.45% | FH29: 8.00 | FI29: 25 | FJ29: 1,229 | FK29: 0.34% | FL29: 1.00 | FM29: 4 | FN29: -90 | FO29: 0.65% | FP29: 5.00 | FQ29: -3 | FR29: 22 | FS29: 0.40% | FT29: 1.00 | FU29: 0 | FV29: -190 | FW29: 0.20% | FX29: 8.00 | FY29: -3 | FZ29: 50 | GA29: 1.00% | GB29: 5.00 | GC29: 2 | GD29: -8 | GE29: 1 | GF29: 660 | GG29: 32 | GH29: 205 | GI29: 1.00% | GJ29: 5.37 | GK29: 11 | GL29: 48 | GM29: 0 | GN29: 0 | GP29: 0 | GQ29: 0.00% | GR29: 0 | GS29: 0 | GT29: 0 | GU29: 0.45% | GV29: 8.00 | GW29: 0 | GX29: 0 | GY29: 0.34% | GZ29: 1.00 | HA29: 0 | HB29: 0 | HC29: 0.65% | HD29: 5.00 | HE29: 0 | HF29: 0 | HG29: 0.40% | HH29: 1.00 | HI29: 0 | HJ29: 69 | HK29: 1.00% | HL29: 5.00 | HM29: 3 | HN29: -9 | HO29: 167 | HP29: 0 | HQ29: =IF(ISERROR(IF(VLOOKUP($C29,'Indicateurs Cumulés'!$C$3:$HP$560,188,FALSE)/(VLOOKUP($C29,objectifs!$C$3:$AAB$559,158,FALSE))>=1.5,(VLOOKUP($C29,objectifs!$C$3:$AAB$559,158,FALSE))*1.5,IF(VLOOKUP($C29,'Indicateurs Cumulés'!$C$3:$HP$560,188,FALSE)/(VLOOKUP($C29,objectifs!$C$3:$AAB$559,158,FALSE))<=-0.5,(VLOOKUP($C29,objectifs!$C$3:$AAB$559,158,FALSE))*-0.5,VLOOKUP($C29,'Indicateurs Cumulés'!$C$3:$HP$560,188,FALSE)))),VLOOKUP($C29,'Indicateurs Cumulés'!$C$3:$HP$560,188,FALSE),IF(VLOOKUP($C29,'Indicateurs Cumulés'!$C$3:$HP$560,188,FALSE)/(VLOOKUP($C29,objectifs!$C$3:$AAB$559,158,FALSE))>=1.5,(VLOOKUP($C29,objectifs!$C$3:$AAB$559,158,FALSE))*1.5,IF(VLOOKUP($C29,'Indicateurs Cumulés'!$C$3:$HP$560,188,FALSE)/(VLOOKUP($C29,objectifs!$C$3:$AAB$559,158,FALSE))<=-0.5,(VLOOKUP($C29,objectifs!$C$3:$AAB$559,158,FALSE))*-0.5,VLOOKUP($C29,'Indicateurs Cumulés'!$C$3:$HP$560,188,FALSE)))) -> 205 | HR29: 0 | HS29: 0 | HT29: 2.8 | HU29: 0 | HV29: 0 | HW29: 0 | HX29: 0 | HY29: 25 | HZ29: 8 | IA29: 4 | IB29: 13 | IC29: 6 | ID29: 1 | IE29: 15 | IF29: -11 | IG29: 13 | IH29: -4 | II29: -6 | IJ29: -1 | IK29: 1 | IL29: 32 | IM29: -22 | IN29: 2 | IO29: 3 | IP29: 1 | IQ29: 1 | IR29: 1 | IS29: 0 | IT29: 0 | IU29: 2 | IV29: -5 | IW29: 1 | IX29: -2 | IY29: -6 | IZ29: -2 | JA29: 1 | JB29: 21 | JC29: -5 | JD29: 0 | JE29: 41 | JF29: 33 | JG29: 0 | JH29: 0 | JI29: 0.00 | JJ29: 0.00 | JK29: 0 | JL29: 0 | JM29: -20 | JN29: 0.20% | JO29: 1 | JQ29: 7 | JR29: 96 | JS29: -24 | JT29: =IF(ISERROR(IF(VLOOKUP($C29,'Indicateurs Cumulés'!$C$3:$HP$560,192,FALSE)/(VLOOKUP($C29,objectifs!$C$3:$AAB$559,162,FALSE))>=1.5,(VLOOKUP($C29,objectifs!$C$3:$AAB$559,162,FALSE))*1.5,IF(VLOOKUP($C29,'Indicateurs Cumulés'!$C$3:$HP$560,192,FALSE)/(VLOOKUP($C29,objectifs!$C$3:$AAB$559,162,FALSE))<=-0.5,(VLOOKUP($C29,objectifs!$C$3:$AAB$559,162,FALSE))*-0.5,VLOOKUP($C29,'Indicateurs Cumulés'!$C$3:$HP$560,192,FALSE)))),VLOOKUP($C29,'Indicateurs Cumulés'!$C$3:$HP$560,192,FALSE),IF(VLOOKUP($C29,'Indicateurs Cumulés'!$C$3:$HP$560,192,FALSE)/(VLOOKUP($C29,objectifs!$C$3:$AAB$559,162,FALSE))>=1.5,(VLOOKUP($C29,objectifs!$C$3:$AAB$559,162,FALSE))*1.5,IF(VLOOKUP($C29,'Indicateurs Cumulés'!$C$3:$HP$560,192,FALSE)/(VLOOKUP($C29,objectifs!$C$3:$AAB$559,162,FALSE))<=-0.5,(VLOOKUP($C29,objectifs!$C$3:$AAB$559,162,FALSE))*-0.5,VLOOKUP($C29,'Indicateurs Cumulés'!$C$3:$HP$560,192,FALSE)))) -> 8 | JU29: -0 | JV29: 0 | JX29: 0 | JY29: 3 | JZ29: -1 | KA29: 0 | KB29: 3 | KC29: 3 | KD29: 0 | KE29: 1 | KF29: 4 | KG29: 0 | KH29: 0 | KI29: 4 | KJ29: 0 | KK29: 1 | KL29: 1 | KM29: 0 | KN29: 0 | KO29: 14 | KP29: 5 | KV29: 2 | KW29: 0 | KX29: 3 | KY29: 1 | KZ29: 0 | LA29: 32 | LB29: 22 | LC29: 0 | LD29: 0 | LE29: 395.6 | LF29: 56 | LG29: 1 | LH29: 1 | LI29: 3 | LJ29: 4 | LK29: 2 | LL29: 0 | LM29: 383 | LN29: 137.2 | LO29: 44 | LP29: 312 | LQ29: -9 | LR29: 5 | LS29: 141.80 | LT29: 101 | LU29: 93 | LV29: 487 | LW29: 89 | LX29: 26 | LY29: 39 | LZ29: 7.6 | MA29: 0.9 | MB29: 1.5 | MC29: 4.5 | MD29: 0.4 | ME29: 0.2 | MF29: 411 | MH29: 0.20%
